Workbook

Sheet Program Summary
A1: ='Program Info'!E11 -> 0 | H1: REPORT GENERATION COMMANDS | J1: MAC Users
A2: ='Program Info'!E10 -> 0
A3: ='Program Info'!B1 -> ACADEMIC PROGRAM PROPOSAL PROJECTION
A4: =CONCATENATE('Program Info'!$B$6,": ",'Program Info'!$E$6) -> PROGRAM DEVELOPMENT PHASE: | D4: =IF('Program Info'!E15="YES","***ONLINE PROGRAM - ONLINE TUITION RATE APPLIED***","") -> 
B5: ='Program Info'!E17 -> 0 | C5: ='Program Info'!F17 -> 0-1 | D5: ='Program Info'!G17 ->  | E5: ='Program Info'!H17 ->  | F5: ='Program Info'!I17 ->  | G5: 5 Year Total
A6: YEAR | B6: 1 | C6: 2 | D6: 3 | E6: 4 | F6: 5
A8: PLANNED ENROLLMENT
A9: Continuing Students | C9: =B14 ->  | D9: =C14 ->  | E9: =D14 ->  | F9: =E14 -> 
A10: New Student Intake | B10: ='Program Info'!E49 -> 0 | C10: ='Program Info'!F49 -> 0 | D10: ='Program Info'!G49 -> 0 | E10: ='Program Info'!H49 -> 0 | F10: ='Program Info'!I49 -> 0
A11: Total Enrollment | B11: ='Program Info'!E50 ->  | C11: ='Program Info'!F50 ->  | D11: ='Program Info'!G50 ->  | E11: ='Program Info'!H50 ->  | F11: ='Program Info'!I50 -> 
A12: Student Attrition | B12: ='Calculation Worksheet'!F51 ->  | C12: ='Calculation Worksheet'!G51 ->  | D12: ='Calculation Worksheet'!H51 ->  | E12: ='Calculation Worksheet'!I51 ->  | F12: ='Calculation Worksheet'!J51 -> 
A13: Student Completion | B13: =-'Calculation Worksheet'!E58 -> 0 | C13: =-'Calculation Worksheet'!F58 -> 0 | D13: =-'Calculation Worksheet'!G58 -> 0 | E13: =-'Calculation Worksheet'!H58 -> 0 | F13: =-'Calculation Worksheet'!I58 -> 0 | I13: =ReqAnalytics -> 
A14: Continuing Students | B14: =B11+B12+B13 ->  | C14: =C11+C12+C13 ->  | D14: =D11+D12+D13 ->  | E14: =E11+E12+E13 ->  | F14: =F11+F12+F13 -> 
A17: PLANNED FACULTY
A18: Tenure/TT (FTE) | B18: ='College Spending Plan'!C14+'College Spending Plan'!C73 -> 0 | C18: ='College Spending Plan'!D14+'College Spending Plan'!D73 -> 0 | D18: ='College Spending Plan'!E14+'College Spending Plan'!E73 -> 0 | E18: ='College Spending Plan'!F14+'College Spending Plan'!F73 -> 0 | F18: ='College Spending Plan'!G14+'College Spending Plan'!G73 -> 0
A19: Lecturer (FTE) | B19: ='College Spending Plan'!C15+'College Spending Plan'!C74 -> 0 | C19: ='College Spending Plan'!D15+'College Spending Plan'!D74 -> 0 | D19: ='College Spending Plan'!E15+'College Spending Plan'!E74 -> 0 | E19: ='College Spending Plan'!F15+'College Spending Plan'!F74 -> 0 | F19: ='College Spending Plan'!G15+'College Spending Plan'!G74 -> 0
A20: PLANNED STAFF
A21: Staff (FTE) | B21: ='College Spending Plan'!C30+'College Spending Plan'!C31+'College Spending Plan'!C32+'College Spending Plan'!C89+'College Spending Plan'!C90+'College Spending Plan'!C91 -> 0 | C21: ='College Spending Plan'!D30+'College Spending Plan'!D31+'College Spending Plan'!D32+'College Spending Plan'!D89+'College Spending Plan'!D90+'College Spending Plan'!D91 -> 0 | D21: ='College Spending Plan'!E30+'College Spending Plan'!E31+'College Spending Plan'!E32+'College Spending Plan'!E89+'College Spending Plan'!E90+'College Spending Plan'!E91 -> 0 | E21: ='College Spending Plan'!F30+'College Spending Plan'!F31+'College Spending Plan'!F32+'College Spending Plan'!F89+'College Spending Plan'!F90+'College Spending Plan'!F91 -> 0 | F21: ='College Spending Plan'!G30+'College Spending Plan'!G31+'College Spending Plan'!G32+'College Spending Plan'!G89+'College Spending Plan'!G90+'College Spending Plan'!G91 -> 0
A22: =IF(F22<>"","Undergraduate Academic Advisor (FTE)","") ->  | B22: ='Program Info'!E130 ->  | C22: ='Program Info'!F130 ->  | D22: ='Program Info'!G130 ->  | E22: ='Program Info'!H130 ->  | F22: ='Program Info'!I130 -> 
A25: CREDIT HOURS
A26: Program Required Credit Hours | B26: ='Program Info'!E38 -> 0
A27: % of Curriculum from Newly Created Courses | B27: ='Program Info'!G38/'Program Info'!E38 -> 
A28: CH Consumed | B28: ='Program Info'!E57 ->  | C28: ='Program Info'!F57 ->  | D28: ='Program Info'!G57 ->  | E28: ='Program Info'!H57 ->  | F28: ='Program Info'!I57 -> 
A31: PROJECTED FINANCIALS - CALCULATED USING APR COST PER CREDIT HOUR RATES1)
A32: Revenue (Net of Aid) | B32: ='APR 5 Year Projection'!B12 ->  | C32: ='APR 5 Year Projection'!C12 ->  | D32: ='APR 5 Year Projection'!D12 ->  | E32: ='APR 5 Year Projection'!E12 ->  | F32: ='APR 5 Year Projection'!F12 ->  | G32: ='APR 5 Year Projection'!G12 -> 
A33: College Expense | B33: ='APR 5 Year Projection'!B26+'APR 5 Year Projection'!B39+'APR 5 Year Projection'!B43 ->  | C33: ='APR 5 Year Projection'!C26+'APR 5 Year Projection'!C39+'APR 5 Year Projection'!C43 ->  | D33: ='APR 5 Year Projection'!D26+'APR 5 Year Projection'!D39+'APR 5 Year Projection'!D43 ->  | E33: ='APR 5 Year Projection'!E26+'APR 5 Year Projection'!E39+'APR 5 Year Projection'!E43 ->  | F33: ='APR 5 Year Projection'!F26+'APR 5 Year Projection'!F39+'APR 5 Year Projection'!F43 ->  | G33: ='APR 5 Year Projection'!G26+'APR 5 Year Projection'!G39+'APR 5 Year Projection'!G43 ->  | H33: ='College Spending Plan'!H24+'College Spending Plan'!H83-G42 -> 0
A34: Contribution Margin Surplus/(Deficit) - College Level (APR) | B34: =B32-B33 ->  | H34: ='Table 5'!G42-G43 -> 
A35: Less: Academic Affairs Allocation | B35: ='APR 5 Year Projection'!B51 ->  | C35: ='APR 5 Year Projection'!C51 ->  | D35: ='APR 5 Year Projection'!D51 ->  | E35: ='APR 5 Year Projection'!E51 ->  | F35: ='APR 5 Year Projection'!F51 ->  | G35: ='APR 5 Year Projection'!G51 ->  | H35: ='College Spending Plan'!H46+'College Spending Plan'!H105+'Space, Nonrecurring, Library'!J22*5-G44 -> 0
A36: Contribution Margin Surplus/(Deficit) - Academic Affairs Level (APR) | B36: =B34-B35 ->  | H36: =H33+H34+H35 -> 
A37: Less: Full Cost Allocation & Marginal Benefit | B37: ='APR 5 Year Projection'!B55 ->  | C37: ='APR 5 Year Projection'!C55 ->  | D37: ='APR 5 Year Projection'!D55 ->  | E37: ='APR 5 Year Projection'!E55 ->  | F37: ='APR 5 Year Projection'!F55 ->  | G37: ='APR 5 Year Projection'!G55 ->  | H37: ='Space, Nonrecurring, Library'!L9+'Space, Nonrecurring, Library'!L11+'Space, Nonrecurring, Library'!H14+'Space, Nonrecurring, Library'!H17+'Space, Nonrecurring, Library'!H19+'Space, Nonrecurring, Library'!J22-G46+G46-B53-B57 -> 0
A38: Contribution Margin Surplus/(Deficit) - Full Allocated Level (APR) | B38: =B36-B37 ->  | C38: =C36-C37 ->  | H38: =G32-H33-H34-H35-H36-H37-G32 -> 
A40: COLLEGE SPENDING PLAN
A41: Variance Status @ Year 5 | B41: =UPPER('College Spending Plan'!G55) ->  | C41: =IF(B41="UNFAVORABLE", " - COLLEGE EXCEEDS AVERAGE SPENDING RATES", "- COLLEGE MAINTAINS AVERAGE SPENDING RATES") -> 
A42: College Planned Instruction | B42: ='College Spending Plan'!C24+'College Spending Plan'!C83 -> 0 | C42: ='College Spending Plan'!D24+'College Spending Plan'!D83 -> 0 | D42: ='College Spending Plan'!E24+'College Spending Plan'!E83 -> 0 | E42: ='College Spending Plan'!F24+'College Spending Plan'!F83 -> 0 | F42: ='College Spending Plan'!G24+'College Spending Plan'!G83 -> 0 | G42: =SUM(B42:F42) -> 0
A43: Employee Benefits | B43: ='Table 5'!B42 ->  | C43: ='Table 5'!C42 ->  | D43: ='Table 5'!D42 ->  | E43: ='Table 5'!E42 ->  | F43: ='Table 5'!F42 ->  | G43: =SUM(B43:F43) -> 
A44: College Planned Direct Costs - Non Instruction | B44: ='College Spending Plan'!C46+'College Spending Plan'!C105+$B$57 -> 0 | C44: ='College Spending Plan'!D46+'College Spending Plan'!D105+$B$57 -> 0 | D44: ='College Spending Plan'!E46+'College Spending Plan'!E105+$B$57 -> 0 | E44: ='College Spending Plan'!F46+'College Spending Plan'!F105+$B$57 -> 0 | F44: ='College Spending Plan'!G46+'College Spending Plan'!G105+$B$57 -> 0 | G44: =SUM(B44:F44) -> 0
A45: Total College Direct Costs | B45: =B42+B43+B44 -> 
A46: Nonrecurring | B46: =$B$53/5 -> 0 | C46: =$B$53/5 -> 0 | D46: =$B$53/5 -> 0 | E46: =$B$53/5 -> 0 | F46: =$B$53/5 -> 0 | G46: =SUM(B46:F46) -> 0
A47: Program Cash flow: Revenue (Net of Aid) Less: Direct College Costs2) | B47: =B32-B45-B46 -> 
A48: Variance in Spending Plan Favorable/(Unfavorable) | B48: ='College Spending Plan'!C53-'College Spending Plan'!C52-'College Spending Plan'!C51 ->  | C48: ='College Spending Plan'!D53-'College Spending Plan'!D52-'College Spending Plan'!D51 ->  | D48: ='College Spending Plan'!E53-'College Spending Plan'!E52-'College Spending Plan'!E51 ->  | E48: ='College Spending Plan'!F53-'College Spending Plan'!F52-'College Spending Plan'!F51 ->  | F48: ='College Spending Plan'!G53-'College Spending Plan'!G52-'College Spending Plan'!G51 ->  | G48: =SUM(B48:F48) -> 
A50: NONRECURRING EXPENDITURES | D50: MODEL HIGHLIGHTS
A51: Equipment Capital | B51: ='Space, Nonrecurring, Library'!H17+'Space, Nonrecurring, Library'!H19 -> 0 | D51: =IF('Program Info'!$E$15="YES",CONCATENATE("Online tuition rate, no discount applied. "),CONCATENATE("Realized 5 year Discount Rate is ",TEXT(ABS('APR 5 Year Projection'!$H$11),"#,##%;#,##%"),".")) -> 
A52: Nonrecurring Expenditures | B52: ='Space, Nonrecurring, Library'!H19+'Space, Nonrecurring, Library'!H17+'Space, Nonrecurring, Library'!H14+'Space, Nonrecurring, Library'!L11+'Space, Nonrecurring, Library'!L9-B51 -> 0 | C52: * | D52: =IF(F34>0,"APR College level surplus in year 5.","APR College level deficit in year 5") ->  | G52: =IF(F34<0,-1,2) -> 
A53: Total Nonrecurring Expenditures | B53: =B51+B52 -> 0 | C53: * | D53: =IF($G$53=2,"Program accretive/spending plan within 120% tolerance.",CONCATENATE("Spending Plan over 120% threshold tolerance (@",TEXT(ABS('College Spending Plan'!G51/'College Spending Plan'!G53),"#,##%;#,##%"),").")) ->  | G53: =IF(AND((F34+F48)>0,(F48/'College Spending Plan'!G53)>-0.2),2, -1) -> 
A54: Space Requested | B54: =IF(('Space, Nonrecurring, Library'!I9+'Space, Nonrecurring, Library'!I11)=0,"NONE",CONCATENATE(TEXT(('Space, Nonrecurring, Library'!I9+'Space, Nonrecurring, Library'!I11),"#,###")," Sq Ft")) -> NONE | D54: =IF(AND($B$41="Unfavorable",'ReqMarginal Impact Analysis'!$F$34<0),CONCATENATE("Increase to ave. college instructional cost per CH by ",TEXT(ABS('ReqMarginal Impact Analysis'!$F$34),"$#,##0._);($#,##._)")),IF(AND($B$41="Unfavorable",'ReqMarginal Impact Analysis'!$F$34>0),"Spending Plan includes high non-instructional cost drivers.","College maintains cost structure.")) ->  | G54: =IF(B41="Unfavorable",-1,2) -> 
C55: * | D55: =IF(OR($F$47<0,$G$47<0), "Program is NOT cashflow positive.","Program has positive cashflow.") ->  | G55: =IF(OR($F$47<0,$G$47<0),-1,2) -> 
A56: LIBRARY | C56: * | D56: =IF('Program Info'!L51=FALSE,"NO ENROLLMENT CONFIRMATION","Enrollment based on EMCS.") -> NO ENROLLMENT CONFIRMATION | G56: ='Program Info'!M51 -> -5
A57: Annual Cost @ year 3 | B57: ='Space, Nonrecurring, Library'!J22 -> 0
A59: 1) Projected Financials include the net tuition revenue and contribution margins for each level of applied cost, (College, Academic Affairs, Full Cost). Additional detail can be found on page 2.
A60: 2) Program Cash flow = Revenue (net of aid) - Total College Direct Costs - Nonrecurring
A61: * If flags are red for these model highlights, the stop sign appears.

Sheet APR 5 Year Projection
A1: ='Program Info'!E11 -> 0
A2: ='Program Info'!E10 -> 0
A3: ='Program Info'!B1 -> ACADEMIC PROGRAM PROPOSAL PROJECTION
A4: =IF('Program Info'!E15="YES","***ILI AFFILIATION - ILI TUITION RATE APPLIED***","") -> 
A5: =CONCATENATE('Program Info'!$B$6,": ",'Program Info'!$E$6) -> PROGRAM DEVELOPMENT PHASE:
B7: ='Program Info'!E17 -> 0 | C7: ='Program Info'!F17 -> 0-1 | D7: ='Program Info'!G17 ->  | E7: ='Program Info'!H17 ->  | F7: ='Program Info'!I17 ->  | G7: 5 Year Total
A9: Revenue
A10: Tuition | B10: ='Calculation Worksheet'!E203 ->  | C10: ='Calculation Worksheet'!F203 ->  | D10: ='Calculation Worksheet'!G203 ->  | E10: ='Calculation Worksheet'!H203 ->  | F10: ='Calculation Worksheet'!I203 ->  | G10: =SUM(B10:F10) -> 
A11: Unfunded Aid | B11: =-'Calculation Worksheet'!E211 ->  | C11: =-'Calculation Worksheet'!F211 ->  | D11: =-'Calculation Worksheet'!G211 ->  | E11: =-'Calculation Worksheet'!H211 ->  | F11: =-'Calculation Worksheet'!I211 ->  | G11: =SUM(B11:F11) ->  | H11: =G11/G10 -> 
A12: Net Tuition | B12: =B10+B11 ->  | C12: =C10+C11 ->  | D12: =D10+D11 ->  | E12: =E10+E11 ->  | F12: =F10+F11 ->  | G12: =SUM(B12:F12) -> 
B13: =B11/B10 ->  | C13: =C11/C10 ->  | D13: =D11/D10 ->  | E13: =E11/E10 ->  | F13: =F11/F10 -> 
A14: Direct Department Controlled College Expenses
A15: College Faculty Projection
A16: CAST | B16: ='College Exp Projections'!B17 ->  | C16: ='College Exp Projections'!C17 ->  | D16: ='College Exp Projections'!D17 ->  | E16: ='College Exp Projections'!E17 ->  | F16: ='College Exp Projections'!F17 ->  | G16: =SUM(B16:F16) -> 
A17: CHST | B17: ='College Exp Projections'!B26 ->  | C17: ='College Exp Projections'!C26 ->  | D17: ='College Exp Projections'!D26 ->  | E17: ='College Exp Projections'!E26 ->  | F17: ='College Exp Projections'!F26 ->  | G17: =SUM(B17:F17) -> 
A18: CIAS | B18: ='College Exp Projections'!B34 ->  | C18: ='College Exp Projections'!C34 ->  | D18: ='College Exp Projections'!D34 ->  | E18: ='College Exp Projections'!E34 ->  | F18: ='College Exp Projections'!F34 -> 
A19: COLA | B19: ='College Exp Projections'!B42 ->  | C19: ='College Exp Projections'!C42 ->  | D19: ='College Exp Projections'!D42 ->  | E19: ='College Exp Projections'!E42 ->  | F19: ='College Exp Projections'!F42 -> 
A20: COS | B20: ='College Exp Projections'!B50 ->  | C20: ='College Exp Projections'!C50 ->  | D20: ='College Exp Projections'!D50 ->  | E20: ='College Exp Projections'!E50 ->  | F20: ='College Exp Projections'!F50 -> 
A21: COS-CIS | B21: ='College Exp Projections'!B58 ->  | C21: ='College Exp Projections'!C58 ->  | D21: ='College Exp Projections'!D58 ->  | E21: ='College Exp Projections'!E58 ->  | F21: ='College Exp Projections'!F58 -> 
A22: GCCIS | B22: ='College Exp Projections'!B66 ->  | C22: ='College Exp Projections'!C66 ->  | D22: ='College Exp Projections'!D66 ->  | E22: ='College Exp Projections'!E66 ->  | F22: ='College Exp Projections'!F66 -> 
A23: GIS | B23: ='College Exp Projections'!B74 ->  | C23: ='College Exp Projections'!C74 ->  | D23: ='College Exp Projections'!D74 ->  | E23: ='College Exp Projections'!E74 ->  | F23: ='College Exp Projections'!F74 -> 
A24: KGCOE | B24: ='College Exp Projections'!B82 ->  | C24: ='College Exp Projections'!C82 ->  | D24: ='College Exp Projections'!D82 ->  | E24: ='College Exp Projections'!E82 ->  | F24: ='College Exp Projections'!F82 -> 
A25: SCB | B25: ='College Exp Projections'!B90 ->  | C25: ='College Exp Projections'!C90 ->  | D25: ='College Exp Projections'!D90 ->  | E25: ='College Exp Projections'!E90 ->  | F25: ='College Exp Projections'!F90 -> 
A26: Total College Faculty Projection | B26: =SUM(B16:B25) -> 
A28: College Other Direct Costs
A29: CAST | B29: ='College Exp Projections'!B18 ->  | C29: ='College Exp Projections'!C18 ->  | D29: ='College Exp Projections'!D18 ->  | E29: ='College Exp Projections'!E18 ->  | F29: ='College Exp Projections'!F18 ->  | G29: =SUM(B29:F29) -> 
A30: CHST | B30: ='College Exp Projections'!B27 ->  | C30: ='College Exp Projections'!C27 ->  | D30: ='College Exp Projections'!D27 ->  | E30: ='College Exp Projections'!E27 ->  | F30: ='College Exp Projections'!F27 ->  | G30: =SUM(B30:F30) -> 
A31: CIAS | B31: ='College Exp Projections'!B35 ->  | C31: ='College Exp Projections'!C35 ->  | D31: ='College Exp Projections'!D35 ->  | E31: ='College Exp Projections'!E35 ->  | F31: ='College Exp Projections'!F35 -> 
A32: COLA | B32: ='College Exp Projections'!B43 ->  | C32: ='College Exp Projections'!C43 ->  | D32: ='College Exp Projections'!D43 ->  | E32: ='College Exp Projections'!E43 ->  | F32: ='College Exp Projections'!F43 -> 
A33: COS | B33: ='College Exp Projections'!B51 ->  | C33: ='College Exp Projections'!C51 ->  | D33: ='College Exp Projections'!D51 ->  | E33: ='College Exp Projections'!E51 ->  | F33: ='College Exp Projections'!F51 -> 
A34: COS-CIS | B34: ='College Exp Projections'!B59 ->  | C34: ='College Exp Projections'!C59 ->  | D34: ='College Exp Projections'!D59 ->  | E34: ='College Exp Projections'!E59 ->  | F34: ='College Exp Projections'!F59 -> 
A35: GCCIS | B35: ='College Exp Projections'!B67 ->  | C35: ='College Exp Projections'!C67 ->  | D35: ='College Exp Projections'!D67 ->  | E35: ='College Exp Projections'!E67 ->  | F35: ='College Exp Projections'!F67 -> 
A36: GIS | B36: ='College Exp Projections'!B75 ->  | C36: ='College Exp Projections'!C75 ->  | D36: ='College Exp Projections'!D75 ->  | E36: ='College Exp Projections'!E75 ->  | F36: ='College Exp Projections'!F75 -> 
A37: KGCOE | B37: ='College Exp Projections'!B83 ->  | C37: ='College Exp Projections'!C83 ->  | D37: ='College Exp Projections'!D83 ->  | E37: ='College Exp Projections'!E83 ->  | F37: ='College Exp Projections'!F83 -> 
A38: SCB | B38: ='College Exp Projections'!B91 ->  | C38: ='College Exp Projections'!C91 ->  | D38: ='College Exp Projections'!D91 ->  | E38: ='College Exp Projections'!E91 ->  | F38: ='College Exp Projections'!F91 -> 
A39: Total College Other Direct Costs | B39: =SUM(B29:B38) -> 
A41: Direct College Controlled Costs | B41: =B39+B26 -> 
A43: College Overhead (Not Department Controlled) | B43: ='Program Info'!E102+'Program Info'!E103+'Program Info'!E104+'Program Info'!E105+'Program Info'!E106+'Program Info'!E108+'Program Info'!E109+'Program Info'!E110+'Program Info'!E111 ->  | C43: ='Program Info'!F102+'Program Info'!F103+'Program Info'!F104+'Program Info'!F105+'Program Info'!F106+'Program Info'!F108+'Program Info'!F109+'Program Info'!F110+'Program Info'!F111 ->  | D43: ='Program Info'!G102+'Program Info'!G103+'Program Info'!G104+'Program Info'!G105+'Program Info'!G106+'Program Info'!G108+'Program Info'!G109+'Program Info'!G110+'Program Info'!G111 ->  | E43: ='Program Info'!H102+'Program Info'!H103+'Program Info'!H104+'Program Info'!H105+'Program Info'!H106+'Program Info'!H108+'Program Info'!H109+'Program Info'!H110+'Program Info'!H111 ->  | F43: ='Program Info'!I102+'Program Info'!I103+'Program Info'!I104+'Program Info'!I105+'Program Info'!I106+'Program Info'!I108+'Program Info'!I109+'Program Info'!I110+'Program Info'!I111 ->  | G43: =SUM(B43:F43) -> 
A44: Total Overhead | B44: =B42+B43 ->  | C44: =C42+C43 -> 
A46: Total College Responsibility Cost | B46: =B41+B44 -> 
A48: Contribution Margin Surplus/(Deficit) - College Level | B48: =B12-B46 -> 
A49: Contribution % at College Level | B49: =B48/B12 -> 
A51: Less: Academic Affairs Allocation | B51: ='Program Info'!E126+'Program Info'!E131 ->  | C51: ='Program Info'!F126+'Program Info'!F131 ->  | D51: ='Program Info'!G126+'Program Info'!G131 ->  | E51: ='Program Info'!H126+'Program Info'!H131 ->  | F51: ='Program Info'!I126+'Program Info'!I131 ->  | G51: =SUM(B51:F51) -> 
A52: Contribution Margin Surplus/(Deficit) - Academic Affairs Level | B52: =B48-B51 -> 
A53: Contribution % at Academic Affairs Level | B53: =B52/B12 -> 
A55: Less: Full Allocation | B55: ='Program Info'!E145 ->  | C55: ='Program Info'!F145 ->  | D55: ='Program Info'!G145 ->  | E55: ='Program Info'!H145 ->  | F55: ='Program Info'!I145 ->  | G55: =SUM(B55:F55) -> 
A56: Contribution Margin Surplus/(Deficit) - Fully Allocated Level | B56: =B52-B55 -> 
A57: Contribution % at Fully Allocated Level | B57: =B56/B12 -> 
A59: Verification | B59: =B55+B51+B46-B12+B56 ->  | C59: =C55+C51+C46-C12+C56 -> 
B60: =B46+B51+B55 ->  | C60: =C46+C51+C55 -> 
A61: ='Data Validation'!B11 -> Not Test | B61: =B60/'Program Summary'!B28 ->  | C61: =C60/'Program Summary'!C28 ->  | D61: =D60/'Program Summary'!D28 ->  | E61: =E60/'Program Summary'!E28 ->  | F61: =F60/'Program Summary'!F28 -> 
B63: =LEFT(B7,4)-LEFT(Assumptions!$B$7,4) -> -2015 | C63: =LEFT(C7,4)-LEFT(Assumptions!$B$7,4) ->  | D63: =LEFT(D7,4)-LEFT(Assumptions!$B$7,4) ->  | E63: =LEFT(E7,4)-LEFT(Assumptions!$B$7,4) ->  | F63: =LEFT(F7,4)-LEFT(Assumptions!$B$7,4) -> 
A64: Salary Test
A65: CAST | B65: =IFERROR(IF(dtype="UG",(B16/1.025^B$63)/'Program Info'!E61-Assumptions!$B46,(B16/1.025^B$63)/'Program Info'!E61-Assumptions!$C46),"") ->  | C65: =IFERROR(IF(dtype="UG",(C16/1.025^C$63)/'Program Info'!F61-Assumptions!$B46,(C16/1.025^C$63)/'Program Info'!F61-Assumptions!$C46),"") ->  | D65: =IFERROR(IF(dtype="UG",(D16/1.025^D$63)/'Program Info'!G61-Assumptions!$B46,(D16/1.025^D$63)/'Program Info'!G61-Assumptions!$C46),"") ->  | E65: =IFERROR(IF(dtype="UG",(E16/1.025^E$63)/'Program Info'!H61-Assumptions!$B46,(E16/1.025^E$63)/'Program Info'!H61-Assumptions!$C46),"") ->  | F65: =IFERROR(IF(dtype="UG",(F16/1.025^F$63)/'Program Info'!I61-Assumptions!$B46,(F16/1.025^F$63)/'Program Info'!I61-Assumptions!$C46),"") -> 
A66: CHST | B66: =IFERROR(IF(dtype="UG",(B17/1.025^B$63)/'Program Info'!E62-Assumptions!$B47,(B17/1.025^B$63)/'Program Info'!E62-Assumptions!$C47),"") ->  | C66: =IFERROR(IF(dtype="UG",(C17/1.025^C$63)/'Program Info'!F62-Assumptions!$B47,(C17/1.025^C$63)/'Program Info'!F62-Assumptions!$C47),"") ->  | D66: =IFERROR(IF(dtype="UG",(D17/1.025^D$63)/'Program Info'!G62-Assumptions!$B47,(D17/1.025^D$63)/'Program Info'!G62-Assumptions!$C47),"") ->  | E66: =IFERROR(IF(dtype="UG",(E17/1.025^E$63)/'Program Info'!H62-Assumptions!$B47,(E17/1.025^E$63)/'Program Info'!H62-Assumptions!$C47),"") ->  | F66: =IFERROR(IF(dtype="UG",(F17/1.025^F$63)/'Program Info'!I62-Assumptions!$B47,(F17/1.025^F$63)/'Program Info'!I62-Assumptions!$C47),"") -> 
A67: CIAS | B67: =IFERROR(IF(dtype="UG",(B18/1.025^B$63)/'Program Info'!E63-Assumptions!$B48,(B18/1.025^B$63)/'Program Info'!E63-Assumptions!$C48),"") ->  | C67: =IFERROR(IF(dtype="UG",(C18/1.025^C$63)/'Program Info'!F63-Assumptions!$B48,(C18/1.025^C$63)/'Program Info'!F63-Assumptions!$C48),"") ->  | D67: =IFERROR(IF(dtype="UG",(D18/1.025^D$63)/'Program Info'!G63-Assumptions!$B48,(D18/1.025^D$63)/'Program Info'!G63-Assumptions!$C48),"") ->  | E67: =IFERROR(IF(dtype="UG",(E18/1.025^E$63)/'Program Info'!H63-Assumptions!$B48,(E18/1.025^E$63)/'Program Info'!H63-Assumptions!$C48),"") ->  | F67: =IFERROR(IF(dtype="UG",(F18/1.025^F$63)/'Program Info'!I63-Assumptions!$B48,(F18/1.025^F$63)/'Program Info'!I63-Assumptions!$C48),"") -> 
A68: COLA | B68: =IFERROR(IF(dtype="UG",(B19/1.025^B$63)/'Program Info'!E64-Assumptions!$B49,(B19/1.025^B$63)/'Program Info'!E64-Assumptions!$C49),"") ->  | C68: =IFERROR(IF(dtype="UG",(C19/1.025^C$63)/'Program Info'!F64-Assumptions!$B49,(C19/1.025^C$63)/'Program Info'!F64-Assumptions!$C49),"") ->  | D68: =IFERROR(IF(dtype="UG",(D19/1.025^D$63)/'Program Info'!G64-Assumptions!$B49,(D19/1.025^D$63)/'Program Info'!G64-Assumptions!$C49),"") ->  | E68: =IFERROR(IF(dtype="UG",(E19/1.025^E$63)/'Program Info'!H64-Assumptions!$B49,(E19/1.025^E$63)/'Program Info'!H64-Assumptions!$C49),"") ->  | F68: =IFERROR(IF(dtype="UG",(F19/1.025^F$63)/'Program Info'!I64-Assumptions!$B49,(F19/1.025^F$63)/'Program Info'!I64-Assumptions!$C49),"") -> 
A69: COS | B69: =IFERROR(IF(dtype="UG",(B20/1.025^B$63)/'Program Info'!E65-Assumptions!$B50,(B20/1.025^B$63)/'Program Info'!E65-Assumptions!$C50),"") ->  | C69: =IFERROR(IF(dtype="UG",(C20/1.025^C$63)/'Program Info'!F65-Assumptions!$B50,(C20/1.025^C$63)/'Program Info'!F65-Assumptions!$C50),"") ->  | D69: =IFERROR(IF(dtype="UG",(D20/1.025^D$63)/'Program Info'!G65-Assumptions!$B50,(D20/1.025^D$63)/'Program Info'!G65-Assumptions!$C50),"") ->  | E69: =IFERROR(IF(dtype="UG",(E20/1.025^E$63)/'Program Info'!H65-Assumptions!$B50,(E20/1.025^E$63)/'Program Info'!H65-Assumptions!$C50),"") ->  | F69: =IFERROR(IF(dtype="UG",(F20/1.025^F$63)/'Program Info'!I65-Assumptions!$B50,(F20/1.025^F$63)/'Program Info'!I65-Assumptions!$C50),"") -> 
A70: COS-CIS | B70: =IFERROR(IF(dtype="UG",(B21/1.025^B$63)/'Program Info'!E66-Assumptions!$B51,(B21/1.025^B$63)/'Program Info'!E66-Assumptions!$C51),"") ->  | C70: =IFERROR(IF(dtype="UG",(C21/1.025^C$63)/'Program Info'!F66-Assumptions!$B51,(C21/1.025^C$63)/'Program Info'!F66-Assumptions!$C51),"") ->  | D70: =IFERROR(IF(dtype="UG",(D21/1.025^D$63)/'Program Info'!G66-Assumptions!$B51,(D21/1.025^D$63)/'Program Info'!G66-Assumptions!$C51),"") ->  | E70: =IFERROR(IF(dtype="UG",(E21/1.025^E$63)/'Program Info'!H66-Assumptions!$B51,(E21/1.025^E$63)/'Program Info'!H66-Assumptions!$C51),"") ->  | F70: =IFERROR(IF(dtype="UG",(F21/1.025^F$63)/'Program Info'!I66-Assumptions!$B51,(F21/1.025^F$63)/'Program Info'!I66-Assumptions!$C51),"") -> 
A71: GCCIS | B71: =IFERROR(IF(dtype="UG",(B22/1.025^B$63)/'Program Info'!E67-Assumptions!$B52,(B22/1.025^B$63)/'Program Info'!E67-Assumptions!$C52),"") ->  | C71: =IFERROR(IF(dtype="UG",(C22/1.025^C$63)/'Program Info'!F67-Assumptions!$B52,(C22/1.025^C$63)/'Program Info'!F67-Assumptions!$C52),"") ->  | D71: =IFERROR(IF(dtype="UG",(D22/1.025^D$63)/'Program Info'!G67-Assumptions!$B52,(D22/1.025^D$63)/'Program Info'!G67-Assumptions!$C52),"") ->  | E71: =IFERROR(IF(dtype="UG",(E22/1.025^E$63)/'Program Info'!H67-Assumptions!$B52,(E22/1.025^E$63)/'Program Info'!H67-Assumptions!$C52),"") ->  | F71: =IFERROR(IF(dtype="UG",(F22/1.025^F$63)/'Program Info'!I67-Assumptions!$B52,(F22/1.025^F$63)/'Program Info'!I67-Assumptions!$C52),"") -> 
A72: GIS | B72: =IFERROR(IF(dtype="UG",(B23/1.025^B$63)/'Program Info'!E68-Assumptions!$B53,(B23/1.025^B$63)/'Program Info'!E68-Assumptions!$C53),"") ->  | C72: =IFERROR(IF(dtype="UG",(C23/1.025^C$63)/'Program Info'!F68-Assumptions!$B53,(C23/1.025^C$63)/'Program Info'!F68-Assumptions!$C53),"") ->  | D72: =IFERROR(IF(dtype="UG",(D23/1.025^D$63)/'Program Info'!G68-Assumptions!$B53,(D23/1.025^D$63)/'Program Info'!G68-Assumptions!$C53),"") ->  | E72: =IFERROR(IF(dtype="UG",(E23/1.025^E$63)/'Program Info'!H68-Assumptions!$B53,(E23/1.025^E$63)/'Program Info'!H68-Assumptions!$C53),"") ->  | F72: =IFERROR(IF(dtype="UG",(F23/1.025^F$63)/'Program Info'!I68-Assumptions!$B53,(F23/1.025^F$63)/'Program Info'!I68-Assumptions!$C53),"") -> 
A73: KGCOE | B73: =IFERROR(IF(dtype="UG",(B24/1.025^B$63)/'Program Info'!E69-Assumptions!$B54,(B24/1.025^B$63)/'Program Info'!E69-Assumptions!$C54),"") ->  | C73: =IFERROR(IF(dtype="UG",(C24/1.025^C$63)/'Program Info'!F69-Assumptions!$B54,(C24/1.025^C$63)/'Program Info'!F69-Assumptions!$C54),"") ->  | D73: =IFERROR(IF(dtype="UG",(D24/1.025^D$63)/'Program Info'!G69-Assumptions!$B54,(D24/1.025^D$63)/'Program Info'!G69-Assumptions!$C54),"") ->  | E73: =IFERROR(IF(dtype="UG",(E24/1.025^E$63)/'Program Info'!H69-Assumptions!$B54,(E24/1.025^E$63)/'Program Info'!H69-Assumptions!$C54),"") ->  | F73: =IFERROR(IF(dtype="UG",(F24/1.025^F$63)/'Program Info'!I69-Assumptions!$B54,(F24/1.025^F$63)/'Program Info'!I69-Assumptions!$C54),"") -> 
A74: SCB | B74: =IFERROR(IF(dtype="UG",(B25/1.025^B$63)/'Program Info'!E70-Assumptions!$B55,(B25/1.025^B$63)/'Program Info'!E70-Assumptions!$C55),"") ->  | C74: =IFERROR(IF(dtype="UG",(C25/1.025^C$63)/'Program Info'!F70-Assumptions!$B55,(C25/1.025^C$63)/'Program Info'!F70-Assumptions!$C55),"") ->  | D74: =IFERROR(IF(dtype="UG",(D25/1.025^D$63)/'Program Info'!G70-Assumptions!$B55,(D25/1.025^D$63)/'Program Info'!G70-Assumptions!$C55),"") ->  | E74: =IFERROR(IF(dtype="UG",(E25/1.025^E$63)/'Program Info'!H70-Assumptions!$B55,(E25/1.025^E$63)/'Program Info'!H70-Assumptions!$C55),"") ->  | F74: =IFERROR(IF(dtype="UG",(F25/1.025^F$63)/'Program Info'!I70-Assumptions!$B55,(F25/1.025^F$63)/'Program Info'!I70-Assumptions!$C55),"") -> 
A75: Other Test
A76: CAST | B76: =IFERROR((B29/1.025^B$63)/'Program Info'!E61-Assumptions!$D46,"") ->  | C76: =IFERROR((C29/1.025^C$63)/'Program Info'!F61-Assumptions!$D46,"") ->  | D76: =IFERROR((D29/1.025^D$63)/'Program Info'!G61-Assumptions!$D46,"") ->  | E76: =IFERROR((E29/1.025^E$63)/'Program Info'!H61-Assumptions!$D46,"") ->  | F76: =IFERROR((F29/1.025^F$63)/'Program Info'!I61-Assumptions!$D46,"") -> 
A77: CHST | B77: =IFERROR((B30/1.025^B$63)/'Program Info'!E62-Assumptions!$D47,"") ->  | C77: =IFERROR((C30/1.025^C$63)/'Program Info'!F62-Assumptions!$D47,"") ->  | D77: =IFERROR((D30/1.025^D$63)/'Program Info'!G62-Assumptions!$D47,"") ->  | E77: =IFERROR((E30/1.025^E$63)/'Program Info'!H62-Assumptions!$D47,"") ->  | F77: =IFERROR((F30/1.025^F$63)/'Program Info'!I62-Assumptions!$D47,"") -> 
A78: CIAS | B78: =IFERROR((B31/1.025^B$63)/'Program Info'!E63-Assumptions!$D48,"") ->  | C78: =IFERROR((C31/1.025^C$63)/'Program Info'!F63-Assumptions!$D48,"") ->  | D78: =IFERROR((D31/1.025^D$63)/'Program Info'!G63-Assumptions!$D48,"") ->  | E78: =IFERROR((E31/1.025^E$63)/'Program Info'!H63-Assumptions!$D48,"") ->  | F78: =IFERROR((F31/1.025^F$63)/'Program Info'!I63-Assumptions!$D48,"") -> 
A79: COLA | B79: =IFERROR((B32/1.025^B$63)/'Program Info'!E64-Assumptions!$D49,"") ->  | C79: =IFERROR((C32/1.025^C$63)/'Program Info'!F64-Assumptions!$D49,"") ->  | D79: =IFERROR((D32/1.025^D$63)/'Program Info'!G64-Assumptions!$D49,"") ->  | E79: =IFERROR((E32/1.025^E$63)/'Program Info'!H64-Assumptions!$D49,"") ->  | F79: =IFERROR((F32/1.025^F$63)/'Program Info'!I64-Assumptions!$D49,"") -> 
A80: COS | B80: =IFERROR((B33/1.025^B$63)/'Program Info'!E65-Assumptions!$D50,"") ->  | C80: =IFERROR((C33/1.025^C$63)/'Program Info'!F65-Assumptions!$D50,"") ->  | D80: =IFERROR((D33/1.025^D$63)/'Program Info'!G65-Assumptions!$D50,"") ->  | E80: =IFERROR((E33/1.025^E$63)/'Program Info'!H65-Assumptions!$D50,"") ->  | F80: =IFERROR((F33/1.025^F$63)/'Program Info'!I65-Assumptions!$D50,"") -> 
A81: COS-CIS | B81: =IFERROR((B34/1.025^B$63)/'Program Info'!E66-Assumptions!$D51,"") ->  | C81: =IFERROR((C34/1.025^C$63)/'Program Info'!F66-Assumptions!$D51,"") ->  | D81: =IFERROR((D34/1.025^D$63)/'Program Info'!G66-Assumptions!$D51,"") ->  | E81: =IFERROR((E34/1.025^E$63)/'Program Info'!H66-Assumptions!$D51,"") ->  | F81: =IFERROR((F34/1.025^F$63)/'Program Info'!I66-Assumptions!$D51,"") -> 
A82: GCCIS | B82: =IFERROR((B35/1.025^B$63)/'Program Info'!E67-Assumptions!$D52,"") ->  | C82: =IFERROR((C35/1.025^C$63)/'Program Info'!F67-Assumptions!$D52,"") ->  | D82: =IFERROR((D35/1.025^D$63)/'Program Info'!G67-Assumptions!$D52,"") ->  | E82: =IFERROR((E35/1.025^E$63)/'Program Info'!H67-Assumptions!$D52,"") ->  | F82: =IFERROR((F35/1.025^F$63)/'Program Info'!I67-Assumptions!$D52,"") -> 
A83: GIS | B83: =IFERROR((B36/1.025^B$63)/'Program Info'!E68-Assumptions!$D53,"") ->  | C83: =IFERROR((C36/1.025^C$63)/'Program Info'!F68-Assumptions!$D53,"") ->  | D83: =IFERROR((D36/1.025^D$63)/'Program Info'!G68-Assumptions!$D53,"") ->  | E83: =IFERROR((E36/1.025^E$63)/'Program Info'!H68-Assumptions!$D53,"") ->  | F83: =IFERROR((F36/1.025^F$63)/'Program Info'!I68-Assumptions!$D53,"") -> 
A84: KGCOE | B84: =IFERROR((B37/1.025^B$63)/'Program Info'!E69-Assumptions!$D54,"") ->  | C84: =IFERROR((C37/1.025^C$63)/'Program Info'!F69-Assumptions!$D54,"") ->  | D84: =IFERROR((D37/1.025^D$63)/'Program Info'!G69-Assumptions!$D54,"") ->  | E84: =IFERROR((E37/1.025^E$63)/'Program Info'!H69-Assumptions!$D54,"") ->  | F84: =IFERROR((F37/1.025^F$63)/'Program Info'!I69-Assumptions!$D54,"") -> 
A85: SCB | B85: =IFERROR((B38/1.025^B$63)/'Program Info'!E70-Assumptions!$D55,"") ->  | C85: =IFERROR((C38/1.025^C$63)/'Program Info'!F70-Assumptions!$D55,"") ->  | D85: =IFERROR((D38/1.025^D$63)/'Program Info'!G70-Assumptions!$D55,"") ->  | E85: =IFERROR((E38/1.025^E$63)/'Program Info'!H70-Assumptions!$D55,"") ->  | F85: =IFERROR((F38/1.025^F$63)/'Program Info'!I70-Assumptions!$D55,"") -> 
A86: College OH
A87: CAST | B87: =IFERROR('Program Info'!E102/1.025^B$63/'Program Info'!E61-Assumptions!$I46,"") ->  | C87: =IFERROR('Program Info'!F102/1.025^C$63/'Program Info'!F61-Assumptions!$I46,"") ->  | D87: =IFERROR('Program Info'!G102/1.025^D$63/'Program Info'!G61-Assumptions!$I46,"") ->  | E87: =IFERROR('Program Info'!H102/1.025^E$63/'Program Info'!H61-Assumptions!$I46,"") ->  | F87: =IFERROR('Program Info'!I102/1.025^F$63/'Program Info'!I61-Assumptions!$I46,"") -> 
A88: CHST | B88: =IFERROR('Program Info'!E103/1.025^B$63/'Program Info'!E62-Assumptions!$I47,"") ->  | C88: =IFERROR('Program Info'!F103/1.025^C$63/'Program Info'!F62-Assumptions!$I47,"") ->  | D88: =IFERROR('Program Info'!G103/1.025^D$63/'Program Info'!G62-Assumptions!$I47,"") ->  | E88: =IFERROR('Program Info'!H103/1.025^E$63/'Program Info'!H62-Assumptions!$I47,"") ->  | F88: =IFERROR('Program Info'!I103/1.025^F$63/'Program Info'!I62-Assumptions!$I47,"") -> 
A89: CIAS | B89: =IFERROR('Program Info'!E104/1.025^B$63/'Program Info'!E63-Assumptions!$I48,"") ->  | C89: =IFERROR('Program Info'!F104/1.025^C$63/'Program Info'!F63-Assumptions!$I48,"") ->  | D89: =IFERROR('Program Info'!G104/1.025^D$63/'Program Info'!G63-Assumptions!$I48,"") ->  | E89: =IFERROR('Program Info'!H104/1.025^E$63/'Program Info'!H63-Assumptions!$I48,"") ->  | F89: =IFERROR('Program Info'!I104/1.025^F$63/'Program Info'!I63-Assumptions!$I48,"") -> 
A90: COLA | B90: =IFERROR('Program Info'!E105/1.025^B$63/'Program Info'!E64-Assumptions!$I49,"") ->  | C90: =IFERROR('Program Info'!F105/1.025^C$63/'Program Info'!F64-Assumptions!$I49,"") ->  | D90: =IFERROR('Program Info'!G105/1.025^D$63/'Program Info'!G64-Assumptions!$I49,"") ->  | E90: =IFERROR('Program Info'!H105/1.025^E$63/'Program Info'!H64-Assumptions!$I49,"") ->  | F90: =IFERROR('Program Info'!I105/1.025^F$63/'Program Info'!I64-Assumptions!$I49,"") -> 
A91: COS | B91: =IFERROR('Program Info'!E106/1.025^B$63/'Program Info'!E65-Assumptions!$I50,"") ->  | C91: =IFERROR('Program Info'!F106/1.025^C$63/'Program Info'!F65-Assumptions!$I50,"") ->  | D91: =IFERROR('Program Info'!G106/1.025^D$63/'Program Info'!G65-Assumptions!$I50,"") ->  | E91: =IFERROR('Program Info'!H106/1.025^E$63/'Program Info'!H65-Assumptions!$I50,"") ->  | F91: =IFERROR('Program Info'!I106/1.025^F$63/'Program Info'!I65-Assumptions!$I50,"") -> 
A92: COS-CIS | B92: =IFERROR('Program Info'!E107/1.025^B$63/'Program Info'!E66-Assumptions!$I51,"") ->  | C92: =IFERROR('Program Info'!F107/1.025^C$63/'Program Info'!F66-Assumptions!$I51,"") ->  | D92: =IFERROR('Program Info'!G107/1.025^D$63/'Program Info'!G66-Assumptions!$I51,"") ->  | E92: =IFERROR('Program Info'!H107/1.025^E$63/'Program Info'!H66-Assumptions!$I51,"") ->  | F92: =IFERROR('Program Info'!I107/1.025^F$63/'Program Info'!I66-Assumptions!$I51,"") -> 
A93: GCCIS | B93: =IFERROR('Program Info'!E108/1.025^B$63/'Program Info'!E67-Assumptions!$I52,"") ->  | C93: =IFERROR('Program Info'!F108/1.025^C$63/'Program Info'!F67-Assumptions!$I52,"") ->  | D93: =IFERROR('Program Info'!G108/1.025^D$63/'Program Info'!G67-Assumptions!$I52,"") ->  | E93: =IFERROR('Program Info'!H108/1.025^E$63/'Program Info'!H67-Assumptions!$I52,"") ->  | F93: =IFERROR('Program Info'!I108/1.025^F$63/'Program Info'!I67-Assumptions!$I52,"") -> 
A94: GIS | B94: =IFERROR('Program Info'!E109/1.025^B$63/'Program Info'!E68-Assumptions!$I53,"") ->  | C94: =IFERROR('Program Info'!F109/1.025^C$63/'Program Info'!F68-Assumptions!$I53,"") ->  | D94: =IFERROR('Program Info'!G109/1.025^D$63/'Program Info'!G68-Assumptions!$I53,"") ->  | E94: =IFERROR('Program Info'!H109/1.025^E$63/'Program Info'!H68-Assumptions!$I53,"") ->  | F94: =IFERROR('Program Info'!I109/1.025^F$63/'Program Info'!I68-Assumptions!$I53,"") -> 
A95: KGCOE | B95: =IFERROR('Program Info'!E110/1.025^B$63/'Program Info'!E69-Assumptions!$I54,"") ->  | C95: =IFERROR('Program Info'!F110/1.025^C$63/'Program Info'!F69-Assumptions!$I54,"") ->  | D95: =IFERROR('Program Info'!G110/1.025^D$63/'Program Info'!G69-Assumptions!$I54,"") ->  | E95: =IFERROR('Program Info'!H110/1.025^E$63/'Program Info'!H69-Assumptions!$I54,"") ->  | F95: =IFERROR('Program Info'!I110/1.025^F$63/'Program Info'!I69-Assumptions!$I54,"") -> 
A96: SCB | B96: =IFERROR('Program Info'!E111/1.025^B$63/'Program Info'!E70-Assumptions!$I55,"") ->  | C96: =IFERROR('Program Info'!F111/1.025^C$63/'Program Info'!F70-Assumptions!$I55,"") ->  | D96: =IFERROR('Program Info'!G111/1.025^D$63/'Program Info'!G70-Assumptions!$I55,"") ->  | E96: =IFERROR('Program Info'!H111/1.025^E$63/'Program Info'!H70-Assumptions!$I55,"") ->  | F96: =IFERROR('Program Info'!I111/1.025^F$63/'Program Info'!I70-Assumptions!$I55,"") -> 
A97: Academic Affairs
A98: CAST | B98: =IFERROR('Program Info'!E116/1.025^B$63/'Program Info'!E61-Assumptions!$J46,"") ->  | C98: =IFERROR('Program Info'!F116/1.025^C$63/'Program Info'!F61-Assumptions!$J46,"") ->  | D98: =IFERROR('Program Info'!G116/1.025^D$63/'Program Info'!G61-Assumptions!$J46,"") ->  | E98: =IFERROR('Program Info'!H116/1.025^E$63/'Program Info'!H61-Assumptions!$J46,"") ->  | F98: =IFERROR('Program Info'!I116/1.025^F$63/'Program Info'!I61-Assumptions!$J46,"") -> 
A99: CHST | B99: =IFERROR('Program Info'!E117/1.025^B$63/'Program Info'!E62-Assumptions!$J47,"") ->  | C99: =IFERROR('Program Info'!F117/1.025^C$63/'Program Info'!F62-Assumptions!$J47,"") ->  | D99: =IFERROR('Program Info'!G117/1.025^D$63/'Program Info'!G62-Assumptions!$J47,"") ->  | E99: =IFERROR('Program Info'!H117/1.025^E$63/'Program Info'!H62-Assumptions!$J47,"") ->  | F99: =IFERROR('Program Info'!I117/1.025^F$63/'Program Info'!I62-Assumptions!$J47,"") -> 
A100: CIAS | B100: =IFERROR('Program Info'!E118/1.025^B$63/'Program Info'!E63-Assumptions!$J48,"") ->  | C100: =IFERROR('Program Info'!F118/1.025^C$63/'Program Info'!F63-Assumptions!$J48,"") ->  | D100: =IFERROR('Program Info'!G118/1.025^D$63/'Program Info'!G63-Assumptions!$J48,"") ->  | E100: =IFERROR('Program Info'!H118/1.025^E$63/'Program Info'!H63-Assumptions!$J48,"") ->  | F100: =IFERROR('Program Info'!I118/1.025^F$63/'Program Info'!I63-Assumptions!$J48,"") -> 
A101: COLA | B101: =IFERROR('Program Info'!E119/1.025^B$63/'Program Info'!E64-Assumptions!$J49,"") ->  | C101: =IFERROR('Program Info'!F119/1.025^C$63/'Program Info'!F64-Assumptions!$J49,"") ->  | D101: =IFERROR('Program Info'!G119/1.025^D$63/'Program Info'!G64-Assumptions!$J49,"") ->  | E101: =IFERROR('Program Info'!H119/1.025^E$63/'Program Info'!H64-Assumptions!$J49,"") ->  | F101: =IFERROR('Program Info'!I119/1.025^F$63/'Program Info'!I64-Assumptions!$J49,"") -> 
A102: COS | B102: =IFERROR('Program Info'!E120/1.025^B$63/'Program Info'!E65-Assumptions!$J50,"") ->  | C102: =IFERROR('Program Info'!F120/1.025^C$63/'Program Info'!F65-Assumptions!$J50,"") ->  | D102: =IFERROR('Program Info'!G120/1.025^D$63/'Program Info'!G65-Assumptions!$J50,"") ->  | E102: =IFERROR('Program Info'!H120/1.025^E$63/'Program Info'!H65-Assumptions!$J50,"") ->  | F102: =IFERROR('Program Info'!I120/1.025^F$63/'Program Info'!I65-Assumptions!$J50,"") -> 
A103: COS-CIS | B103: =IFERROR('Program Info'!E121/1.025^B$63/'Program Info'!E66-Assumptions!$J51,"") ->  | C103: =IFERROR('Program Info'!F121/1.025^C$63/'Program Info'!F66-Assumptions!$J51,"") ->  | D103: =IFERROR('Program Info'!G121/1.025^D$63/'Program Info'!G66-Assumptions!$J51,"") ->  | E103: =IFERROR('Program Info'!H121/1.025^E$63/'Program Info'!H66-Assumptions!$J51,"") ->  | F103: =IFERROR('Program Info'!I121/1.025^F$63/'Program Info'!I66-Assumptions!$J51,"") -> 
A104: GCCIS | B104: =IFERROR('Program Info'!E122/1.025^B$63/'Program Info'!E67-Assumptions!$J52,"") ->  | C104: =IFERROR('Program Info'!F122/1.025^C$63/'Program Info'!F67-Assumptions!$J52,"") ->  | D104: =IFERROR('Program Info'!G122/1.025^D$63/'Program Info'!G67-Assumptions!$J52,"") ->  | E104: =IFERROR('Program Info'!H122/1.025^E$63/'Program Info'!H67-Assumptions!$J52,"") ->  | F104: =IFERROR('Program Info'!I122/1.025^F$63/'Program Info'!I67-Assumptions!$J52,"") -> 
A105: GIS | B105: =IFERROR('Program Info'!E123/1.025^B$63/'Program Info'!E68-Assumptions!$J53,"") ->  | C105: =IFERROR('Program Info'!F123/1.025^C$63/'Program Info'!F68-Assumptions!$J53,"") ->  | D105: =IFERROR('Program Info'!G123/1.025^D$63/'Program Info'!G68-Assumptions!$J53,"") ->  | E105: =IFERROR('Program Info'!H123/1.025^E$63/'Program Info'!H68-Assumptions!$J53,"") ->  | F105: =IFERROR('Program Info'!I123/1.025^F$63/'Program Info'!I68-Assumptions!$J53,"") -> 
A106: KGCOE | B106: =IFERROR('Program Info'!E124/1.025^B$63/'Program Info'!E69-Assumptions!$J54,"") ->  | C106: =IFERROR('Program Info'!F124/1.025^C$63/'Program Info'!F69-Assumptions!$J54,"") ->  | D106: =IFERROR('Program Info'!G124/1.025^D$63/'Program Info'!G69-Assumptions!$J54,"") ->  | E106: =IFERROR('Program Info'!H124/1.025^E$63/'Program Info'!H69-Assumptions!$J54,"") ->  | F106: =IFERROR('Program Info'!I124/1.025^F$63/'Program Info'!I69-Assumptions!$J54,"") -> 
A107: SCB | B107: =IFERROR('Program Info'!E125/1.025^B$63/'Program Info'!E70-Assumptions!$J55,"") ->  | C107: =IFERROR('Program Info'!F125/1.025^C$63/'Program Info'!F70-Assumptions!$J55,"") ->  | D107: =IFERROR('Program Info'!G125/1.025^D$63/'Program Info'!G70-Assumptions!$J55,"") ->  | E107: =IFERROR('Program Info'!H125/1.025^E$63/'Program Info'!H70-Assumptions!$J55,"") ->  | F107: =IFERROR('Program Info'!I125/1.025^F$63/'Program Info'!I70-Assumptions!$J55,"") -> 
A108: Full
A109: CAST | B109: =IFERROR('Program Info'!E135/1.025^B$63/'Program Info'!E61-Assumptions!$K46,"") ->  | C109: =IFERROR('Program Info'!F135/1.025^C$63/'Program Info'!F61-Assumptions!$K46,"") ->  | D109: =IFERROR('Program Info'!G135/1.025^D$63/'Program Info'!G61-Assumptions!$K46,"") ->  | E109: =IFERROR('Program Info'!H135/1.025^E$63/'Program Info'!H61-Assumptions!$K46,"") ->  | F109: =IFERROR('Program Info'!I135/1.025^F$63/'Program Info'!I61-Assumptions!$K46,"") -> 
A110: CHST | B110: =IFERROR('Program Info'!E136/1.025^B$63/'Program Info'!E62-Assumptions!$K47,"") ->  | C110: =IFERROR('Program Info'!F136/1.025^C$63/'Program Info'!F62-Assumptions!$K47,"") ->  | D110: =IFERROR('Program Info'!G136/1.025^D$63/'Program Info'!G62-Assumptions!$K47,"") ->  | E110: =IFERROR('Program Info'!H136/1.025^E$63/'Program Info'!H62-Assumptions!$K47,"") ->  | F110: =IFERROR('Program Info'!I136/1.025^F$63/'Program Info'!I62-Assumptions!$K47,"") -> 
A111: CIAS | B111: =IFERROR('Program Info'!E137/1.025^B$63/'Program Info'!E63-Assumptions!$K48,"") ->  | C111: =IFERROR('Program Info'!F137/1.025^C$63/'Program Info'!F63-Assumptions!$K48,"") ->  | D111: =IFERROR('Program Info'!G137/1.025^D$63/'Program Info'!G63-Assumptions!$K48,"") ->  | E111: =IFERROR('Program Info'!H137/1.025^E$63/'Program Info'!H63-Assumptions!$K48,"") ->  | F111: =IFERROR('Program Info'!I137/1.025^F$63/'Program Info'!I63-Assumptions!$K48,"") -> 
A112: COLA | B112: =IFERROR('Program Info'!E138/1.025^B$63/'Program Info'!E64-Assumptions!$K49,"") ->  | C112: =IFERROR('Program Info'!F138/1.025^C$63/'Program Info'!F64-Assumptions!$K49,"") ->  | D112: =IFERROR('Program Info'!G138/1.025^D$63/'Program Info'!G64-Assumptions!$K49,"") ->  | E112: =IFERROR('Program Info'!H138/1.025^E$63/'Program Info'!H64-Assumptions!$K49,"") ->  | F112: =IFERROR('Program Info'!I138/1.025^F$63/'Program Info'!I64-Assumptions!$K49,"") -> 
A113: COS | B113: =IFERROR('Program Info'!E139/1.025^B$63/'Program Info'!E65-Assumptions!$K50,"") ->  | C113: =IFERROR('Program Info'!F139/1.025^C$63/'Program Info'!F65-Assumptions!$K50,"") ->  | D113: =IFERROR('Program Info'!G139/1.025^D$63/'Program Info'!G65-Assumptions!$K50,"") ->  | E113: =IFERROR('Program Info'!H139/1.025^E$63/'Program Info'!H65-Assumptions!$K50,"") ->  | F113: =IFERROR('Program Info'!I139/1.025^F$63/'Program Info'!I65-Assumptions!$K50,"") -> 
A114: COS-CIS | B114: =IFERROR('Program Info'!E140/1.025^B$63/'Program Info'!E66-Assumptions!$K51,"") ->  | C114: =IFERROR('Program Info'!F140/1.025^C$63/'Program Info'!F66-Assumptions!$K51,"") ->  | D114: =IFERROR('Program Info'!G140/1.025^D$63/'Program Info'!G66-Assumptions!$K51,"") ->  | E114: =IFERROR('Program Info'!H140/1.025^E$63/'Program Info'!H66-Assumptions!$K51,"") ->  | F114: =IFERROR('Program Info'!I140/1.025^F$63/'Program Info'!I66-Assumptions!$K51,"") -> 
A115: GCCIS | B115: =IFERROR('Program Info'!E141/1.025^B$63/'Program Info'!E67-Assumptions!$K52,"") ->  | C115: =IFERROR('Program Info'!F141/1.025^C$63/'Program Info'!F67-Assumptions!$K52,"") ->  | D115: =IFERROR('Program Info'!G141/1.025^D$63/'Program Info'!G67-Assumptions!$K52,"") ->  | E115: =IFERROR('Program Info'!H141/1.025^E$63/'Program Info'!H67-Assumptions!$K52,"") ->  | F115: =IFERROR('Program Info'!I141/1.025^F$63/'Program Info'!I67-Assumptions!$K52,"") -> 
A116: GIS | B116: =IFERROR('Program Info'!E142/1.025^B$63/'Program Info'!E68-Assumptions!$K53,"") ->  | C116: =IFERROR('Program Info'!F142/1.025^C$63/'Program Info'!F68-Assumptions!$K53,"") ->  | D116: =IFERROR('Program Info'!G142/1.025^D$63/'Program Info'!G68-Assumptions!$K53,"") ->  | E116: =IFERROR('Program Info'!H142/1.025^E$63/'Program Info'!H68-Assumptions!$K53,"") ->  | F116: =IFERROR('Program Info'!I142/1.025^F$63/'Program Info'!I68-Assumptions!$K53,"") -> 
A117: KGCOE | B117: =IFERROR('Program Info'!E143/1.025^B$63/'Program Info'!E69-Assumptions!$K54,"") ->  | C117: =IFERROR('Program Info'!F143/1.025^C$63/'Program Info'!F69-Assumptions!$K54,"") ->  | D117: =IFERROR('Program Info'!G143/1.025^D$63/'Program Info'!G69-Assumptions!$K54,"") ->  | E117: =IFERROR('Program Info'!H143/1.025^E$63/'Program Info'!H69-Assumptions!$K54,"") ->  | F117: =IFERROR('Program Info'!I143/1.025^F$63/'Program Info'!I69-Assumptions!$K54,"") -> 
A118: SCB | B118: =IFERROR('Program Info'!E144/1.025^B$63/'Program Info'!E70-Assumptions!$K55,"") ->  | C118: =IFERROR('Program Info'!F144/1.025^C$63/'Program Info'!F70-Assumptions!$K55,"") ->  | D118: =IFERROR('Program Info'!G144/1.025^D$63/'Program Info'!G70-Assumptions!$K55,"") ->  | E118: =IFERROR('Program Info'!H144/1.025^E$63/'Program Info'!H70-Assumptions!$K55,"") ->  | F118: =IFERROR('Program Info'!I144/1.025^F$63/'Program Info'!I70-Assumptions!$K55,"") -> 
A120: Revenue
A121: Per Student | B121: =IF('Program Info'!$E$15="YES","",IF('Program Info'!$N$14="PT",B10/'Program Summary'!B28,IF('Program Info'!$N$14="FT",B10/'Program Summary'!B11,IF('Program Info'!$N$14="FTC",'APR 5 Year Projection'!B10/'Calculation Worksheet'!E143)))) ->  | C121: =IF('Program Info'!$E$15="YES","",IF('Program Info'!$N$14="PT",C10/'Program Summary'!C28,IF('Program Info'!$N$14="FT",C10/'Program Summary'!C11,IF('Program Info'!$N$14="FTC",'APR 5 Year Projection'!C10/'Calculation Worksheet'!F143)))) ->  | D121: =IF('Program Info'!$E$15="YES","",IF('Program Info'!$N$14="PT",D10/'Program Summary'!D28,IF('Program Info'!$N$14="FT",D10/'Program Summary'!D11,IF('Program Info'!$N$14="FTC",'APR 5 Year Projection'!D10/'Calculation Worksheet'!G143)))) ->  | E121: =IF('Program Info'!$E$15="YES","",IF('Program Info'!$N$14="PT",E10/'Program Summary'!E28,IF('Program Info'!$N$14="FT",E10/'Program Summary'!E11,IF('Program Info'!$N$14="FTC",'APR 5 Year Projection'!E10/'Calculation Worksheet'!H143)))) ->  | F121: =IF('Program Info'!$E$15="YES","",IF('Program Info'!$N$14="PT",F10/'Program Summary'!F28,IF('Program Info'!$N$14="FT",F10/'Program Summary'!F11,IF('Program Info'!$N$14="FTC",'APR 5 Year Projection'!F10/'Calculation Worksheet'!I143)))) -> 
A122: Rate | B122: =IF('Program Info'!$E$15="YES","",IF(AND(dtype="GRAD",'Program Info'!$N$14="FT"),HLOOKUP(B7,Assumptions!$B$15:$Z$18,2),IF(AND(dtype="GRAD",'Program Info'!$N$14="pT"),HLOOKUP(B7,Assumptions!$B$15:$Z$18,4),IF(AND(dtype="UG",'Program Info'!$N$14="pT"),HLOOKUP(B7,Assumptions!$B$20:$Z$23,4),IF(AND(dtype="UG",'Program Info'!$N$14="ft"),HLOOKUP(B7,Assumptions!$B$20:$Z$23,2),IF(AND(dtype="UG",'Program Info'!$N$14="ftc"),HLOOKUP(B7,Assumptions!$B$20:$Z$23,2))))))) ->  | C122: =IF('Program Info'!$E$15="YES","",IF(AND(dtype="GRAD",'Program Info'!$N$14="FT"),HLOOKUP(C7,Assumptions!$B$15:$Z$18,2),IF(AND(dtype="GRAD",'Program Info'!$N$14="pT"),HLOOKUP(C7,Assumptions!$B$15:$Z$18,4),IF(AND(dtype="UG",'Program Info'!$N$14="pT"),HLOOKUP(C7,Assumptions!$B$20:$Z$23,4),IF(AND(dtype="UG",'Program Info'!$N$14="ft"),HLOOKUP(C7,Assumptions!$B$20:$Z$23,2),IF(AND(dtype="UG",'Program Info'!$N$14="ftc"),HLOOKUP(C7,Assumptions!$B$20:$Z$23,2))))))) ->  | D122: =IF('Program Info'!$E$15="YES","",IF(AND(dtype="GRAD",'Program Info'!$N$14="FT"),HLOOKUP(D7,Assumptions!$B$15:$Z$18,2),IF(AND(dtype="GRAD",'Program Info'!$N$14="pT"),HLOOKUP(D7,Assumptions!$B$15:$Z$18,4),IF(AND(dtype="UG",'Program Info'!$N$14="pT"),HLOOKUP(D7,Assumptions!$B$20:$Z$23,4),IF(AND(dtype="UG",'Program Info'!$N$14="ft"),HLOOKUP(D7,Assumptions!$B$20:$Z$23,2),IF(AND(dtype="UG",'Program Info'!$N$14="ftc"),HLOOKUP(D7,Assumptions!$B$20:$Z$23,2))))))) ->  | E122: =IF('Program Info'!$E$15="YES","",IF(AND(dtype="GRAD",'Program Info'!$N$14="FT"),HLOOKUP(E7,Assumptions!$B$15:$Z$18,2),IF(AND(dtype="GRAD",'Program Info'!$N$14="pT"),HLOOKUP(E7,Assumptions!$B$15:$Z$18,4),IF(AND(dtype="UG",'Program Info'!$N$14="pT"),HLOOKUP(E7,Assumptions!$B$20:$Z$23,4),IF(AND(dtype="UG",'Program Info'!$N$14="ft"),HLOOKUP(E7,Assumptions!$B$20:$Z$23,2),IF(AND(dtype="UG",'Program Info'!$N$14="ftc"),HLOOKUP(E7,Assumptions!$B$20:$Z$23,2))))))) ->  | F122: =IF('Program Info'!$E$15="YES","",IF(AND(dtype="GRAD",'Program Info'!$N$14="FT"),HLOOKUP(F7,Assumptions!$B$15:$Z$18,2),IF(AND(dtype="GRAD",'Program Info'!$N$14="pT"),HLOOKUP(F7,Assumptions!$B$15:$Z$18,4),IF(AND(dtype="UG",'Program Info'!$N$14="pT"),HLOOKUP(F7,Assumptions!$B$20:$Z$23,4),IF(AND(dtype="UG",'Program Info'!$N$14="ft"),HLOOKUP(F7,Assumptions!$B$20:$Z$23,2),IF(AND(dtype="UG",'Program Info'!$N$14="ftc"),HLOOKUP(F7,Assumptions!$B$20:$Z$23,2))))))) -> 
B123: =IF(B121="",0,B121-B122) ->  | C123: =IF(C121="",0,C121-C122) -> 
A125: Online Test | B125: =IF('Program Info'!$E$15="NO","",B10/'Program Summary'!B28) ->  | C125: =IF('Program Info'!$E$15="NO","",C10/'Program Summary'!C28) ->  | D125: =IF('Program Info'!$E$15="NO","",D10/'Program Summary'!D28) ->  | E125: =IF('Program Info'!$E$15="NO","",E10/'Program Summary'!E28) ->  | F125: =IF('Program Info'!$E$15="NO","",F10/'Program Summary'!F28) -> 
B126: =IF('Program Info'!$E$15="NO","",IF(AND('Program Info'!$E$15="YES",dtype="UG"),HLOOKUP('APR 5 Year Projection'!B7,Assumptions!$A$31:$Z$35,5),IF(AND('Program Info'!$E$15="YES",dtype="grad"),HLOOKUP('APR 5 Year Projection'!B7,Assumptions!$A$25:$Z$29,5)))) ->  | C126: =IF('Program Info'!$E$15="NO","",IF(AND('Program Info'!$E$15="YES",dtype="UG"),HLOOKUP('APR 5 Year Projection'!C7,Assumptions!$A$31:$Z$35,5),IF(AND('Program Info'!$E$15="YES",dtype="grad"),HLOOKUP('APR 5 Year Projection'!C7,Assumptions!$A$25:$Z$29,5)))) ->  | D126: =IF('Program Info'!$E$15="NO","",IF(AND('Program Info'!$E$15="YES",dtype="UG"),HLOOKUP('APR 5 Year Projection'!D7,Assumptions!$A$31:$Z$35,5),IF(AND('Program Info'!$E$15="YES",dtype="grad"),HLOOKUP('APR 5 Year Projection'!D7,Assumptions!$A$25:$Z$29,5)))) ->  | E126: =IF('Program Info'!$E$15="NO","",IF(AND('Program Info'!$E$15="YES",dtype="UG"),HLOOKUP('APR 5 Year Projection'!E7,Assumptions!$A$31:$Z$35,5),IF(AND('Program Info'!$E$15="YES",dtype="grad"),HLOOKUP('APR 5 Year Projection'!E7,Assumptions!$A$25:$Z$29,5)))) ->  | F126: =IF('Program Info'!$E$15="NO","",IF(AND('Program Info'!$E$15="YES",dtype="UG"),HLOOKUP('APR 5 Year Projection'!F7,Assumptions!$A$31:$Z$35,5),IF(AND('Program Info'!$E$15="YES",dtype="grad"),HLOOKUP('APR 5 Year Projection'!F7,Assumptions!$A$25:$Z$29,5)))) -> 
B127: =IF(B125="",0,B125-B126) -> 0 | C127: =IF(C125="",0,C125-C126) -> 0 | D127: 0 | E127: 0 | F127: 0
B128: =ROUND((SUM(B65:F118)+B123+B127),0) ->  | C128: =ROUND((SUM(C65:G118)+C123+C127),0) -> 

Sheet Prgm Cost Drivers (ALL) (hidden)
A2: 1 | B2: 2 | C2: 2 | D2: 3 | E2: 4 | F2: 5 | G2: 6 | H2: 7 | I2: 8 | J2: 9 | K2: 10 | L2: 11 | M2: 12 | N2: 13 | O2: 14 | P2: 15 | Q2: 16 | R2: 17 | S2: 18 | T2: 19 | U2: 20 | V2: 21
A3: College | B3: Plan Name | C3: Academic Plan Codes | D3: Level | E3: Other | F3: Home Discipline | G3: Gross Tuition | H3: Unfunded Aid | I3: Net Tuition | J3: Net Tuition/CH | K3: Average Cost/CH | L3: College Res Exp | M3: College Level Surplus/(Deficit) | N3: Academic Affairs Surplus/(Deficit) | O3: Fully Allocated Surplus/(Deficit) | P3: Surplus/Deficit Per CH | Q3: CH | R3: CH - Home College | S3: CH - HC % of Total | T3: Home College Cost | U3: Home College Cost Per CH | V3: Home College % of Total Exp | W3: 2014-2015 | X3: 2015-2016 | Y3: 2016-2017
A4: CAST | B4: Airforce ROTC | C4: AFORCE-NON | D4: N | E4: N | G4: 44006.10686 | H4: 0 | I4: 44006.10686 | J4: 1158.055444 | K4: 798.7489444 | L4: 30352.45989 | M4: 13653.64697 | N4: 9422.560662 | O4: 4637.71273 | P4: 359.3064992 | Q4: 38 | R4: 29 | S4: 0.7631578947 | T4: 26664.02963 | U4: 919.4492977 | V4: 0.8784800222 | W4: 9 | X4: 15 | Y4: 14
A5: CAST | B5: Army ROTC | C5: ARMY-NON | D5: N | E5: N | G5: 143861.1865 | H5: 0 | I5: 143861.1865 | J5: 1208.917534 | K5: 409.6416174 | L5: 48747.35247 | M5: 95113.83408 | N5: 88171.49813 | O5: 74440.99518 | P5: 799.2759166 | Q5: 119 | R5: 119 | S5: 1 | T5: 48747.35247 | U5: 409.6416174 | V5: 1 | W5: 23 | X5: 18 | Y5: 10
A6: CAST | B6: Applied Technical Leadership | C6: ATLEAD-BS | D6: B | E6: N | G6: 14243.90003 | H6: 0 | I6: 14243.90003 | J6: 949.5933356 | K6: 411.5258762 | L6: 6172.888143 | M6: 8071.011891 | N6: 6975.850957 | O6: 5195.689726 | P6: 538.0674594 | Q6: 15 | R6: 3 | S6: 0.2 | T6: 1909.113112 | U6: 636.3710373 | V6: 0.3092738873 | W6: 0 | X6: 0 | Y6: 3
A7: CAST | B7: Computer Engrg Tech | C7: CPET-BS | D7: B | E7: N | G7: 4789796.498 | H7: -1938369.291 | I7: 2851427.206 | J7: 695.3004648 | K7: 466.5644633 | L7: 1913380.864 | M7: 938046.3423 | N7: 657348.3898 | O7: 172856.4218 | P7: 228.7360015 | Q7: 4101 | R7: 1948 | S7: 0.4750060961 | T7: 1253301.132 | U7: 643.3784044 | V7: 0.6550191629 | W7: 130 | X7: 155 | Y7: 151
A8: CAST | B8: Civil Engineering Tech | C8: CVET-BS | D8: B | E8: N | G8: 8636249.295 | H8: -3585668.524 | I8: 5050580.771 | J8: 672.603645 | K8: 440.692312 | L8: 3309158.571 | M8: 1741422.2 | N8: 1246218.738 | O8: 361314.2203 | P8: 231.911333 | Q8: 7509 | R8: 3905 | S8: 0.5200426155 | T8: 2171283.727 | U8: 556.0265626 | V8: 0.6561437539 | W8: 286 | X8: 294 | Y8: 286
A9: CAST | B9: Electical Engineering Technology | C9: EEET-BS | D9: B | E9: N | G9: 3661513.541 | H9: -1479521.722 | I9: 2181991.819 | J9: 697.7907961 | K9: 494.7393011 | L9: 1547049.794 | M9: 634942.0249 | N9: 409073.5892 | O9: 35479.86424 | P9: 203.051495 | Q9: 3127 | R9: 1810 | S9: 0.5788295491 | T9: 1156854.108 | U9: 639.1459159 | V9: 0.7477807837 | W9: 144 | X9: 131 | Y9: 116
A10: CAST | B10: Environmental Health & Safety Mgmt | C10: EHSM-MS | D10: M | E10: N | G10: 723757.4351 | H10: -197703.8511 | I10: 526053.584 | J10: 1033.504094 | K10: 943.7073145 | L10: 480347.0231 | M10: 45706.56089 | N10: 3886.80763 | O10: -57615.76256 | P10: 89.79677975 | Q10: 509 | R10: 435 | S10: 0.8546168959 | T10: 385788.6779 | U10: 886.8705239 | V10: 0.8031457662 | W10: 31 | X10: 28 | Y10: 38
A11: CAST | B11: Electrical Mechanical Engrg Tech | C11: EMET-BS | D11: B | E11: N | G11: 3619719.409 | H11: -1400135.2 | I11: 2219584.209 | J11: 693.4033767 | K11: 455.6624519 | L11: 1458575.508 | M11: 761008.7005 | N11: 547310.7915 | O11: 169189.4514 | P11: 237.7409249 | Q11: 3201 | R11: 1733 | S11: 0.5413933146 | T11: 1011754.371 | U11: 583.8167175 | V11: 0.693659235 | W11: 122 | X11: 130 | Y11: 106
A12: CAST | B12: Engineering Technology (UND) | C12: ENGTEH-UND | D12: N | E12: N | G12: 1025494.835 | H12: -465206.7643 | I12: 560288.0705 | J12: 656.8441624 | K12: 417.3512202 | L12: 356000.5909 | M12: 204287.4797 | N12: 151649.3166 | O12: 52039.46973 | P12: 239.4929422 | Q12: 853 | R12: 357 | S12: 0.4185228605 | T12: 213757.2902 | U12: 598.7599164 | V12: 0.6004408297 | W12: 34 | X12: 41 | Y12: 26
A13: CAST | B13: Environ Sust Health & Safety | C13: ESHS-BS | D13: B | E13: N | G13: 2279010.071 | H13: -888903.3546 | I13: 1390106.716 | J13: 696.7953464 | K13: 480.843426 | L13: 959282.635 | M13: 430824.0812 | N13: 288126.8562 | O13: 51057.87292 | P13: 215.9519204 | Q13: 1995 | R13: 983 | S13: 0.4927318296 | T13: 533920.6296 | U13: 543.1542519 | V13: 0.5565832323 | W13: 85 | X13: 78 | Y13: 71
A14: CAST | B14: Facility Management | C14: FCMG-MS | D14: M | E14: N | G14: 203705.7708 | H14: -15394.07861 | I14: 188311.6922 | J14: 996.3581599 | K14: 883.7568007 | L14: 167030.0353 | M14: 21281.65688 | N14: 6663.978527 | O14: -15982.45315 | P14: 112.6013592 | Q14: 189 | R14: 132 | S14: 0.6984126984 | T14: 126162.1547 | U14: 955.773899 | V14: 0.7553261568 | W14: 18 | X14: 22 | Y14: 13
A15: CAST | B15: Human Resources Development | C15: HRDE-MS | D15: M | E15: N | G15: 735067.3334 | H15: -174011.9961 | I15: 561055.3374 | J15: 1100.108505 | K15: 1071.02107 | L15: 546220.7456 | M15: 14834.59177 | N15: -51195.91418 | O15: -118137.2479 | P15: 29.08743484 | Q15: 510 | R15: 492 | S15: 0.9647058824 | T15: 529836.11 | U15: 1076.902663 | V15: 0.9700036373 | W15: 45 | X15: 33 | Y15: 29
A16: CAST | B16: Hospitality & Service Mgmt | C16: HSPS-BS | D16: B | E16: N | G16: 2643404.768 | H16: -737196.1952 | I16: 1906208.573 | J16: 800.9279717 | K16: 419.5893858 | L16: 998622.7383 | M16: 907585.8343 | N16: 754392.0401 | O16: 469981.4466 | P16: 381.3385858 | Q16: 2380 | R16: 1193 | S16: 0.5012605042 | T16: 603863.8212 | U16: 506.172524 | V16: 0.6046966467 | W16: 275 | X16: 271 | Y16: 243
A17: CAST | B17: Hospitality & Tourism Mgmt | C17: HSPT-MS | D17: M | E17: N | G17: 425593.8471 | H17: -54652.37565 | I17: 370941.4714 | J17: 1283.534503 | K17: 815.2647763 | L17: 235611.5204 | M17: 135329.9511 | N17: 112644.7414 | O17: 77919.98533 | P17: 468.2697269 | Q17: 289 | R17: 289 | S17: 1 | T17: 235611.5204 | U17: 815.2647763 | V17: 1 | W17: 27 | X17: 19 | Y17: 11
A18: CAST | B18: Mechanical Enrgr Tech | C18: MCET-BS | D18: B | E18: N | G18: 14096789.27 | H18: -5508373.025 | I18: 8588416.242 | J18: 698.5859966 | K18: 429.7088258 | L18: 5282840.304 | M18: 3305575.938 | N18: 2526625.308 | O18: 1076062.486 | P18: 268.8771708 | Q18: 12294 | R18: 6139 | S18: 0.4993492761 | T18: 3427745.073 | U18: 558.3556072 | V18: 0.6488451052 | W18: 479 | X18: 470 | Y18: 471
A19: CAST | B19: Manufacturing Engrg Tech | C19: MFET-BS | D19: B | E19: N | G19: 1144593.539 | H19: -408897.6723 | I19: 735695.8666 | J19: 740.1366867 | K19: 432.8102761 | L19: 430213.4145 | M19: 305482.4521 | N19: 242091.0373 | O19: 125681.249 | P19: 307.3264106 | Q19: 994 | R19: 495 | S19: 0.4979879276 | T19: 276459.249 | U19: 558.5035332 | V19: 0.6426095507 | W19: 38 | X19: 35 | Y19: 24
A20: CAST | B20: Mfg & Mechanical Systems Integ | C20: MMSI-MS | D20: M | E20: N | G20: 1435797.651 | H20: -454339.7595 | I20: 981457.8919 | J20: 1084.483858 | K20: 742.0516817 | L20: 671556.7719 | M20: 309901.1199 | N20: 248277.536 | O20: 141884.3658 | P20: 342.4321767 | Q20: 905 | R20: 600 | S20: 0.6629834254 | T20: 453660.6548 | U20: 756.1010913 | V20: 0.6755358203 | W20: 45 | X20: 57 | Y20: 63
A21: CAST | B21: Packaging Science | C21: PACK-BS | D21: B | E21: N | G21: 4792202.39 | H21: -1650363.246 | I21: 3141839.145 | J21: 758.7150796 | K21: 483.348817 | L21: 2001547.451 | M21: 1140291.694 | N21: 841909.7933 | O21: 348502.7091 | P21: 275.3662627 | Q21: 4141 | R21: 1896 | S21: 0.4578604202 | T21: 1228154.553 | U21: 647.7608402 | V21: 0.6136025166 | W21: 192 | X21: 177 | Y21: 170
A22: CAST | B22: Packaging Science | C22: PACK-MS | D22: M | E22: N | G22: 1079246.25 | H22: -307822.1604 | I22: 771424.0896 | J22: 1196.00634 | K22: 772.4446055 | L22: 498226.7705 | M22: 273197.3191 | N22: 221102.2209 | O22: 143356.3405 | P22: 423.561735 | Q22: 645 | R22: 594 | S22: 0.9209302326 | T22: 455293.7754 | U22: 766.4878374 | V22: 0.9138284058 | W22: 45 | X22: 58 | Y22: 45
A23: CAST | B23: Service Leadership & Innovation | C23: SVCLED-MS | D23: M | E23: N | G23: 238288.4797 | H23: -26103.9286 | I23: 212184.5511 | J23: 1122.669582 | K23: 1088.967594 | L23: 205814.8752 | M23: 6369.675879 | N23: -18447.69559 | O23: -43323.05449 | P23: 33.70198878 | Q23: 189 | R23: 180 | S23: 0.9523809524 | T23: 197665.2437 | U23: 1098.140243 | V23: 0.9604030977 | W23: 58 | X23: 46 | Y23: 49
A24: CAST | B24: Telecom Engineering Technology | C24: TCET-BS | D24: B | E24: N | G24: 10455.74599 | H24: 0 | I24: 10455.74599 | J24: 1045.574599 | K24: 524.5434198 | L24: 5245.434198 | M24: 5210.311793 | N24: 4446.531998 | O24: 3247.42595 | P24: 521.0311793 | Q24: 10 | R24: 7 | S24: 0.7 | T24: 4538.178079 | U24: 648.3111541 | V24: 0.8651672879 | W24: 4 | X24: 3 | Y24: 0
A25: CAST | B25: Telecom Engineering Technology | C25: TCET-MS | D25: M | E25: N | G25: 2200323.75 | H25: -549206.4478 | I25: 1651117.302 | J25: 1255.602511 | K25: 660.2564571 | L25: 868237.2411 | M25: 782880.0611 | N25: 690271.7814 | O25: 534635.3835 | P25: 595.3460541 | Q25: 1315 | R25: 1069 | S25: 0.8129277567 | T25: 679237.2604 | U25: 635.3950051 | V25: 0.7823175836 | W25: 118 | X25: 108 | Y25: 112
A26: CAST | B26: Training, Design & Assessment | C26: TRNDAS-ACT | D26: C | E26: N | G26: 5734.8304 | H26: 0 | I26: 5734.8304 | J26: 955.8050666 | K26: 636.3710373 | L26: 3818.226224 | M26: 1916.604176 | N26: 1013.609754 | O26: 198.3224237 | P26: 319.4340294 | Q26: 6 | R26: 6 | S26: 1 | T26: 3818.226224 | U26: 636.3710373 | V26: 1 | W26: 1 | X26: 0 | Y26: 0
A27: CHST | B27: Biomedical Sciences | C27: BIOMED-BS | D27: B | E27: N | G27: 8675932.863 | H27: -3415599.972 | I27: 5260332.891 | J27: 689.4276397 | K27: 391.3564139 | L27: 2986049.438 | M27: 2274283.453 | N27: 1839167.724 | O27: 954883.947 | P27: 298.0712258 | Q27: 7630 | R27: 2918 | S27: 0.3824377457 | T27: 1194821.932 | U27: 409.4660494 | V27: 0.4001346786 | W27: 249 | X27: 248 | Y27: 259
A28: CHST | B28: Diagnostic Medical Sonography | C28: DMSO-BS | D28: B | E28: N | G28: 3946061.225 | H28: -1826128.464 | I28: 2119932.761 | J28: 635.0907012 | K28: 422.8231237 | L28: 1411383.587 | M28: 708549.1739 | N28: 506813.2339 | O28: 124792.2523 | P28: 212.2675776 | Q28: 3338 | R28: 2152 | S28: 0.6446974236 | T28: 1004755.646 | U28: 466.8938875 | V28: 0.7118940983 | W28: 112 | X28: 109 | Y28: 108
A29: CHST | B29: Diagnostic Medical Sonography | C29: DMSO-CT | D29: C | E29: N | G29: 191519.0667 | H29: -93038.30949 | I29: 98480.75718 | J29: 627.2659693 | K29: 486.1542528 | L29: 76326.21769 | M29: 22154.53949 | N29: 11507.67309 | O29: -6464.671584 | P29: 141.1117165 | Q29: 157 | R29: 150 | S29: 0.9554140127 | T29: 73731.27756 | U29: 491.5418504 | V29: 0.966001982 | W29: 6 | X29: 6 | Y29: 3
A30: CHST | B30: Echocardiography (CT) | C30: ECHO-CT | D30: C | E30: N | G30: 514783.7333 | H30: -238240.919 | I30: 276542.8143 | J30: 655.3147259 | K30: 470.9117585 | L30: 198724.7621 | M30: 77818.05224 | N30: 49793.77776 | O30: 1603.000705 | P30: 184.4029674 | Q30: 422 | R30: 416 | S30: 0.9857819905 | T30: 195804.513 | U30: 470.6839254 | V30: 0.9853050566 | W30: 5 | X30: 17 | Y30: 22
A31: CHST | B31: Exercise Science | C31: EXRSCI-BS | D31: B | E31: N | G31: 9758.933333 | H31: 0 | I31: 9758.933333 | J31: 1219.866667 | K31: 316.7141487 | L31: 2533.71319 | M31: 7225.220144 | N31: 6850.876621 | O31: 5940.662861 | P31: 903.152518 | Q31: 8 | R31: 0 | T31: 0 | W31: 0 | X31: 0 | Y31: 4
A32: CHST | B32: Health Systems Administration | C32: HLTH-CT | D32: C | E32: N | G32: 10233.26087 | H32: 0 | I32: 10233.26087 | J32: 852.7717394 | K32: 403.4271125 | L32: 4841.12535 | M32: 5392.135523 | N32: 4587.38297 | O32: 3213.047799 | P32: 449.3446269 | Q32: 12 | R32: 12 | S32: 1 | T32: 4841.12535 | U32: 403.4271125 | V32: 1 | W32: 0 | X32: 1 | Y32: 0
A33: CHST | B33: Health Systems Administration | C33: HLTH-MS | D33: M | E33: N | G33: 306488.3576 | H33: -22163.35615 | I33: 284325.0015 | J33: 1064.887646 | K33: 556.3765383 | L33: 148552.5357 | M33: 135772.4658 | N33: 116615.1761 | O33: 85715.91917 | P33: 508.5111077 | Q33: 267 | R33: 252 | S33: 0.9438202247 | T33: 129954.2046 | U33: 515.691288 | V33: 0.8748030045 | W33: 22 | X33: 20 | Y33: 24
A34: CHST | B34: Medical Illustrations | C34: ILLM-MFA | D34: M | E34: N | G34: 585515.1488 | H34: -130161.2246 | I34: 455353.9242 | J34: 1063.911038 | K34: 637.7572195 | L34: 272960.09 | M34: 182393.8343 | N34: 156099.2371 | O34: 106902.7975 | P34: 426.1538184 | Q34: 428 | R34: 9 | S34: 0.02102803738 | T34: 7724.961742 | U34: 858.3290824 | V34: 0.02830070045 | W34: 13 | X34: 15 | Y34: 11
A35: CHST | B35: Nutrition Mgmt | C35: NUTR-BS | D35: B | E35: N | G35: 1521173.733 | H35: -593953.9742 | I35: 927219.7591 | J35: 743.5603521 | K35: 442.2142759 | L35: 551441.202 | M35: 375778.5571 | N35: 293275.0996 | O35: 148799.9777 | P35: 301.3460763 | Q35: 1247 | R35: 541 | S35: 0.4338412189 | T35: 263896.7146 | U35: 487.7942968 | V35: 0.47855821 | W35: 55 | X35: 45 | Y35: 43
A36: CHST | B36: Physician Assistant | C36: PHYA-BS | D36: B | E36: N | G36: 4989800.708 | H36: -2042476.692 | I36: 2947324.017 | J36: 695.4516321 | K36: 434.861029 | L36: 1842941.041 | M36: 1104382.976 | N36: 836450.0575 | O36: 349563.1226 | P36: 260.5906031 | Q36: 4238 | R36: 2688 | S36: 0.6342614441 | T36: 1293725.132 | U36: 481.2965522 | V36: 0.7019894307 | W36: 139 | X36: 139 | Y36: 139
A37: CHST | B37: Physician Assistant (MS) | C37: PHYA-MS | D37: M | E37: N | G37: 1874991.011 | H37: -854318.8289 | I37: 1020672.182 | J37: 655.1169331 | K37: 543.5609415 | L37: 846867.9468 | M37: 173804.235 | N37: 62358.76503 | O37: -116929.2125 | P37: 111.5559916 | Q37: 1558 | R37: 1558 | S37: 1 | T37: 846867.9468 | U37: 543.5609415 | V37: 1 | W37: 0 | X37: 31 | Y37: 32
A38: CIAS | B38: 3D Digital Graphics | C38: 3DDG-BFA | D38: B | E38: N | G38: 4017020.933 | H38: -1384526.536 | I38: 2632494.397 | J38: 799.4213171 | K38: 517.3881588 | L38: 1703759.207 | M38: 928735.1901 | N38: 678225.1226 | O38: 278172.4262 | P38: 282.0331583 | Q38: 3293 | R38: 2486 | S38: 0.75493471 | T38: 1426389.521 | U38: 573.7689144 | V38: 0.8372013576 | W38: 111 | X38: 117 | Y38: 129
A39: CIAS | B39: Art & Design | C39: ARDE-UND | D39: N | E39: N | G39: 117107.2 | H39: -46221.24404 | I39: 70885.95596 | J39: 738.3953746 | K39: 393.2496145 | L39: 37751.96299 | M39: 33133.99297 | N39: 27461.20872 | O39: 16431.9964 | P39: 345.1457601 | Q39: 96 | R39: 72 | S39: 0.75 | T39: 30418.78128 | U39: 422.4830734 | V39: 0.8057536318 | W39: 7 | X39: 4 | Y39: 5
A40: CIAS | B40: Ceramics & Ceramic Sculpture | C40: CCER-BFA | D40: B | E40: N | G40: 201393.2818 | H40: -67207.30489 | I40: 134185.9769 | J40: 808.3492582 | K40: 687.1211574 | L40: 114062.1121 | M40: 20123.86473 | N40: 4023.869399 | O40: -16162.439 | P40: 121.2281008 | Q40: 166 | R40: 150 | S40: 0.9036144578 | T40: 109533.958 | U40: 730.2263864 | V40: 0.9603009791 | W40: 6 | X40: 5 | Y40: 8
A41: CIAS | B41: Ceramics & Ceramic Sculpture | C41: CCER-MFA | D41: M | E41: N | G41: 220989.499 | H41: -70525.09537 | I41: 150464.4037 | J41: 983.4274749 | K41: 1059.099005 | L41: 162042.1478 | M41: -11577.74409 | N41: -31249.93236 | O41: -50732.50112 | P41: -75.67152998 | Q41: 153 | R41: 153 | S41: 1 | T41: 162042.1478 | U41: 1059.099005 | V41: 1 | W41: 7 | X41: 6 | Y41: 7
A42: CIAS | B42: Motion Picture Science | C42: DIGCIME-BS | D42: B | E42: N | G42: 1638389.849 | H42: -603483.0779 | I42: 1034906.771 | J42: 747.2251054 | K42: 826.9118892 | L42: 1145272.966 | M42: -110366.1956 | N42: -277643.9838 | O42: -456216.544 | P42: -79.68678381 | Q42: 1385 | R42: 500 | S42: 0.3610108303 | T42: 343222.7607 | U42: 686.4455214 | V42: 0.2996864247 | W42: 45 | X42: 49 | Y42: 43
A43: CIAS | B43: Film & Animation | C43: FILMAN-BFA | D43: B | E43: N | G43: 8579479.084 | H43: -3816038.881 | I43: 4763440.203 | J43: 665.8429135 | K43: 573.4558038 | L43: 4102502.82 | M43: 660937.3826 | N43: 67039.5791 | O43: -789167.9929 | P43: 92.38710968 | Q43: 7154 | R43: 5159 | S43: 0.7211350294 | T43: 3421047.867 | U43: 663.1222847 | V43: 0.8338928738 | W43: 236 | X43: 243 | Y43: 234
A44: CIAS | B44: Film & Animation | C44: FILMAN-MFA | D44: M | E44: N | G44: 1155432.394 | H44: -333155.6321 | I44: 822276.7617 | J44: 1007.69211 | K44: 959.9087736 | L44: 783285.5593 | M44: 38991.20241 | N44: -39051.61862 | O44: -138106.5276 | P44: 47.78333629 | Q44: 816 | R44: 811 | S44: 0.993872549 | T44: 779155.8395 | U44: 960.7346973 | V44: 0.9947276958 | W44: 59 | X44: 51 | Y44: 51
A45: CIAS | B45: Fine Arts Studio | C45: FNAS-BFA | D45: B | E45: N | G45: 1004682.902 | H45: -358729.887 | I45: 645953.0147 | J45: 732.3730325 | K45: 394.6761828 | L45: 348104.3933 | M45: 297848.6214 | N45: 245328.1739 | O45: 135046.8747 | P45: 337.6968497 | Q45: 882 | R45: 654 | S45: 0.7414965986 | T45: 278531.5691 | U45: 425.8892494 | V45: 0.8001380462 | W45: 32 | X45: 29 | Y45: 22
A46: CIAS | B46: Fine Arts Studio | C46: FNAS-MFA | D46: M | E46: N | G46: 560988.1214 | H46: -160130.7805 | I46: 400857.3409 | J46: 902.8318489 | K46: 652.5316858 | L46: 289724.0685 | M46: 111133.2724 | N46: 82948.94465 | O46: 31760.76472 | P46: 250.3001631 | Q46: 444 | R46: 444 | S46: 1 | T46: 289724.0685 | U46: 652.5316858 | V46: 1 | W46: 16 | X46: 19 | Y46: 13
A47: CIAS | B47: Glass | C47: GLASS-BFA | D47: B | E47: N | G47: 289205.5473 | H47: -96452.11252 | I47: 192753.4348 | J47: 780.3782786 | K47: 764.6299007 | L47: 188863.5855 | M47: 3889.849335 | N47: -22579.70284 | O47: -53096.4186 | P47: 15.74837788 | Q47: 247 | R47: 192 | S47: 0.7773279352 | T47: 173970.9362 | U47: 906.0986261 | V47: 0.9211459995 | W47: 10 | X47: 9 | Y47: 8
A48: CIAS | B48: Glass | C48: GLASS-MFA | D48: M | E48: N | G48: 145572.75 | H48: -79883.39145 | I48: 65689.35855 | J48: 755.0500983 | K48: 1143.95857 | L48: 99524.39563 | M48: -33835.03708 | N48: -46179.72944 | O48: -57472.65835 | P48: -388.9084722 | Q48: 87 | R48: 87 | S48: 1 | T48: 99524.39563 | U48: 1143.95857 | V48: 1 | W48: 5 | X48: 4 | Y48: 6
A49: CIAS | B49: Graphic Design | C49: GRDE-BFA | D49: B | E49: N | G49: 6150768.329 | H49: -1971536.933 | I49: 4179231.397 | J49: 798.1725356 | K49: 544.234031 | L49: 2849609.386 | M49: 1329622.01 | N49: 913589.8064 | O49: 288062.8144 | P49: 253.9385046 | Q49: 5236 | R49: 4076 | S49: 0.7784568373 | T49: 2499415.982 | U49: 613.2031359 | V49: 0.877108278 | W49: 202 | X49: 184 | Y49: 173
A50: CIAS | B50: Industrial Design | C50: IDDE-BFA | D50: B | E50: N | G50: 8456108.454 | H50: -2923219.739 | I50: 5532888.715 | J50: 784.3618819 | K50: 526.0781945 | L50: 3710955.584 | M50: 1821933.131 | N50: 1276833.732 | O50: 433573.0233 | P50: 258.2836874 | Q50: 7054 | R50: 5331 | S50: 0.7557414233 | T50: 3124114.212 | U50: 586.0278019 | V50: 0.841862464 | W50: 239 | X50: 241 | Y50: 235
A51: CIAS | B51: Industrial Design | C51: IDDE-MFA | D51: M | E51: N | G51: 1224259.792 | H51: -279957.4517 | I51: 944302.3403 | J51: 1018.664876 | K51: 930.5947453 | L51: 862661.3289 | M51: 81641.01139 | N51: -6995.880088 | O51: -120184.516 | P51: 88.07013094 | Q51: 927 | R51: 894 | S51: 0.9644012945 | T51: 836582.8122 | U51: 935.7749577 | V51: 0.9697696931 | W51: 40 | X51: 39 | Y51: 52
A52: CIAS | B52: Medical Illustrations | C52: ILLM-BFA | D52: B | E52: N | G52: 1913913.564 | H52: -774858.6643 | I52: 1139054.9 | J52: 694.5456708 | K52: 385.7249992 | L52: 632588.9987 | M52: 506465.9014 | N52: 411606.6226 | O52: 224118.6028 | P52: 308.8206716 | Q52: 1640 | R52: 1116 | S52: 0.6804878049 | T52: 450681.7946 | U52: 403.8367335 | V52: 0.7124401397 | W52: 60 | X52: 56 | Y52: 52
A53: CIAS | B53: Illustration | C53: ILLS-BFA | D53: B | E53: N | G53: 2889864.133 | H53: -1098090.26 | I53: 1791773.873 | J53: 756.3418628 | K53: 391.8720595 | L53: 928344.9089 | M53: 863428.9642 | N53: 723852.0865 | O53: 450982.8501 | P53: 364.4698034 | Q53: 2369 | R53: 1827 | S53: 0.7712114816 | T53: 767438.3812 | U53: 420.0538485 | V53: 0.8266737652 | W53: 81 | X53: 82 | Y53: 93
A54: CIAS | B54: Imaging Arts | C54: IMGART-MFA | D54: M | E54: N | G54: 475470.9196 | H54: -53701.98177 | I54: 421768.9378 | J54: 1152.374147 | K54: 1480.399981 | L54: 541826.3929 | M54: -120057.4551 | N54: -178074.9683 | O54: -226814.6978 | P54: -328.0258337 | Q54: 366 | R54: 366 | S54: 1 | T54: 541826.3929 | U54: 1480.399981 | V54: 1 | W54: 15 | X54: 16 | Y54: 14
A55: CIAS | B55: Interior Design | C55: INDE-BFA | D55: B | E55: N | G55: 1950131.296 | H55: -794733.983 | I55: 1155397.313 | J55: 716.7477129 | K55: 527.9992292 | L55: 851134.7574 | M55: 304262.5558 | N55: 179682.3465 | O55: -10811.50754 | P55: 188.7484837 | Q55: 1612 | R55: 1219 | S55: 0.7562034739 | T55: 726061.7693 | U55: 595.6208116 | V55: 0.8530514856 | W55: 61 | X55: 57 | Y55: 57
A56: CIAS | B56: Interdisciplinary Imaging Arts | C56: INTIAR-NON | D56: N | E56: N | G56: 3659.6 | H56: 0 | I56: 3659.6 | J56: 1219.866667 | K56: 349.3793672 | L56: 1048.138102 | M56: 2611.461898 | N56: 2457.657629 | O56: 2114.351048 | P56: 870.4872994 | Q56: 3 | R56: 0 | T56: 0 | W56: 2 | X56: 2 | Y56: 1
A57: CIAS | B57: Metalcrafts & Jewelry | C57: METAL-BFA | D57: B | E57: N | G57: 818530.5333 | H57: -300438.7016 | I57: 518091.8317 | J57: 772.1189742 | K57: 742.3249956 | L57: 498100.072 | M57: 19991.75966 | N57: -50004.14797 | O57: -132605.0747 | P57: 29.79397862 | Q57: 671 | R57: 544 | S57: 0.8107302534 | T57: 455444.6844 | U57: 837.2144934 | V57: 0.9143638196 | W57: 16 | X57: 23 | Y57: 27
A58: CIAS | B58: Metalcrafts & Jewelry | C58: METAL-MFA | D58: M | E58: N | G58: 497231.6258 | H58: -104111.5152 | I58: 393120.1107 | J58: 1092.000307 | K58: 1063.35176 | L58: 382806.6335 | M58: 10313.4772 | N58: -36214.27612 | O58: -82100.11782 | P58: 28.64854776 | Q58: 360 | R58: 360 | S58: 1 | T58: 382806.6335 | U58: 1063.35176 | V58: 1 | W58: 18 | X58: 15 | Y58: 21
A59: CIAS | B59: New Media Design & Imaging | C59: NMDE-BFA | D59: B | E59: N | G59: 4875807.067 | H59: -1734054.378 | I59: 3141752.688 | J59: 786.0276929 | K59: 522.4598886 | L59: 2088272.175 | M59: 1053480.514 | N59: 747127.5 | O59: 273955.1296 | P59: 263.5678042 | Q59: 3997 | R59: 2653 | S59: 0.6637478109 | T59: 1554806.122 | U59: 586.055832 | V59: 0.744541895 | W59: 137 | X59: 141 | Y59: 137
A60: CIAS | B60: Media Arts & Technology | C60: NMEP-BS | D60: B | E60: N | G60: 2048990.385 | H60: -586262.5998 | I60: 1462727.785 | J60: 856.8996985 | K60: 730.3761307 | L60: 1246752.055 | M60: 215975.7303 | N60: 40799.84909 | O60: -177104.6882 | P60: 126.5235678 | Q60: 1707 | R60: 804 | S60: 0.4710017575 | T60: 917821.6202 | U60: 1141.569179 | V60: 0.7361701282 | W60: 90 | X60: 62 | Y60: 61
A61: CIAS | B61: Photographic & Imaging Arts | C61: PHIMAG-BFA | D61: B | E61: N | G61: 8619865.442 | H61: -2933917.156 | I61: 5685948.287 | J61: 788.2917353 | K61: 830.3666986 | L61: 5989434.997 | M61: -303486.7101 | N61: -1129777.361 | O61: -2041986.336 | P61: -42.07496327 | Q61: 7213 | R61: 5180 | S61: 0.7181477887 | T61: 5358115.718 | U61: 1034.385274 | V61: 0.8945945186 | W61: 145 | X61: 185 | Y61: 231
A62: CIAS | B62: Photographic & Imaging Tech | C62: PHIMTEC-BS | D62: B | E62: N | G62: 3023226.558 | H62: -914572.8184 | I62: 2108653.74 | J62: 834.1193592 | K62: 816.6103685 | L62: 2064391.012 | M62: 44262.72843 | N62: -242290.6751 | O62: -560849.2086 | P62: 17.50899068 | Q62: 2528 | R62: 1263 | S62: 0.4996044304 | T62: 1498275.713 | U62: 1186.283225 | V62: 0.7257712829 | W62: 40 | X62: 62 | Y62: 61
A63: CIAS | B63: Photographic Exploration | C63: PHOTO-UND | D63: B | E63: N | G63: 270897.0672 | H63: -95185.00647 | I63: 175712.0607 | J63: 738.2859694 | K63: 737.5111081 | L63: 175527.6437 | M63: 184.4169705 | N63: -24194.11076 | O63: -53460.7182 | P63: 0.7748612204 | Q63: 238 | R63: 171 | S63: 0.718487395 | T63: 156416.2059 | U63: 914.7146547 | V63: 0.8911200687 | W63: 0 | X63: 8 | Y63: 13
A64: CIAS | B64: Print Media | C64: PRNTMED-MS | D64: M | E64: N | G64: 468765.3311 | H64: -144677.1551 | I64: 324088.176 | J64: 1133.175441 | K64: 1339.055011 | L64: 382969.7331 | M64: -58881.55709 | N64: -102237.4598 | O64: -140157.1854 | P64: -205.8795702 | Q64: 286 | R64: 213 | S64: 0.7447552448 | T64: 287340.3157 | U64: 1349.015567 | V64: 0.7502951039 | W64: 12 | X64: 14 | Y64: 19
A65: CIAS | B65: User Exp Des & Dev | C65: UXDE-ACT | D65: C | E65: N | G65: 86046.07653 | H65: 0 | I65: 86046.07653 | J65: 1103.154827 | K65: 576.3860141 | L65: 44958.1091 | M65: 41087.96743 | N65: 34486.27252 | O65: 25168.91304 | P65: 526.7688132 | Q65: 78 | R65: 63 | S65: 0.8076923077 | T65: 39803.00741 | U65: 631.7937684 | V65: 0.8853354424 | W65: 0 | X65: 10 | Y65: 3
A66: CIAS | B66: Visual Arts | C66: VISART-MST | D66: M | E66: N | G66: 168743.5924 | H66: -33178.9185 | I66: 135564.6739 | J66: 836.8189746 | K66: 605.4718343 | L66: 98086.43716 | M66: 37478.23672 | N66: 28180.93254 | O66: 9688.495699 | P66: 231.3471402 | Q66: 162 | R66: 162 | S66: 1 | T66: 98086.43716 | U66: 605.4718343 | V66: 1 | W66: 8 | X66: 5 | Y66: 5
A67: CIAS | B67: Visual Comm Design | C67: VISCOM-MFA | D67: M | E67: N | G67: 1887950.503 | H67: -424143.9834 | I67: 1463806.519 | J67: 1085.909881 | K67: 941.9526132 | L67: 1269752.123 | M67: 194054.3966 | N67: 68982.11572 | O67: -94006.67171 | P67: 143.9572675 | Q67: 1348 | R67: 1261 | S67: 0.9354599407 | T67: 1174792.485 | U67: 931.6355951 | V67: 0.9252140355 | W67: 46 | X67: 66 | Y67: 79
A68: CIAS | B68: Woodworking/Furn Design | C68: WOOD-AOS | D68: A | E68: N | G68: 18328.68977 | H68: -2253.773744 | I68: 16074.91602 | J68: 1071.661068 | K68: 800.5752823 | L68: 12008.62923 | M68: 4066.286788 | N68: 2388.570215 | O68: 524.9958305 | P68: 271.0857858 | Q68: 15 | R68: 15 | S68: 1 | T68: 12008.62923 | U68: 800.5752823 | V68: 1 | W68: 0 | X68: 1 | Y68: 0
A69: CIAS | B69: Woodworking/Furn Design | C69: WOOD-BFA | D69: B | E69: N | G69: 481847.3333 | H69: -108203.6533 | I69: 373643.68 | J69: 945.9333672 | K69: 732.5117524 | L69: 289342.1422 | M69: 84301.53785 | N69: 43683.73569 | O69: -4820.771107 | P69: 213.4216148 | Q69: 395 | R69: 312 | S69: 0.7898734177 | T69: 265819.0363 | U69: 851.9840908 | V69: 0.9187014181 | W69: 14 | X69: 13 | Y69: 16
A70: CIAS | B70: Woodworking/Furn Design | C70: WOOD-MFA | D70: M | E70: N | G70: 267854.3255 | H70: -72272.68804 | I70: 195581.6374 | J70: 1164.176413 | K70: 1111.549647 | L70: 186740.3406 | M70: 8841.296799 | N70: -14142.3182 | O70: -35791.08477 | P70: 52.62676666 | Q70: 168 | R70: 168 | S70: 1 | T70: 186740.3406 | U70: 1111.549647 | V70: 1 | W70: 13 | X70: 11 | Y70: 9
A71: COLA | B71: Advertising & Public Relations | C71: ADVPUB-BS | D71: B | E71: N | G71: 2389915.269 | H71: -857532.4035 | I71: 1532382.865 | J71: 774.7132788 | K71: 348.3694573 | L71: 689074.7865 | M71: 843308.079 | N71: 737003.1459 | O71: 509075.1519 | P71: 426.3438215 | Q71: 1978 | R71: 1417 | S71: 0.716380182 | T71: 433437.2309 | U71: 305.8837198 | V71: 0.629013337 | W71: 70 | X71: 67 | Y71: 73
A72: COLA | B72: Communication | C72: COMM-BS | D72: B | E72: N | G72: 1112556.607 | H72: -410670.6207 | I72: 701885.9859 | J72: 666.5583911 | K72: 329.6907395 | L72: 347164.3487 | M72: 354721.6372 | N72: 301496.063 | O72: 181390.5968 | P72: 336.8676516 | Q72: 1053 | R72: 888 | S72: 0.8433048433 | T72: 273182.5659 | U72: 307.6380247 | V72: 0.7868969466 | W72: 22 | X72: 34 | Y72: 33
A73: COLA | B73: Communications & Media Tech | C73: COMMTCH-MS | D73: M | E73: N | G73: 699291.6426 | H73: -182499.5664 | I73: 516792.0761 | J73: 1133.315956 | K73: 834.9900566 | L73: 380755.4658 | M73: 136036.6103 | N73: 109743.6709 | O73: 57227.16175 | P73: 298.3258998 | Q73: 456 | R73: 315 | S73: 0.6907894737 | T73: 259137.7954 | U73: 822.659668 | V73: 0.6805885107 | W73: 29 | X73: 29 | Y73: 22
A74: COLA | B74: Criminal Justice | C74: CRIM-BS | D74: B | E74: N | G74: 3382601.564 | H74: -1261975.324 | I74: 2120626.24 | J74: 664.5647885 | K74: 335.0011148 | L74: 1068988.557 | M74: 1051637.683 | N74: 890651.3539 | O74: 511430.3932 | P74: 329.5636736 | Q74: 3191 | R74: 2717 | S74: 0.8514572234 | T74: 878492.7494 | U74: 323.3318916 | V74: 0.821798085 | W74: 111 | X74: 107 | Y74: 98
A75: COLA | B75: Criminal Justice | C75: CRIM-MS | D75: M | E75: N | G75: 124615.1507 | H75: -33375.1233 | I75: 91240.02741 | J75: 1184.935421 | K75: 938.3353979 | L75: 72251.82564 | M75: 18988.20178 | N75: 15065.41331 | O75: 6316.875177 | P75: 246.6000231 | Q75: 77 | R75: 75 | S75: 0.974025974 | T75: 70971.15436 | U75: 946.2820581 | V75: 0.9822748939 | W75: 11 | X75: 9 | Y75: 11
A76: COLA | B76: Economics | C76: ECON-BS | D76: B | E76: N | G76: 1232998.338 | H76: -457926.3837 | I76: 775071.9547 | J76: 713.0376768 | K76: 314.8323728 | L76: 342222.7892 | M76: 432849.1655 | N76: 380389.9502 | O76: 256879.6181 | P76: 398.205304 | Q76: 1087 | R76: 683 | S76: 0.6283348666 | T76: 195097.2258 | U76: 285.6474756 | V76: 0.5700883517 | W76: 29 | X76: 37 | Y76: 30
A77: COLA | B77: Engineering Psychology (ACT) | C77: ENGPSY-ACT | D77: C | E77: N | G77: 7319.2 | H77: 0 | I77: 7319.2 | J77: 1219.866667 | K77: 379.2292069 | L77: 2275.375241 | M77: 5043.824759 | N77: 4686.340411 | O77: 3991.040452 | P77: 840.6374598 | Q77: 6 | R77: 3 | S77: 0.5 | T77: 849.332675 | U77: 283.1108917 | V77: 0.3732714761 | W77: 1 | X77: 1 | Y77: 2
A78: COLA | B78: Experimental Psychology | C78: EXPSYC-MS | D78: M | E78: N | G78: 266046.75 | H78: -120607.704 | I78: 145439.046 | J78: 914.7109811 | K78: 785.1227225 | L78: 124834.5129 | M78: 20604.53313 | N78: 10240.35061 | O78: -8385.878687 | P78: 129.5882587 | Q78: 159 | R78: 115 | S78: 0.7232704403 | T78: 79384.26672 | U78: 690.2979715 | V78: 0.6359160211 | W78: 0 | X78: 0 | Y78: 0
A79: COLA | B79: International Studies | C79: INTLSTU-BS | D79: B | E79: N | G79: 942583.7707 | H79: -348776.5214 | I79: 593807.2493 | J79: 641.2605284 | K79: 300.1554197 | L79: 277943.9186 | M79: 315863.3306 | N79: 273461.3697 | O79: 158000.8796 | P79: 341.1051087 | Q79: 926 | R79: 739 | S79: 0.7980561555 | T79: 210792.9713 | U79: 285.2408272 | V79: 0.7584010916 | W79: 37 | X79: 27 | Y79: 29
A80: COLA | B80: Journalism | C80: JOURNAL-BS | D80: B | E80: N | G80: 703708.0277 | H80: -325379.0892 | I80: 378328.9385 | J80: 625.3370885 | K80: 384.3380955 | L80: 232524.5478 | M80: 145804.3908 | N80: 110766.874 | O80: 40239.83177 | P80: 240.998993 | Q80: 605 | R80: 406 | S80: 0.6710743802 | T80: 124235.4901 | U80: 305.9987441 | V80: 0.5342897827 | W80: 26 | X80: 22 | Y80: 20
A81: COLA | B81: Liberal Arts Exploration | C81: LAU-UND | D81: N | E81: N | G81: 698355.7728 | H81: -313907.2769 | I81: 384448.496 | J81: 618.0843986 | K81: 315.9271387 | L81: 196506.6803 | M81: 187941.8157 | N81: 158060.8461 | O81: 87487.43554 | P81: 302.1572599 | Q81: 622 | R81: 405 | S81: 0.6511254019 | T81: 117816.2279 | U81: 290.9042664 | V81: 0.5995532962 | W81: 26 | X81: 21 | Y81: 26
A82: COLA | B82: Museum Studies | C82: MUSEUM-BS | D82: B | E82: N | G82: 833044.0212 | H82: -261496.5424 | I82: 571547.4787 | J82: 773.4066018 | K82: 350.3109053 | L82: 258879.759 | M82: 312667.7198 | N82: 273743.9008 | O82: 189212.1886 | P82: 423.0956966 | Q82: 739 | R82: 563 | S82: 0.7618403248 | T82: 180627.1362 | U82: 320.8297268 | V82: 0.6977259902 | W82: 28 | X82: 26 | Y82: 26
A83: COLA | B83: Philosophy | C83: PHIL-BS | D83: B | E83: N | G83: 117757.6054 | H83: -64779.01951 | I83: 52978.58593 | J83: 519.3979012 | K83: 300.6989763 | L83: 30671.29558 | M83: 22307.29034 | N83: 17701.75525 | O83: 6166.003866 | P83: 218.6989249 | Q83: 102 | R83: 84 | S83: 0.8235294118 | T83: 24574.72626 | U83: 292.556265 | V83: 0.8012288296 | W83: 6 | X83: 3 | Y83: 6
A84: COLA | B84: Politcal Science | C84: POLS-BS | D84: B | E84: N | G84: 1304535.579 | H84: -501116.1109 | I84: 803419.4678 | J84: 686.6833058 | K84: 359.4724662 | L84: 420582.7855 | M84: 382836.6824 | N84: 320602.4964 | O84: 182438.9441 | P84: 327.2108396 | Q84: 1170 | R84: 969 | S84: 0.8282051282 | T84: 346644.799 | U84: 357.7345707 | V84: 0.8242011108 | W84: 38 | X84: 39 | Y84: 35
A85: COLA | B85: Psychology | C85: PSYC-BS | D85: B | E85: N | G85: 3825801.361 | H85: -1417308.221 | I85: 2408493.14 | J85: 645.5355507 | K85: 307.1959343 | L85: 1146148.031 | M85: 1262345.109 | N85: 1084787.737 | O85: 648837.0503 | P85: 338.3396164 | Q85: 3731 | R85: 2718 | S85: 0.7284910212 | T85: 773274.0735 | U85: 284.5011308 | V85: 0.6746720778 | W85: 139 | X85: 128 | Y85: 112
A86: COLA | B86: Public Policy | C86: PUBPOL-BS | D86: B | E86: N | G86: 206473.2542 | H86: -30878.16813 | I86: 175595.0861 | J86: 882.3873671 | K86: 299.4305508 | L86: 59586.6796 | M86: 116008.4065 | N86: 106786.4533 | O86: 84250.97668 | P86: 582.9568163 | Q86: 199 | R86: 172 | S86: 0.864321608 | T86: 50857.23667 | U86: 295.6816086 | V86: 0.8535000945 | W86: 3 | X86: 5 | Y86: 10
A87: COLA | B87: School Psychology | C87: SCPSYC-ACT | D87: C | E87: N | G87: 65872.8 | H87: -11292.34609 | I87: 54580.45391 | J87: 1010.749146 | K87: 280.4798443 | L87: 15145.91159 | M87: 39434.54231 | N87: 37002.23891 | O87: 30895.27184 | P87: 730.2693021 | Q87: 54 | R87: 51 | S87: 0.9444444444 | T87: 14438.65547 | U87: 283.1108917 | V87: 0.9533038263 | W87: 0 | X87: 1 | Y87: 2
A88: COLA | B88: School Psychology | C88: SCPSYC-MS | D88: M | E88: N | G88: 587237.2431 | H88: -171353.9284 | I88: 415883.3147 | J88: 900.1803349 | K88: 705.2257239 | L88: 325814.2844 | M88: 90069.03027 | N88: 69073.15165 | O88: 16800.19395 | P88: 194.954611 | Q88: 462 | R88: 462 | S88: 1 | T88: 325814.2844 | U88: 705.2257239 | V88: 1 | W88: 27 | X88: 21 | Y88: 18
A89: COLA | B89: Sociology & Anthropology | C89: SOCANT-BS | D89: B | E89: N | G89: 540515.9978 | H89: -195840.2965 | I89: 344675.7013 | J89: 757.5290139 | K89: 296.3570402 | L89: 134842.4533 | M89: 209833.248 | N89: 189368.3047 | O89: 132815.0807 | P89: 461.1719736 | Q89: 455 | R89: 408 | S89: 0.8967032967 | T89: 120013.736 | U89: 294.1513138 | V89: 0.8900293126 | W89: 10 | X89: 15 | Y89: 15
A90: COLA | B90: Science Technology & Public Policy | C90: STPP-MS | D90: M | E90: N | G90: 230871.8573 | H90: -111390.5376 | I90: 119481.3197 | J90: 728.5446324 | K90: 727.8748487 | L90: 119371.4752 | M90: 109.8445349 | N90: -9075.936014 | O90: -27975.01485 | P90: 0.6697837491 | Q90: 164 | R90: 115 | S90: 0.7012195122 | T90: 83491.7107 | U90: 726.0148757 | V90: 0.6994276528 | W90: 6 | X90: 8 | Y90: 3
A91: COS | B91: Applied & Computational Math | C91: ACMTH-MS | D91: M | E91: N | G91: 575170.56 | H91: -189763.295 | I91: 385407.265 | J91: 1025.019322 | K91: 649.8150691 | L91: 244330.466 | M91: 141076.7991 | N91: 125637.9104 | O91: 83235.33142 | P91: 375.2042528 | Q91: 376 | R91: 359 | S91: 0.954787234 | T91: 234363.6935 | U91: 652.8236588 | V91: 0.9592078196 | W91: 21 | X91: 29 | Y91: 21
A92: COS | B92: Applied Mathematics | C92: APPMTH-BS | D92: B | E92: N | G92: 2776463.678 | H92: -1188493.486 | I92: 1587970.192 | J92: 680.6558903 | K92: 287.944081 | L92: 671773.5411 | M92: 916196.6511 | N92: 810667.0691 | O92: 545782.3757 | P92: 392.7118093 | Q92: 2333 | R92: 1416 | S92: 0.6069438491 | T92: 369559.9709 | U92: 260.98868 | V92: 0.5501258212 | W92: 81 | X92: 81 | Y92: 74
A93: COS | B93: Applied Statistics | C93: APPSTAT-BS | D93: B | E93: N | G93: 900904.8517 | H93: -427535.7433 | I93: 473369.1084 | J93: 624.4975045 | K93: 278.4663684 | L93: 211077.5072 | M93: 262291.6012 | N93: 228863.581 | O93: 141806.2745 | P93: 346.0311361 | Q93: 758 | R93: 426 | S93: 0.562005277 | T93: 104416.9826 | U93: 245.1102877 | V93: 0.4946855017 | W93: 32 | X93: 27 | Y93: 32
A94: COS | B94: Applied Statistics | C94: APPSTAT-MS | D94: M | E94: N | G94: 1238561.678 | H94: -393411.6598 | I94: 845150.0184 | J94: 1026.913753 | K94: 645.0428647 | L94: 530870.2776 | M94: 314279.7408 | N94: 281662.1112 | O94: 189107.0611 | P94: 381.870888 | Q94: 823 | R94: 793 | S94: 0.9635479951 | T94: 507818.5408 | U94: 640.3764701 | V94: 0.9565774582 | W94: 72 | X94: 76 | Y94: 65
A95: COS | B95: Astrophysical Science & Tech | C95: ASTP-MS | D95: M | E95: N | G95: 133834.7785 | H95: -35032.80288 | I95: 98801.97563 | J95: 1235.024695 | K95: 889.1202308 | L95: 71129.61846 | M95: 27672.35717 | N95: 18069.78411 | O95: 7531.305363 | P95: 345.9044646 | Q95: 80 | R95: 80 | S95: 1 | T95: 71129.61846 | U95: 889.1202308 | V95: 1 | W95: 3 | X95: 6 | Y95: 7
A96: COS | B96: Astrophysical Science & Tech | C96: ASTP-PHD | D96: P | E96: N | G96: 339669.75 | H96: -307955.4213 | I96: 31714.32868 | J96: 156.2282201 | K96: 961.7698277 | L96: 195239.275 | M96: -163524.9464 | N96: -187794.7891 | O96: -214479.4588 | P96: -805.5416076 | Q96: 203 | R96: 203 | S96: 1 | T96: 195239.275 | U96: 961.7698277 | V96: 1 | W96: 19 | X96: 20 | Y96: 23
A97: COS | B97: Biochemistry | C97: BIOCHEM-BS | D97: B | E97: N | G97: 2792185.314 | H97: -1340198.966 | I97: 1451986.349 | J97: 575.728132 | K97: 380.5186419 | L97: 959668.015 | M97: 492318.334 | N97: 350342.7603 | O97: 57710.10865 | P97: 195.2094901 | Q97: 2522 | R97: 1833 | S97: 0.7268041237 | T97: 738399.6073 | U97: 402.8366652 | V97: 0.7694323409 | W97: 70 | X97: 84 | Y97: 73
A98: COS | B98: Bioinformatics | C98: BIOINFO-BS | D98: B | E98: N | G98: 878605.7217 | H98: -368907.6421 | I98: 509698.0796 | J98: 684.1584961 | K98: 408.1770419 | L98: 304091.8962 | M98: 205606.1834 | N98: 160354.1631 | O98: 71851.49087 | P98: 275.9814543 | Q98: 745 | R98: 443 | S98: 0.5946308725 | T98: 202866.7778 | U98: 457.9385504 | V98: 0.6671232624 | W98: 21 | X98: 25 | Y98: 28
A99: COS | B99: Bioinformatics | C99: BIOINFO-MS | D99: M | E99: N | G99: 493253.756 | H99: -163117.6578 | I99: 330136.0982 | J99: 1061.530862 | K99: 653.7796006 | L99: 203325.4558 | M99: 126810.6424 | N99: 103633.3055 | O99: 66236.00251 | P99: 407.7512618 | Q99: 311 | R99: 243 | S99: 0.7813504823 | T99: 161213.361 | U99: 663.4294693 | V99: 0.7928833131 | W99: 19 | X99: 22 | Y99: 14
A100: COS | B100: Biology | C100: BIOL-BS | D100: B | E100: N | G100: 3499939.452 | H100: -1412390.995 | I100: 2087548.457 | J100: 683.7695568 | K100: 432.2849431 | L100: 1319765.931 | M100: 767782.5256 | N100: 577240.2854 | O100: 218354.6078 | P100: 251.4846137 | Q100: 3053 | R100: 2198 | S100: 0.7199475925 | T100: 1053371.074 | U100: 479.240707 | V100: 0.7981499211 | W100: 93 | X100: 113 | Y100: 88
A101: COS | B101: Molecular Biocience & Biotechnology | C101: BIOTECH-BS | D101: B | E101: N | G101: 5360666.107 | H101: -1799622.958 | I101: 3561043.149 | J101: 784.5435446 | K101: 446.7110452 | L101: 2027621.434 | M101: 1533421.715 | N101: 1241369.131 | O101: 704576.1436 | P101: 337.8324994 | Q101: 4539 | R101: 3368 | S101: 0.7420136594 | T101: 1667661.626 | U101: 495.1489389 | V101: 0.8224718866 | W101: 150 | X101: 152 | Y101: 151
A102: COS | B102: Chemistry | C102: CHEM-BS | D102: B | E102: N | G102: 3309546.88 | H102: -1295679.821 | I102: 2013867.058 | J102: 700.4754986 | K102: 351.3408033 | L102: 1010104.81 | M102: 1003762.249 | N102: 852111.1321 | O102: 518823.5417 | P102: 349.1346953 | Q102: 2875 | R102: 1975 | S102: 0.6869565217 | T102: 710097.4411 | U102: 359.5430081 | V102: 0.7029938224 | W102: 84 | X102: 100 | Y102: 95
A103: COS | B103: Chemistry | C103: CHEM-MS | D103: M | E103: N | G103: 336253.8812 | H103: -152320.4104 | I103: 183933.4709 | J103: 884.2955331 | K103: 968.406383 | L103: 201428.5277 | M103: -17495.05676 | N103: -31942.17528 | O103: -56658.1826 | P103: -84.11084983 | Q103: 208 | R103: 197 | S103: 0.9471153846 | T103: 176878.4593 | U103: 897.8601994 | V103: 0.8781202014 | W103: 20 | X103: 16 | Y103: 18
A104: COS | B104: Color Science | C104: CLRS-MS | D104: M | E104: N | G104: 16732.5 | H104: 0 | I104: 16732.5 | J104: 1673.25 | K104: 6316.084048 | L104: 63160.84048 | M104: -46428.34048 | N104: -54401.65756 | O104: -57240.68469 | P104: -4642.834048 | Q104: 10 | R104: 10 | S104: 1 | T104: 63160.84048 | U104: 6316.084048 | V104: 1 | W104: 0 | X104: 1 | Y104: 3
A105: COS | B105: Color Science | C105: CLRS-PHD | D105: P | E105: N | G105: 170827.7009 | H105: -167480.1403 | I105: 3347.560633 | J105: 32.81922189 | K105: 6657.238111 | L105: 679038.2874 | M105: -675690.7267 | N105: -761985.5018 | O105: -792089.8204 | P105: -6624.41889 | Q105: 102 | R105: 93 | S105: 0.9117647059 | T105: 672999.4437 | U105: 7236.553158 | V105: 0.9911067701 | W105: 11 | X105: 8 | Y105: 9
A106: COS | B106: Computational Mathematics | C106: CMTH-BS | D106: B | E106: N | G106: 1298024.358 | H106: -582418.1952 | I106: 715606.1631 | J106: 640.6501013 | K106: 314.9421715 | L106: 351790.4056 | M106: 363815.7576 | N106: 308658.5391 | O106: 181171.3906 | P106: 325.7079298 | Q106: 1117 | R106: 555 | S106: 0.496866607 | T106: 144044.2179 | U106: 259.5391314 | V106: 0.4094603368 | W106: 32 | X106: 37 | Y106: 35
A107: COS | B107: Environmental Science | C107: ENVS-BS | D107: B | E107: N | G107: 1751142.68 | H107: -810593.8781 | I107: 940548.802 | J107: 599.4574901 | K107: 470.0978678 | L107: 737583.5546 | M107: 202965.2474 | N107: 96547.80319 | O107: -89852.31461 | P107: 129.3596223 | Q107: 1569 | R107: 1189 | S107: 0.7578075207 | T107: 615014.5549 | U107: 517.2536206 | V107: 0.833823573 | W107: 46 | X107: 51 | Y107: 57
A108: COS | B108: Environmental Science | C108: ENVS-MS | D108: M | E108: N | G108: 358245.0233 | H108: -102878.7831 | I108: 255366.2402 | J108: 1038.074147 | K108: 783.7265778 | L108: 192796.7381 | M108: 62569.50203 | N108: 42380.75205 | O108: 12360.35675 | P108: 254.3475692 | Q108: 246 | R108: 192 | S108: 0.7804878049 | T108: 153233.7298 | U108: 798.0923425 | V108: 0.7947942026 | W108: 20 | X108: 21 | Y108: 19
A109: COS | B109: Imaging Science | C109: IMGS-BS | D109: B | E109: N | G109: 1796714.102 | H109: -687233.9587 | I109: 1109480.144 | J109: 735.7295381 | K109: 1215.377602 | L109: 1832789.424 | M109: -723309.2808 | N109: -991893.22 | O109: -1207863.909 | P109: -479.6480642 | Q109: 1508 | R109: 1171 | S109: 0.7765251989 | T109: 1697098.867 | U109: 1449.273157 | V109: 0.925965004 | W109: 50 | X109: 52 | Y109: 41
A110: COS | B110: Imaging Science | C110: IMGS-MS | D110: M | E110: N | G110: 341343 | H110: -139682.8481 | I110: 201660.1519 | J110: 988.5301562 | K110: 2438.548718 | L110: 497463.9385 | M110: -295803.7866 | N110: -350766.6372 | O110: -384052.5209 | P110: -1450.018562 | Q110: 204 | R110: 198 | S110: 0.9705882353 | T110: 492937.2264 | U110: 2489.581951 | V110: 0.9909004215 | W110: 25 | X110: 21 | Y110: 22
A111: COS | B111: Imaging Science | C111: IMGS-PHD | D111: P | E111: N | G111: 1095978.75 | H111: -775029.6777 | I111: 320949.0723 | J111: 489.9985837 | K111: 2574.934549 | L111: 1686582.13 | M111: -1365633.058 | N111: -1554427.509 | O111: -1663784.546 | P111: -2084.935966 | Q111: 655 | R111: 628 | S111: 0.958778626 | T111: 1585636.773 | U111: 2524.899319 | V111: 0.9401479741 | W111: 77 | X111: 72 | Y111: 71
A112: COS | B112: Materials Science | C112: MSCI-MS | D112: M | E112: N | G112: 40200.75954 | H112: -17820.95526 | I112: 22379.80428 | J112: 828.88164 | K112: 809.8337573 | L112: 21865.51145 | M112: 514.2928336 | N112: -1139.706133 | O112: -4291.005989 | P112: 19.04788273 | Q112: 27 | R112: 15 | S112: 0.5555555556 | T112: 13584.16378 | U112: 905.6109189 | V112: 0.6212598236 | W112: 0 | X112: 0 | Y112: 1
A113: COS | B113: Materials Science & Engrg | C113: MSENG-MS | D113: M | E113: N | G113: 266005.6219 | H113: -145849.9638 | I113: 120155.6581 | J113: 723.8292659 | K113: 1255.664328 | L113: 208440.2784 | M113: -88284.62031 | N113: -107746.1879 | O113: -129016.1836 | P113: -531.8350621 | Q113: 166 | R113: 116 | S113: 0.6987951807 | T113: 109976.1465 | U113: 948.0702287 | V113: 0.5276146595 | W113: 18 | X113: 13 | Y113: 16
A114: COS | B114: Physics | C114: PHYS-BS | D114: B | E114: N | G114: 4724969.408 | H114: -2343091.841 | I114: 2381877.567 | J114: 600.8772874 | K114: 360.1449313 | L114: 1427614.508 | M114: 954263.0599 | N114: 742435.7802 | O114: 285250.0092 | P114: 240.7323562 | Q114: 3964 | R114: 2946 | S114: 0.7431886983 | T114: 1085563.068 | U114: 368.4871242 | V114: 0.7604034997 | W114: 134 | X114: 143 | Y114: 143
A115: COS | B115: Science Exploration | C115: SCIEXP-UND | D115: N | E115: N | G115: 550250.5323 | H115: -275549.6444 | I115: 274700.8879 | J115: 561.7605069 | K115: 483.7661291 | L115: 236561.6371 | M115: 38139.25075 | N115: 4272.541556 | O115: -54078.94686 | P115: 77.9943778 | Q115: 489 | R115: 404 | S115: 0.8261758691 | T115: 212987.3841 | U115: 527.1964953 | V115: 0.9003462551 | W115: 13 | X115: 20 | Y115: 21
A116: KGCOE | B116: Statistical Methods Prod Proc Improvement | C116: SMPPI-ACT | D116: C | E116: N | G116: 25131.19592 | H116: -2014.267409 | I116: 23116.92851 | J116: 963.2053545 | K116: 235.7520398 | L116: 5658.048954 | M116: 17458.87955 | N116: 16542.26723 | O116: 13849.66215 | P116: 727.4533148 | Q116: 24 | R116: 0 | T116: 0 | W116: 0 | X116: 3 | Y116: 3
A117: KGCOE | B117: Statistical Quality | C117: STATQL-ACT | D117: C | E117: N | G117: 7319.2 | H117: -2562.230404 | I117: 4756.969596 | J117: 792.8282659 | K117: 690.9233267 | L117: 4145.53996 | M117: 611.4296352 | N117: 38.35244235 | O117: -702.4971231 | P117: 101.9049392 | Q117: 6 | R117: 3 | S117: 0.5 | T117: 3438.283841 | U117: 1146.094614 | V117: 0.8293934865 | W117: 2 | X117: 2 | Y117: 0
A118: GCCIS | B118: Computer Graphics Design | C118: CMIT-BS | D118: B | E118: N | G118: 4696979.052 | H118: -1567014.732 | I118: 3129964.321 | J118: 786.8185823 | K118: 417.381664 | L118: 1660344.26 | M118: 1469620.061 | N118: 1213292.555 | O118: 742369.3338 | P118: 369.4369183 | Q118: 3978 | R118: 2295 | S118: 0.5769230769 | T118: 1104345.513 | U118: 481.196302 | V118: 0.6651304431 | W118: 0 | X118: 0 | Y118: 77
A119: GCCIS | B119: Computing Exploration | C119: COMPEX-UND | D119: N | E119: N | G119: 1851070.478 | H119: -907888.8046 | I119: 943181.673 | J119: 536.8137012 | K119: 362.0995363 | L119: 636208.8852 | M119: 306972.7878 | N119: 206570.8734 | O119: 696.3026017 | P119: 174.7141649 | Q119: 1757 | R119: 937 | S119: 0.5332953899 | T119: 426792.6279 | U119: 455.4883969 | V119: 0.6708372641 | W119: 25 | X119: 58 | Y119: 80
A120: GCCIS | B120: Computing & Information Science | C120: COMPIS-PHD | D120: P | E120: N | G120: 674501.6624 | H120: -388144.1349 | I120: 286357.5275 | J120: 613.1852837 | K120: 1720.012028 | L120: 803245.617 | M120: -516888.0895 | N120: -619159.7491 | O120: -688514.0857 | P120: -1106.826744 | Q120: 467 | R120: 444 | S120: 0.9507494647 | T120: 784060.9933 | U120: 1765.903138 | V120: 0.9761161179 | W120: 39 | X120: 35 | Y120: 44
A121: GCCIS | B121: Computer Science | C121: COMPSCI-BS | D121: B | E121: N | G121: 25012301.96 | H121: -10108316.8 | I121: 14903985.16 | J121: 702.1570319 | K121: 360.985774 | L121: 7662284.039 | M121: 7241701.12 | N121: 6045071.066 | O121: 3584663.442 | P121: 341.1712579 | Q121: 21226 | R121: 8870 | S121: 0.4178837275 | T121: 3655309.543 | U121: 412.0980319 | V121: 0.4770522111 | W121: 757 | X121: 822 | Y121: 846
A122: GCCIS | B122: Computer Science | C122: COMPSCI-MS | D122: M | E122: N | G122: 10891184.25 | H122: -2698944.581 | I122: 8192239.669 | J122: 1258.601885 | K122: 609.8697396 | L122: 3969642.135 | M122: 4222597.534 | N122: 3801272.612 | O122: 3040505.928 | P122: 648.7321454 | Q122: 6509 | R122: 6392 | S122: 0.9820248886 | T122: 3874545 | U122: 606.1553504 | V122: 0.9760439021 | W122: 418 | X122: 447 | Y122: 431
A123: GCCIS | B123: Computer Security & Info Assurance | C123: COMPSEC-MS | D123: M | E123: N | G123: 1039333.798 | H123: -343610.9121 | I123: 695722.8855 | J123: 1100.82735 | K123: 1067.375012 | L123: 674581.0079 | M123: 21141.87759 | N123: -42787.46267 | O123: -121248.3795 | P123: 33.45233796 | Q123: 632 | R123: 597 | S123: 0.9446202532 | T123: 649737.3811 | U123: 1088.337322 | V123: 0.9631717666 | W123: 32 | X123: 43 | Y123: 47
A124: GCCIS | B124: Game Design & Development | C124: GAMEDES-BS | D124: B | E124: N | G124: 19972851.51 | H124: -8348998.169 | I124: 11623853.35 | J124: 690.0476905 | K124: 455.1754163 | L124: 7667429.887 | M124: 3956423.459 | N124: 2832281.603 | O124: 851276.7725 | P124: 234.8722742 | Q124: 16845 | R124: 8990 | S124: 0.5336895221 | T124: 5260501.687 | U124: 585.1503545 | V124: 0.686084094 | W124: 579 | X124: 605 | Y124: 615
A125: GCCIS | B125: Game Design & Development | C125: GAMEDES-MS | D125: M | E125: N | G125: 728107.8166 | H125: -372570.3294 | I125: 355537.4872 | J125: 815.4529523 | K125: 1203.015454 | L125: 524514.7378 | M125: -168977.2506 | N125: -205700.9226 | O125: -258389.2646 | P125: -387.5625013 | Q125: 436 | R125: 396 | S125: 0.9082568807 | T125: 494300.4058 | U125: 1248.233348 | V125: 0.9423956471 | W125: 31 | X125: 28 | Y125: 31
A126: GCCIS | B126: Human Centered Computing | C126: HCC-BS | D126: B | E126: N | G126: 204266.2809 | H126: -82034.41185 | I126: 122231.8691 | J126: 576.5654201 | K126: 415.1809537 | L126: 88018.36219 | M126: 34213.50687 | N126: 20734.30277 | O126: -3970.090868 | P126: 161.3844664 | Q126: 212 | R126: 66 | S126: 0.3113207547 | T126: 31040.52499 | U126: 470.3109846 | V126: 0.3526596521 | W126: 0 | X126: 0 | Y126: 28
A127: GCCIS | B127: Human Computer Interaction | C127: HUMCOMP-MS | D127: M | E127: N | G127: 1147950.567 | H127: -278110.3709 | I127: 869840.1963 | J127: 1226.855002 | K127: 692.6622306 | L127: 491097.5215 | M127: 378742.6748 | N127: 326687.5147 | O127: 242689.829 | P127: 534.1927712 | Q127: 709 | R127: 643 | S127: 0.9069111425 | T127: 440927.0271 | U127: 685.7341013 | V127: 0.8978400578 | W127: 45 | X127: 52 | Y127: 47
A128: GCCIS | B128: Web Development | C128: IMDEV-ACT | D128: C | E128: N | G128: 7319.2 | H128: -1098.098745 | I128: 6221.101255 | J128: 1036.850209 | K128: 475.3475221 | L128: 2852.085133 | M128: 3369.016123 | N128: 2926.721176 | O128: 2214.990837 | P128: 561.5026871 | Q128: 6 | R128: 6 | S128: 1 | T128: 2852.085133 | U128: 475.3475221 | V128: 1 | W128: 0 | X128: 0 | Y128: 2
A129: GCCIS | B129: Information Security & Forensics | C129: INFOSEC-BS | D129: B | E129: N | G129: 10426884.48 | H129: -3820498.501 | I129: 6606385.982 | J129: 740.045478 | K129: 405.4413505 | L129: 3619374.936 | M129: 2987011.046 | N129: 2423207.615 | O129: 1379366.176 | P129: 334.6041275 | Q129: 8927 | R129: 4389 | S129: 0.4916545312 | T129: 2240265.47 | U129: 510.4273116 | V129: 0.6189647412 | W129: 299 | X129: 324 | Y129: 330
A130: GCCIS | B130: Information Sciences & Technology | C130: INFOST-MS | D130: M | E130: N | G130: 2903220.116 | H130: -763376.172 | I130: 2139843.944 | J130: 1217.896382 | K130: 717.0606342 | L130: 1259875.534 | M130: 879968.4096 | N130: 744389.8267 | O130: 534028.5276 | P130: 500.8357482 | Q130: 1757 | R130: 1586 | S130: 0.9026750142 | T130: 1144901.687 | U130: 721.8800046 | V130: 0.9087419003 | W130: 64 | X130: 107 | Y130: 121
A131: GCCIS | B131: Medical Informatics | C131: MEDINFO-BS | D131: B | E131: N | G131: 30496.66667 | H131: -6666.666667 | I131: 23830 | J131: 953.2 | K131: 387.9848045 | L131: 9699.620114 | M131: 14130.37989 | N131: 12671.04142 | O131: 9787.525211 | P131: 565.2151955 | Q131: 25 | R131: 9 | S131: 0.36 | T131: 4278.127699 | U131: 475.3475221 | V131: 0.4410613662 | W131: 5 | X131: 1 | Y131: 1
A132: GCCIS | B132: Medical Informatics | C132: MEDINFO-MS | D132: M | E132: N | G132: 40158 | H132: -9449.411835 | I132: 30708.58816 | J132: 1279.524507 | K132: 664.9246831 | L132: 15958.19239 | M132: 14750.39577 | N132: 13038.42319 | O132: 10203.38724 | P132: 614.5998238 | Q132: 24 | R132: 24 | S132: 1 | T132: 15958.19239 | U132: 664.9246831 | V132: 1 | W132: 3 | X132: 3 | Y132: 1
A133: GCCIS | B133: Networking & Systems Administration | C133: NETSYS-MS | D133: M | E133: N | G133: 1220623.97 | H133: -321317.8702 | I133: 899306.0998 | J133: 1200.675701 | K133: 707.0603336 | L133: 529588.1899 | M133: 369717.9099 | N133: 314061.9842 | O133: 225164.9818 | P133: 493.6153671 | Q133: 749 | R133: 689 | S133: 0.9198931909 | T133: 487797.5374 | U133: 707.9790092 | V133: 0.9210883979 | W133: 84 | X133: 60 | Y133: 42
A134: GCCIS | B134: New Media Interactive Development | C134: NWMEDID-BS | D134: B | E134: N | G134: 3272156.237 | H134: -1253255.202 | I134: 2018901.035 | J134: 721.8094512 | K134: 467.0292776 | L134: 1306280.89 | M134: 712620.1454 | N134: 520832.8571 | O134: 191324.6621 | P134: 254.7801735 | Q134: 2797 | R134: 1198 | S134: 0.4283160529 | T134: 695096.1361 | U134: 580.2138031 | V134: 0.53211843 | W134: 127 | X134: 104 | Y134: 90
A135: GCCIS | B135: Software Engrg | C135: SOFTENG-BS | D135: B | E135: N | G135: 14833979.91 | H135: -5874817.958 | I135: 8959161.95 | J135: 721.9308582 | K135: 435.7552748 | L135: 5407722.96 | M135: 3551438.99 | N135: 2742341.302 | O135: 1286482.83 | P135: 286.1755834 | Q135: 12410 | R135: 5956 | S135: 0.4799355359 | T135: 3153350.947 | U135: 529.441059 | V135: 0.583119914 | W135: 450 | X135: 492 | Y135: 523
A136: GCCIS | B136: Software Engrg | C136: SOFTENG-MS | D136: M | E136: N | G136: 1479153 | H136: -381013.5469 | I136: 1098139.453 | J136: 1242.2392 | K136: 720.0740822 | L136: 636545.4886 | M136: 461593.9645 | N136: 391355.3272 | O136: 285466.0783 | P136: 522.1651182 | Q136: 884 | R136: 857 | S136: 0.9694570136 | T136: 617517.9422 | U136: 720.5576921 | V136: 0.970108112 | W136: 51 | X136: 63 | Y136: 65
A137: GCCIS | B137: Web & Mobile Computing | C137: WMC-BS | D137: B | E137: N | G137: 7860652.389 | H137: -2780655.694 | I137: 5079996.695 | J137: 732.7270582 | K137: 427.4416059 | L137: 2963452.654 | M137: 2116544.041 | N137: 1658969.585 | O137: 806760.0457 | P137: 305.2854524 | Q137: 6933 | R137: 4248 | S137: 0.6127217655 | T137: 2044283.482 | U137: 481.2343413 | V137: 0.6898316662 | W137: 0 | X137: 0 | Y137: 64
A138: GIS | B138: Architecture | C138: ARCH-MARCH | D138: M | E138: N | G138: 1497526.495 | H138: -357641.2834 | I138: 1139885.211 | J138: 943.6135854 | K138: 1152.947537 | L138: 1392760.625 | M138: -252875.414 | N138: -435183.3407 | O138: -598299.0606 | P138: -209.333952 | Q138: 1208 | R138: 1119 | S138: 0.9263245033 | T138: 1315069.998 | U138: 1175.218944 | V138: 0.9442182484 | W138: 49 | X138: 46 | Y138: 47
A139: GIS | B139: Sustainability | C139: SUST-PHD | D139: P | E139: N | G139: 498628.5 | H139: -480316.9673 | I139: 18311.53269 | J139: 61.44809628 | K139: 6310.956651 | L139: 1880665.082 | M139: -1862353.549 | N139: -2103729.041 | O139: -2184618.315 | P139: -6249.508554 | Q139: 298 | R139: 282 | S139: 0.9463087248 | T139: 1865666.154 | U139: 6615.837424 | V139: 0.9920246681 | W139: 17 | X139: 20 | Y139: 19
A140: GIS | B140: Sustainable Systems | C140: SUSTSY-MS | D140: M | E140: N | G140: 625041.6205 | H140: -203478.055 | I140: 421563.5655 | J140: 1106.466051 | K140: 5251.608673 | L140: 2000862.904 | M140: -1579299.339 | N140: -1833852.62 | O140: -1926064.241 | P140: -4145.142622 | Q140: 381 | R140: 301 | S140: 0.7900262467 | T140: 1942269.871 | U140: 6452.723822 | V140: 0.9707161176 | W140: 21 | X140: 27 | Y140: 23
A141: KGCOE | B141: Biomedical Engineering | C141: BIME-BS | D141: B | E141: N | G141: 8161426.227 | H141: -3393287.415 | I141: 4768138.813 | J141: 666.127244 | K141: 571.0300356 | L141: 4087432.995 | M141: 680705.8179 | N141: 104681.9376 | O141: -759378.8483 | P141: 95.09720842 | Q141: 7158 | R141: 2843 | S141: 0.3971779827 | T141: 2603053.288 | U141: 915.6008752 | V141: 0.6368430483 | W141: 237 | X141: 268 | Y141: 269
A142: KGCOE | B142: Chemical Engineering | C142: CHME-BS | D142: B | E142: N | G142: 8334465.978 | H142: -3498594.616 | I142: 4835871.363 | J142: 686.2312137 | K142: 529.4628046 | L142: 3731124.384 | M142: 1104746.978 | N142: 576301.7976 | O142: -264662.1993 | P142: 156.768409 | Q142: 7047 | R142: 3055 | S142: 0.433517809 | T142: 2444902.711 | U142: 800.2954863 | V142: 0.655272368 | W142: 274 | X142: 285 | Y142: 265
A143: KGCOE | B143: Computer Engineering | C143: CMPE-BS | D143: B | E143: N | G143: 11696147.67 | H143: -4640102.098 | I143: 7056045.572 | J143: 689.8753981 | K143: 449.6850505 | L143: 4599378.696 | M143: 2456666.876 | N143: 1739780.413 | O143: 528888.8061 | P143: 240.1903477 | Q143: 10228 | R143: 3606 | S143: 0.3525615956 | T143: 2435625.754 | U143: 675.4369812 | V143: 0.5295553846 | W143: 362 | X143: 387 | Y143: 408
A144: KGCOE | B144: Computer Engineering | C144: CMPE-MS | D144: M | E144: N | G144: 1330233.75 | H144: -446693.3417 | I144: 883540.4083 | J144: 1111.371583 | K144: 1222.946241 | L144: 972242.2619 | M144: -88701.85355 | N144: -173221.1315 | O144: -272654.1755 | P144: -111.5746586 | Q144: 795 | R144: 678 | S144: 0.8528301887 | T144: 897295.8735 | U144: 1323.445241 | V144: 0.9229138752 | W144: 58 | X144: 67 | Y144: 57
A145: KGCOE | B145: Electrical Engineering | C145: EEEE-BS | D145: B | E145: N | G145: 17895469.15 | H145: -6850973.67 | I145: 11044495.48 | J145: 720.68486 | K145: 388.4242007 | L145: 5952600.876 | M145: 5091894.603 | N145: 4162662.037 | O145: 2382151.046 | P145: 332.2606593 | Q145: 15325 | R145: 7627 | S145: 0.4976835237 | T145: 3539457.922 | U145: 464.0694797 | V145: 0.5946069617 | W145: 615 | X145: 610 | Y145: 615
A146: KGCOE | B146: Electrical Engineering | C146: EEEE-MS | D146: M | E146: N | G146: 4020819.75 | H146: -811380.9055 | I146: 3209438.845 | J146: 1335.596689 | K146: 901.6209153 | L146: 2166595.059 | M146: 1042843.785 | N146: 838449.5547 | O146: 547658.6815 | P146: 433.9757741 | Q146: 2403 | R146: 2033 | S146: 0.8460258011 | T146: 1699766.882 | U146: 836.087989 | V146: 0.78453372 | W146: 224 | X146: 202 | Y146: 210
A147: KGCOE | B147: Engineering Mgmt | C147: ENGMGT-ME | D147: M | E147: N | G147: 610268.3131 | H147: -131069.58 | I147: 479198.7331 | J147: 1171.635044 | K147: 879.7835484 | L147: 359831.4713 | M147: 119367.2617 | N147: 85896.45475 | O147: 36885.81907 | P147: 291.8514957 | Q147: 409 | R147: 244 | S147: 0.5965770171 | T147: 226914.2532 | U147: 929.9764477 | V147: 0.6306125821 | W147: 24 | X147: 19 | Y147: 31
A148: KGCOE | B148: Engineering PHD | C148: ENGR-PHD | D148: P | E148: N | G148: 481655.6755 | H148: -465219.5343 | I148: 16436.14119 | J148: 56.28815474 | K148: 431.3208165 | L148: 125945.6784 | M148: -109509.5372 | N148: -123072.822 | O148: -156076.7091 | P148: -375.0326617 | Q148: 292 | R148: 262 | S148: 0.897260274 | T148: 95324.07367 | U148: 363.8323423 | V148: 0.7568665704 | W148: 5 | X148: 18 | Y148: 38
A149: KGCOE | B149: Engineering Exploration | C149: ENGRX-UND | D149: N | E149: N | G149: 3521058.214 | H149: -1688682.424 | I149: 1832375.791 | J149: 583.0021606 | K149: 303.8357049 | L149: 954955.6204 | M149: 877420.1704 | N149: 730205.4838 | O149: 370776.9084 | P149: 279.1664558 | Q149: 3143 | R149: 392 | S149: 0.1247216036 | T149: 145460.3153 | U149: 371.0722329 | V149: 0.1523215448 | W149: 149 | X149: 148 | Y149: 126
A150: KGCOE | B150: Industrial Engineering | C150: ISEE-BS | D150: B | E150: N | G150: 8218981.226 | H150: -3058754.122 | I150: 5160227.104 | J150: 712.9354938 | K150: 437.2485749 | L150: 3164805.185 | M150: 1995421.919 | N150: 1497908.71 | O150: 642780.6422 | P150: 275.6869189 | Q150: 7238 | R150: 3856 | S150: 0.5327438519 | T150: 2134526.444 | U150: 553.5597624 | V150: 0.6744574528 | W150: 218 | X150: 261 | Y150: 265
A151: KGCOE | B151: Industrial Engineering | C151: ISEE-ME | D151: M | E151: N | G151: 321899.3731 | H151: -70285.67399 | I151: 251613.6991 | J151: 1123.275443 | K151: 907.8738035 | L151: 203363.732 | M151: 48249.96716 | N151: 29142.42466 | O151: 2104.66031 | P151: 215.4016391 | Q151: 224 | R151: 178 | S151: 0.7946428571 | T151: 167572.2661 | U151: 941.4172254 | V151: 0.8240027092 | W151: 13 | X151: 9 | Y151: 16
A152: KGCOE | B152: Industrial Engineering | C152: ISEE-MS | D152: M | E152: N | G152: 795034.8979 | H152: -626670.0213 | I152: 168364.8766 | J152: 353.7077239 | K152: 897.2205891 | L152: 427077.0004 | M152: -258712.1238 | N152: -298587.9236 | O152: -356010.3513 | P152: -543.5128652 | Q152: 476 | R152: 438 | S152: 0.9201680672 | T152: 400907.1051 | U152: 915.3130253 | V152: 0.9387232389 | W152: 44 | X152: 40 | Y152: 39
A153: KGCOE | B153: Microelectronic Engineering | C153: MCEE-BS | D153: B | E153: N | G153: 1853029.635 | H153: -765302.4401 | I153: 1087727.195 | J153: 699.9531501 | K153: 392.4488722 | L153: 609865.5474 | M153: 477861.6478 | N153: 382618.4587 | O153: 201937.2652 | P153: 307.5042779 | Q153: 1554 | R153: 804 | S153: 0.5173745174 | T153: 372074.8657 | U153: 462.7796838 | V153: 0.6100932694 | W153: 65 | X153: 63 | Y153: 56
A154: KGCOE | B154: Microelectronic Engineering | C154: MCEE-MS | D154: M | E154: N | G154: 486915.75 | H154: -324263.5613 | I154: 162652.1887 | J154: 558.9422294 | K154: 1044.595598 | L154: 303977.3189 | M154: -141325.1302 | N154: -171280.6968 | O154: -207438.9118 | P154: -485.6533684 | Q154: 291 | R154: 261 | S154: 0.8969072165 | T154: 282349.7791 | U154: 1081.79992 | V154: 0.9288514687 | W154: 15 | X154: 19 | Y154: 19
A155: KGCOE | B155: MicroE Mfg Engineering | C155: MCEMANU-ME | D155: M | E155: N | G155: 117780.8696 | H155: -34308.89443 | I155: 83471.97515 | J155: 959.4479902 | K155: 808.4279439 | L155: 70333.23112 | M155: 13138.74403 | N155: 6729.920122 | O155: -3569.222806 | P155: 151.0200463 | Q155: 87 | R155: 87 | S155: 1 | T155: 70333.23112 | U155: 808.4279439 | V155: 1 | W155: 8 | X155: 8 | Y155: 10
A156: KGCOE | B156: Microsystems Engineering | C156: MCSE-PHD | D156: P | E156: N | G156: 661226.4113 | H156: -645279.7933 | I156: 15946.61803 | J156: 39.96646123 | K156: 6308.170567 | L156: 2516960.056 | M156: -2501013.438 | N156: -2818510.899 | O156: -2922762.194 | P156: -6268.204106 | Q156: 399 | R156: 348 | S156: 0.8721804511 | T156: 2459385.442 | U156: 7067.199547 | V156: 0.9771253366 | W156: 40 | X156: 37 | Y156: 42
A157: KGCOE | B157: Mechanical Engineering | C157: MECE-BS | D157: B | E157: N | G157: 24528017.65 | H157: -9767678.392 | I157: 14760339.25 | J157: 703.0072039 | K157: 457.9713683 | L157: 9615566.848 | M157: 5144772.406 | N157: 3751348.496 | O157: 1286157.268 | P157: 245.0358357 | Q157: 20996 | R157: 12499 | S157: 0.5953038674 | T157: 7125044.489 | U157: 570.0491631 | V157: 0.7409905835 | W157: 809 | X157: 836 | Y157: 804
A158: KGCOE | B158: Mechanical Engineering | C158: MECE-ME | D158: M | E158: N | G158: 3223853.004 | H158: -1090025.868 | I158: 2133827.136 | J158: 1031.332593 | K158: 715.2088517 | L158: 1479767.114 | M158: 654060.0218 | N158: 482976.1677 | O158: 233963.8527 | P158: 316.1237418 | Q158: 2069 | R158: 1837 | S158: 0.8878685355 | T158: 1300173.2 | U158: 707.7698422 | V158: 0.8786336632 | W158: 109 | X158: 136 | Y158: 126
A159: KGCOE | B159: Mechanical Engineering | C159: MECE-MS | D159: M | E159: N | G159: 279132.3642 | H159: -118218.8449 | I159: 160913.5193 | J159: 957.8185674 | K159: 690.649294 | L159: 116029.0814 | M159: 44884.43794 | N159: 31452.66079 | O159: 11311.54869 | P159: 267.1692735 | Q159: 168 | R159: 154 | S159: 0.9166666667 | T159: 103663.3164 | U159: 673.1384183 | V159: 0.8934252963 | W159: 24 | X159: 17 | Y159: 20
A160: KGCOE | B160: Mechatronics Engineering (CT) | C160: MECHTR-CT | D160: C | E160: N | G160: 59773.46667 | H160: 0 | I160: 59773.46667 | J160: 1219.866667 | K160: 526.3882164 | L160: 25793.0226 | M160: 33980.44406 | N160: 30177.09718 | O160: 24332.78518 | P160: 693.4784502 | Q160: 49 | R160: 49 | S160: 1 | T160: 25793.0226 | U160: 526.3882164 | V160: 1 | W160: 0 | X160: 6 | Y160: 0
A161: KGCOE | B161: Manufacturing Leadership | C161: MFLEAD-MS | D161: M | E161: Y | G161: 341343 | H161: -11353.50973 | I161: 329989.4903 | J161: 1617.595541 | K161: 1882.301497 | L161: 383989.5054 | M161: -54000.01512 | N161: -104254.7942 | O161: -124162.073 | P161: -264.7059565 | Q161: 204 | R161: 138 | S161: 0.6764705882 | T161: 259757.6066 | U161: 1882.301497 | V161: 0.6764705882 | W161: 28 | X161: 22 | Y161: 23
A162: KGCOE | B162: Manufacturing Leadership | C162: MFLEAD-NON | D162: N | E162: Y | G162: 7319.2 | H162: 0 | I162: 7319.2 | J162: 1219.866667 | K162: 1882.301497 | L162: 11293.80898 | M162: -3974.608982 | N162: -5452.690719 | O162: -6038.198921 | P162: -662.4348304 | Q162: 6 | R162: 3 | S162: 0.5 | T162: 5646.904491 | U162: 1882.301497 | V162: 0.5 | W162: 2 | X162: 1 | Y162: 1
A163: KGCOE | B163: Product Development (NON) | C163: PRODDE-NON | D163: N | E163: Y | G163: 58553.6 | H163: 0 | I163: 58553.6 | J163: 1219.866667 | K163: 1882.301497 | L163: 90350.47186 | M163: -31796.87186 | N163: -43621.52575 | O163: -48305.59137 | P163: -662.4348304 | Q163: 48 | R163: 30 | S163: 0.625 | T163: 56469.04491 | U163: 1882.301497 | V163: 0.625 | W163: 8 | X163: 8 | Y163: 8
A164: KGCOE | B164: Product Development | C164: PRODDEV-MS | D164: M | E164: Y | G164: 687705.75 | H164: -5204.477516 | I164: 682501.2725 | J164: 1660.587038 | K164: 1882.301497 | L164: 773625.9153 | M164: -91124.64279 | N164: -192373.2418 | O164: -232480.5536 | P164: -221.7144593 | Q164: 411 | R164: 204 | S164: 0.496350365 | T164: 383989.5054 | U164: 1882.301497 | V164: 0.496350365 | W164: 39 | X164: 38 | Y164: 46
A165: KGCOE | B165: Sustainable Engrg | C165: SUSTAIN-ME | D165: M | E165: N | G165: 72166.54679 | H165: -43813.32551 | I165: 28353.22128 | J165: 616.3743756 | K165: 1389.909587 | L165: 63935.84101 | M165: -35582.61973 | N165: -42457.96638 | O165: -48637.44869 | P165: -773.5352116 | Q165: 46 | R165: 33 | S165: 0.7173913043 | T165: 30229.30351 | U165: 916.0395004 | V165: 0.4728068488 | W165: 4 | X165: 2 | Y165: 8
A166: KGCOE | B166: Sustainable Engrg | C166: SUSTAIN-MS | D166: M | E166: N | G166: 220869 | H166: -196205.4028 | I166: 24663.59718 | J166: 186.8454332 | K166: 920.2620672 | L166: 121474.5929 | M166: -96810.9957 | N166: -108279.9105 | O166: -124294.3391 | P166: -733.4166341 | Q166: 132 | R166: 117 | S166: 0.8863636364 | T166: 106795.9557 | U166: 912.7859459 | V166: 0.8791629026 | W166: 12 | X166: 12 | Y166: 8
A167: NODEG | B167: Non-Degree | C167: NODEG-NON | D167: N | E167: N | G167: 2019738.784 | H167: -6095.2008 | I167: 2013643.584 | J167: 1194.3319 | K167: 358.8669488 | L167: 605049.6757 | M167: 1408593.908 | N167: 1316970.392 | O167: 1123861.828 | P167: 835.4649513 | Q167: 1686 | R167: 6 | S167: 0.003558718861 | T167: 0 | W167: 238 | X167: 245 | Y167: 267
A168: NODEG | B168: Non-Degree | C168: NODEG-NONG | D168: N | E168: N | G168: 469648.6667 | H168: -2597.862964 | I168: 467050.8037 | J168: 1213.118971 | K168: 654.6454967 | L168: 252038.5162 | M168: 215012.2875 | N168: 175691.5435 | O168: 127623.3521 | P168: 558.4734739 | Q168: 385 | R168: 0 | T168: 0 | W168: 47 | X168: 64 | Y168: 47
A169: NODEG | B169: Project Lead the Way | C169: PLTW-NON | D169: N | E169: Y | G169: 1013687.479 | H169: 0 | I169: 1013687.479 | J169: 203.7153294 | K169: 68.69683136 | L169: 341835.4329 | M169: 671852.0462 | N169: 629780.2276 | O169: 633485.1867 | P169: 135.018498 | Q169: 4976 | R169: 4944 | S169: 0.9935691318 | T169: 339637.1343 | U169: 68.69683136 | V169: 0.9935691318 | W169: 621 | X169: 472 | Y169: 580
A170: NODEG | B170: Project Lead the Way-Grad | C170: PLTWGR-NON | D170: N | E170: Y | G170: 19149.24096 | H170: 0 | I170: 19149.24096 | J170: 203.7153294 | K170: 68.69683136 | L170: 6457.502148 | M170: 12691.73881 | N170: 11896.97375 | O170: 11966.96293 | P170: 135.018498 | Q170: 94 | R170: 0 | T170: 0 | W170: 1 | X170: 1 | Y170: 2
A171: NODEG | B171: Rush Henrietta Students | C171: RUSH-NON | D171: N | E171: N | G171: 322044.8 | H171: 0 | I171: 322044.8 | J171: 1219.866667 | K171: 279.4941837 | L171: 73786.4645 | M171: 248258.3355 | N171: 236955.0693 | O171: 208428.1743 | P171: 940.372483 | Q171: 264 | R171: 12 | S171: 0.04545454545 | T171: 0 | W171: 13 | X171: 21 | Y171: 17
A172: NTID | B172: Accounting Technology | C172: ACCTEC-AAS | D172: A | E172: N | G172: 226809.9427 | H172: -8394.232453 | I172: 218415.7102 | J172: 498.6660051 | K172: 27.8894237 | L172: 12215.56758 | M172: 206200.1426 | N172: 199925.294 | O172: 80154.62803 | P172: 470.7765814 | Q172: 438 | R172: 366 | S172: 0.8356164384 | T172: -6234.006437 | U172: -17.03280447 | V172: -0.5103329333 | W172: 11 | X172: 17 | Y172: 16
A173: NTID | B173: Administrative Support Technology | C173: ADMSUP-AAS | D173: A | E173: N | G173: 332899.4362 | H173: -9157.344495 | I173: 323742.0917 | J173: 517.9873467 | K173: 50.42902769 | L173: 31518.14231 | M173: 292223.9494 | N173: 281203.9801 | O173: 110280.5982 | P173: 467.558319 | Q173: 625 | R173: 475 | S173: 0.76 | T173: -7677.668491 | U173: -16.16351261 | V173: -0.2435952099 | W173: 21 | X173: 22 | Y173: 25
A174: NTID | B174: Applied Mechanical Technology | C174: AMECHT-AAS | D174: A | E174: N | G174: 328019.438 | H174: -51488.69564 | I174: 276530.7423 | J174: 428.7298331 | K174: 239.2911462 | L174: 154342.7893 | M174: 122187.953 | N174: 97038.60025 | O174: -5837.039997 | P174: 189.4386869 | Q174: 645 | R174: 196 | S174: 0.303875969 | T174: -4477.559171 | U174: -22.84468965 | V174: -0.02901048498 | W174: 18 | X174: 26 | Y174: 11
A175: NTID | B175: Applied Computer Technology | C175: APLCMP-AAS | D175: A | E175: N | G175: 482887.5716 | H175: -47031.10384 | I175: 435856.4677 | J175: 495.2914406 | K175: 73.96574044 | L175: 65089.85159 | M175: 370766.6161 | N175: 352060.6146 | O175: 101277.5107 | P175: 421.3257002 | Q175: 880 | R175: 654 | S175: 0.7431818182 | T175: -4430.849726 | U175: -6.774999581 | V175: -0.06807281962 | W175: 34 | X175: 35 | Y175: 34
A176: NTID | B176: Applied Computer Technology | C176: APLCMP-AOS | D176: A | E176: N | G176: 462766.2413 | H176: -9666.085855 | I176: 453100.1554 | J176: 557.3187644 | K176: 1.20051814 | L176: 976.0212481 | M176: 452124.1342 | N176: 442035.4675 | O176: 178049.6041 | P176: 556.1182462 | Q176: 813 | R176: 780 | S176: 0.9594095941 | T176: -6377.112816 | U176: -8.175785662 | V176: -6.533784821 | W176: 40 | X176: 32 | Y176: 30
A177: NTID | B177: Applied Computer Technology | C177: APLCMP-AS | D177: A | E177: N | G177: 457889.2561 | H177: -67357.35617 | I177: 390531.8999 | J177: 459.9904593 | K177: 147.8955951 | L177: 125563.3602 | M177: 264968.5397 | N177: 239519.3291 | O177: 42637.80589 | P177: 312.0948642 | Q177: 849 | R177: 446 | S177: 0.5253239105 | T177: -4168.474288 | U177: -9.346354906 | V177: -0.03319817405 | W177: 23 | X177: 34 | Y177: 29
A178: NTID | B178: Applied Liberal Arts | C178: APPLA-AS | D178: A | E178: N | G178: 521298.0986 | H178: -59777.1099 | I178: 461520.9887 | J178: 448.0786298 | K178: 223.9975271 | L178: 230717.4529 | M178: 230803.5358 | N178: 191708.2597 | O178: 8584.493377 | P178: 224.0811027 | Q178: 1030 | R178: 263 | S178: 0.2553398058 | T178: -4087.739542 | U178: -15.5427359 | V178: -0.01771751331 | W178: 40 | X178: 38 | Y178: 39
A179: NTID | B179: Arts & Imaging Studies | C179: ARTIMG-AAS | D179: A | E179: N | G179: 521907.7217 | H179: -54689.69629 | I179: 467218.0255 | J179: 464.4314368 | K179: 50.6306763 | L179: 50934.46036 | M179: 416283.5651 | N179: 397736.9101 | O179: 108538.3338 | P179: 413.8007605 | Q179: 1006 | R179: 777 | S179: 0.7723658052 | T179: -11483.69714 | U179: -14.77953301 | V179: -0.2254602692 | W179: 32 | X179: 32 | Y179: 43
A180: NTID | B180: Arts & Imaging Studies | C180: ARTIMG-AOS | D180: A | E180: N | G180: 863342.8864 | H180: -49347.912 | I180: 813994.9744 | J180: 539.0695195 | K180: 4.983263656 | L180: 7524.728121 | M180: 806470.2463 | N180: 787703.0709 | O180: 331290.4322 | P180: 534.0862558 | Q180: 1510 | R180: 1405 | S180: 0.9304635762 | T180: -23185.01361 | U180: -16.50178905 | V180: -3.081176255 | W180: 67 | X180: 64 | Y180: 55
A181: NTID | B181: ASL English Interpretation | C181: ASLINT-AAS | D181: A | E181: N | G181: 1830.888237 | H181: 0 | I181: 1830.888237 | J181: 610.2960789 | K181: -33.13671897 | L181: -99.41015692 | M181: 1930.298394 | N181: 1903.174384 | O181: 1005.808186 | P181: 643.4327979 | Q181: 3 | R181: 3 | S181: 1 | T181: -99.41015692 | U181: -33.13671897 | V181: 1 | W181: 0 | X181: 1 | Y181: 0
A182: NTID | B182: ASL English Interpretation | C182: ASLINT-BS | D182: B | E182: N | G182: 2106944.994 | H182: -640723.1146 | I182: 1466221.879 | J182: 365.5502067 | K182: 92.6470362 | L182: 371607.2622 | M182: 1094614.617 | N182: 1002052.322 | O182: 61211.04631 | P182: 272.9031706 | Q182: 4011 | R182: 2512 | S182: 0.6262777362 | T182: -80271.50641 | U182: -31.95521752 | V182: -0.216011673 | W182: 142 | X182: 145 | Y182: 136
A183: NTID | B183: ASL English Interpretation | C183: ASLINT-NON | D183: N | E183: N | G183: 10978.8 | H183: 0 | I183: 10978.8 | J183: 1219.866667 | K183: 262.9525472 | L183: 2366.572925 | M183: 8612.227075 | N183: 8254.974187 | O183: 7248.099268 | P183: 956.9141194 | Q183: 9 | R183: 0 | T183: 0 | W183: 3 | X183: 3 | Y183: 4
A184: NTID | B184: Business | C184: BUSN-AS | D184: A | E184: N | G184: 414873.4128 | H184: -43497.38635 | I184: 371376.0264 | J184: 431.8325889 | K184: 186.1589666 | L184: 160096.7112 | M184: 211279.3152 | N184: 181616.1778 | O184: 9501.249069 | P184: 245.6736223 | Q184: 860 | R184: 343 | S184: 0.3988372093 | T184: -5516.755765 | U184: -16.08383605 | V184: -0.03445889501 | W184: 33 | X184: 30 | Y184: 25
A185: NTID | B185: Business Technology | C185: BUSTEC-AOS | D185: A | E185: N | G185: 681712.5977 | H185: -28184.27139 | I185: 653528.3263 | J185: 506.2186881 | K185: -13.32759065 | L185: -17205.91953 | M185: 670734.2458 | N185: 657099.1381 | O185: 246805.3917 | P185: 519.5462787 | Q185: 1291 | R185: 1276 | S185: 0.9883810999 | T185: -20541.0909 | U185: -16.09803362 | V185: 1.193838601 | W185: 48 | X185: 52 | Y185: 36
A186: NTID | B186: Computer Aided Draft | C186: CADTEC-AAS | D186: A | E186: N | G186: 156388.4253 | H186: -9411.715175 | I186: 146976.7101 | J186: 469.5741536 | K186: 103.5600354 | L186: 32414.29109 | M186: 114562.419 | N186: 106517.4522 | O186: 20430.99168 | P186: 366.0141182 | Q186: 313 | R186: 193 | S186: 0.6166134185 | T186: -3050.458765 | U186: -15.80548583 | V186: -0.09410845224 | W186: 9 | X186: 10 | Y186: 12
A187: NTID | B187: Computer Aided Draft | C187: CADTEC-AOS | D187: A | E187: N | G187: 285342.8043 | H187: -6562.763554 | I187: 278780.0407 | J187: 474.9234084 | K187: 9.027079235 | L187: 5298.895511 | M187: 273481.1452 | N187: 267442.9021 | O187: 124562.389 | P187: 465.8963292 | Q187: 587 | R187: 520 | S187: 0.8858603066 | T187: -11260.10916 | U187: -21.65405608 | V187: -2.124991734 | W187: 22 | X187: 23 | Y187: 17
A188: NTID | B188: Career Exploration | C188: CAREXP-UND | D188: N | E188: N | G188: 389602.6751 | H188: -32406.82468 | I188: 357195.8504 | J188: 491.3285425 | K188: 9.71678031 | L188: 7064.099285 | M188: 350131.7511 | N188: 340190.1459 | O188: 111920.2707 | P188: 481.6117622 | Q188: 727 | R188: 667 | S188: 0.9174690509 | T188: -9984.325757 | U188: -14.96900413 | V188: -1.413389783 | W188: 32 | X188: 32 | Y188: 25
A189: NTID | B189: Career Prep Foundation | C189: CARPRP-UND | D189: N | E189: N | G189: 299975.7686 | H189: -58861.37545 | I189: 241114.3932 | J189: 432.8804186 | K189: 7.566880441 | L189: 4214.752406 | M189: 236899.6408 | N189: 229703.4969 | O189: 59488.42219 | P189: 425.3135382 | Q189: 557 | R189: 512 | S189: 0.9192100539 | T189: -7873.830359 | U189: -15.37857492 | V189: -1.868159645 | W189: 36 | X189: 27 | Y189: 19
A190: NTID | B190: Computer Integrated Mach | C190: CIMT-AOS | D190: A | E190: N | G190: 521724.9352 | H190: -16279.72355 | I190: 505445.2117 | J190: 501.4337418 | K190: 27.37196338 | L190: 27590.93909 | M190: 477854.2726 | N190: 464486.206 | O190: 210742.5413 | P190: 474.0617784 | Q190: 1008 | R190: 859 | S190: 0.8521825397 | T190: -17540.08295 | U190: -20.41918853 | V190: -0.6357189543 | W190: 42 | X190: 40 | Y190: 36
A191: NTID | B191: Civil Technology (AAS) | C191: CVTC-AAS | D191: A | E191: N | G191: 80570.14214 | H191: -7038.010794 | I191: 73532.13135 | J191: 583.588344 | K191: 119.2987136 | L191: 15031.63791 | M191: 58500.49344 | N191: 55201.5054 | O191: 24851.32236 | P191: 464.2896305 | Q191: 126 | R191: 75 | S191: 0.5952380952 | T191: -1230.962224 | U191: -16.41282966 | V191: -0.08189142341 | W191: 1 | X191: 5 | Y191: 5
A192: NTID | B192: Engineering Technologies | C192: ENGTEC-UND | D192: N | E192: N | G192: 80570.14214 | H192: -11562.44631 | I192: 69007.69584 | J192: 418.2284596 | K192: 30.47258545 | L192: 5027.976599 | M192: 63979.71924 | N192: 61697.88794 | O192: 19833.59377 | P192: 387.7558742 | Q192: 165 | R192: 143 | S192: 0.8666666667 | T192: -2854.995943 | U192: -19.96500659 | V192: -0.5678220426 | W192: 10 | X192: 6 | Y192: 7
A193: NODEG | B193: Graduate Teacher | C193: GRDTCH-NON | D193: N | E193: N | G193: 21957.6 | H193: 0 | I193: 21957.6 | J193: 1219.866667 | K193: 28.43279797 | L193: 511.7903635 | M193: 21445.80964 | N193: 20780.346 | O193: 7104.852654 | P193: 1191.433869 | Q193: 18 | R193: 0 | T193: 0 | W193: 8 | X193: 6 | Y193: 0
A194: NTID | B194: Healthcare Interpetation | C194: HLTHINT-MS | D194: M | E194: N | G194: 48357.16674 | H194: 0 | I194: 48357.16674 | J194: 671.6273158 | K194: 546.5433272 | L194: 39351.11956 | M194: 9006.047178 | N194: 8355.070954 | O194: -13181.71781 | P194: 125.0839886 | Q194: 72 | R194: 72 | S194: 1 | T194: 39351.11956 | U194: 546.5433272 | V194: 1 | W194: 0 | X194: 0 | Y194: 8
A195: NTID | B195: Hospitality & Service Mgmt | C195: HSPSN-AS | D195: A | E195: N | G195: 58596.46701 | H195: -4524.435511 | I195: 54072.0315 | J195: 458.2375551 | K195: 285.5308898 | L195: 33692.645 | M195: 20379.3865 | N195: 14759.60632 | O195: -8637.458883 | P195: 172.7066653 | Q195: 118 | R195: 33 | S195: 0.2796610169 | T195: -433.684754 | U195: -13.14196224 | V195: -0.01287179306 | W195: 3 | X195: 5 | Y195: 5
A196: NTID | B196: Laboratory Science Tech | C196: LABSCI-AAS | D196: A | E196: N | G196: 620435.9297 | H196: -69685.35664 | I196: 550750.5731 | J196: 414.0981752 | K196: 104.7492612 | L196: 139316.5173 | M196: 411434.0557 | N196: 379426.0669 | O196: 44604.59885 | P196: 309.3489141 | Q196: 1330 | R196: 881 | S196: 0.662406015 | T196: -14470.27597 | U196: -16.42483084 | V196: -0.1038661908 | W196: 34 | X196: 43 | Y196: 46
A197: NTID | B197: Laboratory Science Tech | C197: LABSCI-AOS | D197: A | E197: N | G197: 170840.1095 | H197: -9157.344495 | I197: 161682.7651 | J197: 432.3068584 | K197: -18.5362686 | L197: -6932.564458 | M197: 168615.3295 | N197: 165442.8333 | O197: 56712.7104 | P197: 450.843127 | Q197: 374 | R197: 374 | S197: 1 | T197: -6932.564458 | U197: -18.5362686 | V197: 1 | W197: 28 | X197: 14 | Y197: 12
A198: NTID | B198: NTID Non-Degree | C198: NTID-NON | D198: N | E198: N | G198: 15705.8238 | H198: 0 | I198: 15705.8238 | J198: 747.8963716 | K198: 211.3542777 | L198: 4438.439832 | M198: 11267.38397 | N198: 10572.14091 | O198: 8244.359073 | P198: 536.5420939 | Q198: 21 | R198: 0 | T198: 0 | W198: 2 | X198: 4 | Y198: 1
A199: NTID | B199: Pre-Bacc Visual Comm | C199: PBCOM-UND | D199: N | E199: N | G199: 182912.054 | H199: -49856.65336 | I199: 133055.4007 | J199: 391.3394137 | K199: 60.77575069 | L199: 20663.75524 | M199: 112391.6454 | N199: 105992.3008 | O199: 15759.71815 | P199: 330.5636631 | Q199: 340 | R199: 258 | S199: 0.7588235294 | T199: -4481.089318 | U199: -17.36856325 | V199: -0.2168574524 | W199: 12 | X199: 13 | Y199: 7
A200: NTID | B200: Pre-Bacc Engineering | C200: PBENG-UND | D200: N | E200: N | G200: 106091.5021 | H200: -7885.491093 | I200: 98206.01105 | J200: 650.3709341 | K200: 304.7583869 | L200: 46018.51643 | M200: 52187.49462 | N200: 44551.73762 | O200: 15267.52394 | P200: 345.6125472 | Q200: 151 | R200: 22 | S200: 0.1456953642 | T200: -116.767165 | U200: -5.307598408 | V200: -0.00253739525 | W200: 9 | X200: 6 | Y200: 6
A201: NTID | B201: Pre-Bacc Liberal Arts | C201: PBLIBL-UND | D201: N | E201: N | G201: 25635.95432 | H201: -6989.750149 | I201: 18646.20417 | J201: 278.3015548 | K201: 260.9199222 | L201: 17481.63479 | M201: 1164.569382 | N201: -1610.303461 | O201: -11224.4386 | P201: 17.38163257 | Q201: 67 | R201: 11 | S201: 0.1641791045 | T201: -260.6516697 | U201: -23.69560634 | V201: -0.01491002832 | W201: 3 | X201: 4 | Y201: 2
... 32 more rows

Sheet Program Info
B1: ACADEMIC PROGRAM PROPOSAL PROJECTION
B2: For questions, please contact Leanne Hill, lkhcto@rit.edu
B3: Please submit to Leanne Hill for review prior to submission to Academic Affairs
N5: =SUM('APR 5 Year Projection'!B128:F128) -> 
B6: PROGRAM DEVELOPMENT PHASE
B7: Anticipated Start Date
D9: Today's Date:
D10: Enter name of program:
D11: Select Home College
D12: Select Secondary College | E12: N/A
D13: Enter Home Dept
D14: Program Type | H14: =VLOOKUP(E14,Program_Table,2,FALSE) ->  | N14: =VLOOKUP(E14,'Data Validation'!H1:J9,3,FALSE) -> 
D15: RIT Online Program (Yes or No) | E15: NO
D16: PDF File Name | E16: =CONCATENATE(E11,"_",E10,"_",E7) -> __
E17: =+'Program Info'!E7 -> 0 | F17: =CONCATENATE(RIGHT(E17,4),"-",RIGHT(E17,4)+1) -> 0-1 | G17: =CONCATENATE(RIGHT(F17,4),"-",RIGHT(F17,4)+1) ->  | H17: =CONCATENATE(RIGHT(G17,4),"-",RIGHT(G17,4)+1) ->  | I17: =CONCATENATE(RIGHT(H17,4),"-",RIGHT(H17,4)+1) ->  | J17: =CONCATENATE(RIGHT(I17,4),"-",RIGHT(I17,4)+1) ->  | K17: Total
D18: Preloaded FT CrHr Mask | E18: =VLOOKUP($E$14,MaskTable,'Calculation Worksheet'!F13) ->  | F18: =VLOOKUP($E$14,MaskTable,'Calculation Worksheet'!G13) ->  | G18: =VLOOKUP($E$14,MaskTable,'Calculation Worksheet'!H13) ->  | H18: =VLOOKUP($E$14,MaskTable,'Calculation Worksheet'!I13) ->  | I18: =VLOOKUP($E$14,MaskTable,'Calculation Worksheet'!J13) ->  | J18: =VLOOKUP($E$14,MaskTable,'Calculation Worksheet'!K13) ->  | K18: =SUM(E18:J18) -> 
D19: Program Specific Adjustments | K19: =SUM(E19:J19) -> 0
D20: FT Basis for Model | E20: =E18+E19 ->  | K20: =SUM(E20:J20) -> 
D22: Student Completion Profiles | E22: Retention Rate / 1 st year | F22: Completion Rate | G22: Years to Complete | H22: Crs/Sem
C23: 1 | D23: Full Time | E23: 0.8786 | F23: 0.6764 | G23: =ROUND(VLOOKUP(E14,MaskTable,'Calculation Worksheet'!D13,FALSE),0) -> 
C24: 2 | D24: Part Time | E24: 0.8786 | F24: 0.6764 | G24: =IF(H24=0,99,IF(E25="No",ROUNDUP(K20/H24/2,0),(ROUNDUP(K20/((H24*2)+H25),0)))) ->  | H24: 6
D25: Summer Classes (Part Time Students Only) | E25: NO | H25: 3
E27: CH Totals | F27: % of Total | G27: CH New Courses | H27: CH Existing Courses
D28: CAST | F28: =E28/$K$20 ->  | H28: =E28-G28 -> 0
D29: CHST | F29: =E29/$K$20 ->  | H29: =E29-G29 -> 0
D30: CIAS | F30: =E30/$K$20 ->  | H30: 0
D31: COLA | H31: 0
D32: COS | H32: 0 | K32: =IF(E38<>K20,"Correct CH to match K20","") -> 
D33: COS-CIS | H33: 0
D34: GCCIS | H34: 0
D35: GIS | H35: 0
D36: KGCOE | H36: 0
D37: SCB | H37: 0
D38: Total | E38: =SUM(E28:E37) -> 0 | F38: =IF(E38<>K20,"Check CH","GOOD") ->  | G38: =SUM(G28:G37) -> 0 | H38: =SUM(H28:H37) -> 0
D39: Hours taken outside of Program college-includes general education classes taken outside of the college and required program courses ** | E39: =E38-SUMIFS(E28:E37,D28:D37,E11) -> 0
D40: Interdisciplinary % of Total | E40: =+E39/K20 -> 
B42: Enrollment
D44: Incremental Intake (Headcount) | E44: =+E17 -> 0 | F44: =+F17 -> 0-1 | G44: =+G17 ->  | H44: =+H17 ->  | I44: =+I17 -> 
C45: 1 | D45: ='Program Info'!D23 -> Full Time | J45: =I45 -> 0 | K45: 0 | L45: 0 | N45: =L45 -> 0 | O45: 0
B46: =IF(AND(SUM(E46:I47)>0,$H$14="GRAD"),"Delete Tfer enr","") ->  | C46: 3 | D46: =IF($H$14="UG","External Transfers - Year 2","") ->  | J46: 0 | K46: 0 | L46: 0 | N46: =L46 -> 0 | O46: 0
B47: =IF(AND(SUM(E46:I47)>0,$H$14="GRAD"),"Delete Tfer enr","") ->  | C47: 4 | D47: =IF($H$14="UG","External Transfers - Year 3","") ->  | J47: 0 | K47: 0 | L47: 0 | N47: =L47 -> 0 | O47: 0
C48: 2 | D48: ='Program Info'!D24 -> Part Time | J48: 0 | K48: 0 | L48: 0 | N48: =L48 -> 0 | O48: 0
D49: Total | E49: =SUM(E45:E48) -> 0 | F49: 0 | G49: 0 | H49: 0 | I49: 0 | J49: 0 | K49: 0 | L49: 0 | N49: 0 | O49: 0
D50: Accum. HC | E50: =+'Calculation Worksheet'!E65 ->  | F50: =+'Calculation Worksheet'!F65 ->  | G50: =+'Calculation Worksheet'!G65 ->  | H50: =+'Calculation Worksheet'!H65 ->  | I50: =+'Calculation Worksheet'!I65 ->  | J50: =+'Calculation Worksheet'!J65 ->  | K50: =+'Calculation Worksheet'!K65 ->  | L50: =+'Calculation Worksheet'!L65 ->  | N50: =+'Calculation Worksheet'!M65 ->  | O50: =+'Calculation Worksheet'!N65 -> 
D51: Please check box to confirm you have received confirmation from Enrollment Management for above Incremental Intake. Please submit the confirmation memo with your documentation. | L51: FALSE | M51: =IF(L51=FALSE,-5,2) -> -5
B53: Allowances
C55: CREDIT HOUR DISTRIBUTION AND ALLOWANCES
D57: Credit Hour Demand | E57: ='Calculation Worksheet'!E177 ->  | F57: ='Calculation Worksheet'!F177 ->  | G57: ='Calculation Worksheet'!G177 ->  | H57: ='Calculation Worksheet'!H177 ->  | I57: ='Calculation Worksheet'!I177 -> 
C59: Credit Hour Distribution | D59: Credit Hour Distribution | E59: Year
D60: College | E60: 1 | F60: 2 | G60: 3 | H60: 4 | I60: 5
D61: CAST | E61: =ROUNDUP((E$57*$F28),0) -> 
D62: CHST
D63: CIAS
D64: COLA
D65: COS
D66: COS-CIS
D67: GCCIS
D68: GIS
D69: KGCOE
D70: SCB
C72: Faculty Allowance | D72: =H14 ->  | E72: Year
D73: Faculty Allowance | E73: 1 | F73: 2 | G73: 3 | H73: 4 | I73: 5
D74: CAST | E74: =IF($D$72="GRAD",(SUMIFS(gradSal,College,$D74)*E$61)*((1+expinc)^(start_Gap)),IF($D$72="UG",(SUMIFS(ugradsal,College,$D74)*E$61)*((1+expinc)^(start_Gap)))) ->  | F74: =IF($D$72="GRAD",(SUMIFS(gradSal,College,$D74)*F$61)*((1+expinc)^(start_Gap+E$73)),IF($D$72="UG",(SUMIFS(ugradsal,College,$D74)*F$61)*((1+expinc)^(start_Gap+E$73)))) ->  | G74: =IF($D$72="GRAD",(SUMIFS(gradSal,College,$D74)*G$61)*((1+expinc)^(start_Gap+F$73)),IF($D$72="UG",(SUMIFS(ugradsal,College,$D74)*G$61)*((1+expinc)^(start_Gap+F$73)))) ->  | H74: =IF($D$72="GRAD",(SUMIFS(gradSal,College,$D74)*H$61)*((1+expinc)^(start_Gap+G$73)),IF($D$72="UG",(SUMIFS(ugradsal,College,$D74)*H$61)*((1+expinc)^(start_Gap+G$73)))) ->  | I74: =IF($D$72="GRAD",(SUMIFS(gradSal,College,$D74)*I$61)*((1+expinc)^(start_Gap+H$73)),IF($D$72="UG",(SUMIFS(ugradsal,College,$D74)*I$61)*((1+expinc)^(start_Gap+H$73)))) -> 
D75: CHST | E75: =IF($D$72="GRAD",(SUMIFS(gradSal,College,$D75)*E$62)*((1+expinc)^(start_Gap)),IF($D$72="UG",(SUMIFS(ugradsal,College,$D75)*E$62)*((1+expinc)^(start_Gap)))) ->  | F75: =IF($D$72="GRAD",(SUMIFS(gradSal,College,$D75)*F$62)*((1+expinc)^(start_Gap+E$73)),IF($D$72="UG",(SUMIFS(ugradsal,College,$D75)*F$62)*((1+expinc)^(start_Gap+E$73)))) ->  | G75: =IF($D$72="GRAD",(SUMIFS(gradSal,College,$D75)*G$62)*((1+expinc)^(start_Gap+F$73)),IF($D$72="UG",(SUMIFS(ugradsal,College,$D75)*G$62)*((1+expinc)^(start_Gap+F$73)))) ->  | H75: =IF($D$72="GRAD",(SUMIFS(gradSal,College,$D75)*H$62)*((1+expinc)^(start_Gap+G$73)),IF($D$72="UG",(SUMIFS(ugradsal,College,$D75)*H$62)*((1+expinc)^(start_Gap+G$73)))) ->  | I75: =IF($D$72="GRAD",(SUMIFS(gradSal,College,$D75)*I$62)*((1+expinc)^(start_Gap+H$73)),IF($D$72="UG",(SUMIFS(ugradsal,College,$D75)*I$62)*((1+expinc)^(start_Gap+H$73)))) -> 
D76: CIAS | E76: =IF($D$72="GRAD",(SUMIFS(gradSal,College,$D76)*E63)*((1+expinc)^(start_Gap)),IF($D$72="UG",(SUMIFS(ugradsal,College,$D76)*E63)*((1+expinc)^(start_Gap)))) ->  | F76: =IF($D$72="GRAD",(SUMIFS(gradSal,College,$D76)*F63)*((1+expinc)^(start_Gap+E$73)),IF($D$72="UG",(SUMIFS(ugradsal,College,$D76)*F63)*((1+expinc)^(start_Gap+E$73)))) ->  | I76: =IF($D$72="GRAD",(SUMIFS(gradSal,College,$D76)*I63)*((1+expinc)^(start_Gap+H$73)),IF($D$72="UG",(SUMIFS(ugradsal,College,$D76)*I63)*((1+expinc)^(start_Gap+H$73)))) -> 
D77: COLA
D78: COS
D79: COS-CIS
D80: GCCIS
D81: GIS
D82: KGCOE
D83: SCB
D84: Total | E84: =SUM(E74:E83) ->  | F84: =SUM(F74:F83) ->  | G84: =SUM(G74:G83) ->  | H84: =SUM(H74:H83) ->  | I84: =SUM(I74:I83) -> 
C86: Non Instructional Allowance | E86: Year
C87: Non Salary | D87: Non Salary | E87: 1 | F87: 2 | G87: 3 | H87: 4 | I87: 5
D88: CAST | E88: =IF($D$72="GRAD",(SUMIFS(NonSal,College,$D88)*E61)*((1+expinc)^(start_Gap)),IF($D$72="UG",(SUMIFS(NonSal,College,$D88)*E61)*((1+expinc)^(start_Gap)))) ->  | F88: =IF($D$72="GRAD",(SUMIFS(NonSal,College,$D88)*F61)*((1+expinc)^(start_Gap+E$73)),IF($D$72="UG",(SUMIFS(NonSal,College,$D88)*F61)*((1+expinc)^(start_Gap+E$73)))) ->  | I88: =IF($D$72="GRAD",(SUMIFS(NonSal,College,$D88)*I61)*((1+expinc)^(start_Gap+H$73)),IF($D$72="UG",(SUMIFS(NonSal,College,$D88)*I61)*((1+expinc)^(start_Gap+H$73)))) -> 
D89: CHST
D90: CIAS
D91: COLA
D92: COS
D93: COS-CIS
D94: GCCIS
D95: GIS
D96: KGCOE
D97: SCB
D98: Total | E98: =SUM(E88:E97) ->  | F98: =SUM(F88:F97) ->  | G98: =SUM(G88:G97) ->  | H98: =SUM(H88:H97) ->  | I98: =SUM(I88:I97) -> 
C100: College Overhead | E100: Year
D101: College Overhead | E101: 1 | F101: 2 | G101: 3 | H101: 4 | I101: 5
D102: CAST | E102: =IF($D$72="GRAD",(SUMIFS(COLLOHwHedge,College,$D102)*E61)*((1+expinc)^(start_Gap)),IF($D$72="UG",(SUMIFS(COLLOHwHedge,College,$D102)*E61)*((1+expinc)^(start_Gap)))) ->  | F102: =IF($D$72="GRAD",(SUMIFS(COLLOHwHedge,College,$D102)*F61)*((1+expinc)^(start_Gap+E$73)),IF($D$72="UG",(SUMIFS(COLLOHwHedge,College,$D102)*F61)*((1+expinc)^(start_Gap+E$73)))) ->  | I102: =IF($D$72="GRAD",(SUMIFS(COLLOHwHedge,College,$D102)*I61)*((1+expinc)^(start_Gap+H$73)),IF($D$72="UG",(SUMIFS(COLLOHwHedge,College,$D102)*I61)*((1+expinc)^(start_Gap+H$73)))) -> 
D103: CHST
D104: CIAS
D105: COLA
D106: COS
D107: COS-CIS
D108: GCCIS
D109: GIS
D110: KGCOE
D111: SCB
D112: Total | E112: =SUM(E102:E111) ->  | F112: =SUM(F102:F111) ->  | G112: =SUM(G102:G111) ->  | H112: =SUM(H102:H111) ->  | I112: =SUM(I102:I111) -> 
C114: Academic Affairs | E114: Year
D115: Academic Affairs | E115: 1 | F115: 2 | G115: 3 | H115: 4 | I115: 5
D116: CAST | E116: =IF($D$72="GRAD",(SUMIFS(AAOH,College,$D116)*E61)*((1+expinc)^(start_Gap)),IF($D$72="UG",(SUMIFS(AAOH,College,$D116)*E61)*((1+expinc)^(start_Gap)))) ->  | F116: =IF($D$72="GRAD",(SUMIFS(AAOH,College,$D116)*F61)*((1+expinc)^(start_Gap+E$73)),IF($D$72="UG",(SUMIFS(AAOH,College,$D116)*F61)*((1+expinc)^(start_Gap+E$73)))) ->  | I116: =IF($D$72="GRAD",(SUMIFS(AAOH,College,$D116)*I61)*((1+expinc)^(start_Gap+H$73)),IF($D$72="UG",(SUMIFS(AAOH,College,$D116)*I61)*((1+expinc)^(start_Gap+H$73)))) -> 
D117: CHST
D118: CIAS
D119: COLA
D120: COS
D121: COS-CIS
D122: GCCIS
D123: GIS
D124: KGCOE
D125: SCB
D126: Total | E126: =SUM(E116:E125) ->  | F126: =SUM(F116:F125) ->  | G126: =SUM(G116:G125) ->  | H126: =SUM(H116:H125) ->  | I126: =SUM(I116:I125) -> 
C127: Academic Advising | E127: Year
D128: Academic Advising | E128: 1 | F128: 2 | G128: 3 | H128: 4 | I128: 5
D129: Students | E129: =IF($H$14="UG",E50,0) ->  | F129: =IF($H$14="UG",F50,0) ->  | G129: =IF($H$14="UG",G50,0) ->  | H129: =IF($H$14="UG",H50,0) ->  | I129: =IF($H$14="UG",I50,0) -> 
D130: Eligible FTE | E130: =IF(E129=0,0,VLOOKUP(E129,Assumptions!$A$68:$D$78,3,TRUE)) ->  | F130: =IF(F129=0,0,VLOOKUP(F129,Assumptions!$A$68:$D$78,3,TRUE)) ->  | G130: =IF(G129=0,0,VLOOKUP(G129,Assumptions!$A$68:$D$78,3,TRUE)) ->  | H130: =IF(H129=0,0,VLOOKUP(H129,Assumptions!$A$68:$D$78,3,TRUE)) ->  | I130: =IF(I129=0,0,VLOOKUP(I129,Assumptions!$A$68:$D$78,3,TRUE)) -> 
D131: Annual Salary | E131: =IF(E130=0,0,VLOOKUP(E129,Assumptions!$A$68:$D$78,4,TRUE)*((1+expinc)^(start_Gap))) ->  | F131: =IF(F130=0,0,VLOOKUP(F129,Assumptions!$A$68:$D$78,4,TRUE)*((1+expinc)^(start_Gap))) ->  | G131: =IF(G130=0,0,VLOOKUP(G129,Assumptions!$A$68:$D$78,4,TRUE)*((1+expinc)^(start_Gap))) ->  | H131: =IF(H130=0,0,VLOOKUP(H129,Assumptions!$A$68:$D$78,4,TRUE)*((1+expinc)^(start_Gap))) ->  | I131: =IF(I130=0,0,VLOOKUP(I129,Assumptions!$A$68:$D$78,4,TRUE)*((1+expinc)^(start_Gap))) -> 
C133: Fully Allocated | E133: Year
D134: Fully Allocated Cost | E134: 1 | F134: 2 | G134: 3 | H134: 4 | I134: 5
D135: CAST | E135: =IF($D$72="GRAD",(SUMIFS(FULLOH,College,$D135)*E61)*((1+expinc)^(start_Gap)),IF($D$72="UG",(SUMIFS(FULLOH,College,$D135)*E61)*((1+expinc)^(start_Gap)))) ->  | F135: =IF($D$72="GRAD",(SUMIFS(FULLOH,College,$D135)*F61)*((1+expinc)^(start_Gap+E$73)),IF($D$72="UG",(SUMIFS(FULLOH,College,$D135)*F61)*((1+expinc)^(start_Gap+E$73)))) ->  | I135: =IF($D$72="GRAD",(SUMIFS(FULLOH,College,$D135)*I61)*((1+expinc)^(start_Gap+H$73)),IF($D$72="UG",(SUMIFS(FULLOH,College,$D135)*I61)*((1+expinc)^(start_Gap+H$73)))) -> 
D136: CHST
D137: CIAS
D138: COLA
D139: COS
D140: COS-CIS
D141: GCCIS
D142: GIS
D143: KGCOE
D144: SCB
D145: Total | E145: =SUM(E135:E144) ->  | F145: =SUM(F135:F144) ->  | G145: =SUM(G135:G144) ->  | H145: =SUM(H135:H144) ->  | I145: =SUM(I135:I144) -> 

Sheet Space, Nonrecurring, Library
A1: ='Program Info'!B1 -> ACADEMIC PROGRAM PROPOSAL PROJECTION
A2: Space, Nonrecurring and Library Costs
A3: =CONCATENATE('Program Info'!$B$6,": ",'Program Info'!$E$6) -> PROGRAM DEVELOPMENT PHASE:
A5: The purpose of this worksheet is to identify any space needs, capital costs and other non-recurring needs to launch the program. Listed items will be part of the dialogue in new program approval.
A8: Dedicated Space Needs | H8: Preferred Location | I8: Square Feet | J8: Space Type | K8: Cost Per Sq Foot | L8: Projected Capital Costs
K9: =IF(J9="","",VLOOKUP(J9,Assumptions!$A$62:$B$65,2,FALSE)) ->  | L9: =IF(I9="",0,I9*K9) -> 0
K11: =IF(J11="","",VLOOKUP(J11,Assumptions!$A$62:$B$65,2,FALSE)) ->  | L11: =IF(I11="",0,I11*K11) -> 0
A13: Nonrecurring and One Time Costs | H13: Amount
A16: Equipment Needs | H16: Amount
A21: Library Resources (Required in Table 5, submit letter from librarian with your proposal) | H21: Year 1 | I21: Year 2 | J21: Year 3 | K21: Annual Cost
K22: =J22 -> 0
A27: <<<Optional Workspace for Calculations>>>
A28: Will not be included in .pdf

Sheet College Exp Projections (hidden)
A1: ='Program Info'!E10 -> 0
A2: College Expense Projections
B3: YEAR
B4: ='Program Summary'!B5 -> 0 | C4: ='Program Summary'!C5 -> 0-1 | D4: ='Program Summary'!D5 ->  | E4: ='Program Summary'!E5 ->  | F4: ='Program Summary'!F5 ->  | G4: ='Program Summary'!G5 -> 5 Year Total
A6: Total College
A7: Salary | B7: =B17+B26+B34+B42+B50+B66+B74+B82+B90 ->  | C7: =C17+C26+C34+C42+C50+C66+C74+C82+C90 ->  | D7: =D17+D26+D34+D42+D50+D66+D74+D82+D90 ->  | E7: =E17+E26+E34+E42+E50+E66+E74+E82+E90 ->  | F7: =F17+F26+F34+F42+F50+F66+F74+F82+F90 ->  | G7: =SUM(B7:F7) -> 
A8: Non Salary | B8: =B18+B27+B35+B43+B51+B67+B75+B83+B91 ->  | C8: =C18+C27+C35+C43+C51+C67+C75+C83+C91 ->  | G8: =SUM(B8:F8) -> 
A9: College Overhead | B9: =B19+B28+B36+B44+B52+B68+B76+B84+B92 ->  | G9: =SUM(B9:F9) -> 
A10: Academic Affairs | B10: =B20+B29+B37+B45+B53+B69+B77+B85+B93 ->  | G10: =SUM(B10:F10) -> 
A11: Fully Allocated | B11: =B21+B30+B38+B46+B54+B70+B78+B86+B94 ->  | G11: =SUM(B11:F11) -> 
A12: Total | B12: =SUM(B6:B11) -> 
A13: From Statement | B13: ='Program Info'!E84+'Program Info'!E98+'Program Info'!E112+'Program Info'!E126+'Program Info'!E131+'Program Info'!E145 ->  | C13: ='Program Info'!F84+'Program Info'!F98+'Program Info'!F112+'Program Info'!F126+'Program Info'!F131+'Program Info'!F145 ->  | D13: ='Program Info'!G84+'Program Info'!G98+'Program Info'!G112+'Program Info'!G126+'Program Info'!G131+'Program Info'!G145 ->  | E13: ='Program Info'!H84+'Program Info'!H98+'Program Info'!H112+'Program Info'!H126+'Program Info'!H131+'Program Info'!H145 ->  | F13: ='Program Info'!I84+'Program Info'!I98+'Program Info'!I112+'Program Info'!I126+'Program Info'!I131+'Program Info'!I145 ->  | G13: =SUM(B13:F13) -> 
A14: Variance | B14: =B12-B13 -> 
A16: CAST
A17: Salary | B17: =SUMIFS('Program Info'!$E$74:$E$83,'Program Info'!$D$74:$D$83,$A16) ->  | C17: =SUMIFS('Program Info'!$F$74:$F$83,'Program Info'!$D$74:$D$83,$A16) ->  | D17: =SUMIFS('Program Info'!$G$74:$G$83,'Program Info'!$D$74:$D$83,$A16) ->  | E17: =SUMIFS('Program Info'!$H$74:$H$83,'Program Info'!$D$74:$D$83,$A16) ->  | F17: =SUMIFS('Program Info'!$I$74:$I$83,'Program Info'!$D$74:$D$83,$A16) ->  | G17: =SUM(B17:F17) -> 
A18: Non Salary | B18: =SUMIFS('Program Info'!E$88:E$97,'Program Info'!$D$88:$D$97,$A16) ->  | C18: =SUMIFS('Program Info'!F$88:F$97,'Program Info'!$D$88:$D$97,$A16) ->  | D18: =SUMIFS('Program Info'!G$88:G$97,'Program Info'!$D$88:$D$97,$A16) ->  | E18: =SUMIFS('Program Info'!H$88:H$97,'Program Info'!$D$88:$D$97,$A16) ->  | F18: =SUMIFS('Program Info'!I$88:I$97,'Program Info'!$D$88:$D$97,$A16) ->  | G18: =SUM(B18:F18) -> 
A19: College Overhead | B19: =SUMIFS('Program Info'!$E$102:$E$111,'Program Info'!$D$102:$D$111,$A16) ->  | C19: =SUMIFS('Program Info'!$F$102:$F$111,'Program Info'!$D$102:$D$111,$A16) ->  | D19: =SUMIFS('Program Info'!$G$102:$G$111,'Program Info'!$D$102:$D$111,$A16) ->  | E19: =SUMIFS('Program Info'!$H$102:$H$111,'Program Info'!$D$102:$D$111,$A16) ->  | F19: =SUMIFS('Program Info'!$I$102:$I$111,'Program Info'!$D$102:$D$111,$A16) ->  | G19: =SUM(B19:F19) -> 
A20: Academic Affairs | B20: =SUMIFS('Program Info'!$E$116:$E$125,'Program Info'!$D$116:$D$125,$A16) ->  | C20: =SUMIFS('Program Info'!$F$116:$F$125,'Program Info'!$D$116:$D$125,$A16) ->  | D20: =SUMIFS('Program Info'!$G$116:$G$125,'Program Info'!$D$116:$D$125,$A16) ->  | E20: =SUMIFS('Program Info'!$H$116:$H$125,'Program Info'!$D$116:$D$125,$A16) ->  | F20: =SUMIFS('Program Info'!$I$116:$I$125,'Program Info'!$D$116:$D$125,$A16) ->  | G20: =SUM(B20:F20) -> 
A21: Fully Allocated | B21: =SUMIFS('Program Info'!E$135:E$144,'Program Info'!$D$135:$D$144,$A16) ->  | C21: =SUMIFS('Program Info'!F$135:F$144,'Program Info'!$D$135:$D$144,$A16) ->  | D21: =SUMIFS('Program Info'!G$135:G$144,'Program Info'!$D$135:$D$144,$A16) ->  | E21: =SUMIFS('Program Info'!H$135:H$144,'Program Info'!$D$135:$D$144,$A16) ->  | F21: =SUMIFS('Program Info'!I$135:I$144,'Program Info'!$D$135:$D$144,$A16) ->  | G21: =SUM(B21:F21) -> 
A22: Total | B22: =SUM(B16:B21) -> 
A25: CHST
A26: Salary | B26: =SUMIFS('Program Info'!$E$74:$E$83,'Program Info'!$D$74:$D$83,$A25) ->  | C26: =SUMIFS('Program Info'!$F$74:$F$83,'Program Info'!$D$74:$D$83,$A25) ->  | D26: =SUMIFS('Program Info'!$G$74:$G$83,'Program Info'!$D$74:$D$83,$A25) ->  | E26: =SUMIFS('Program Info'!$H$74:$H$83,'Program Info'!$D$74:$D$83,$A25) ->  | F26: =SUMIFS('Program Info'!$I$74:$I$83,'Program Info'!$D$74:$D$83,$A25) ->  | G26: =SUM(B26:F26) -> 
A27: Non Salary | B27: =SUMIFS('Program Info'!E$88:E$97,'Program Info'!$D$88:$D$97,$A25) ->  | C27: =SUMIFS('Program Info'!F$88:F$97,'Program Info'!$D$88:$D$97,$A25) ->  | D27: =SUMIFS('Program Info'!G$88:G$97,'Program Info'!$D$88:$D$97,$A25) ->  | E27: =SUMIFS('Program Info'!H$88:H$97,'Program Info'!$D$88:$D$97,$A25) ->  | F27: =SUMIFS('Program Info'!I$88:I$97,'Program Info'!$D$88:$D$97,$A25) ->  | G27: =SUM(B27:F27) -> 
A28: College Overhead | B28: =SUMIFS('Program Info'!$E$102:$E$111,'Program Info'!$D$102:$D$111,$A25) ->  | C28: =SUMIFS('Program Info'!$F$102:$F$111,'Program Info'!$D$102:$D$111,$A25) ->  | D28: =SUMIFS('Program Info'!$G$102:$G$111,'Program Info'!$D$102:$D$111,$A25) ->  | E28: =SUMIFS('Program Info'!$H$102:$H$111,'Program Info'!$D$102:$D$111,$A25) ->  | F28: =SUMIFS('Program Info'!$I$102:$I$111,'Program Info'!$D$102:$D$111,$A25) ->  | G28: =SUM(B28:F28) -> 
A29: Academic Affairs | B29: =SUMIFS('Program Info'!$E$116:$E$125,'Program Info'!$D$116:$D$125,$A25) ->  | C29: =SUMIFS('Program Info'!$F$116:$F$125,'Program Info'!$D$116:$D$125,$A25) ->  | D29: =SUMIFS('Program Info'!$G$116:$G$125,'Program Info'!$D$116:$D$125,$A25) ->  | E29: =SUMIFS('Program Info'!$H$116:$H$125,'Program Info'!$D$116:$D$125,$A25) ->  | F29: =SUMIFS('Program Info'!$I$116:$I$125,'Program Info'!$D$116:$D$125,$A25) ->  | G29: =SUM(B29:F29) -> 
A30: Fully Allocated | B30: =SUMIFS('Program Info'!E$135:E$144,'Program Info'!$D$135:$D$144,$A25) ->  | C30: =SUMIFS('Program Info'!F$135:F$144,'Program Info'!$D$135:$D$144,$A25) ->  | D30: =SUMIFS('Program Info'!G$135:G$144,'Program Info'!$D$135:$D$144,$A25) ->  | E30: =SUMIFS('Program Info'!H$135:H$144,'Program Info'!$D$135:$D$144,$A25) ->  | F30: =SUMIFS('Program Info'!I$135:I$144,'Program Info'!$D$135:$D$144,$A25) ->  | G30: =SUM(B30:F30) -> 
A31: Total | B31: =SUM(B25:B30) -> 
A33: CIAS
A34: Salary | B34: =SUMIFS('Program Info'!$E$74:$E$83,'Program Info'!$D$74:$D$83,$A33) ->  | C34: =SUMIFS('Program Info'!$F$74:$F$83,'Program Info'!$D$74:$D$83,$A33) ->  | D34: =SUMIFS('Program Info'!$G$74:$G$83,'Program Info'!$D$74:$D$83,$A33) ->  | E34: =SUMIFS('Program Info'!$H$74:$H$83,'Program Info'!$D$74:$D$83,$A33) ->  | F34: =SUMIFS('Program Info'!$I$74:$I$83,'Program Info'!$D$74:$D$83,$A33) ->  | G34: =SUM(B34:F34) -> 
A35: Non Salary | B35: =SUMIFS('Program Info'!E$88:E$97,'Program Info'!$D$88:$D$97,$A33) ->  | C35: =SUMIFS('Program Info'!F$88:F$97,'Program Info'!$D$88:$D$97,$A33) ->  | D35: =SUMIFS('Program Info'!G$88:G$97,'Program Info'!$D$88:$D$97,$A33) ->  | E35: =SUMIFS('Program Info'!H$88:H$97,'Program Info'!$D$88:$D$97,$A33) ->  | F35: =SUMIFS('Program Info'!I$88:I$97,'Program Info'!$D$88:$D$97,$A33) ->  | G35: =SUM(B35:F35) -> 
A36: College Overhead | B36: =SUMIFS('Program Info'!$E$102:$E$111,'Program Info'!$D$102:$D$111,$A33) ->  | C36: =SUMIFS('Program Info'!$F$102:$F$111,'Program Info'!$D$102:$D$111,$A33) ->  | D36: =SUMIFS('Program Info'!$G$102:$G$111,'Program Info'!$D$102:$D$111,$A33) ->  | E36: =SUMIFS('Program Info'!$H$102:$H$111,'Program Info'!$D$102:$D$111,$A33) ->  | F36: =SUMIFS('Program Info'!$I$102:$I$111,'Program Info'!$D$102:$D$111,$A33) ->  | G36: =SUM(B36:F36) -> 
A37: Academic Affairs | B37: =SUMIFS('Program Info'!$E$116:$E$125,'Program Info'!$D$116:$D$125,$A33) ->  | C37: =SUMIFS('Program Info'!$F$116:$F$125,'Program Info'!$D$116:$D$125,$A33) ->  | D37: =SUMIFS('Program Info'!$G$116:$G$125,'Program Info'!$D$116:$D$125,$A33) ->  | E37: =SUMIFS('Program Info'!$H$116:$H$125,'Program Info'!$D$116:$D$125,$A33) ->  | F37: =SUMIFS('Program Info'!$I$116:$I$125,'Program Info'!$D$116:$D$125,$A33) ->  | G37: =SUM(B37:F37) -> 
A38: Fully Allocated | B38: =SUMIFS('Program Info'!E$135:E$144,'Program Info'!$D$135:$D$144,$A33) ->  | C38: =SUMIFS('Program Info'!F$135:F$144,'Program Info'!$D$135:$D$144,$A33) ->  | D38: =SUMIFS('Program Info'!G$135:G$144,'Program Info'!$D$135:$D$144,$A33) ->  | E38: =SUMIFS('Program Info'!H$135:H$144,'Program Info'!$D$135:$D$144,$A33) ->  | F38: =SUMIFS('Program Info'!I$135:I$144,'Program Info'!$D$135:$D$144,$A33) ->  | G38: =SUM(B38:F38) -> 
A39: Total | B39: =SUM(B33:B38) -> 
A41: COLA
A42: Salary | B42: =SUMIFS('Program Info'!$E$74:$E$83,'Program Info'!$D$74:$D$83,$A41) ->  | C42: =SUMIFS('Program Info'!$F$74:$F$83,'Program Info'!$D$74:$D$83,$A41) ->  | D42: =SUMIFS('Program Info'!$G$74:$G$83,'Program Info'!$D$74:$D$83,$A41) ->  | E42: =SUMIFS('Program Info'!$H$74:$H$83,'Program Info'!$D$74:$D$83,$A41) ->  | F42: =SUMIFS('Program Info'!$I$74:$I$83,'Program Info'!$D$74:$D$83,$A41) ->  | G42: =SUM(B42:F42) -> 
A43: Non Salary | B43: =SUMIFS('Program Info'!E$88:E$97,'Program Info'!$D$88:$D$97,$A41) ->  | C43: =SUMIFS('Program Info'!F$88:F$97,'Program Info'!$D$88:$D$97,$A41) ->  | D43: =SUMIFS('Program Info'!G$88:G$97,'Program Info'!$D$88:$D$97,$A41) ->  | E43: =SUMIFS('Program Info'!H$88:H$97,'Program Info'!$D$88:$D$97,$A41) ->  | F43: =SUMIFS('Program Info'!I$88:I$97,'Program Info'!$D$88:$D$97,$A41) ->  | G43: =SUM(B43:F43) -> 
A44: College Overhead | B44: =SUMIFS('Program Info'!$E$102:$E$111,'Program Info'!$D$102:$D$111,$A41) ->  | C44: =SUMIFS('Program Info'!$F$102:$F$111,'Program Info'!$D$102:$D$111,$A41) ->  | D44: =SUMIFS('Program Info'!$G$102:$G$111,'Program Info'!$D$102:$D$111,$A41) ->  | E44: =SUMIFS('Program Info'!$H$102:$H$111,'Program Info'!$D$102:$D$111,$A41) ->  | F44: =SUMIFS('Program Info'!$I$102:$I$111,'Program Info'!$D$102:$D$111,$A41) ->  | G44: =SUM(B44:F44) -> 
A45: Academic Affairs | B45: =SUMIFS('Program Info'!$E$116:$E$125,'Program Info'!$D$116:$D$125,$A41) ->  | C45: =SUMIFS('Program Info'!$F$116:$F$125,'Program Info'!$D$116:$D$125,$A41) ->  | D45: =SUMIFS('Program Info'!$G$116:$G$125,'Program Info'!$D$116:$D$125,$A41) ->  | E45: =SUMIFS('Program Info'!$H$116:$H$125,'Program Info'!$D$116:$D$125,$A41) ->  | F45: =SUMIFS('Program Info'!$I$116:$I$125,'Program Info'!$D$116:$D$125,$A41) ->  | G45: =SUM(B45:F45) -> 
A46: Fully Allocated | B46: =SUMIFS('Program Info'!E$135:E$144,'Program Info'!$D$135:$D$144,$A41) ->  | C46: =SUMIFS('Program Info'!F$135:F$144,'Program Info'!$D$135:$D$144,$A41) ->  | D46: =SUMIFS('Program Info'!G$135:G$144,'Program Info'!$D$135:$D$144,$A41) ->  | E46: =SUMIFS('Program Info'!H$135:H$144,'Program Info'!$D$135:$D$144,$A41) ->  | F46: =SUMIFS('Program Info'!I$135:I$144,'Program Info'!$D$135:$D$144,$A41) ->  | G46: =SUM(B46:F46) -> 
A47: Total | B47: =SUM(B41:B46) -> 
A49: COS
A50: Salary | B50: =SUMIFS('Program Info'!$E$74:$E$83,'Program Info'!$D$74:$D$83,$A49) ->  | C50: =SUMIFS('Program Info'!$F$74:$F$83,'Program Info'!$D$74:$D$83,$A49) ->  | D50: =SUMIFS('Program Info'!$G$74:$G$83,'Program Info'!$D$74:$D$83,$A49) ->  | E50: =SUMIFS('Program Info'!$H$74:$H$83,'Program Info'!$D$74:$D$83,$A49) ->  | F50: =SUMIFS('Program Info'!$I$74:$I$83,'Program Info'!$D$74:$D$83,$A49) ->  | G50: =SUM(B50:F50) -> 
A51: Non Salary | B51: =SUMIFS('Program Info'!E$88:E$97,'Program Info'!$D$88:$D$97,$A49) ->  | C51: =SUMIFS('Program Info'!F$88:F$97,'Program Info'!$D$88:$D$97,$A49) ->  | D51: =SUMIFS('Program Info'!G$88:G$97,'Program Info'!$D$88:$D$97,$A49) ->  | E51: =SUMIFS('Program Info'!H$88:H$97,'Program Info'!$D$88:$D$97,$A49) ->  | F51: =SUMIFS('Program Info'!I$88:I$97,'Program Info'!$D$88:$D$97,$A49) ->  | G51: =SUM(B51:F51) -> 
A52: College Overhead | B52: =SUMIFS('Program Info'!$E$102:$E$111,'Program Info'!$D$102:$D$111,$A49) ->  | C52: =SUMIFS('Program Info'!$F$102:$F$111,'Program Info'!$D$102:$D$111,$A49) ->  | D52: =SUMIFS('Program Info'!$G$102:$G$111,'Program Info'!$D$102:$D$111,$A49) ->  | E52: =SUMIFS('Program Info'!$H$102:$H$111,'Program Info'!$D$102:$D$111,$A49) ->  | F52: =SUMIFS('Program Info'!$I$102:$I$111,'Program Info'!$D$102:$D$111,$A49) ->  | G52: =SUM(B52:F52) -> 
A53: Academic Affairs | B53: =SUMIFS('Program Info'!$E$116:$E$125,'Program Info'!$D$116:$D$125,$A49) ->  | C53: =SUMIFS('Program Info'!$F$116:$F$125,'Program Info'!$D$116:$D$125,$A49) ->  | D53: =SUMIFS('Program Info'!$G$116:$G$125,'Program Info'!$D$116:$D$125,$A49) ->  | E53: =SUMIFS('Program Info'!$H$116:$H$125,'Program Info'!$D$116:$D$125,$A49) ->  | F53: =SUMIFS('Program Info'!$I$116:$I$125,'Program Info'!$D$116:$D$125,$A49) ->  | G53: =SUM(B53:F53) -> 
A54: Fully Allocated | B54: =SUMIFS('Program Info'!E$135:E$144,'Program Info'!$D$135:$D$144,$A49) ->  | C54: =SUMIFS('Program Info'!F$135:F$144,'Program Info'!$D$135:$D$144,$A49) ->  | D54: =SUMIFS('Program Info'!G$135:G$144,'Program Info'!$D$135:$D$144,$A49) ->  | E54: =SUMIFS('Program Info'!H$135:H$144,'Program Info'!$D$135:$D$144,$A49) ->  | F54: =SUMIFS('Program Info'!I$135:I$144,'Program Info'!$D$135:$D$144,$A49) ->  | G54: =SUM(B54:F54) -> 
A55: Total | B55: =SUM(B49:B54) -> 
A57: COS-CIS
A58: Salary | B58: =SUMIFS('Program Info'!$E$74:$E$83,'Program Info'!$D$74:$D$83,$A57) ->  | C58: =SUMIFS('Program Info'!$F$74:$F$83,'Program Info'!$D$74:$D$83,$A57) ->  | D58: =SUMIFS('Program Info'!$G$74:$G$83,'Program Info'!$D$74:$D$83,$A57) ->  | E58: =SUMIFS('Program Info'!$H$74:$H$83,'Program Info'!$D$74:$D$83,$A57) ->  | F58: =SUMIFS('Program Info'!$I$74:$I$83,'Program Info'!$D$74:$D$83,$A57) ->  | G58: =SUM(B58:F58) -> 
A59: Non Salary | B59: =SUMIFS('Program Info'!E$88:E$97,'Program Info'!$D$88:$D$97,$A57) ->  | C59: =SUMIFS('Program Info'!F$88:F$97,'Program Info'!$D$88:$D$97,$A57) ->  | D59: =SUMIFS('Program Info'!G$88:G$97,'Program Info'!$D$88:$D$97,$A57) ->  | E59: =SUMIFS('Program Info'!H$88:H$97,'Program Info'!$D$88:$D$97,$A57) ->  | F59: =SUMIFS('Program Info'!I$88:I$97,'Program Info'!$D$88:$D$97,$A57) ->  | G59: =SUM(B59:F59) -> 
A60: College Overhead | B60: =SUMIFS('Program Info'!$E$102:$E$111,'Program Info'!$D$102:$D$111,$A57) ->  | C60: =SUMIFS('Program Info'!$F$102:$F$111,'Program Info'!$D$102:$D$111,$A57) ->  | D60: =SUMIFS('Program Info'!$G$102:$G$111,'Program Info'!$D$102:$D$111,$A57) ->  | E60: =SUMIFS('Program Info'!$H$102:$H$111,'Program Info'!$D$102:$D$111,$A57) ->  | F60: =SUMIFS('Program Info'!$I$102:$I$111,'Program Info'!$D$102:$D$111,$A57) ->  | G60: =SUM(B60:F60) -> 
A61: Academic Affairs | B61: =SUMIFS('Program Info'!$E$116:$E$125,'Program Info'!$D$116:$D$125,$A57) ->  | C61: =SUMIFS('Program Info'!$F$116:$F$125,'Program Info'!$D$116:$D$125,$A57) ->  | D61: =SUMIFS('Program Info'!$G$116:$G$125,'Program Info'!$D$116:$D$125,$A57) ->  | E61: =SUMIFS('Program Info'!$H$116:$H$125,'Program Info'!$D$116:$D$125,$A57) ->  | F61: =SUMIFS('Program Info'!$I$116:$I$125,'Program Info'!$D$116:$D$125,$A57) ->  | G61: =SUM(B61:F61) -> 
A62: Fully Allocated | B62: =SUMIFS('Program Info'!E$135:E$144,'Program Info'!$D$135:$D$144,$A57) ->  | C62: =SUMIFS('Program Info'!F$135:F$144,'Program Info'!$D$135:$D$144,$A57) ->  | D62: =SUMIFS('Program Info'!G$135:G$144,'Program Info'!$D$135:$D$144,$A57) ->  | E62: =SUMIFS('Program Info'!H$135:H$144,'Program Info'!$D$135:$D$144,$A57) ->  | F62: =SUMIFS('Program Info'!I$135:I$144,'Program Info'!$D$135:$D$144,$A57) ->  | G62: =SUM(B62:F62) -> 
A63: Total | B63: =SUM(B57:B62) -> 
A65: GCCIS
A66: Salary | B66: =SUMIFS('Program Info'!$E$74:$E$83,'Program Info'!$D$74:$D$83,$A65) ->  | C66: =SUMIFS('Program Info'!$F$74:$F$83,'Program Info'!$D$74:$D$83,$A65) ->  | D66: =SUMIFS('Program Info'!$G$74:$G$83,'Program Info'!$D$74:$D$83,$A65) ->  | E66: =SUMIFS('Program Info'!$H$74:$H$83,'Program Info'!$D$74:$D$83,$A65) ->  | F66: =SUMIFS('Program Info'!$I$74:$I$83,'Program Info'!$D$74:$D$83,$A65) ->  | G66: =SUM(B66:F66) -> 
A67: Non Salary | B67: =SUMIFS('Program Info'!E$88:E$97,'Program Info'!$D$88:$D$97,$A65) ->  | C67: =SUMIFS('Program Info'!F$88:F$97,'Program Info'!$D$88:$D$97,$A65) ->  | D67: =SUMIFS('Program Info'!G$88:G$97,'Program Info'!$D$88:$D$97,$A65) ->  | E67: =SUMIFS('Program Info'!H$88:H$97,'Program Info'!$D$88:$D$97,$A65) ->  | F67: =SUMIFS('Program Info'!I$88:I$97,'Program Info'!$D$88:$D$97,$A65) ->  | G67: =SUM(B67:F67) -> 
A68: College Overhead | B68: =SUMIFS('Program Info'!$E$102:$E$111,'Program Info'!$D$102:$D$111,$A65) ->  | C68: =SUMIFS('Program Info'!$F$102:$F$111,'Program Info'!$D$102:$D$111,$A65) ->  | D68: =SUMIFS('Program Info'!$G$102:$G$111,'Program Info'!$D$102:$D$111,$A65) ->  | E68: =SUMIFS('Program Info'!$H$102:$H$111,'Program Info'!$D$102:$D$111,$A65) ->  | F68: =SUMIFS('Program Info'!$I$102:$I$111,'Program Info'!$D$102:$D$111,$A65) ->  | G68: =SUM(B68:F68) -> 
A69: Academic Affairs | B69: =SUMIFS('Program Info'!$E$116:$E$125,'Program Info'!$D$116:$D$125,$A65) ->  | C69: =SUMIFS('Program Info'!$F$116:$F$125,'Program Info'!$D$116:$D$125,$A65) ->  | D69: =SUMIFS('Program Info'!$G$116:$G$125,'Program Info'!$D$116:$D$125,$A65) ->  | E69: =SUMIFS('Program Info'!$H$116:$H$125,'Program Info'!$D$116:$D$125,$A65) ->  | F69: =SUMIFS('Program Info'!$I$116:$I$125,'Program Info'!$D$116:$D$125,$A65) ->  | G69: =SUM(B69:F69) -> 
A70: Fully Allocated | B70: =SUMIFS('Program Info'!E$135:E$144,'Program Info'!$D$135:$D$144,$A65) ->  | C70: =SUMIFS('Program Info'!F$135:F$144,'Program Info'!$D$135:$D$144,$A65) ->  | D70: =SUMIFS('Program Info'!G$135:G$144,'Program Info'!$D$135:$D$144,$A65) ->  | E70: =SUMIFS('Program Info'!H$135:H$144,'Program Info'!$D$135:$D$144,$A65) ->  | F70: =SUMIFS('Program Info'!I$135:I$144,'Program Info'!$D$135:$D$144,$A65) ->  | G70: =SUM(B70:F70) -> 
A71: Total | B71: =SUM(B65:B70) -> 
A73: GIS
A74: Salary | B74: =SUMIFS('Program Info'!$E$74:$E$83,'Program Info'!$D$74:$D$83,$A73) ->  | C74: =SUMIFS('Program Info'!$F$74:$F$83,'Program Info'!$D$74:$D$83,$A73) ->  | D74: =SUMIFS('Program Info'!$G$74:$G$83,'Program Info'!$D$74:$D$83,$A73) ->  | E74: =SUMIFS('Program Info'!$H$74:$H$83,'Program Info'!$D$74:$D$83,$A73) ->  | F74: =SUMIFS('Program Info'!$I$74:$I$83,'Program Info'!$D$74:$D$83,$A73) ->  | G74: =SUM(B74:F74) -> 
A75: Non Salary | B75: =SUMIFS('Program Info'!E$88:E$97,'Program Info'!$D$88:$D$97,$A73) ->  | C75: =SUMIFS('Program Info'!F$88:F$97,'Program Info'!$D$88:$D$97,$A73) ->  | D75: =SUMIFS('Program Info'!G$88:G$97,'Program Info'!$D$88:$D$97,$A73) ->  | E75: =SUMIFS('Program Info'!H$88:H$97,'Program Info'!$D$88:$D$97,$A73) ->  | F75: =SUMIFS('Program Info'!I$88:I$97,'Program Info'!$D$88:$D$97,$A73) ->  | G75: =SUM(B75:F75) -> 
A76: College Overhead | B76: =SUMIFS('Program Info'!$E$102:$E$111,'Program Info'!$D$102:$D$111,$A73) ->  | C76: =SUMIFS('Program Info'!$F$102:$F$111,'Program Info'!$D$102:$D$111,$A73) ->  | D76: =SUMIFS('Program Info'!$G$102:$G$111,'Program Info'!$D$102:$D$111,$A73) ->  | E76: =SUMIFS('Program Info'!$H$102:$H$111,'Program Info'!$D$102:$D$111,$A73) ->  | F76: =SUMIFS('Program Info'!$I$102:$I$111,'Program Info'!$D$102:$D$111,$A73) ->  | G76: =SUM(B76:F76) -> 
A77: Academic Affairs | B77: =SUMIFS('Program Info'!$E$116:$E$125,'Program Info'!$D$116:$D$125,$A73) ->  | C77: =SUMIFS('Program Info'!$F$116:$F$125,'Program Info'!$D$116:$D$125,$A73) ->  | D77: =SUMIFS('Program Info'!$G$116:$G$125,'Program Info'!$D$116:$D$125,$A73) ->  | E77: =SUMIFS('Program Info'!$H$116:$H$125,'Program Info'!$D$116:$D$125,$A73) ->  | F77: =SUMIFS('Program Info'!$I$116:$I$125,'Program Info'!$D$116:$D$125,$A73) ->  | G77: =SUM(B77:F77) -> 
A78: Fully Allocated | B78: =SUMIFS('Program Info'!E$135:E$144,'Program Info'!$D$135:$D$144,$A73) ->  | C78: =SUMIFS('Program Info'!F$135:F$144,'Program Info'!$D$135:$D$144,$A73) ->  | D78: =SUMIFS('Program Info'!G$135:G$144,'Program Info'!$D$135:$D$144,$A73) ->  | E78: =SUMIFS('Program Info'!H$135:H$144,'Program Info'!$D$135:$D$144,$A73) ->  | F78: =SUMIFS('Program Info'!I$135:I$144,'Program Info'!$D$135:$D$144,$A73) ->  | G78: =SUM(B78:F78) -> 
A79: Total | B79: =SUM(B73:B78) -> 
A81: KGCOE
A82: Salary | B82: =SUMIFS('Program Info'!$E$74:$E$83,'Program Info'!$D$74:$D$83,$A81) ->  | C82: =SUMIFS('Program Info'!$F$74:$F$83,'Program Info'!$D$74:$D$83,$A81) ->  | D82: =SUMIFS('Program Info'!$G$74:$G$83,'Program Info'!$D$74:$D$83,$A81) ->  | E82: =SUMIFS('Program Info'!$H$74:$H$83,'Program Info'!$D$74:$D$83,$A81) ->  | F82: =SUMIFS('Program Info'!$I$74:$I$83,'Program Info'!$D$74:$D$83,$A81) ->  | G82: =SUM(B82:F82) -> 
A83: Non Salary | B83: =SUMIFS('Program Info'!E$88:E$97,'Program Info'!$D$88:$D$97,$A81) ->  | C83: =SUMIFS('Program Info'!F$88:F$97,'Program Info'!$D$88:$D$97,$A81) ->  | D83: =SUMIFS('Program Info'!G$88:G$97,'Program Info'!$D$88:$D$97,$A81) ->  | E83: =SUMIFS('Program Info'!H$88:H$97,'Program Info'!$D$88:$D$97,$A81) ->  | F83: =SUMIFS('Program Info'!I$88:I$97,'Program Info'!$D$88:$D$97,$A81) ->  | G83: =SUM(B83:F83) -> 
A84: College Overhead | B84: =SUMIFS('Program Info'!$E$102:$E$111,'Program Info'!$D$102:$D$111,$A81) ->  | C84: =SUMIFS('Program Info'!$F$102:$F$111,'Program Info'!$D$102:$D$111,$A81) ->  | D84: =SUMIFS('Program Info'!$G$102:$G$111,'Program Info'!$D$102:$D$111,$A81) ->  | E84: =SUMIFS('Program Info'!$H$102:$H$111,'Program Info'!$D$102:$D$111,$A81) ->  | F84: =SUMIFS('Program Info'!$I$102:$I$111,'Program Info'!$D$102:$D$111,$A81) ->  | G84: =SUM(B84:F84) -> 
A85: Academic Affairs | B85: =SUMIFS('Program Info'!$E$116:$E$125,'Program Info'!$D$116:$D$125,$A81) ->  | C85: =SUMIFS('Program Info'!$F$116:$F$125,'Program Info'!$D$116:$D$125,$A81) ->  | D85: =SUMIFS('Program Info'!$G$116:$G$125,'Program Info'!$D$116:$D$125,$A81) ->  | E85: =SUMIFS('Program Info'!$H$116:$H$125,'Program Info'!$D$116:$D$125,$A81) ->  | F85: =SUMIFS('Program Info'!$I$116:$I$125,'Program Info'!$D$116:$D$125,$A81) ->  | G85: =SUM(B85:F85) -> 
A86: Fully Allocated | B86: =SUMIFS('Program Info'!E$135:E$144,'Program Info'!$D$135:$D$144,$A81) ->  | C86: =SUMIFS('Program Info'!F$135:F$144,'Program Info'!$D$135:$D$144,$A81) ->  | D86: =SUMIFS('Program Info'!G$135:G$144,'Program Info'!$D$135:$D$144,$A81) ->  | E86: =SUMIFS('Program Info'!H$135:H$144,'Program Info'!$D$135:$D$144,$A81) ->  | F86: =SUMIFS('Program Info'!I$135:I$144,'Program Info'!$D$135:$D$144,$A81) ->  | G86: =SUM(B86:F86) -> 
A87: Total | B87: =SUM(B81:B86) -> 
A89: SCB
A90: Salary | B90: =SUMIFS('Program Info'!$E$74:$E$83,'Program Info'!$D$74:$D$83,$A89) ->  | C90: =SUMIFS('Program Info'!$F$74:$F$83,'Program Info'!$D$74:$D$83,$A89) ->  | D90: =SUMIFS('Program Info'!$G$74:$G$83,'Program Info'!$D$74:$D$83,$A89) ->  | E90: =SUMIFS('Program Info'!$H$74:$H$83,'Program Info'!$D$74:$D$83,$A89) ->  | F90: =SUMIFS('Program Info'!$I$74:$I$83,'Program Info'!$D$74:$D$83,$A89) ->  | G90: =SUM(B90:F90) -> 
A91: Non Salary | B91: =SUMIFS('Program Info'!E$88:E$97,'Program Info'!$D$88:$D$97,$A89) ->  | C91: =SUMIFS('Program Info'!F$88:F$97,'Program Info'!$D$88:$D$97,$A89) ->  | D91: =SUMIFS('Program Info'!G$88:G$97,'Program Info'!$D$88:$D$97,$A89) ->  | E91: =SUMIFS('Program Info'!H$88:H$97,'Program Info'!$D$88:$D$97,$A89) ->  | F91: =SUMIFS('Program Info'!I$88:I$97,'Program Info'!$D$88:$D$97,$A89) ->  | G91: =SUM(B91:F91) -> 
A92: College Overhead | B92: =SUMIFS('Program Info'!$E$102:$E$111,'Program Info'!$D$102:$D$111,$A89) ->  | C92: =SUMIFS('Program Info'!$F$102:$F$111,'Program Info'!$D$102:$D$111,$A89) ->  | D92: =SUMIFS('Program Info'!$G$102:$G$111,'Program Info'!$D$102:$D$111,$A89) ->  | E92: =SUMIFS('Program Info'!$H$102:$H$111,'Program Info'!$D$102:$D$111,$A89) ->  | F92: =SUMIFS('Program Info'!$I$102:$I$111,'Program Info'!$D$102:$D$111,$A89) ->  | G92: =SUM(B92:F92) -> 
A93: Academic Affairs | B93: =SUMIFS('Program Info'!$E$116:$E$125,'Program Info'!$D$116:$D$125,$A89) ->  | C93: =SUMIFS('Program Info'!$F$116:$F$125,'Program Info'!$D$116:$D$125,$A89) ->  | D93: =SUMIFS('Program Info'!$G$116:$G$125,'Program Info'!$D$116:$D$125,$A89) ->  | E93: =SUMIFS('Program Info'!$H$116:$H$125,'Program Info'!$D$116:$D$125,$A89) ->  | F93: =SUMIFS('Program Info'!$I$116:$I$125,'Program Info'!$D$116:$D$125,$A89) ->  | G93: =SUM(B93:F93) -> 
A94: Fully Allocated | B94: =SUMIFS('Program Info'!E$135:E$144,'Program Info'!$D$135:$D$144,$A89) ->  | C94: =SUMIFS('Program Info'!F$135:F$144,'Program Info'!$D$135:$D$144,$A89) ->  | D94: =SUMIFS('Program Info'!G$135:G$144,'Program Info'!$D$135:$D$144,$A89) ->  | E94: =SUMIFS('Program Info'!H$135:H$144,'Program Info'!$D$135:$D$144,$A89) ->  | F94: =SUMIFS('Program Info'!I$135:I$144,'Program Info'!$D$135:$D$144,$A89) ->  | G94: =SUM(B94:F94) -> 
A95: Total | B95: =SUM(B89:B94) -> 

Sheet College Spending Plan
A1: ='Program Info'!E11 -> 0 | F1: Secondary College | G1: =A66 -> N/A | H1: =IF('Program Info'!E12<>"N/A",49,0) -> 0
A2: ='Program Summary'!A2:G2 -> 0
A3: Detailed College Spending Plan
A4: =CONCATENATE('Program Info'!$B$6,": ",'Program Info'!$E$6) -> PROGRAM DEVELOPMENT PHASE:
A6: =A1 -> 0
A7: =CONCATENATE("YEAR 5 PLAN STATUS: ",UPPER(G55)) ->  | C7: Year
C8: ='Program Info'!E17 -> 0 | D8: ='Program Info'!F17 -> 0-1 | E8: ='Program Info'!G17 ->  | F8: ='Program Info'!H17 ->  | G8: ='Program Info'!I17 ->  | H8: Total
C9: 1 | D9: 2 | E9: 3 | F9: 4 | G9: 5
A11: Faculty Salary Expense Allowance | C11: =SUMIFS('APR 5 Year Projection'!B$16:B$25,'APR 5 Year Projection'!$A$16:$A$25,$A$6) -> 0 | D11: =SUMIFS('APR 5 Year Projection'!C$16:C$25,'APR 5 Year Projection'!$A$16:$A$25,$A$6) -> 0 | E11: =SUMIFS('APR 5 Year Projection'!D$16:D$25,'APR 5 Year Projection'!$A$16:$A$25,$A$6) -> 0 | F11: =SUMIFS('APR 5 Year Projection'!E$16:E$25,'APR 5 Year Projection'!$A$16:$A$25,$A$6) -> 0 | G11: =SUMIFS('APR 5 Year Projection'!F$16:F$25,'APR 5 Year Projection'!$A$16:$A$25,$A$6) -> 0 | H11: =SUM(C11:G11) -> 0
A13: Faculty Inputs | B13: Base Salary Assumption (Exclude Benefits)
A14: Tenure/TT (Enter FTE)
A15: Lecturer (Enter FTE)
A16: Adjunct (Enter Sections)
A17: Other: Faculty Release Time, Program Director
A19: College Planned Faculty Salary Expense
A20: Tenure TT Cost | C20: =IF(C14=0,0,$B$14*C14*(1+expinc)^(start_Gap-1)) -> 0 | D20: =IF(D14=0,0,$B$14*D14*(1+expinc)^(start_Gap-1+C9)) -> 0 | E20: =IF(E14=0,0,$B$14*E14*(1+expinc)^(start_Gap-1+D9)) -> 0 | F20: =IF(F14=0,0,$B$14*F14*(1+expinc)^(start_Gap-1+E9)) -> 0 | G20: =IF(G14=0,0,$B$14*G14*(1+expinc)^(start_Gap-1+F9)) -> 0 | H20: =SUM(C20:G20) -> 0
A21: Lecturer Cost | C21: =IF(C15=0,0,$B$15*C15*(1+expinc)^(start_Gap-1)) -> 0 | D21: =IF(D15=0,0,$B$15*D15*(1+expinc)^(start_Gap-1+C9)) -> 0 | E21: =IF(E15=0,0,$B$15*E15*(1+expinc)^(start_Gap-1+D9)) -> 0 | F21: =IF(F15=0,0,$B$15*F15*(1+expinc)^(start_Gap-1+E9)) -> 0 | G21: =IF(G15=0,0,$B$15*G15*(1+expinc)^(start_Gap-1+F9)) -> 0 | H21: =SUM(C21:G21) -> 0
A22: Total Adjunct Cost | C22: =IF(C16=0,0,$B$16*C16*(1+expinc)^(start_Gap-1)) -> 0 | D22: =IF(D16=0,0,$B$16*D16*(1+expinc)^(start_Gap-1+C9)) -> 0 | E22: =IF(E16=0,0,$B$16*E16*(1+expinc)^(start_Gap-1+D9)) -> 0 | F22: =IF(F16=0,0,$B$16*F16*(1+expinc)^(start_Gap-1+E9)) -> 0 | G22: =IF(G16=0,0,$B$16*G16*(1+expinc)^(start_Gap-1+F9)) -> 0 | H22: =SUM(C22:G22) -> 0
A23: Other Cost | C23: =C17 -> 0 | D23: =D17 -> 0 | E23: =E17 -> 0 | F23: =F17 -> 0 | G23: =G17 -> 0 | H23: =SUM(C23:G23) -> 0
A24: College Planned Faculty Salary Expense | C24: =SUM(C20:C23) -> 0 | D24: =SUM(D20:D23) -> 0 | E24: =SUM(E20:E23) -> 0 | F24: =SUM(F20:F23) -> 0 | G24: =SUM(G20:G23) -> 0 | H24: =SUM(C24:G24) -> 0
A25: Variance to Allowance | C25: =C11-C24 -> 0 | D25: 0 | E25: 0 | F25: 0 | G25: 0 | H25: 0
A28: Other Direct College Costs | C28: =SUMIFS('APR 5 Year Projection'!B$29:B$38,'APR 5 Year Projection'!$A$29:$A$38,$A$6) -> 0 | D28: =SUMIFS('APR 5 Year Projection'!C$29:C$38,'APR 5 Year Projection'!$A$29:$A$38,$A$6) -> 0 | E28: =SUMIFS('APR 5 Year Projection'!D$29:D$38,'APR 5 Year Projection'!$A$29:$A$38,$A$6) -> 0 | F28: =SUMIFS('APR 5 Year Projection'!E$29:E$38,'APR 5 Year Projection'!$A$29:$A$38,$A$6) -> 0 | G28: =SUMIFS('APR 5 Year Projection'!F$29:F$38,'APR 5 Year Projection'!$A$29:$A$38,$A$6) -> 0 | H28: =SUM(C28:G28) -> 0
A29: Staffing: Please List | B29: Base Salary Assumption (Exclude Benefits)
A34: College Planned Staffing Salary Expense
A35: =IF(A30="","",CONCATENATE(A30," ","Cost")) ->  | C35: =IF(C30=0,0,$B$30*C30*(1+expinc)^(start_Gap-1)) -> 0 | D35: =IF(D30=0,0,$B$30*D30*(1+expinc)^(start_Gap-1+C9)) -> 0 | E35: =IF(E30=0,0,$B$30*E30*(1+expinc)^(start_Gap-1+D9)) -> 0 | F35: =IF(F30=0,0,$B$30*F30*(1+expinc)^(start_Gap-1+E9)) -> 0 | G35: =IF(G30=0,0,$B$30*G30*(1+expinc)^(start_Gap-1+F9)) -> 0 | H35: =SUM(C35:G35) -> 0
A36: =IF(A31="","",CONCATENATE(A31," ","Cost")) ->  | C36: =IF(C31=0,0,$B$31*C31*(1+expinc)^(start_Gap-1)) -> 0 | D36: =IF(D31=0,0,$B$31*D31*(1+expinc)^(start_Gap-1+C9)) -> 0 | E36: =IF(E31=0,0,$B$31*E31*(1+expinc)^(start_Gap-1+D9)) -> 0 | F36: =IF(F31=0,0,$B$31*F31*(1+expinc)^(start_Gap-1+E9)) -> 0 | G36: =IF(G31=0,0,$B$31*G31*(1+expinc)^(start_Gap-1+F9)) -> 0 | H36: =SUM(C36:G36) -> 0
A37: =IF(A32="","",CONCATENATE(A32," ","Cost")) ->  | C37: =IF(C32=0,0,$B$32*C32*(1+expinc)^(start_Gap-1)) -> 0 | D37: =IF(D32=0,0,$B$32*D32*(1+expinc)^(start_Gap-1+C9)) -> 0 | E37: =IF(E32=0,0,$B$32*E32*(1+expinc)^(start_Gap-1+D9)) -> 0 | F37: =IF(F32=0,0,$B$32*F32*(1+expinc)^(start_Gap-1+E9)) -> 0 | G37: =IF(G32=0,0,$B$32*G32*(1+expinc)^(start_Gap-1+F9)) -> 0 | H37: =SUM(C37:G37) -> 0
A38: Total Staffing | C38: =SUM(C35:C37) -> 0 | D38: =SUM(D35:D37) -> 0 | E38: =SUM(E35:E37) -> 0 | F38: =SUM(F35:F37) -> 0 | G38: =SUM(G35:G37) -> 0 | H38: =SUM(C38:G38) -> 0
A39: Other Direct Costs (Please List)
H40: =SUM(C40:G40) -> 0
H41: =SUM(C41:G41) -> 0
H42: =SUM(C42:G42) -> 0
H43: =SUM(C43:G43) -> 0
H44: =SUM(C44:G44) -> 0
A45: Total Non-Salary | C45: =SUM(C39:C44) -> 0 | D45: 0 | E45: 0 | F45: 0 | G45: 0 | H45: 0
A46: College Planned Staffing and Other Direct Costs | C46: =C45+C38 -> 0 | D46: 0 | E46: 0 | F46: 0 | G46: 0 | H46: 0
A47: Variance to Allowance | C47: =C28-C46 -> 0 | D47: 0 | E47: 0 | F47: 0 | G47: 0 | H47: 0
A49: College Planned Expense vs. Threshold
A51: Total Home College Planned Expenses | C51: =ROUND((C46+C24),0) -> 0 | D51: =ROUND((D46+D24),0) -> 0 | E51: =ROUND((E46+E24),0) -> 0 | F51: =ROUND((F46+F24),0) -> 0 | G51: =ROUND((G46+G24),0) -> 0
A52: Total Secondary College Planned Expenses | C52: =C83+C105 -> 0 | D52: =D83+D105 -> 0 | E52: =E83+E105 -> 0 | F52: =F83+F105 -> 0 | G52: =G83+G105 -> 0
A53: New Program Expense Allowance Threshold* | C53: =ROUND((('APR 5 Year Projection'!B12*0.02)+'College Spending Plan'!C11+'College Spending Plan'!C28+C70+C87),0) ->  | D53: =ROUND((('APR 5 Year Projection'!C12*0.02)+'College Spending Plan'!D11+'College Spending Plan'!D28+D70+D87),0) ->  | E53: =ROUND((('APR 5 Year Projection'!D12*0.02)+'College Spending Plan'!E11+'College Spending Plan'!E28+E70+E87),0) ->  | F53: =ROUND((('APR 5 Year Projection'!E12*0.02)+'College Spending Plan'!F11+'College Spending Plan'!F28+F70+F87),0) ->  | G53: =ROUND((('APR 5 Year Projection'!F12*0.02)+'College Spending Plan'!G11+'College Spending Plan'!G28+G70+G87),0) -> 
A54: Variance | C54: =C53-C52-C51 ->  | D54: =D53-D52-D51 -> 
A55: Variance Status to Model | C55: =IF((C51+C52-C53)<=0,"favorable","unfavorable") ->  | D55: =IF((D51+D52-D53)<=0,"favorable","unfavorable") ->  | E55: =IF((E51+E52-E53)<=0,"favorable","unfavorable") ->  | F55: =IF((F51+F52-F53)<=0,"favorable","unfavorable") ->  | G55: =IF((G51+G52-G53)<=0,"favorable","unfavorable") -> 
A56: *Threshold is the calculated expense allowance for each year plus 2% net tuition revenue.
A60: =CONCATENATE('Program Info'!E12, " (Secondary College)") -> N/A (Secondary College) | H60: =A60 -> N/A (Secondary College)
A61: =A2 -> 0 | H61: =A61 -> 0
A62: =CONCATENATE('Program Info'!$B$6,": ",'Program Info'!$E$6) -> PROGRAM DEVELOPMENT PHASE:
A65: Complete Secondary College Worksheet Below
A66: ='Program Info'!E12 -> N/A
C67: =C8 -> 0 | D67: =D8 -> 0-1 | E67: =E8 ->  | F67: =F8 ->  | G67: =G8 ->  | H67: Total
C68: 1 | D68: 2 | E68: 3 | F68: 4 | G68: 5
A70: Faculty Salary Expense Allowance | C70: =SUMIFS('APR 5 Year Projection'!B$16:B$25,'APR 5 Year Projection'!$A$16:$A$25,$A$66) -> 0 | D70: =SUMIFS('APR 5 Year Projection'!C$16:C$25,'APR 5 Year Projection'!$A$16:$A$25,$A$66) -> 0 | E70: =SUMIFS('APR 5 Year Projection'!D$16:D$25,'APR 5 Year Projection'!$A$16:$A$25,$A$66) -> 0 | F70: =SUMIFS('APR 5 Year Projection'!E$16:E$25,'APR 5 Year Projection'!$A$16:$A$25,$A$66) -> 0 | G70: =SUMIFS('APR 5 Year Projection'!F$16:F$25,'APR 5 Year Projection'!$A$16:$A$25,$A$66) -> 0 | H70: =SUM(C70:G70) -> 0
A72: Faculty Inputs | B72: Base Salary Assumption (Exclude Benefits)
A73: Tenure/TT (Enter FTE)
A74: Lecturer (Enter FTE)
A75: Adjunct (Enter Sections)
A76: Other: Faculty Release Time, Program Director
A78: College Planned Faculty Salary Expense
A79: Tenure TT Cost | C79: =IF(C73=0,0,$B$73*C73*(1+expinc)^(start_Gap-1)) -> 0 | D79: =IF(D73=0,0,$B$73*D73*(1+expinc)^(start_Gap-1+C68)) -> 0 | E79: =IF(E73=0,0,$B$73*E73*(1+expinc)^(start_Gap-1+D68)) -> 0 | F79: =IF(F73=0,0,$B$73*F73*(1+expinc)^(start_Gap-1+E68)) -> 0 | G79: =IF(G73=0,0,$B$73*G73*(1+expinc)^(start_Gap-1+F68)) -> 0 | H79: =SUM(C79:G79) -> 0
A80: Lecturer Cost | C80: =IF(C74=0,0,$B$74*C74*(1+expinc)^(start_Gap-1)) -> 0 | D80: =IF(D74=0,0,$B$74*D74*(1+expinc)^(start_Gap-1+C68)) -> 0 | E80: =IF(E74=0,0,$B$74*E74*(1+expinc)^(start_Gap-1+D68)) -> 0 | F80: =IF(F74=0,0,$B$74*F74*(1+expinc)^(start_Gap-1+E68)) -> 0 | G80: =IF(G74=0,0,$B$74*G74*(1+expinc)^(start_Gap-1+F68)) -> 0 | H80: =SUM(C80:G80) -> 0
A81: Total Adjunct Cost | C81: =IF(C75=0,0,$B$75*C75*(1+expinc)^(start_Gap-1)) -> 0 | D81: =IF(D75=0,0,$B$75*D75*(1+expinc)^(start_Gap-1+C68)) -> 0 | E81: =IF(E75=0,0,$B$75*E75*(1+expinc)^(start_Gap-1+D68)) -> 0 | F81: =IF(F75=0,0,$B$75*F75*(1+expinc)^(start_Gap-1+E68)) -> 0 | G81: =IF(G75=0,0,$B$75*G75*(1+expinc)^(start_Gap-1+F68)) -> 0 | H81: =SUM(C81:G81) -> 0
A82: Other Cost | C82: =C76 -> 0 | D82: =D76 -> 0 | E82: =E76 -> 0 | F82: =F76 -> 0 | G82: =G76 -> 0 | H82: =SUM(C82:G82) -> 0
A83: College Planned Faculty Salary Expense | C83: =SUM(C79:C82) -> 0 | D83: =SUM(D79:D82) -> 0 | E83: =SUM(E79:E82) -> 0 | F83: =SUM(F79:F82) -> 0 | G83: =SUM(G79:G82) -> 0 | H83: =SUM(C83:G83) -> 0
A84: Variance to Allowance | C84: =C70-C83 -> 0 | D84: 0 | E84: 0 | F84: 0 | G84: 0 | H84: 0
A87: Other Direct College Costs | C87: =SUMIFS('APR 5 Year Projection'!B$29:B$38,'APR 5 Year Projection'!$A$29:$A$38,$A$66) -> 0 | D87: =SUMIFS('APR 5 Year Projection'!C$29:C$38,'APR 5 Year Projection'!$A$29:$A$38,$A$66) -> 0 | E87: =SUMIFS('APR 5 Year Projection'!D$29:D$38,'APR 5 Year Projection'!$A$29:$A$38,$A$66) -> 0 | F87: =SUMIFS('APR 5 Year Projection'!E$29:E$38,'APR 5 Year Projection'!$A$29:$A$38,$A$66) -> 0 | G87: =SUMIFS('APR 5 Year Projection'!F$29:F$38,'APR 5 Year Projection'!$A$29:$A$38,$A$66) -> 0 | H87: =SUM(C87:G87) -> 0
A88: Staffing: Please List | B88: Base Salary Assumption (Exclude Benefits)
A93: College Planned Staffing Salary Expense
A94: =IF(A89="","",CONCATENATE(A89," ","Cost")) ->  | C94: =IF(C89=0,0,$B$89*C89*(1+expinc)^(start_Gap-1)) -> 0 | D94: =IF(D89=0,0,$B$89*D89*(1+expinc)^(start_Gap-1+C68)) -> 0 | E94: =IF(E89=0,0,$B$89*E89*(1+expinc)^(start_Gap-1+D68)) -> 0 | F94: =IF(F89=0,0,$B$89*F89*(1+expinc)^(start_Gap-1+E68)) -> 0 | G94: =IF(G89=0,0,$B$89*G89*(1+expinc)^(start_Gap-1+F68)) -> 0 | H94: =SUM(C94:G94) -> 0
A95: =IF(A90="","",CONCATENATE(A90," ","Cost")) ->  | C95: =IF(C90=0,0,$B$90*C90*(1+expinc)^(start_Gap-1)) -> 0 | D95: =IF(D90=0,0,$B$90*D90*(1+expinc)^(start_Gap-1+C68)) -> 0 | E95: =IF(E90=0,0,$B$90*E90*(1+expinc)^(start_Gap-1+D68)) -> 0 | F95: =IF(F90=0,0,$B$90*F90*(1+expinc)^(start_Gap-1+E68)) -> 0 | G95: =IF(G90=0,0,$B$90*G90*(1+expinc)^(start_Gap-1+F68)) -> 0 | H95: =SUM(C95:G95) -> 0
A96: =IF(A91="","",CONCATENATE(A91," ","Cost")) ->  | C96: =IF(C91=0,0,$B$91*C91*(1+expinc)^(start_Gap-1)) -> 0 | D96: =IF(D91=0,0,$B$91*D91*(1+expinc)^(start_Gap-1+C68)) -> 0 | E96: =IF(E91=0,0,$B$91*E91*(1+expinc)^(start_Gap-1+D68)) -> 0 | F96: =IF(F91=0,0,$B$91*F91*(1+expinc)^(start_Gap-1+E68)) -> 0 | G96: =IF(G91=0,0,$B$91*G91*(1+expinc)^(start_Gap-1+F68)) -> 0 | H96: =SUM(C96:G96) -> 0
A97: Total Staffing | C97: =SUM(C94:C96) -> 0 | D97: =SUM(D94:D96) -> 0 | E97: =SUM(E94:E96) -> 0 | F97: =SUM(F94:F96) -> 0 | G97: =SUM(G94:G96) -> 0 | H97: =SUM(C97:G97) -> 0
A98: Other Direct Costs (Please List)
H99: =SUM(C99:G99) -> 0
H100: =SUM(C100:G100) -> 0
H101: =SUM(C101:G101) -> 0
H102: =SUM(C102:G102) -> 0
H103: =SUM(C103:G103) -> 0
A104: Total Non-Salary | C104: =SUM(C98:C103) -> 0 | D104: 0 | E104: 0 | F104: 0 | G104: 0 | H104: 0
A105: College Planned Staffing and Other Direct Costs | C105: =C104+C97 -> 0 | D105: 0 | E105: 0 | F105: 0 | G105: 0 | H105: 0
A106: Variance to Allowance | C106: =C87-C105 -> 0 | D106: 0 | E106: 0 | F106: 0 | G106: 0 | H106: 0

Sheet Table 5
A1: ='Program Info'!B1 -> ACADEMIC PROGRAM PROPOSAL PROJECTION
A2: Table 5: New Resources
A3: =CONCATENATE("College: ",'Program Info'!E11) -> College:
A4: =CONCATENATE("Program Name: ",'Program Info'!E10) -> Program Name:
A6: =CONCATENATE('Program Info'!$B$6,": ",'Program Info'!$E$6) -> PROGRAM DEVELOPMENT PHASE:
A8: Table 5: New Resources
A10: List the costs of the new resources that will be engaged specifically as a result of the new program (e.g., a new faculty position or additional library resources). New resources for a given year should be carried over to the following year(s), with adjustments for inflation, if they represent a continuing cost.
A12: New Expenditures | B12: Year 1 | C12: Year 2 | D12: Year 3 | E12: Year 4 | F12: Year 5 | G12: Status | H12: Description
A13: Personnel | B13: ='College Spending Plan'!C24+'College Spending Plan'!C38+'College Spending Plan'!C83+'College Spending Plan'!C97 -> 0 | C13: ='College Spending Plan'!D24+'College Spending Plan'!D38+'College Spending Plan'!D83+'College Spending Plan'!D97 -> 0 | D13: ='College Spending Plan'!E24+'College Spending Plan'!E38+'College Spending Plan'!E83+'College Spending Plan'!E97 -> 0 | E13: ='College Spending Plan'!F24+'College Spending Plan'!F38+'College Spending Plan'!F83+'College Spending Plan'!F97 -> 0 | F13: ='College Spending Plan'!G24+'College Spending Plan'!G38+'College Spending Plan'!G83+'College Spending Plan'!G97 -> 0 | G13: =IF(OR(B13<0,C13<0,D13<0),"Check amount <0","OK") -> OK | H13: Salaries (faculty & staff)
A14: Library | B14: ='Space, Nonrecurring, Library'!H22 -> 0 | C14: ='Space, Nonrecurring, Library'!I22 -> 0 | D14: ='Space, Nonrecurring, Library'!J22 -> 0 | E14: ='Space, Nonrecurring, Library'!K22 -> 0 | F14: ='Space, Nonrecurring, Library'!K22 -> 0 | G14: =IF(OR(B14<0,C14<0,D14<0),"Check amount <0","OK") -> OK | H14: Per memo from library
A15: Equipment* | B15: ='Space, Nonrecurring, Library'!H17+'Space, Nonrecurring, Library'!H19 -> 0 | C15: ='Space, Nonrecurring, Library'!I17+'Space, Nonrecurring, Library'!I19 -> 0 | D15: ='Space, Nonrecurring, Library'!J17+'Space, Nonrecurring, Library'!J19 -> 0 | E15: ='Space, Nonrecurring, Library'!K17+'Space, Nonrecurring, Library'!K19 -> 0 | F15: ='Space, Nonrecurring, Library'!L17+'Space, Nonrecurring, Library'!L19 -> 0 | G15: =IF(AND(B15<0,C15<0,D15<0),"Check amount <0",IF(OR(C15<>0,D15<>0),"Check Year 2 and 3","OK")) -> OK | H15: Equipment from Space, Nonrecurring, Library
A16: Laboratories* | B16: =SUMIFS('Space, Nonrecurring, Library'!L9:L11,'Space, Nonrecurring, Library'!J9:J11,"LAB")+SUMIFS('Space, Nonrecurring, Library'!L9:L11,'Space, Nonrecurring, Library'!J9:J11,"WET LAB") -> 0 | C16: =SUMIFS('Space, Nonrecurring, Library'!M9:M11,'Space, Nonrecurring, Library'!$J$9:$J$11,"LAB")+SUMIFS('Space, Nonrecurring, Library'!M9:M11,'Space, Nonrecurring, Library'!$J$9:$J$11,"WET LAB") -> 0 | D16: =SUMIFS('Space, Nonrecurring, Library'!N9:N11,'Space, Nonrecurring, Library'!$J$9:$J$11,"LAB")+SUMIFS('Space, Nonrecurring, Library'!N9:N11,'Space, Nonrecurring, Library'!$J$9:$J$11,"WET LAB") -> 0 | E16: =SUMIFS('Space, Nonrecurring, Library'!O9:O11,'Space, Nonrecurring, Library'!$J$9:$J$11,"LAB")+SUMIFS('Space, Nonrecurring, Library'!O9:O11,'Space, Nonrecurring, Library'!$J$9:$J$11,"WET LAB") -> 0 | F16: =SUMIFS('Space, Nonrecurring, Library'!P9:P11,'Space, Nonrecurring, Library'!$J$9:$J$11,"LAB")+SUMIFS('Space, Nonrecurring, Library'!P9:P11,'Space, Nonrecurring, Library'!$J$9:$J$11,"WET LAB") -> 0 | G16: =IF(AND(B16<0,C16<0,D16<0),"Check amount <0",IF(OR(C16<>0,D16<>0),"Check Year 2 and 3","OK")) -> OK | H16: Laboratory space
A17: Supplies & Expenses (Other Than Personal Service) | B17: ='College Spending Plan'!C45+'College Spending Plan'!C104 -> 0 | C17: ='College Spending Plan'!D45+'College Spending Plan'!D104 -> 0 | D17: ='College Spending Plan'!E45+'College Spending Plan'!E104 -> 0 | E17: ='College Spending Plan'!F45+'College Spending Plan'!F104 -> 0 | F17: ='College Spending Plan'!G45+'College Spending Plan'!G104 -> 0 | G17: =IF(OR(B17<0,C17<0,D17<0),"Check amount <0","OK") -> OK | H17: Other Expenses included in detail college spending plan excluding employee benefits
A18: Capital Expenditures* | B18: ='Space, Nonrecurring, Library'!L9+'Space, Nonrecurring, Library'!L11-B16 -> 0 | C18: ='Space, Nonrecurring, Library'!M11+'Space, Nonrecurring, Library'!M9-C16+'Space, Nonrecurring, Library'!I17+'Space, Nonrecurring, Library'!I19-C15 -> 0 | D18: ='Space, Nonrecurring, Library'!N11+'Space, Nonrecurring, Library'!N9-D16+'Space, Nonrecurring, Library'!J17+'Space, Nonrecurring, Library'!J19-D15 -> 0 | E18: ='Space, Nonrecurring, Library'!O11+'Space, Nonrecurring, Library'!O9-E16+'Space, Nonrecurring, Library'!K17+'Space, Nonrecurring, Library'!K19-E15 -> 0 | F18: ='Space, Nonrecurring, Library'!P11+'Space, Nonrecurring, Library'!P9-F16+'Space, Nonrecurring, Library'!L17+'Space, Nonrecurring, Library'!L19-F15 -> 0 | G18: =IF(AND(B18<0,C18<0,D18<0),"Check amount <0",IF(OR(C18<>0,D18<>0),"Check Year 2 and 3","OK")) -> OK | H18: Space
A19: Other | B19: =B42+'College Spending Plan'!C51+'College Spending Plan'!C52+'Space, Nonrecurring, Library'!L9+'Space, Nonrecurring, Library'!L11+'Space, Nonrecurring, Library'!H14+'Space, Nonrecurring, Library'!H17+'Space, Nonrecurring, Library'!H19+'Space, Nonrecurring, Library'!H22-B13-B14-B15-B16-B17-B18 ->  | C19: =C42+'College Spending Plan'!D51+'College Spending Plan'!D52+'Space, Nonrecurring, Library'!M9+'Space, Nonrecurring, Library'!M11+'Space, Nonrecurring, Library'!I14+'Space, Nonrecurring, Library'!I17+'Space, Nonrecurring, Library'!I19+'Space, Nonrecurring, Library'!I22-C13-C14-C15-C16-C17-C18 ->  | D19: =D42+'College Spending Plan'!E51+'College Spending Plan'!E52+'Space, Nonrecurring, Library'!N9+'Space, Nonrecurring, Library'!N11+'Space, Nonrecurring, Library'!J14+'Space, Nonrecurring, Library'!J17+'Space, Nonrecurring, Library'!J19+'Space, Nonrecurring, Library'!J22-D13-D14-D15-D16-D17-D18 ->  | E19: =E42+'College Spending Plan'!F51+'College Spending Plan'!F52+'Space, Nonrecurring, Library'!O9+'Space, Nonrecurring, Library'!O11+'Space, Nonrecurring, Library'!K14+'Space, Nonrecurring, Library'!K17+'Space, Nonrecurring, Library'!K19+'Space, Nonrecurring, Library'!K22-E13-E14-E15-E16-E17-E18 ->  | F19: =F42+'College Spending Plan'!G51+'College Spending Plan'!G52+'Space, Nonrecurring, Library'!P9+'Space, Nonrecurring, Library'!P11+'Space, Nonrecurring, Library'!L14+'Space, Nonrecurring, Library'!L17+'Space, Nonrecurring, Library'!L19+'Space, Nonrecurring, Library'!L22-F13-F14-F15-F16-F17-F18 ->  | G19: =IF(OR(B19<0,C19<0,D19<0),"Check amount <0","OK") ->  | H19: Other (includes employee Benefits, 1 time Expense, I.e. start-up, total less all of the above)
A20: Total all | B20: =SUM(B13:B19) ->  | C20: =SUM(C13:C19) ->  | D20: =SUM(D13:D19) ->  | E20: =SUM(E13:E19) ->  | G20: =IF(OR(B20<0,C20<0,D20<0),"Check amount <0","") -> 
A22: *Capital expenditure total reflects projected spending in years one thru three.
A25: Overall Check | B25: =IF(AND(B50=0,B13>=0,B14>=0,B15>=0,B16>=0,B17>=0,B18>=0,B19>=0),"OK","Check") ->  | C25: =IF(AND(C50=0,C13>=0,C14>=0,C15=0,C16=0,C17>=0,C18=0,C19>=0),"OK","Check") ->  | D25: =IF(AND(D50=0,D13>=0,D14>=0,D15=0,D16=0,D17>=0,D18=0,D19>=0),"OK","Check") ->  | E25: =IF(AND(E50=0,E13>=0,E14>=0,E15=0,E16=0,E17>=0,E18=0,E19>=0),"OK","Check") ->  | G25: =IF(AND(B25="OK",C25="OK",D25="OK"),"OK", "ERROR") -> 
A26: Current Status | B26: =IF(AND(B25="OK",C25="OK",D25="OK"),"Program Reconciles", "ERROR Please Review") -> 
A29: Employee Benefits Calculation
A30: College Spending Plan Salaries | B30: ='College Spending Plan'!C8 -> 0 | C30: ='College Spending Plan'!D8 -> 0-1 | D30: ='College Spending Plan'!E8 ->  | E30: ='College Spending Plan'!F8 ->  | F30: ='College Spending Plan'!G8 -> 
A31: Full Time Faculty | B31: ='College Spending Plan'!C79+'College Spending Plan'!C80+'College Spending Plan'!C20+'College Spending Plan'!C21 -> 0 | C31: ='College Spending Plan'!D79+'College Spending Plan'!D80+'College Spending Plan'!D20+'College Spending Plan'!D21 -> 0 | D31: ='College Spending Plan'!E79+'College Spending Plan'!E80+'College Spending Plan'!E20+'College Spending Plan'!E21 -> 0 | E31: ='College Spending Plan'!F79+'College Spending Plan'!F80+'College Spending Plan'!F20+'College Spending Plan'!F21 -> 0 | F31: ='College Spending Plan'!G79+'College Spending Plan'!G80+'College Spending Plan'!G20+'College Spending Plan'!G21 -> 0
A32: Full Time Staff | B32: ='College Spending Plan'!C38+'College Spending Plan'!C97 -> 0 | C32: ='College Spending Plan'!D38+'College Spending Plan'!D97 -> 0 | D32: ='College Spending Plan'!E38+'College Spending Plan'!E97 -> 0 | E32: ='College Spending Plan'!F38+'College Spending Plan'!F97 -> 0 | F32: ='College Spending Plan'!G38+'College Spending Plan'!G97 -> 0
A33: Adjunct | B33: ='College Spending Plan'!C22+'College Spending Plan'!C81 -> 0 | C33: ='College Spending Plan'!D22+'College Spending Plan'!D81 -> 0 | D33: ='College Spending Plan'!E22+'College Spending Plan'!E81 -> 0 | E33: ='College Spending Plan'!F22+'College Spending Plan'!F81 -> 0 | F33: ='College Spending Plan'!G22+'College Spending Plan'!G81 -> 0
A34: Part Time Faculty | B34: ='College Spending Plan'!C23+'College Spending Plan'!C76 -> 0 | C34: ='College Spending Plan'!D23+'College Spending Plan'!D76 -> 0 | D34: ='College Spending Plan'!E23+'College Spending Plan'!E76 -> 0 | E34: ='College Spending Plan'!F23+'College Spending Plan'!F76 -> 0 | F34: ='College Spending Plan'!G23+'College Spending Plan'!G76 -> 0
A35: Total Salary | B35: =SUM(B31:B34) -> 0 | C35: =SUM(C31:C34) -> 0 | D35: =SUM(D31:D34) -> 0 | E35: =SUM(E31:E34) -> 0 | F35: 0
A37: Benefits
A38: Full Time Faculty Benefits | B38: =HLOOKUP(B$30,Assumptions!$C$81:$Z$84,2,FALSE)*B31 ->  | C38: =HLOOKUP(C$30,Assumptions!$C$81:$Z$84,2,FALSE)*C31 ->  | D38: =HLOOKUP(D$30,Assumptions!$C$81:$Z$84,2,FALSE)*D31 ->  | E38: =HLOOKUP(E$30,Assumptions!$C$81:$Z$84,2,FALSE)*E31 ->  | F38: =HLOOKUP(F$30,Assumptions!$C$81:$Z$84,2,FALSE)*F31 -> 
A39: Full Time Staff Benefits | B39: =HLOOKUP(B$30,Assumptions!$C$81:$Z$84,2,FALSE)*B32 ->  | C39: =HLOOKUP(C$30,Assumptions!$C$81:$Z$84,2,FALSE)*C32 ->  | D39: =HLOOKUP(D$30,Assumptions!$C$81:$Z$84,2,FALSE)*D32 ->  | E39: =HLOOKUP(E$30,Assumptions!$C$81:$Z$84,2,FALSE)*E32 ->  | F39: =HLOOKUP(F$30,Assumptions!$C$81:$Z$84,2,FALSE)*F32 -> 
A40: Adjunct Benefits | B40: =HLOOKUP(B$30,Assumptions!$C$81:$Z$84,3,FALSE)*B33 ->  | C40: =HLOOKUP(C$30,Assumptions!$C$81:$Z$84,3,FALSE)*C33 ->  | D40: =HLOOKUP(D$30,Assumptions!$C$81:$Z$84,3,FALSE)*D33 ->  | E40: =HLOOKUP(E$30,Assumptions!$C$81:$Z$84,3,FALSE)*E33 ->  | F40: =HLOOKUP(F$30,Assumptions!$C$81:$Z$84,3,FALSE)*F33 -> 
A41: PartTime Faculty Benefits | B41: =HLOOKUP(B$30,Assumptions!$C$81:$Z$84,4,FALSE)*B34 ->  | C41: =HLOOKUP(C$30,Assumptions!$C$81:$Z$84,4,FALSE)*C34 ->  | D41: =HLOOKUP(D$30,Assumptions!$C$81:$Z$84,4,FALSE)*D34 ->  | E41: =HLOOKUP(E$30,Assumptions!$C$81:$Z$84,4,FALSE)*E34 ->  | F41: =HLOOKUP(F$30,Assumptions!$C$81:$Z$84,4,FALSE)*F34 -> 
A42: Total Benefits | B42: =SUM(B38:B41) ->  | C42: =SUM(C38:C41) ->  | E42: =SUM(E38:E41) ->  | G42: =SUM(B42:F42) -> 
A45: Reconciliation of Data - Variance should be 0 with table status of OK
A46: College Spending Plan | B46: ='College Spending Plan'!C51+'College Spending Plan'!C52 -> 0 | C46: ='College Spending Plan'!D51+'College Spending Plan'!D52 -> 0 | D46: ='College Spending Plan'!E51+'College Spending Plan'!E52 -> 0 | E46: ='College Spending Plan'!F51+'College Spending Plan'!F52 -> 0 | F46: ='College Spending Plan'!G51+'College Spending Plan'!G52 -> 0
A47: Space, Nonrecurring, Library | B47: ='Space, Nonrecurring, Library'!L9+'Space, Nonrecurring, Library'!L11+'Space, Nonrecurring, Library'!H14+'Space, Nonrecurring, Library'!H17+'Space, Nonrecurring, Library'!H19+'Space, Nonrecurring, Library'!H22 -> 0 | C47: ='Space, Nonrecurring, Library'!M9+'Space, Nonrecurring, Library'!M11+'Space, Nonrecurring, Library'!I14+'Space, Nonrecurring, Library'!I17+'Space, Nonrecurring, Library'!I19+'Space, Nonrecurring, Library'!I22 -> 0 | D47: ='Space, Nonrecurring, Library'!N9+'Space, Nonrecurring, Library'!N11+'Space, Nonrecurring, Library'!J14+'Space, Nonrecurring, Library'!J17+'Space, Nonrecurring, Library'!J19+'Space, Nonrecurring, Library'!J22 -> 0 | E47: ='Space, Nonrecurring, Library'!O9+'Space, Nonrecurring, Library'!O11+'Space, Nonrecurring, Library'!K14+'Space, Nonrecurring, Library'!K17+'Space, Nonrecurring, Library'!K19+'Space, Nonrecurring, Library'!K22 -> 0 | F47: ='Space, Nonrecurring, Library'!P9+'Space, Nonrecurring, Library'!P11+'Space, Nonrecurring, Library'!L14+'Space, Nonrecurring, Library'!L17+'Space, Nonrecurring, Library'!L19+'Space, Nonrecurring, Library'!L22 -> 0
A48: Calculated Benefits | B48: =B42 ->  | C48: =C42 ->  | D48: =D42 ->  | E48: =E42 -> 
A49: Total From Detail | B49: =SUM(B46:B48) ->  | C49: =SUM(C46:C48) ->  | D49: =SUM(D46:D48) ->  | E49: =SUM(E46:E48) -> 
A50: Variance | B50: =B49-B20 ->  | C50: =C49-C20 ->  | D50: =D49-D20 ->  | E50: =E49-E20 -> 

Sheet ReqCollege APR Profile (hidden)
B1: ='Program Summary'!A1:A1 -> 0
B2: APR COLLEGE FINANCIAL PROFILE
B3: APR YEAR 2015-2016
B6: Select College | C6: =HomeCollege -> 0
B7: Degree Level | C7: =IF(dtype="UG","B","M") ->  | D7: =IF(C7="B","Undergraduate","Graduate") -> 
B9: Program Name | C9: Gross Tuition | D9: Net Tuition | E9: Net Tuition Rate | F9: College Contribution | G9: Academic Affairs Contribution | H9: Fully Allocated Contribution | I9: Total Student Credit Hours | J9: Home College Credit Hours
A10: =IF(B10="","",1) ->  | B10: =IF(COUNTIFS('Prgm Cost Drivers (ALL)'!A:A,$C$6,'Prgm Cost Drivers (ALL)'!D:D,$C$7)<ROWS($B$10:B10),"",INDEX('Prgm Cost Drivers (ALL)'!C:C,SMALL(IF(('Prgm Cost Drivers (ALL)'!$A$4:$A$233=$C$6)+('Prgm Cost Drivers (ALL)'!$D$4:$D$233=$C$7)=2,ROW('Prgm Cost Drivers (ALL)'!$D$4:$D$233)),ROW(D1)))) ->  | C10: =IF(B10="","",SUMIFS(PCD_GTui,'Prgm Cost Drivers (ALL)'!C:C,'ReqCollege APR Profile'!B10)) ->  | D10: =IF(B10="","",SUMIFS(PCD_NTui,'Prgm Cost Drivers (ALL)'!C:C,'ReqCollege APR Profile'!B10)) ->  | E10: =IF(B10="","",D10/C10) ->  | F10: =IF($B10="","",SUMIFS(PCD_PgmFL,'Prgm Cost Drivers (ALL)'!$C:$C,$B10)) ->  | G10: =IF($B10="","",SUMIFS('Prgm Cost Drivers (ALL)'!N:N,'Prgm Cost Drivers (ALL)'!$C:$C,$B10)) ->  | H10: =IF($B10="","",SUMIFS('Prgm Cost Drivers (ALL)'!O:O,'Prgm Cost Drivers (ALL)'!$C:$C,$B10)) ->  | I10: =IF(B10="","",SUMIFS('Prgm Cost Drivers (ALL)'!Q:Q,'Prgm Cost Drivers (ALL)'!$C:$C,$B10)) ->  | J10: =IF(B10="","",SUMIFS('Prgm Cost Drivers (ALL)'!R:R,'Prgm Cost Drivers (ALL)'!C:C,B10)) -> 
B11: =IF(COUNTIFS('Prgm Cost Drivers (ALL)'!A:A,$C$6,'Prgm Cost Drivers (ALL)'!D:D,$C$7)<ROWS($B$10:B11),"",INDEX('Prgm Cost Drivers (ALL)'!C:C,SMALL(IF(('Prgm Cost Drivers (ALL)'!$A$4:$A$233=$C$6)+('Prgm Cost Drivers (ALL)'!$D$4:$D$233=$C$7)=2,ROW('Prgm Cost Drivers (ALL)'!$D$4:$D$233)),ROW(D2)))) ->  | C11: =IF(B11="","",SUMIFS(PCD_GTui,'Prgm Cost Drivers (ALL)'!C:C,'ReqCollege APR Profile'!B11)) ->  | D11: =IF(B11="","",SUMIFS(PCD_NTui,'Prgm Cost Drivers (ALL)'!C:C,'ReqCollege APR Profile'!B11)) ->  | E11: =IF(B11="","",D11/C11) ->  | F11: =IF($B11="","",SUMIFS(PCD_PgmFL,'Prgm Cost Drivers (ALL)'!$C:$C,$B11)) ->  | G11: =IF($B11="","",SUMIFS('Prgm Cost Drivers (ALL)'!N:N,'Prgm Cost Drivers (ALL)'!$C:$C,$B11)) ->  | H11: =IF($B11="","",SUMIFS('Prgm Cost Drivers (ALL)'!O:O,'Prgm Cost Drivers (ALL)'!$C:$C,$B11)) ->  | I11: =IF(B11="","",SUMIFS('Prgm Cost Drivers (ALL)'!Q:Q,'Prgm Cost Drivers (ALL)'!$C:$C,$B11)) ->  | J11: =IF(B11="","",SUMIFS('Prgm Cost Drivers (ALL)'!R:R,'Prgm Cost Drivers (ALL)'!C:C,B11)) -> 
B12: =IF(COUNTIFS('Prgm Cost Drivers (ALL)'!A:A,$C$6,'Prgm Cost Drivers (ALL)'!D:D,$C$7)<ROWS($B$10:B12),"",INDEX('Prgm Cost Drivers (ALL)'!C:C,SMALL(IF(('Prgm Cost Drivers (ALL)'!$A$4:$A$233=$C$6)+('Prgm Cost Drivers (ALL)'!$D$4:$D$233=$C$7)=2,ROW('Prgm Cost Drivers (ALL)'!$D$4:$D$233)),ROW(D3)))) ->  | C12: =IF(B12="","",SUMIFS(PCD_GTui,'Prgm Cost Drivers (ALL)'!C:C,'ReqCollege APR Profile'!B12)) ->  | D12: =IF(B12="","",SUMIFS(PCD_NTui,'Prgm Cost Drivers (ALL)'!C:C,'ReqCollege APR Profile'!B12)) ->  | F12: =IF($B12="","",SUMIFS(PCD_PgmFL,'Prgm Cost Drivers (ALL)'!$C:$C,$B12)) ->  | G12: =IF($B12="","",SUMIFS('Prgm Cost Drivers (ALL)'!N:N,'Prgm Cost Drivers (ALL)'!$C:$C,$B12)) ->  | H12: =IF($B12="","",SUMIFS('Prgm Cost Drivers (ALL)'!O:O,'Prgm Cost Drivers (ALL)'!$C:$C,$B12)) ->  | I12: =IF(B12="","",SUMIFS('Prgm Cost Drivers (ALL)'!Q:Q,'Prgm Cost Drivers (ALL)'!$C:$C,$B12)) ->  | J12: =IF(B12="","",SUMIFS('Prgm Cost Drivers (ALL)'!R:R,'Prgm Cost Drivers (ALL)'!C:C,B12)) -> 
B13: =IF(COUNTIFS('Prgm Cost Drivers (ALL)'!A:A,$C$6,'Prgm Cost Drivers (ALL)'!D:D,$C$7)<ROWS($B$10:B13),"",INDEX('Prgm Cost Drivers (ALL)'!C:C,SMALL(IF(('Prgm Cost Drivers (ALL)'!$A$4:$A$233=$C$6)+('Prgm Cost Drivers (ALL)'!$D$4:$D$233=$C$7)=2,ROW('Prgm Cost Drivers (ALL)'!$D$4:$D$233)),ROW(D4)))) ->  | C13: =IF(B13="","",SUMIFS(PCD_GTui,'Prgm Cost Drivers (ALL)'!C:C,'ReqCollege APR Profile'!B13)) ->  | D13: =IF(B13="","",SUMIFS(PCD_NTui,'Prgm Cost Drivers (ALL)'!C:C,'ReqCollege APR Profile'!B13)) ->  | F13: =IF($B13="","",SUMIFS(PCD_PgmFL,'Prgm Cost Drivers (ALL)'!$C:$C,$B13)) ->  | G13: =IF($B13="","",SUMIFS('Prgm Cost Drivers (ALL)'!N:N,'Prgm Cost Drivers (ALL)'!$C:$C,$B13)) ->  | H13: =IF($B13="","",SUMIFS('Prgm Cost Drivers (ALL)'!O:O,'Prgm Cost Drivers (ALL)'!$C:$C,$B13)) ->  | I13: =IF(B13="","",SUMIFS('Prgm Cost Drivers (ALL)'!Q:Q,'Prgm Cost Drivers (ALL)'!$C:$C,$B13)) ->  | J13: =IF(B13="","",SUMIFS('Prgm Cost Drivers (ALL)'!R:R,'Prgm Cost Drivers (ALL)'!C:C,B13)) -> 
B14: =IF(COUNTIFS('Prgm Cost Drivers (ALL)'!A:A,$C$6,'Prgm Cost Drivers (ALL)'!D:D,$C$7)<ROWS($B$10:B14),"",INDEX('Prgm Cost Drivers (ALL)'!C:C,SMALL(IF(('Prgm Cost Drivers (ALL)'!$A$4:$A$233=$C$6)+('Prgm Cost Drivers (ALL)'!$D$4:$D$233=$C$7)=2,ROW('Prgm Cost Drivers (ALL)'!$D$4:$D$233)),ROW(D5)))) ->  | C14: =IF(B14="","",SUMIFS(PCD_GTui,'Prgm Cost Drivers (ALL)'!C:C,'ReqCollege APR Profile'!B14)) ->  | D14: =IF(B14="","",SUMIFS(PCD_NTui,'Prgm Cost Drivers (ALL)'!C:C,'ReqCollege APR Profile'!B14)) ->  | F14: =IF($B14="","",SUMIFS(PCD_PgmFL,'Prgm Cost Drivers (ALL)'!$C:$C,$B14)) ->  | G14: =IF($B14="","",SUMIFS('Prgm Cost Drivers (ALL)'!N:N,'Prgm Cost Drivers (ALL)'!$C:$C,$B14)) ->  | H14: =IF($B14="","",SUMIFS('Prgm Cost Drivers (ALL)'!O:O,'Prgm Cost Drivers (ALL)'!$C:$C,$B14)) ->  | I14: =IF(B14="","",SUMIFS('Prgm Cost Drivers (ALL)'!Q:Q,'Prgm Cost Drivers (ALL)'!$C:$C,$B14)) ->  | J14: =IF(B14="","",SUMIFS('Prgm Cost Drivers (ALL)'!R:R,'Prgm Cost Drivers (ALL)'!C:C,B14)) -> 
B15: =IF(COUNTIFS('Prgm Cost Drivers (ALL)'!A:A,$C$6,'Prgm Cost Drivers (ALL)'!D:D,$C$7)<ROWS($B$10:B15),"",INDEX('Prgm Cost Drivers (ALL)'!C:C,SMALL(IF(('Prgm Cost Drivers (ALL)'!$A$4:$A$233=$C$6)+('Prgm Cost Drivers (ALL)'!$D$4:$D$233=$C$7)=2,ROW('Prgm Cost Drivers (ALL)'!$D$4:$D$233)),ROW(D6)))) ->  | C15: =IF(B15="","",SUMIFS(PCD_GTui,'Prgm Cost Drivers (ALL)'!C:C,'ReqCollege APR Profile'!B15)) ->  | D15: =IF(B15="","",SUMIFS(PCD_NTui,'Prgm Cost Drivers (ALL)'!C:C,'ReqCollege APR Profile'!B15)) ->  | F15: =IF($B15="","",SUMIFS(PCD_PgmFL,'Prgm Cost Drivers (ALL)'!$C:$C,$B15)) ->  | G15: =IF($B15="","",SUMIFS('Prgm Cost Drivers (ALL)'!N:N,'Prgm Cost Drivers (ALL)'!$C:$C,$B15)) ->  | H15: =IF($B15="","",SUMIFS('Prgm Cost Drivers (ALL)'!O:O,'Prgm Cost Drivers (ALL)'!$C:$C,$B15)) ->  | I15: =IF(B15="","",SUMIFS('Prgm Cost Drivers (ALL)'!Q:Q,'Prgm Cost Drivers (ALL)'!$C:$C,$B15)) ->  | J15: =IF(B15="","",SUMIFS('Prgm Cost Drivers (ALL)'!R:R,'Prgm Cost Drivers (ALL)'!C:C,B15)) -> 
B16: =IF(COUNTIFS('Prgm Cost Drivers (ALL)'!A:A,$C$6,'Prgm Cost Drivers (ALL)'!D:D,$C$7)<ROWS($B$10:B16),"",INDEX('Prgm Cost Drivers (ALL)'!C:C,SMALL(IF(('Prgm Cost Drivers (ALL)'!$A$4:$A$233=$C$6)+('Prgm Cost Drivers (ALL)'!$D$4:$D$233=$C$7)=2,ROW('Prgm Cost Drivers (ALL)'!$D$4:$D$233)),ROW(D7)))) ->  | C16: =IF(B16="","",SUMIFS(PCD_GTui,'Prgm Cost Drivers (ALL)'!C:C,'ReqCollege APR Profile'!B16)) ->  | D16: =IF(B16="","",SUMIFS(PCD_NTui,'Prgm Cost Drivers (ALL)'!C:C,'ReqCollege APR Profile'!B16)) ->  | F16: =IF($B16="","",SUMIFS(PCD_PgmFL,'Prgm Cost Drivers (ALL)'!$C:$C,$B16)) ->  | G16: =IF($B16="","",SUMIFS('Prgm Cost Drivers (ALL)'!N:N,'Prgm Cost Drivers (ALL)'!$C:$C,$B16)) ->  | H16: =IF($B16="","",SUMIFS('Prgm Cost Drivers (ALL)'!O:O,'Prgm Cost Drivers (ALL)'!$C:$C,$B16)) ->  | I16: =IF(B16="","",SUMIFS('Prgm Cost Drivers (ALL)'!Q:Q,'Prgm Cost Drivers (ALL)'!$C:$C,$B16)) ->  | J16: =IF(B16="","",SUMIFS('Prgm Cost Drivers (ALL)'!R:R,'Prgm Cost Drivers (ALL)'!C:C,B16)) -> 
B17: =IF(COUNTIFS('Prgm Cost Drivers (ALL)'!A:A,$C$6,'Prgm Cost Drivers (ALL)'!D:D,$C$7)<ROWS($B$10:B17),"",INDEX('Prgm Cost Drivers (ALL)'!C:C,SMALL(IF(('Prgm Cost Drivers (ALL)'!$A$4:$A$233=$C$6)+('Prgm Cost Drivers (ALL)'!$D$4:$D$233=$C$7)=2,ROW('Prgm Cost Drivers (ALL)'!$D$4:$D$233)),ROW(D8)))) ->  | C17: =IF(B17="","",SUMIFS(PCD_GTui,'Prgm Cost Drivers (ALL)'!C:C,'ReqCollege APR Profile'!B17)) ->  | D17: =IF(B17="","",SUMIFS(PCD_NTui,'Prgm Cost Drivers (ALL)'!C:C,'ReqCollege APR Profile'!B17)) ->  | F17: =IF($B17="","",SUMIFS(PCD_PgmFL,'Prgm Cost Drivers (ALL)'!$C:$C,$B17)) ->  | G17: =IF($B17="","",SUMIFS('Prgm Cost Drivers (ALL)'!N:N,'Prgm Cost Drivers (ALL)'!$C:$C,$B17)) ->  | H17: =IF($B17="","",SUMIFS('Prgm Cost Drivers (ALL)'!O:O,'Prgm Cost Drivers (ALL)'!$C:$C,$B17)) ->  | I17: =IF(B17="","",SUMIFS('Prgm Cost Drivers (ALL)'!Q:Q,'Prgm Cost Drivers (ALL)'!$C:$C,$B17)) ->  | J17: =IF(B17="","",SUMIFS('Prgm Cost Drivers (ALL)'!R:R,'Prgm Cost Drivers (ALL)'!C:C,B17)) -> 
B18: =IF(COUNTIFS('Prgm Cost Drivers (ALL)'!A:A,$C$6,'Prgm Cost Drivers (ALL)'!D:D,$C$7)<ROWS($B$10:B18),"",INDEX('Prgm Cost Drivers (ALL)'!C:C,SMALL(IF(('Prgm Cost Drivers (ALL)'!$A$4:$A$233=$C$6)+('Prgm Cost Drivers (ALL)'!$D$4:$D$233=$C$7)=2,ROW('Prgm Cost Drivers (ALL)'!$D$4:$D$233)),ROW(D9)))) ->  | C18: =IF(B18="","",SUMIFS(PCD_GTui,'Prgm Cost Drivers (ALL)'!C:C,'ReqCollege APR Profile'!B18)) ->  | D18: =IF(B18="","",SUMIFS(PCD_NTui,'Prgm Cost Drivers (ALL)'!C:C,'ReqCollege APR Profile'!B18)) ->  | F18: =IF($B18="","",SUMIFS(PCD_PgmFL,'Prgm Cost Drivers (ALL)'!$C:$C,$B18)) ->  | G18: =IF($B18="","",SUMIFS('Prgm Cost Drivers (ALL)'!N:N,'Prgm Cost Drivers (ALL)'!$C:$C,$B18)) ->  | H18: =IF($B18="","",SUMIFS('Prgm Cost Drivers (ALL)'!O:O,'Prgm Cost Drivers (ALL)'!$C:$C,$B18)) ->  | I18: =IF(B18="","",SUMIFS('Prgm Cost Drivers (ALL)'!Q:Q,'Prgm Cost Drivers (ALL)'!$C:$C,$B18)) ->  | J18: =IF(B18="","",SUMIFS('Prgm Cost Drivers (ALL)'!R:R,'Prgm Cost Drivers (ALL)'!C:C,B18)) -> 
B19: =IF(COUNTIFS('Prgm Cost Drivers (ALL)'!A:A,$C$6,'Prgm Cost Drivers (ALL)'!D:D,$C$7)<ROWS($B$10:B19),"",INDEX('Prgm Cost Drivers (ALL)'!C:C,SMALL(IF(('Prgm Cost Drivers (ALL)'!$A$4:$A$233=$C$6)+('Prgm Cost Drivers (ALL)'!$D$4:$D$233=$C$7)=2,ROW('Prgm Cost Drivers (ALL)'!$D$4:$D$233)),ROW(D10)))) ->  | C19: =IF(B19="","",SUMIFS(PCD_GTui,'Prgm Cost Drivers (ALL)'!C:C,'ReqCollege APR Profile'!B19)) ->  | D19: =IF(B19="","",SUMIFS(PCD_NTui,'Prgm Cost Drivers (ALL)'!C:C,'ReqCollege APR Profile'!B19)) ->  | F19: =IF($B19="","",SUMIFS(PCD_PgmFL,'Prgm Cost Drivers (ALL)'!$C:$C,$B19)) ->  | G19: =IF($B19="","",SUMIFS('Prgm Cost Drivers (ALL)'!N:N,'Prgm Cost Drivers (ALL)'!$C:$C,$B19)) ->  | H19: =IF($B19="","",SUMIFS('Prgm Cost Drivers (ALL)'!O:O,'Prgm Cost Drivers (ALL)'!$C:$C,$B19)) ->  | I19: =IF(B19="","",SUMIFS('Prgm Cost Drivers (ALL)'!Q:Q,'Prgm Cost Drivers (ALL)'!$C:$C,$B19)) ->  | J19: =IF(B19="","",SUMIFS('Prgm Cost Drivers (ALL)'!R:R,'Prgm Cost Drivers (ALL)'!C:C,B19)) -> 
B20: =IF(COUNTIFS('Prgm Cost Drivers (ALL)'!A:A,$C$6,'Prgm Cost Drivers (ALL)'!D:D,$C$7)<ROWS($B$10:B20),"",INDEX('Prgm Cost Drivers (ALL)'!C:C,SMALL(IF(('Prgm Cost Drivers (ALL)'!$A$4:$A$233=$C$6)+('Prgm Cost Drivers (ALL)'!$D$4:$D$233=$C$7)=2,ROW('Prgm Cost Drivers (ALL)'!$D$4:$D$233)),ROW(D11)))) ->  | C20: =IF(B20="","",SUMIFS(PCD_GTui,'Prgm Cost Drivers (ALL)'!C:C,'ReqCollege APR Profile'!B20)) ->  | D20: =IF(B20="","",SUMIFS(PCD_NTui,'Prgm Cost Drivers (ALL)'!C:C,'ReqCollege APR Profile'!B20)) ->  | F20: =IF($B20="","",SUMIFS(PCD_PgmFL,'Prgm Cost Drivers (ALL)'!$C:$C,$B20)) ->  | G20: =IF($B20="","",SUMIFS('Prgm Cost Drivers (ALL)'!N:N,'Prgm Cost Drivers (ALL)'!$C:$C,$B20)) ->  | H20: =IF($B20="","",SUMIFS('Prgm Cost Drivers (ALL)'!O:O,'Prgm Cost Drivers (ALL)'!$C:$C,$B20)) ->  | I20: =IF(B20="","",SUMIFS('Prgm Cost Drivers (ALL)'!Q:Q,'Prgm Cost Drivers (ALL)'!$C:$C,$B20)) ->  | J20: =IF(B20="","",SUMIFS('Prgm Cost Drivers (ALL)'!R:R,'Prgm Cost Drivers (ALL)'!C:C,B20)) -> 
B21: =IF(COUNTIFS('Prgm Cost Drivers (ALL)'!A:A,$C$6,'Prgm Cost Drivers (ALL)'!D:D,$C$7)<ROWS($B$10:B21),"",INDEX('Prgm Cost Drivers (ALL)'!C:C,SMALL(IF(('Prgm Cost Drivers (ALL)'!$A$4:$A$233=$C$6)+('Prgm Cost Drivers (ALL)'!$D$4:$D$233=$C$7)=2,ROW('Prgm Cost Drivers (ALL)'!$D$4:$D$233)),ROW(D12)))) ->  | C21: =IF(B21="","",SUMIFS(PCD_GTui,'Prgm Cost Drivers (ALL)'!C:C,'ReqCollege APR Profile'!B21)) ->  | D21: =IF(B21="","",SUMIFS(PCD_NTui,'Prgm Cost Drivers (ALL)'!C:C,'ReqCollege APR Profile'!B21)) ->  | F21: =IF($B21="","",SUMIFS(PCD_PgmFL,'Prgm Cost Drivers (ALL)'!$C:$C,$B21)) ->  | G21: =IF($B21="","",SUMIFS('Prgm Cost Drivers (ALL)'!N:N,'Prgm Cost Drivers (ALL)'!$C:$C,$B21)) ->  | H21: =IF($B21="","",SUMIFS('Prgm Cost Drivers (ALL)'!O:O,'Prgm Cost Drivers (ALL)'!$C:$C,$B21)) ->  | I21: =IF(B21="","",SUMIFS('Prgm Cost Drivers (ALL)'!Q:Q,'Prgm Cost Drivers (ALL)'!$C:$C,$B21)) ->  | J21: =IF(B21="","",SUMIFS('Prgm Cost Drivers (ALL)'!R:R,'Prgm Cost Drivers (ALL)'!C:C,B21)) -> 
B22: =IF(COUNTIFS('Prgm Cost Drivers (ALL)'!A:A,$C$6,'Prgm Cost Drivers (ALL)'!D:D,$C$7)<ROWS($B$10:B22),"",INDEX('Prgm Cost Drivers (ALL)'!C:C,SMALL(IF(('Prgm Cost Drivers (ALL)'!$A$4:$A$233=$C$6)+('Prgm Cost Drivers (ALL)'!$D$4:$D$233=$C$7)=2,ROW('Prgm Cost Drivers (ALL)'!$D$4:$D$233)),ROW(D13)))) ->  | C22: =IF(B22="","",SUMIFS(PCD_GTui,'Prgm Cost Drivers (ALL)'!C:C,'ReqCollege APR Profile'!B22)) ->  | D22: =IF(B22="","",SUMIFS(PCD_NTui,'Prgm Cost Drivers (ALL)'!C:C,'ReqCollege APR Profile'!B22)) ->  | F22: =IF($B22="","",SUMIFS(PCD_PgmFL,'Prgm Cost Drivers (ALL)'!$C:$C,$B22)) ->  | G22: =IF($B22="","",SUMIFS('Prgm Cost Drivers (ALL)'!N:N,'Prgm Cost Drivers (ALL)'!$C:$C,$B22)) ->  | H22: =IF($B22="","",SUMIFS('Prgm Cost Drivers (ALL)'!O:O,'Prgm Cost Drivers (ALL)'!$C:$C,$B22)) ->  | I22: =IF(B22="","",SUMIFS('Prgm Cost Drivers (ALL)'!Q:Q,'Prgm Cost Drivers (ALL)'!$C:$C,$B22)) ->  | J22: =IF(B22="","",SUMIFS('Prgm Cost Drivers (ALL)'!R:R,'Prgm Cost Drivers (ALL)'!C:C,B22)) -> 
B23: =IF(COUNTIFS('Prgm Cost Drivers (ALL)'!A:A,$C$6,'Prgm Cost Drivers (ALL)'!D:D,$C$7)<ROWS($B$10:B23),"",INDEX('Prgm Cost Drivers (ALL)'!C:C,SMALL(IF(('Prgm Cost Drivers (ALL)'!$A$4:$A$233=$C$6)+('Prgm Cost Drivers (ALL)'!$D$4:$D$233=$C$7)=2,ROW('Prgm Cost Drivers (ALL)'!$D$4:$D$233)),ROW(D14)))) ->  | C23: =IF(B23="","",SUMIFS(PCD_GTui,'Prgm Cost Drivers (ALL)'!C:C,'ReqCollege APR Profile'!B23)) ->  | D23: =IF(B23="","",SUMIFS(PCD_NTui,'Prgm Cost Drivers (ALL)'!C:C,'ReqCollege APR Profile'!B23)) ->  | F23: =IF($B23="","",SUMIFS(PCD_PgmFL,'Prgm Cost Drivers (ALL)'!$C:$C,$B23)) ->  | G23: =IF($B23="","",SUMIFS('Prgm Cost Drivers (ALL)'!N:N,'Prgm Cost Drivers (ALL)'!$C:$C,$B23)) ->  | H23: =IF($B23="","",SUMIFS('Prgm Cost Drivers (ALL)'!O:O,'Prgm Cost Drivers (ALL)'!$C:$C,$B23)) ->  | I23: =IF(B23="","",SUMIFS('Prgm Cost Drivers (ALL)'!Q:Q,'Prgm Cost Drivers (ALL)'!$C:$C,$B23)) ->  | J23: =IF(B23="","",SUMIFS('Prgm Cost Drivers (ALL)'!R:R,'Prgm Cost Drivers (ALL)'!C:C,B23)) -> 
B24: =IF(COUNTIFS('Prgm Cost Drivers (ALL)'!A:A,$C$6,'Prgm Cost Drivers (ALL)'!D:D,$C$7)<ROWS($B$10:B24),"",INDEX('Prgm Cost Drivers (ALL)'!C:C,SMALL(IF(('Prgm Cost Drivers (ALL)'!$A$4:$A$233=$C$6)+('Prgm Cost Drivers (ALL)'!$D$4:$D$233=$C$7)=2,ROW('Prgm Cost Drivers (ALL)'!$D$4:$D$233)),ROW(D15)))) ->  | C24: =IF(B24="","",SUMIFS(PCD_GTui,'Prgm Cost Drivers (ALL)'!C:C,'ReqCollege APR Profile'!B24)) ->  | D24: =IF(B24="","",SUMIFS(PCD_NTui,'Prgm Cost Drivers (ALL)'!C:C,'ReqCollege APR Profile'!B24)) ->  | F24: =IF($B24="","",SUMIFS(PCD_PgmFL,'Prgm Cost Drivers (ALL)'!$C:$C,$B24)) ->  | G24: =IF($B24="","",SUMIFS('Prgm Cost Drivers (ALL)'!N:N,'Prgm Cost Drivers (ALL)'!$C:$C,$B24)) ->  | H24: =IF($B24="","",SUMIFS('Prgm Cost Drivers (ALL)'!O:O,'Prgm Cost Drivers (ALL)'!$C:$C,$B24)) ->  | I24: =IF(B24="","",SUMIFS('Prgm Cost Drivers (ALL)'!Q:Q,'Prgm Cost Drivers (ALL)'!$C:$C,$B24)) ->  | J24: =IF(B24="","",SUMIFS('Prgm Cost Drivers (ALL)'!R:R,'Prgm Cost Drivers (ALL)'!C:C,B24)) -> 
B25: =IF(COUNTIFS('Prgm Cost Drivers (ALL)'!A:A,$C$6,'Prgm Cost Drivers (ALL)'!D:D,$C$7)<ROWS($B$10:B25),"",INDEX('Prgm Cost Drivers (ALL)'!C:C,SMALL(IF(('Prgm Cost Drivers (ALL)'!$A$4:$A$233=$C$6)+('Prgm Cost Drivers (ALL)'!$D$4:$D$233=$C$7)=2,ROW('Prgm Cost Drivers (ALL)'!$D$4:$D$233)),ROW(D16)))) ->  | C25: =IF(B25="","",SUMIFS(PCD_GTui,'Prgm Cost Drivers (ALL)'!C:C,'ReqCollege APR Profile'!B25)) ->  | D25: =IF(B25="","",SUMIFS(PCD_NTui,'Prgm Cost Drivers (ALL)'!C:C,'ReqCollege APR Profile'!B25)) ->  | F25: =IF($B25="","",SUMIFS(PCD_PgmFL,'Prgm Cost Drivers (ALL)'!$C:$C,$B25)) ->  | G25: =IF($B25="","",SUMIFS('Prgm Cost Drivers (ALL)'!N:N,'Prgm Cost Drivers (ALL)'!$C:$C,$B25)) ->  | H25: =IF($B25="","",SUMIFS('Prgm Cost Drivers (ALL)'!O:O,'Prgm Cost Drivers (ALL)'!$C:$C,$B25)) ->  | I25: =IF(B25="","",SUMIFS('Prgm Cost Drivers (ALL)'!Q:Q,'Prgm Cost Drivers (ALL)'!$C:$C,$B25)) ->  | J25: =IF(B25="","",SUMIFS('Prgm Cost Drivers (ALL)'!R:R,'Prgm Cost Drivers (ALL)'!C:C,B25)) -> 
B26: =IF(COUNTIFS('Prgm Cost Drivers (ALL)'!A:A,$C$6,'Prgm Cost Drivers (ALL)'!D:D,$C$7)<ROWS($B$10:B26),"",INDEX('Prgm Cost Drivers (ALL)'!C:C,SMALL(IF(('Prgm Cost Drivers (ALL)'!$A$4:$A$233=$C$6)+('Prgm Cost Drivers (ALL)'!$D$4:$D$233=$C$7)=2,ROW('Prgm Cost Drivers (ALL)'!$D$4:$D$233)),ROW(D17)))) ->  | C26: =IF(B26="","",SUMIFS(PCD_GTui,'Prgm Cost Drivers (ALL)'!C:C,'ReqCollege APR Profile'!B26)) ->  | D26: =IF(B26="","",SUMIFS(PCD_NTui,'Prgm Cost Drivers (ALL)'!C:C,'ReqCollege APR Profile'!B26)) ->  | F26: =IF($B26="","",SUMIFS(PCD_PgmFL,'Prgm Cost Drivers (ALL)'!$C:$C,$B26)) ->  | G26: =IF($B26="","",SUMIFS('Prgm Cost Drivers (ALL)'!N:N,'Prgm Cost Drivers (ALL)'!$C:$C,$B26)) ->  | H26: =IF($B26="","",SUMIFS('Prgm Cost Drivers (ALL)'!O:O,'Prgm Cost Drivers (ALL)'!$C:$C,$B26)) ->  | I26: =IF(B26="","",SUMIFS('Prgm Cost Drivers (ALL)'!Q:Q,'Prgm Cost Drivers (ALL)'!$C:$C,$B26)) ->  | J26: =IF(B26="","",SUMIFS('Prgm Cost Drivers (ALL)'!R:R,'Prgm Cost Drivers (ALL)'!C:C,B26)) -> 
B27: =IF(COUNTIFS('Prgm Cost Drivers (ALL)'!A:A,$C$6,'Prgm Cost Drivers (ALL)'!D:D,$C$7)<ROWS($B$10:B27),"",INDEX('Prgm Cost Drivers (ALL)'!C:C,SMALL(IF(('Prgm Cost Drivers (ALL)'!$A$4:$A$233=$C$6)+('Prgm Cost Drivers (ALL)'!$D$4:$D$233=$C$7)=2,ROW('Prgm Cost Drivers (ALL)'!$D$4:$D$233)),ROW(D18)))) ->  | C27: =IF(B27="","",SUMIFS(PCD_GTui,'Prgm Cost Drivers (ALL)'!C:C,'ReqCollege APR Profile'!B27)) ->  | D27: =IF(B27="","",SUMIFS(PCD_NTui,'Prgm Cost Drivers (ALL)'!C:C,'ReqCollege APR Profile'!B27)) ->  | F27: =IF($B27="","",SUMIFS(PCD_PgmFL,'Prgm Cost Drivers (ALL)'!$C:$C,$B27)) ->  | G27: =IF($B27="","",SUMIFS('Prgm Cost Drivers (ALL)'!N:N,'Prgm Cost Drivers (ALL)'!$C:$C,$B27)) ->  | H27: =IF($B27="","",SUMIFS('Prgm Cost Drivers (ALL)'!O:O,'Prgm Cost Drivers (ALL)'!$C:$C,$B27)) ->  | I27: =IF(B27="","",SUMIFS('Prgm Cost Drivers (ALL)'!Q:Q,'Prgm Cost Drivers (ALL)'!$C:$C,$B27)) ->  | J27: =IF(B27="","",SUMIFS('Prgm Cost Drivers (ALL)'!R:R,'Prgm Cost Drivers (ALL)'!C:C,B27)) -> 
B28: =IF(COUNTIFS('Prgm Cost Drivers (ALL)'!A:A,$C$6,'Prgm Cost Drivers (ALL)'!D:D,$C$7)<ROWS($B$10:B28),"",INDEX('Prgm Cost Drivers (ALL)'!C:C,SMALL(IF(('Prgm Cost Drivers (ALL)'!$A$4:$A$233=$C$6)+('Prgm Cost Drivers (ALL)'!$D$4:$D$233=$C$7)=2,ROW('Prgm Cost Drivers (ALL)'!$D$4:$D$233)),ROW(D22)))) -> 
A29: 1 | B29: Total | C29: =SUM(C10:C28) -> 0 | D29: =SUM(D10:D28) -> 0 | E29: =D29/C29 ->  | F29: =SUM(F10:F28) -> 0 | G29: =SUM(G10:G28) -> 0 | H29: =SUM(H10:H28) -> 0 | I29: =SUM(I10:I28) -> 0 | J29: =SUM(J10:J28) -> 0
A30: 1 | B30: College Margin % | F30: =F29/D29 ->  | G30: =G29/D29 ->  | H30: =H29/D29 -> 
A31: 1
A32: 1 | B32: ='Program Info'!E10 -> 0 | C32: ='APR 5 Year Projection'!F10 ->  | D32: ='APR 5 Year Projection'!F12 ->  | E32: =IF(B32="","",D32/C32) ->  | F32: ='APR 5 Year Projection'!F48 ->  | G32: ='APR 5 Year Projection'!F52 ->  | H32: ='APR 5 Year Projection'!F56 ->  | I32: ='Program Summary'!F28 ->  | J32: =SUMIFS('Program Info'!I61:I70,'Program Info'!D61:D70,B1) -> 0
A33: 1 | B33: =CONCATENATE("Marginal Instructional Cost Impact to College","= Home College CH X ",TEXT((E33),"$#,##0.00);($#,##.00)")) ->  | C33: =J29+J32 -> 0 | D33: X | E33: =ROUND(('ReqMarginal Impact Analysis'!F34),0) ->  | F33: =C33*E33 ->  | G33: =F33 ->  | H33: =G33 -> 
A34: 1 | B34: Net APR Adjustment | F34: =F32+F33 ->  | G34: =G32+G33 ->  | H34: =H32+H33 ->  | I34: =I32 ->  | J34: =J32 -> 0
A35: 1
A36: 1 | B36: =CONCATENATE("Proforma college ",D7,C36," APR") ->  | F36: =F29+F34 ->  | G36: =G29+G34 ->  | H36: =H29+H34 ->  | I36: =I29+I34 ->  | J36: =J29+J34 -> 0
A37: 1
A38: 1 | B38: =CONCATENATE("APR 16 included ",D41," programs as a reference") -> 
A39: 1
A40: 1 | B40: Select College | C40: =C6 -> 0
A41: 1 | B41: Degree Level | C41: =IF(C7="B","M","B") ->  | D41: =IF(C41="M", "Graduate", "Undergraduate") -> 
A42: 1
A43: 1 | B43: Program Name | C43: Gross Tuition | D43: Net Tuition | E43: Net Tuition Rate | F43: College Contribution | G43: Academic Affairs Contribution | H43: Fully Allocated Contribution | I43: Total Student Credit Hours | J43: Home College Credit Hours
A44: =IF(B44="","",1) ->  | B44: =IF(COUNTIFS('Prgm Cost Drivers (ALL)'!A:A,$C$40,'Prgm Cost Drivers (ALL)'!D:D,$C$41)<ROWS($B$44:B44),"",INDEX('Prgm Cost Drivers (ALL)'!C:C,SMALL(IF(('Prgm Cost Drivers (ALL)'!$A$4:$A$233=$C$40)+('Prgm Cost Drivers (ALL)'!$D$4:$D$233=$C$41)=2,ROW('Prgm Cost Drivers (ALL)'!$D$4:$D$233)),ROW(D1)))) ->  | C44: =IF(B44="","",SUMIFS(PCD_GTui,'Prgm Cost Drivers (ALL)'!C:C,'ReqCollege APR Profile'!B44)) ->  | D44: =IF(B44="","",SUMIFS(PCD_NTui,'Prgm Cost Drivers (ALL)'!C:C,'ReqCollege APR Profile'!B44)) ->  | E44: =IF(B44="","",D44/C44) ->  | F44: =IF($B44="","",SUMIFS(PCD_PgmFL,'Prgm Cost Drivers (ALL)'!$C:$C,$B44)) ->  | G44: =IF($B44="","",SUMIFS('Prgm Cost Drivers (ALL)'!N:N,'Prgm Cost Drivers (ALL)'!$C:$C,$B44)) ->  | H44: =IF($B44="","",SUMIFS('Prgm Cost Drivers (ALL)'!O:O,'Prgm Cost Drivers (ALL)'!$C:$C,$B44)) ->  | I44: =IF(B44="","",SUMIFS('Prgm Cost Drivers (ALL)'!Q:Q,'Prgm Cost Drivers (ALL)'!$C:$C,$B44)) ->  | J44: =SUMIFS('Prgm Cost Drivers (ALL)'!R:R,'Prgm Cost Drivers (ALL)'!C:C,B44) -> 0
B45: =IF(COUNTIFS('Prgm Cost Drivers (ALL)'!A:A,$C$40,'Prgm Cost Drivers (ALL)'!D:D,$C$41)<ROWS($B$44:B45),"",INDEX('Prgm Cost Drivers (ALL)'!C:C,SMALL(IF(('Prgm Cost Drivers (ALL)'!$A$4:$A$233=$C$40)+('Prgm Cost Drivers (ALL)'!$D$4:$D$233=$C$41)=2,ROW('Prgm Cost Drivers (ALL)'!$D$4:$D$233)),ROW(D2)))) ->  | C45: =IF(B45="","",SUMIFS(PCD_GTui,'Prgm Cost Drivers (ALL)'!C:C,'ReqCollege APR Profile'!B45)) ->  | D45: =IF(B45="","",SUMIFS(PCD_NTui,'Prgm Cost Drivers (ALL)'!C:C,'ReqCollege APR Profile'!B45)) ->  | E45: =IF(B45="","",D45/C45) ->  | F45: =IF($B45="","",SUMIFS(PCD_PgmFL,'Prgm Cost Drivers (ALL)'!$C:$C,$B45)) ->  | G45: =IF($B45="","",SUMIFS('Prgm Cost Drivers (ALL)'!N:N,'Prgm Cost Drivers (ALL)'!$C:$C,$B45)) ->  | H45: =IF($B45="","",SUMIFS('Prgm Cost Drivers (ALL)'!O:O,'Prgm Cost Drivers (ALL)'!$C:$C,$B45)) ->  | I45: =IF(B45="","",SUMIFS('Prgm Cost Drivers (ALL)'!Q:Q,'Prgm Cost Drivers (ALL)'!$C:$C,$B45)) ->  | J45: =SUMIFS('Prgm Cost Drivers (ALL)'!R:R,'Prgm Cost Drivers (ALL)'!C:C,B45) -> 0
B46: =IF(COUNTIFS('Prgm Cost Drivers (ALL)'!A:A,$C$40,'Prgm Cost Drivers (ALL)'!D:D,$C$41)<ROWS($B$44:B46),"",INDEX('Prgm Cost Drivers (ALL)'!C:C,SMALL(IF(('Prgm Cost Drivers (ALL)'!$A$4:$A$233=$C$40)+('Prgm Cost Drivers (ALL)'!$D$4:$D$233=$C$41)=2,ROW('Prgm Cost Drivers (ALL)'!$D$4:$D$233)),ROW(D3)))) ->  | C46: =IF(B46="","",SUMIFS(PCD_GTui,'Prgm Cost Drivers (ALL)'!C:C,'ReqCollege APR Profile'!B46)) ->  | D46: =IF(B46="","",SUMIFS(PCD_NTui,'Prgm Cost Drivers (ALL)'!C:C,'ReqCollege APR Profile'!B46)) ->  | F46: =IF($B46="","",SUMIFS(PCD_PgmFL,'Prgm Cost Drivers (ALL)'!$C:$C,$B46)) ->  | G46: =IF($B46="","",SUMIFS('Prgm Cost Drivers (ALL)'!N:N,'Prgm Cost Drivers (ALL)'!$C:$C,$B46)) ->  | H46: =IF($B46="","",SUMIFS('Prgm Cost Drivers (ALL)'!O:O,'Prgm Cost Drivers (ALL)'!$C:$C,$B46)) ->  | I46: =IF(B46="","",SUMIFS('Prgm Cost Drivers (ALL)'!Q:Q,'Prgm Cost Drivers (ALL)'!$C:$C,$B46)) ->  | J46: =SUMIFS('Prgm Cost Drivers (ALL)'!R:R,'Prgm Cost Drivers (ALL)'!C:C,B46) -> 0
B47: =IF(COUNTIFS('Prgm Cost Drivers (ALL)'!A:A,$C$40,'Prgm Cost Drivers (ALL)'!D:D,$C$41)<ROWS($B$44:B47),"",INDEX('Prgm Cost Drivers (ALL)'!C:C,SMALL(IF(('Prgm Cost Drivers (ALL)'!$A$4:$A$233=$C$40)+('Prgm Cost Drivers (ALL)'!$D$4:$D$233=$C$41)=2,ROW('Prgm Cost Drivers (ALL)'!$D$4:$D$233)),ROW(D4)))) ->  | C47: =IF(B47="","",SUMIFS(PCD_GTui,'Prgm Cost Drivers (ALL)'!C:C,'ReqCollege APR Profile'!B47)) ->  | D47: =IF(B47="","",SUMIFS(PCD_NTui,'Prgm Cost Drivers (ALL)'!C:C,'ReqCollege APR Profile'!B47)) ->  | F47: =IF($B47="","",SUMIFS(PCD_PgmFL,'Prgm Cost Drivers (ALL)'!$C:$C,$B47)) ->  | G47: =IF($B47="","",SUMIFS('Prgm Cost Drivers (ALL)'!N:N,'Prgm Cost Drivers (ALL)'!$C:$C,$B47)) ->  | H47: =IF($B47="","",SUMIFS('Prgm Cost Drivers (ALL)'!O:O,'Prgm Cost Drivers (ALL)'!$C:$C,$B47)) ->  | I47: =IF(B47="","",SUMIFS('Prgm Cost Drivers (ALL)'!Q:Q,'Prgm Cost Drivers (ALL)'!$C:$C,$B47)) ->  | J47: =SUMIFS('Prgm Cost Drivers (ALL)'!R:R,'Prgm Cost Drivers (ALL)'!C:C,B47) -> 0
B48: =IF(COUNTIFS('Prgm Cost Drivers (ALL)'!A:A,$C$40,'Prgm Cost Drivers (ALL)'!D:D,$C$41)<ROWS($B$44:B48),"",INDEX('Prgm Cost Drivers (ALL)'!C:C,SMALL(IF(('Prgm Cost Drivers (ALL)'!$A$4:$A$233=$C$40)+('Prgm Cost Drivers (ALL)'!$D$4:$D$233=$C$41)=2,ROW('Prgm Cost Drivers (ALL)'!$D$4:$D$233)),ROW(D5)))) ->  | C48: =IF(B48="","",SUMIFS(PCD_GTui,'Prgm Cost Drivers (ALL)'!C:C,'ReqCollege APR Profile'!B48)) ->  | D48: =IF(B48="","",SUMIFS(PCD_NTui,'Prgm Cost Drivers (ALL)'!C:C,'ReqCollege APR Profile'!B48)) ->  | F48: =IF($B48="","",SUMIFS(PCD_PgmFL,'Prgm Cost Drivers (ALL)'!$C:$C,$B48)) ->  | G48: =IF($B48="","",SUMIFS('Prgm Cost Drivers (ALL)'!N:N,'Prgm Cost Drivers (ALL)'!$C:$C,$B48)) ->  | H48: =IF($B48="","",SUMIFS('Prgm Cost Drivers (ALL)'!O:O,'Prgm Cost Drivers (ALL)'!$C:$C,$B48)) ->  | I48: =IF(B48="","",SUMIFS('Prgm Cost Drivers (ALL)'!Q:Q,'Prgm Cost Drivers (ALL)'!$C:$C,$B48)) ->  | J48: =SUMIFS('Prgm Cost Drivers (ALL)'!R:R,'Prgm Cost Drivers (ALL)'!C:C,B48) -> 0
B49: =IF(COUNTIFS('Prgm Cost Drivers (ALL)'!A:A,$C$40,'Prgm Cost Drivers (ALL)'!D:D,$C$41)<ROWS($B$44:B49),"",INDEX('Prgm Cost Drivers (ALL)'!C:C,SMALL(IF(('Prgm Cost Drivers (ALL)'!$A$4:$A$233=$C$40)+('Prgm Cost Drivers (ALL)'!$D$4:$D$233=$C$41)=2,ROW('Prgm Cost Drivers (ALL)'!$D$4:$D$233)),ROW(D6)))) ->  | C49: =IF(B49="","",SUMIFS(PCD_GTui,'Prgm Cost Drivers (ALL)'!C:C,'ReqCollege APR Profile'!B49)) ->  | D49: =IF(B49="","",SUMIFS(PCD_NTui,'Prgm Cost Drivers (ALL)'!C:C,'ReqCollege APR Profile'!B49)) ->  | F49: =IF($B49="","",SUMIFS(PCD_PgmFL,'Prgm Cost Drivers (ALL)'!$C:$C,$B49)) ->  | G49: =IF($B49="","",SUMIFS('Prgm Cost Drivers (ALL)'!N:N,'Prgm Cost Drivers (ALL)'!$C:$C,$B49)) ->  | H49: =IF($B49="","",SUMIFS('Prgm Cost Drivers (ALL)'!O:O,'Prgm Cost Drivers (ALL)'!$C:$C,$B49)) ->  | I49: =IF(B49="","",SUMIFS('Prgm Cost Drivers (ALL)'!Q:Q,'Prgm Cost Drivers (ALL)'!$C:$C,$B49)) ->  | J49: =SUMIFS('Prgm Cost Drivers (ALL)'!R:R,'Prgm Cost Drivers (ALL)'!C:C,B49) -> 0
B50: =IF(COUNTIFS('Prgm Cost Drivers (ALL)'!A:A,$C$40,'Prgm Cost Drivers (ALL)'!D:D,$C$41)<ROWS($B$44:B50),"",INDEX('Prgm Cost Drivers (ALL)'!C:C,SMALL(IF(('Prgm Cost Drivers (ALL)'!$A$4:$A$233=$C$40)+('Prgm Cost Drivers (ALL)'!$D$4:$D$233=$C$41)=2,ROW('Prgm Cost Drivers (ALL)'!$D$4:$D$233)),ROW(D7)))) ->  | C50: =IF(B50="","",SUMIFS(PCD_GTui,'Prgm Cost Drivers (ALL)'!C:C,'ReqCollege APR Profile'!B50)) ->  | D50: =IF(B50="","",SUMIFS(PCD_NTui,'Prgm Cost Drivers (ALL)'!C:C,'ReqCollege APR Profile'!B50)) ->  | F50: =IF($B50="","",SUMIFS(PCD_PgmFL,'Prgm Cost Drivers (ALL)'!$C:$C,$B50)) ->  | G50: =IF($B50="","",SUMIFS('Prgm Cost Drivers (ALL)'!N:N,'Prgm Cost Drivers (ALL)'!$C:$C,$B50)) ->  | H50: =IF($B50="","",SUMIFS('Prgm Cost Drivers (ALL)'!O:O,'Prgm Cost Drivers (ALL)'!$C:$C,$B50)) ->  | I50: =IF(B50="","",SUMIFS('Prgm Cost Drivers (ALL)'!Q:Q,'Prgm Cost Drivers (ALL)'!$C:$C,$B50)) ->  | J50: =SUMIFS('Prgm Cost Drivers (ALL)'!R:R,'Prgm Cost Drivers (ALL)'!C:C,B50) -> 0
B51: =IF(COUNTIFS('Prgm Cost Drivers (ALL)'!A:A,$C$40,'Prgm Cost Drivers (ALL)'!D:D,$C$41)<ROWS($B$44:B51),"",INDEX('Prgm Cost Drivers (ALL)'!C:C,SMALL(IF(('Prgm Cost Drivers (ALL)'!$A$4:$A$233=$C$40)+('Prgm Cost Drivers (ALL)'!$D$4:$D$233=$C$41)=2,ROW('Prgm Cost Drivers (ALL)'!$D$4:$D$233)),ROW(D8)))) ->  | C51: =IF(B51="","",SUMIFS(PCD_GTui,'Prgm Cost Drivers (ALL)'!C:C,'ReqCollege APR Profile'!B51)) ->  | D51: =IF(B51="","",SUMIFS(PCD_NTui,'Prgm Cost Drivers (ALL)'!C:C,'ReqCollege APR Profile'!B51)) ->  | F51: =IF($B51="","",SUMIFS(PCD_PgmFL,'Prgm Cost Drivers (ALL)'!$C:$C,$B51)) ->  | G51: =IF($B51="","",SUMIFS('Prgm Cost Drivers (ALL)'!N:N,'Prgm Cost Drivers (ALL)'!$C:$C,$B51)) ->  | H51: =IF($B51="","",SUMIFS('Prgm Cost Drivers (ALL)'!O:O,'Prgm Cost Drivers (ALL)'!$C:$C,$B51)) ->  | I51: =IF(B51="","",SUMIFS('Prgm Cost Drivers (ALL)'!Q:Q,'Prgm Cost Drivers (ALL)'!$C:$C,$B51)) ->  | J51: =SUMIFS('Prgm Cost Drivers (ALL)'!R:R,'Prgm Cost Drivers (ALL)'!C:C,B51) -> 0
B52: =IF(COUNTIFS('Prgm Cost Drivers (ALL)'!A:A,$C$40,'Prgm Cost Drivers (ALL)'!D:D,$C$41)<ROWS($B$44:B52),"",INDEX('Prgm Cost Drivers (ALL)'!C:C,SMALL(IF(('Prgm Cost Drivers (ALL)'!$A$4:$A$233=$C$40)+('Prgm Cost Drivers (ALL)'!$D$4:$D$233=$C$41)=2,ROW('Prgm Cost Drivers (ALL)'!$D$4:$D$233)),ROW(D9)))) ->  | C52: =IF(B52="","",SUMIFS(PCD_GTui,'Prgm Cost Drivers (ALL)'!C:C,'ReqCollege APR Profile'!B52)) ->  | D52: =IF(B52="","",SUMIFS(PCD_NTui,'Prgm Cost Drivers (ALL)'!C:C,'ReqCollege APR Profile'!B52)) ->  | F52: =IF($B52="","",SUMIFS(PCD_PgmFL,'Prgm Cost Drivers (ALL)'!$C:$C,$B52)) ->  | G52: =IF($B52="","",SUMIFS('Prgm Cost Drivers (ALL)'!N:N,'Prgm Cost Drivers (ALL)'!$C:$C,$B52)) ->  | H52: =IF($B52="","",SUMIFS('Prgm Cost Drivers (ALL)'!O:O,'Prgm Cost Drivers (ALL)'!$C:$C,$B52)) ->  | I52: =IF(B52="","",SUMIFS('Prgm Cost Drivers (ALL)'!Q:Q,'Prgm Cost Drivers (ALL)'!$C:$C,$B52)) ->  | J52: =IF(B52="","",SUMIFS('Prgm Cost Drivers (ALL)'!R:R,'Prgm Cost Drivers (ALL)'!C:C,B52)) -> 
B53: =IF(COUNTIFS('Prgm Cost Drivers (ALL)'!A:A,$C$40,'Prgm Cost Drivers (ALL)'!D:D,$C$41)<ROWS($B$44:B53),"",INDEX('Prgm Cost Drivers (ALL)'!C:C,SMALL(IF(('Prgm Cost Drivers (ALL)'!$A$4:$A$233=$C$40)+('Prgm Cost Drivers (ALL)'!$D$4:$D$233=$C$41)=2,ROW('Prgm Cost Drivers (ALL)'!$D$4:$D$233)),ROW(D10)))) ->  | C53: =IF(B53="","",SUMIFS(PCD_GTui,'Prgm Cost Drivers (ALL)'!C:C,'ReqCollege APR Profile'!B53)) ->  | D53: =IF(B53="","",SUMIFS(PCD_NTui,'Prgm Cost Drivers (ALL)'!C:C,'ReqCollege APR Profile'!B53)) ->  | F53: =IF($B53="","",SUMIFS(PCD_PgmFL,'Prgm Cost Drivers (ALL)'!$C:$C,$B53)) ->  | G53: =IF($B53="","",SUMIFS('Prgm Cost Drivers (ALL)'!N:N,'Prgm Cost Drivers (ALL)'!$C:$C,$B53)) ->  | H53: =IF($B53="","",SUMIFS('Prgm Cost Drivers (ALL)'!O:O,'Prgm Cost Drivers (ALL)'!$C:$C,$B53)) ->  | I53: =IF(B53="","",SUMIFS('Prgm Cost Drivers (ALL)'!Q:Q,'Prgm Cost Drivers (ALL)'!$C:$C,$B53)) ->  | J53: =IF(B53="","",SUMIFS('Prgm Cost Drivers (ALL)'!R:R,'Prgm Cost Drivers (ALL)'!C:C,B53)) -> 
B54: =IF(COUNTIFS('Prgm Cost Drivers (ALL)'!A:A,$C$40,'Prgm Cost Drivers (ALL)'!D:D,$C$41)<ROWS($B$44:B54),"",INDEX('Prgm Cost Drivers (ALL)'!C:C,SMALL(IF(('Prgm Cost Drivers (ALL)'!$A$4:$A$233=$C$40)+('Prgm Cost Drivers (ALL)'!$D$4:$D$233=$C$41)=2,ROW('Prgm Cost Drivers (ALL)'!$D$4:$D$233)),ROW(D11)))) ->  | C54: =IF(B54="","",SUMIFS(PCD_GTui,'Prgm Cost Drivers (ALL)'!C:C,'ReqCollege APR Profile'!B54)) ->  | D54: =IF(B54="","",SUMIFS(PCD_NTui,'Prgm Cost Drivers (ALL)'!C:C,'ReqCollege APR Profile'!B54)) ->  | F54: =IF($B54="","",SUMIFS(PCD_PgmFL,'Prgm Cost Drivers (ALL)'!$C:$C,$B54)) ->  | G54: =IF($B54="","",SUMIFS('Prgm Cost Drivers (ALL)'!N:N,'Prgm Cost Drivers (ALL)'!$C:$C,$B54)) ->  | H54: =IF($B54="","",SUMIFS('Prgm Cost Drivers (ALL)'!O:O,'Prgm Cost Drivers (ALL)'!$C:$C,$B54)) ->  | I54: =IF(B54="","",SUMIFS('Prgm Cost Drivers (ALL)'!Q:Q,'Prgm Cost Drivers (ALL)'!$C:$C,$B54)) ->  | J54: =IF(B54="","",SUMIFS('Prgm Cost Drivers (ALL)'!R:R,'Prgm Cost Drivers (ALL)'!C:C,B54)) -> 
B55: =IF(COUNTIFS('Prgm Cost Drivers (ALL)'!A:A,$C$40,'Prgm Cost Drivers (ALL)'!D:D,$C$41)<ROWS($B$44:B55),"",INDEX('Prgm Cost Drivers (ALL)'!C:C,SMALL(IF(('Prgm Cost Drivers (ALL)'!$A$4:$A$233=$C$40)+('Prgm Cost Drivers (ALL)'!$D$4:$D$233=$C$41)=2,ROW('Prgm Cost Drivers (ALL)'!$D$4:$D$233)),ROW(D12)))) ->  | C55: =IF(B55="","",SUMIFS(PCD_GTui,'Prgm Cost Drivers (ALL)'!C:C,'ReqCollege APR Profile'!B55)) ->  | D55: =IF(B55="","",SUMIFS(PCD_NTui,'Prgm Cost Drivers (ALL)'!C:C,'ReqCollege APR Profile'!B55)) ->  | F55: =IF($B55="","",SUMIFS(PCD_PgmFL,'Prgm Cost Drivers (ALL)'!$C:$C,$B55)) ->  | G55: =IF($B55="","",SUMIFS('Prgm Cost Drivers (ALL)'!N:N,'Prgm Cost Drivers (ALL)'!$C:$C,$B55)) ->  | H55: =IF($B55="","",SUMIFS('Prgm Cost Drivers (ALL)'!O:O,'Prgm Cost Drivers (ALL)'!$C:$C,$B55)) ->  | I55: =IF(B55="","",SUMIFS('Prgm Cost Drivers (ALL)'!Q:Q,'Prgm Cost Drivers (ALL)'!$C:$C,$B55)) ->  | J55: =IF(B55="","",SUMIFS('Prgm Cost Drivers (ALL)'!R:R,'Prgm Cost Drivers (ALL)'!C:C,B55)) -> 
B56: =IF(COUNTIFS('Prgm Cost Drivers (ALL)'!A:A,$C$40,'Prgm Cost Drivers (ALL)'!D:D,$C$41)<ROWS($B$44:B56),"",INDEX('Prgm Cost Drivers (ALL)'!C:C,SMALL(IF(('Prgm Cost Drivers (ALL)'!$A$4:$A$233=$C$40)+('Prgm Cost Drivers (ALL)'!$D$4:$D$233=$C$41)=2,ROW('Prgm Cost Drivers (ALL)'!$D$4:$D$233)),ROW(D13)))) ->  | C56: =IF(B56="","",SUMIFS(PCD_GTui,'Prgm Cost Drivers (ALL)'!C:C,'ReqCollege APR Profile'!B56)) ->  | D56: =IF(B56="","",SUMIFS(PCD_NTui,'Prgm Cost Drivers (ALL)'!C:C,'ReqCollege APR Profile'!B56)) ->  | F56: =IF($B56="","",SUMIFS(PCD_PgmFL,'Prgm Cost Drivers (ALL)'!$C:$C,$B56)) ->  | G56: =IF($B56="","",SUMIFS('Prgm Cost Drivers (ALL)'!N:N,'Prgm Cost Drivers (ALL)'!$C:$C,$B56)) ->  | H56: =IF($B56="","",SUMIFS('Prgm Cost Drivers (ALL)'!O:O,'Prgm Cost Drivers (ALL)'!$C:$C,$B56)) ->  | I56: =IF(B56="","",SUMIFS('Prgm Cost Drivers (ALL)'!Q:Q,'Prgm Cost Drivers (ALL)'!$C:$C,$B56)) ->  | J56: =IF(B56="","",SUMIFS('Prgm Cost Drivers (ALL)'!R:R,'Prgm Cost Drivers (ALL)'!C:C,B56)) -> 
B57: =IF(COUNTIFS('Prgm Cost Drivers (ALL)'!A:A,$C$40,'Prgm Cost Drivers (ALL)'!D:D,$C$41)<ROWS($B$44:B57),"",INDEX('Prgm Cost Drivers (ALL)'!C:C,SMALL(IF(('Prgm Cost Drivers (ALL)'!$A$4:$A$233=$C$40)+('Prgm Cost Drivers (ALL)'!$D$4:$D$233=$C$41)=2,ROW('Prgm Cost Drivers (ALL)'!$D$4:$D$233)),ROW(D14)))) ->  | C57: =IF(B57="","",SUMIFS(PCD_GTui,'Prgm Cost Drivers (ALL)'!C:C,'ReqCollege APR Profile'!B57)) ->  | D57: =IF(B57="","",SUMIFS(PCD_NTui,'Prgm Cost Drivers (ALL)'!C:C,'ReqCollege APR Profile'!B57)) ->  | F57: =IF($B57="","",SUMIFS(PCD_PgmFL,'Prgm Cost Drivers (ALL)'!$C:$C,$B57)) ->  | G57: =IF($B57="","",SUMIFS('Prgm Cost Drivers (ALL)'!N:N,'Prgm Cost Drivers (ALL)'!$C:$C,$B57)) ->  | H57: =IF($B57="","",SUMIFS('Prgm Cost Drivers (ALL)'!O:O,'Prgm Cost Drivers (ALL)'!$C:$C,$B57)) ->  | I57: =IF(B57="","",SUMIFS('Prgm Cost Drivers (ALL)'!Q:Q,'Prgm Cost Drivers (ALL)'!$C:$C,$B57)) ->  | J57: =IF(B57="","",SUMIFS('Prgm Cost Drivers (ALL)'!R:R,'Prgm Cost Drivers (ALL)'!C:C,B57)) -> 
B58: =IF(COUNTIFS('Prgm Cost Drivers (ALL)'!A:A,$C$40,'Prgm Cost Drivers (ALL)'!D:D,$C$41)<ROWS($B$44:B58),"",INDEX('Prgm Cost Drivers (ALL)'!C:C,SMALL(IF(('Prgm Cost Drivers (ALL)'!$A$4:$A$233=$C$40)+('Prgm Cost Drivers (ALL)'!$D$4:$D$233=$C$41)=2,ROW('Prgm Cost Drivers (ALL)'!$D$4:$D$233)),ROW(D15)))) ->  | C58: =IF(B58="","",SUMIFS(PCD_GTui,'Prgm Cost Drivers (ALL)'!C:C,'ReqCollege APR Profile'!B58)) ->  | D58: =IF(B58="","",SUMIFS(PCD_NTui,'Prgm Cost Drivers (ALL)'!C:C,'ReqCollege APR Profile'!B58)) ->  | F58: =IF($B58="","",SUMIFS(PCD_PgmFL,'Prgm Cost Drivers (ALL)'!$C:$C,$B58)) ->  | G58: =IF($B58="","",SUMIFS('Prgm Cost Drivers (ALL)'!N:N,'Prgm Cost Drivers (ALL)'!$C:$C,$B58)) ->  | H58: =IF($B58="","",SUMIFS('Prgm Cost Drivers (ALL)'!O:O,'Prgm Cost Drivers (ALL)'!$C:$C,$B58)) ->  | I58: =IF(B58="","",SUMIFS('Prgm Cost Drivers (ALL)'!Q:Q,'Prgm Cost Drivers (ALL)'!$C:$C,$B58)) ->  | J58: =IF(B58="","",SUMIFS('Prgm Cost Drivers (ALL)'!R:R,'Prgm Cost Drivers (ALL)'!C:C,B58)) -> 
B59: =IF(COUNTIFS('Prgm Cost Drivers (ALL)'!A:A,$C$40,'Prgm Cost Drivers (ALL)'!D:D,$C$41)<ROWS($B$44:B59),"",INDEX('Prgm Cost Drivers (ALL)'!C:C,SMALL(IF(('Prgm Cost Drivers (ALL)'!$A$4:$A$233=$C$40)+('Prgm Cost Drivers (ALL)'!$D$4:$D$233=$C$41)=2,ROW('Prgm Cost Drivers (ALL)'!$D$4:$D$233)),ROW(D16)))) ->  | C59: =IF(B59="","",SUMIFS(PCD_GTui,'Prgm Cost Drivers (ALL)'!C:C,'ReqCollege APR Profile'!B59)) ->  | D59: =IF(B59="","",SUMIFS(PCD_NTui,'Prgm Cost Drivers (ALL)'!C:C,'ReqCollege APR Profile'!B59)) ->  | F59: =IF($B59="","",SUMIFS(PCD_PgmFL,'Prgm Cost Drivers (ALL)'!$C:$C,$B59)) ->  | G59: =IF($B59="","",SUMIFS('Prgm Cost Drivers (ALL)'!N:N,'Prgm Cost Drivers (ALL)'!$C:$C,$B59)) ->  | H59: =IF($B59="","",SUMIFS('Prgm Cost Drivers (ALL)'!O:O,'Prgm Cost Drivers (ALL)'!$C:$C,$B59)) ->  | I59: =IF(B59="","",SUMIFS('Prgm Cost Drivers (ALL)'!Q:Q,'Prgm Cost Drivers (ALL)'!$C:$C,$B59)) ->  | J59: =IF(B59="","",SUMIFS('Prgm Cost Drivers (ALL)'!R:R,'Prgm Cost Drivers (ALL)'!C:C,B59)) -> 
B60: =IF(COUNTIFS('Prgm Cost Drivers (ALL)'!A:A,$C$40,'Prgm Cost Drivers (ALL)'!D:D,$C$41)<ROWS($B$44:B60),"",INDEX('Prgm Cost Drivers (ALL)'!C:C,SMALL(IF(('Prgm Cost Drivers (ALL)'!$A$4:$A$233=$C$40)+('Prgm Cost Drivers (ALL)'!$D$4:$D$233=$C$41)=2,ROW('Prgm Cost Drivers (ALL)'!$D$4:$D$233)),ROW(D17)))) ->  | C60: =IF(B60="","",SUMIFS(PCD_GTui,'Prgm Cost Drivers (ALL)'!C:C,'ReqCollege APR Profile'!B60)) ->  | D60: =IF(B60="","",SUMIFS(PCD_NTui,'Prgm Cost Drivers (ALL)'!C:C,'ReqCollege APR Profile'!B60)) ->  | F60: =IF($B60="","",SUMIFS(PCD_PgmFL,'Prgm Cost Drivers (ALL)'!$C:$C,$B60)) ->  | G60: =IF($B60="","",SUMIFS('Prgm Cost Drivers (ALL)'!N:N,'Prgm Cost Drivers (ALL)'!$C:$C,$B60)) ->  | H60: =IF($B60="","",SUMIFS('Prgm Cost Drivers (ALL)'!O:O,'Prgm Cost Drivers (ALL)'!$C:$C,$B60)) ->  | I60: =IF(B60="","",SUMIFS('Prgm Cost Drivers (ALL)'!Q:Q,'Prgm Cost Drivers (ALL)'!$C:$C,$B60)) ->  | J60: =IF(B60="","",SUMIFS('Prgm Cost Drivers (ALL)'!R:R,'Prgm Cost Drivers (ALL)'!C:C,B60)) -> 
B61: =IF(COUNTIFS('Prgm Cost Drivers (ALL)'!A:A,$C$40,'Prgm Cost Drivers (ALL)'!D:D,$C$41)<ROWS($B$44:B61),"",INDEX('Prgm Cost Drivers (ALL)'!C:C,SMALL(IF(('Prgm Cost Drivers (ALL)'!$A$4:$A$233=$C$40)+('Prgm Cost Drivers (ALL)'!$D$4:$D$233=$C$41)=2,ROW('Prgm Cost Drivers (ALL)'!$D$4:$D$233)),ROW(D18)))) ->  | C61: =IF(B61="","",SUMIFS(PCD_GTui,'Prgm Cost Drivers (ALL)'!C:C,'ReqCollege APR Profile'!B61)) ->  | D61: =IF(B61="","",SUMIFS(PCD_NTui,'Prgm Cost Drivers (ALL)'!C:C,'ReqCollege APR Profile'!B61)) ->  | F61: =IF($B61="","",SUMIFS(PCD_PgmFL,'Prgm Cost Drivers (ALL)'!$C:$C,$B61)) ->  | G61: =IF($B61="","",SUMIFS('Prgm Cost Drivers (ALL)'!N:N,'Prgm Cost Drivers (ALL)'!$C:$C,$B61)) ->  | H61: =IF($B61="","",SUMIFS('Prgm Cost Drivers (ALL)'!O:O,'Prgm Cost Drivers (ALL)'!$C:$C,$B61)) ->  | I61: =IF(B61="","",SUMIFS('Prgm Cost Drivers (ALL)'!Q:Q,'Prgm Cost Drivers (ALL)'!$C:$C,$B61)) ->  | J61: =IF(B61="","",SUMIFS('Prgm Cost Drivers (ALL)'!R:R,'Prgm Cost Drivers (ALL)'!C:C,B61)) -> 
A63: 1 | B63: Total | C63: =SUM(C44:C62) -> 0 | D63: =SUM(D44:D62) -> 0 | E63: =D63/C63 ->  | F63: =SUM(F44:F62) -> 0 | G63: =SUM(G44:G62) -> 0 | H63: =SUM(H44:H62) -> 0 | I63: =SUM(I44:I62) -> 0 | J63: =SUM(J44:J62) -> 0
A64: 1 | B64: College Margin % | F64: =F63/D63 ->  | G64: =G63/D63 ->  | H64: =H63/D63 -> 

Sheet ReqMarginal Impact Analysis (hidden)
A1: ='Program Summary'!A1:G1 -> 0
A2: ='Program Summary'!A2:G2 -> 0
A3: COST ANALYTICS
A5: ***Applies to Home College Only***
A7: College Spending Plan
A8: ='Program Summary'!B41 -> 
B9: ='APR 5 Year Projection'!B7 -> 0 | C9: ='APR 5 Year Projection'!C7 -> 0-1 | D9: ='APR 5 Year Projection'!D7 ->  | E9: ='APR 5 Year Projection'!E7 ->  | F9: ='APR 5 Year Projection'!F7 ->  | G9: Total
A10: Instructional Costs
A11: Instructional Costs - College Spending Plan | B11: ='College Spending Plan'!C24 -> 0 | C11: ='College Spending Plan'!D24 -> 0 | D11: ='College Spending Plan'!E24 -> 0 | E11: ='College Spending Plan'!F24 -> 0 | F11: ='College Spending Plan'!G24 -> 0 | G11: =SUM(B11:F11) -> 0
A12: APR Calculated Instruction Cost | B12: =SUMIFS('APR 5 Year Projection'!B15:B26,'APR 5 Year Projection'!$A$15:$A$26,HomeCollege) -> 0 | C12: =SUMIFS('APR 5 Year Projection'!C15:C26,'APR 5 Year Projection'!$A$15:$A$26,HomeCollege) -> 0 | D12: =SUMIFS('APR 5 Year Projection'!D15:D26,'APR 5 Year Projection'!$A$15:$A$26,HomeCollege) -> 0 | E12: =SUMIFS('APR 5 Year Projection'!E15:E26,'APR 5 Year Projection'!$A$15:$A$26,HomeCollege) -> 0 | F12: =SUMIFS('APR 5 Year Projection'!F15:F26,'APR 5 Year Projection'!$A$15:$A$26,HomeCollege) -> 0 | G12: =SUMIFS('APR 5 Year Projection'!G15:G26,'APR 5 Year Projection'!$A$15:$A$26,HomeCollege) -> 0
A13: Instructional Variance | B13: =B12-B11 -> 0 | C13: 0 | D13: 0 | E13: 0 | F13: 0 | G13: 0
A15: Direct Non instructional Costs
A16: College Spending Plan | B16: ='College Spending Plan'!C46 -> 0 | C16: ='College Spending Plan'!D46 -> 0 | D16: ='College Spending Plan'!E46 -> 0 | E16: ='College Spending Plan'!F46 -> 0 | F16: ='College Spending Plan'!G46 -> 0 | G16: =SUM(B16:F16) -> 0
A17: APR Calculated Cost | B17: =SUMIFS('APR 5 Year Projection'!B28:B39,'APR 5 Year Projection'!$A$28:$A$39,HomeCollege) -> 0 | C17: =SUMIFS('APR 5 Year Projection'!C28:C39,'APR 5 Year Projection'!$A$28:$A$39,HomeCollege) -> 0 | D17: =SUMIFS('APR 5 Year Projection'!D28:D39,'APR 5 Year Projection'!$A$28:$A$39,HomeCollege) -> 0 | E17: =SUMIFS('APR 5 Year Projection'!E28:E39,'APR 5 Year Projection'!$A$28:$A$39,HomeCollege) -> 0 | F17: =SUMIFS('APR 5 Year Projection'!F28:F39,'APR 5 Year Projection'!$A$28:$A$39,HomeCollege) -> 0 | G17: =SUM(B17:F17) -> 0
A18: Non Instructional Variance | B18: =B17-B16 -> 0 | C18: 0 | D18: 0 | E18: 0 | F18: 0 | G18: 0
A19: Total College Variance | B19: =B18+B13 -> 0 | C19: 0 | D19: 0 | E19: 0 | F19: 0 | G19: 0
A21: Program - Marginal Impact Analysis - Instructional Cost
A22: Assumes College Credit Hour Production is Maintained
A23: Instructional Impact | B23: =B9 -> 0 | C23: 0-1
B24: 1 | C24: 2 | D24: 3 | E24: 4 | F24: 5
A25: Base Year College Salary + 2.5% inflation per year | B25: =IF(dtype="grad",VLOOKUP(HomeCollege,Assumptions!$A$88:$E$101,5,FALSE)*(1+expinc)^start_Gap,VLOOKUP(HomeCollege,Assumptions!$A$88:$E$101,3,FALSE)*(1+expinc)^start_Gap) ->  | C25: =IF(dtype="grad",VLOOKUP(HomeCollege,Assumptions!$A$88:$E$101,5,FALSE)*(1+expinc)^(start_Gap+B24),VLOOKUP(HomeCollege,Assumptions!$A$88:$E$101,3,FALSE)*(1+expinc)^(start_Gap+B24)) ->  | D25: =IF(dtype="grad",VLOOKUP(HomeCollege,Assumptions!$A$88:$E$101,5,FALSE)*(1+expinc)^(start_Gap+C24),VLOOKUP(HomeCollege,Assumptions!$A$88:$E$101,3,FALSE)*(1+expinc)^(start_Gap+C24)) ->  | E25: =IF(dtype="grad",VLOOKUP(HomeCollege,Assumptions!$A$88:$E$101,5,FALSE)*(1+expinc)^(start_Gap+D24),VLOOKUP(HomeCollege,Assumptions!$A$88:$E$101,3,FALSE)*(1+expinc)^(start_Gap+D24)) ->  | F25: =IF(dtype="grad",VLOOKUP(HomeCollege,Assumptions!$A$88:$E$101,5,FALSE)*(1+expinc)^(start_Gap+E24),VLOOKUP(HomeCollege,Assumptions!$A$88:$E$101,3,FALSE)*(1+expinc)^(start_Gap+E24)) -> 
A26: College Spending Plan - Incremental Instruction | B26: =B11 -> 0 | C26: =C11 -> 0 | D26: =D11 -> 0 | E26: =E11 -> 0 | F26: =F11 -> 0
A27: Adjusted Salary | B27: =B25+B26 ->  | C27: =C25+C26 ->  | D27: =D25+D26 ->  | E27: =E25+E26 ->  | F27: =F25+F26 -> 
A28: Base Year College CH | B28: =IF(dtype="UG",VLOOKUP(HomeCollege,Assumptions!$A$88:$E$101,2,FALSE),IF(dtype="Grad",VLOOKUP(HomeCollege,Assumptions!$A$88:$F$101,4,FALSE))) ->  | C28: =$B$28 ->  | D28: =$B$28 ->  | E28: =$B$28 ->  | F28: =$B$28 -> 
A29: =CONCATENATE(A1, " Program Incremental CH") -> 0 Program Incremental CH | B29: =SUMIFS('Program Info'!E61:E70,'Program Info'!$D$61:$D$70,HomeCollege) -> 0 | C29: =SUMIFS('Program Info'!F61:F70,'Program Info'!$D$61:$D$70,HomeCollege) -> 0 | D29: =SUMIFS('Program Info'!G61:G70,'Program Info'!$D$61:$D$70,HomeCollege) -> 0 | E29: =SUMIFS('Program Info'!H61:H70,'Program Info'!$D$61:$D$70,HomeCollege) -> 0 | F29: =SUMIFS('Program Info'!I61:I70,'Program Info'!$D$61:$D$70,HomeCollege) -> 0
A30: Adjusted CH | B30: =B28+B29 ->  | C30: =C28+C29 ->  | D30: =D28+D29 ->  | E30: =E28+E29 ->  | F30: =F28+F29 -> 
A32: Adjusted Rate per CH | B32: =B27/B30 ->  | C32: =C27/C30 ->  | D32: =D27/D30 ->  | E32: =E27/E30 ->  | F32: =F27/F30 -> 
A33: =CONCATENATE(A1," instruction rate used in Model") -> 0 instruction rate used in Model | B33: =B25/B28 ->  | F33: =F25/F28 -> 
A34: Instruction cost per CH shift | B34: =B33-B32 ->  | C34: =C33-C32 ->  | D34: =D33-D32 ->  | E34: =E33-E32 ->  | F34: =F33-F32 ->  | I34: =IF(F34>0, "decrease", "increase") -> 
A35: Marginal Program Impact - Instruction | B35: =B34*B29 ->  | F35: =F34*F29 ->  | I35: =IF(F36>0,"improve", "not improve") -> 
D36: Magnitude at Year 5 | F36: =F30*F34 ->  | I36: =IF(I34="Increase","reduce") -> 
A37: Year 5 Instructional Cost Interpretation
A38: =IF(I34="Increase",CONCATENATE("The incremental impact of this program will ",I34," the instructional cost per credit hour by ",TEXT(ABS(F34),"$#,##0.00_);($#,##.00_)")," This program would ",I35," the cost structure in ",'Program Info'!$E$11,".","Projected annual instructional costs would need to be reduced by ",TEXT(ABS(F36),"$#,##0_);($#,##0)"),"to maintain the current cost per credit hour in the college."),"By Year 5, college maintains cost structure.") -> 
A42: Program - Marginal Impact Analysis - Instructional Cost
A43: Assumes College Credit Hour Production is Maintained
A44: Direct Non Instructional Cost Impact | B44: =B9 -> 0 | C44: =C9 -> 0-1
A45: Base Year College Direct Costs + 2.5% inflation per year | B45: =VLOOKUP(HomeCollege,Assumptions!$A$88:$G$101,7,FALSE)*(1+expinc)^start_Gap ->  | C45: =VLOOKUP(HomeCollege,Assumptions!$A$88:$G$101,7,FALSE)*(1+expinc)^(start_Gap+1) ->  | D45: =VLOOKUP(HomeCollege,Assumptions!$A$88:$G$101,7,FALSE)*(1+expinc)^(start_Gap+2) ->  | E45: =VLOOKUP(HomeCollege,Assumptions!$A$88:$G$101,7,FALSE)*(1+expinc)^(start_Gap+3) ->  | F45: =VLOOKUP(HomeCollege,Assumptions!$A$88:$G$101,7,FALSE)*(1+expinc)^(start_Gap+4) -> 
A46: College Spending Plan - Incremental Direct Costs | B46: =B16 -> 0 | C46: =C16 -> 0 | D46: =D16 -> 0 | E46: =E16 -> 0 | F46: =F16 -> 0
A47: Adjusted Direct Costs | B47: =B45+B46 ->  | C47: =C45+C46 ->  | D47: =D45+D46 ->  | E47: =E45+E46 ->  | F47: =F45+F46 -> 
A48: Base Year College CH | B48: =VLOOKUP(HomeCollege,Assumptions!$A$88:$G$101,6,FALSE) ->  | C48: =$B$48 ->  | D48: =$B$48 ->  | E48: =$B$48 ->  | F48: =$B$48 -> 
A49: Program Incremental CH | B49: =B29 -> 0 | C49: =C29 -> 0 | D49: =D29 -> 0 | E49: =E29 -> 0 | F49: =F29 -> 0
A50: Adjusted CH | B50: =B48+B49 ->  | C50: =C48+C49 ->  | D50: =D48+D49 ->  | E50: =E48+E49 ->  | F50: =F48+F49 -> 
A52: Adjusted Rate per CH | B52: =B47/B50 ->  | F52: =F47/F50 -> 
A53: =CONCATENATE(A1," Department Rate Used in Model") -> 0 Department Rate Used in Model | B53: =B45/B48 ->  | F53: =F45/F48 -> 
A54: Department cost per CH shift | B54: =B53-B52 ->  | C54: =C53-C52 ->  | D54: =D53-D52 ->  | E54: =E53-E52 ->  | F54: =F53-F52 ->  | I54: =IF(F54>0, "decrease", "increase") -> 
A55: Marginal Program Impact | B55: =B54*B49 ->  | C55: =C54*C49 ->  | I55: =IF(F56>0,"improve", "not improve") -> 
D56: Magnitude at Year 5 | F56: =F54*F50 ->  | I56: =IF(I54="Increase","reduce") -> 
A57: Year 5 Non Instructional Cost Interpretation
A58: =IF(I54="Increase",CONCATENATE("The incremental impact of this program will ",I54," the non instructional cost per credit hour by ",TEXT(ABS(F54),"$#,##0.00_);($#,##.00_)")," This program would ",I55," the cost structure in ",'Program Info'!$E$11,"."," Annual costs would need to be reduced by ",TEXT(ABS(F56),"$#,##0_);($#,##0)"),"to maintain the current cost per credit hour in the college."),"By Year 5, college maintains the average cost per credit hour for non instructional department direct costs.") -> 

Sheet Assumptions (hidden)
A2: ASSUMPTIONS
B4: = calculated rates
A7: APR Cost Rate Year | B7: 2015-2016
A8: Start and End Year of Plan | B8: ='Program Info'!E7 -> 0 | C8: ='APR 5 Year Projection'!F7 -> 
A9: Expense Gap | B9: =RIGHT(B8,4)-RIGHT(B7,4) -> -2016 | C9: =RIGHT(C8,4)-RIGHT(B7,4) -> 
A10: Inflation | B10: 0.025
A11: Discount Rate Inflation | B11: 0.02
A13: Planned Tuition Increase | B13: 0.035 | C13: =$B$13 -> 0.035 | D13: 0.035 | E13: 0.035 | F13: 0.035 | G13: 0.035 | H13: 0.035 | I13: 0.035 | J13: 0.035 | K13: 0.035 | L13: 0.035 | M13: 0.035 | N13: 0.035 | O13: 0.035 | P13: 0.035 | Q13: 0.035 | R13: 0.035 | S13: 0.035 | T13: 0.035 | U13: 0.035 | V13: 0.035 | W13: 0.035 | X13: 0.035 | Y13: 0.035 | Z13: 0.035
A15: Graduate | B15: 2015-2016 | C15: =CONCATENATE(LEFT(B15,4)+1,"-",RIGHT(B15,4)+1) -> 2016-2017 | D15: 2017-2018 | E15: 2018-2019 | F15: 2019-2020 | G15: 2020-2021 | H15: 2021-2022 | I15: 2022-2023 | J15: 2023-2024 | K15: =CONCATENATE(LEFT(J15,4)+1,"-",RIGHT(J15,4)+1) -> 2024-2025 | L15: 2025-2026 | M15: 2026-2027 | N15: 2027-2028 | O15: 2028-2029 | P15: 2029-2030 | Q15: 2030-2031 | R15: 2031-2032 | S15: 2032-2033 | T15: 2033-2034 | U15: 2034-2035 | V15: 2035-2036 | W15: 2036-2037 | X15: 2037-2038 | Y15: 2038-2039 | Z15: 2039-2040
A16: Full-time semester/annual/other tuition | B16: 40158 | C16: 41804 | D16: 43560 | E16: =D16*(1+E13) -> 45084.6 | F16: 46662.561 | G16: 48295.75063 | H16: 49986.10191 | I16: 51735.61547 | J16: 53546.36202 | K16: =J16*(1+K13) -> 55420.48469 | L16: 57360.20165 | M16: 59367.80871 | N16: 61445.68201 | O16: 63596.28088 | P16: 65822.15071 | Q16: 68125.92599 | R16: 70510.3334 | S16: 72978.19507 | T16: 75532.43189 | U16: 78176.06701 | V16: 80912.22936 | W16: 83744.15738 | X16: 86675.20289 | Y16: 89708.83499 | Z16: 92848.64422
A17: Per Semester Tuition | B17: =+B16/2 -> 20079 | C17: 20902 | D17: =+D16/2 -> 21780 | E17: 22542.3 | F17: 23331.2805 | G17: 24147.87532 | H17: 24993.05095 | I17: 25867.80774 | J17: 26773.18101 | K17: =+K16/2 -> 27710.24234 | L17: 28680.10083 | M17: 29683.90435 | N17: 30722.84101 | O17: 31798.14044 | P17: 32911.07536 | Q17: 34062.96299 | R17: 35255.1667 | S17: 36489.09753 | T17: 37766.21595 | U17: 39088.03351 | V17: 40456.11468 | W17: =+W16/2 -> 41872.07869 | X17: =+X16/2 -> 43337.60145 | Y17: =+Y16/2 -> 44854.4175 | Z17: =+Z16/2 -> 46424.32211
A18: Per Credit Tuition | B18: =ROUND((B17/12),0) -> 1673 | C18: 1742 | D18: =D17/12 -> 1815 | E18: =E17/12 -> 1878.525 | F18: 1944.273375 | G18: 2012.322943 | H18: 2082.754246 | I18: 2155.650645 | J18: 2231.098417 | K18: =K17/12 -> 2309.186862 | L18: 2390.008402 | M18: 2473.658696 | N18: 2560.236751 | O18: 2649.845037 | P18: 2742.589613 | Q18: 2838.58025 | R18: 2937.930558 | S18: 3040.758128 | T18: 3147.184662 | U18: 3257.336125 | V18: 3371.34289 | W18: =W17/12 -> 3489.339891 | X18: =X17/12 -> 3611.466787 | Y18: =Y17/12 -> 3737.868125 | Z18: =Z17/12 -> 3868.693509
A20: Undergraduate | B20: 2015-2016 | C20: =C15 -> 2016-2017 | D20: 2017-2018 | E20: 2018-2019 | F20: 2019-2020 | G20: 2020-2021 | H20: 2021-2022 | I20: 2022-2023 | J20: 2023-2024 | K20: =K15 -> 2024-2025 | L20: 2025-2026 | M20: 2026-2027 | N20: 2027-2028 | O20: 2028-2029 | P20: 2029-2030 | Q20: 2030-2031 | R20: 2031-2032 | S20: 2032-2033 | T20: 2033-2034 | U20: 2034-2035 | V20: 2035-2036 | W20: =W15 -> 2036-2037 | X20: =X15 -> 2037-2038 | Y20: =Y15 -> 2038-2039 | Z20: =Z15 -> 2039-2040
A21: Full-time semester/annual/other tuition | B21: 36596 | C21: 38024 | D21: 39506 | E21: =D21*(1+E13) -> 40888.71 | F21: 42319.81485 | G21: 43801.00837 | H21: 45334.04366 | I21: 46920.73519 | J21: 48562.96092 | K21: =J21*(1+K13) -> 50262.66455 | L21: 52021.85781 | M21: 53842.62284 | N21: 55727.11464 | O21: 57677.56365 | P21: 59696.27838 | Q21: 61785.64812 | R21: 63948.1458 | S21: 66186.33091 | T21: 68502.85249 | U21: 70900.45233 | V21: 73381.96816 | W21: 75950.33704 | X21: 78608.59884 | Y21: 81359.8998 | Z21: 84207.49629
A22: Per Semester Tuition | B22: =+B21/2 -> 18298 | C22: 19012 | D22: =+D21/2 -> 19753 | E22: 20444.355 | F22: 21159.90742 | G22: 21900.50418 | H22: 22667.02183 | I22: 23460.3676 | J22: 24281.48046 | K22: =+K21/2 -> 25131.33228 | L22: 26010.92891 | M22: 26921.31142 | N22: 27863.55732 | O22: 28838.78182 | P22: 29848.13919 | Q22: 30892.82406 | R22: 31974.0729 | S22: 33093.16545 | T22: 34251.42624 | U22: 35450.22616 | V22: 36690.98408 | W22: =+W21/2 -> 37975.16852 | X22: =+X21/2 -> 39304.29942 | Y22: =+Y21/2 -> 40679.9499 | Z22: =+Z21/2 -> 42103.74815
A23: Per Credit Tuition | B23: 1331 | C23: 1408 | D23: 1463 | E23: =D23*(1+E13) -> 1514.205 | F23: 1567.202175 | G23: 1622.054251 | H23: 1678.82615 | I23: 1737.585065 | J23: 1798.400542 | K23: =J23*(1+K13) -> 1861.344561 | L23: 1926.491621 | M23: 1993.918828 | N23: 2063.705987 | O23: 2135.935696 | P23: 2210.693446 | Q23: 2288.067716 | R23: 2368.150086 | S23: 2451.035339 | T23: 2536.821576 | U23: 2625.610331 | V23: 2717.506693 | W23: 2812.619427 | X23: 2911.061107 | Y23: 3012.948246 | Z23: 3118.401435
A25: Graduate - Online | B25: 2015-2016 | C25: =CONCATENATE(LEFT(B25,4)+1,"-",RIGHT(B25,4)+1) -> 2016-2017 | D25: 2017-2018 | E25: 2018-2019 | F25: 2019-2020 | G25: 2020-2021 | H25: 2021-2022 | I25: 2022-2023 | J25: 2023-2024 | K25: =CONCATENATE(LEFT(J25,4)+1,"-",RIGHT(J25,4)+1) -> 2024-2025 | L25: 2025-2026 | M25: 2026-2027 | N25: 2027-2028 | O25: 2028-2029 | P25: 2029-2030 | Q25: 2030-2031 | R25: 2031-2032 | S25: 2032-2033 | T25: 2033-2034 | U25: 2034-2035 | V25: 2035-2036 | W25: 2036-2037 | X25: 2037-2038 | Y25: 2038-2039 | Z25: 2039-2040
A26: Online Discount | B26: 0.43 | C26: 0.43 | D26: 0.43 | E26: 0.43 | F26: 0.43 | G26: 0.43 | H26: 0.43 | I26: 0.43 | J26: 0.43 | K26: 0.43 | L26: 0.43 | M26: 0.43 | N26: 0.43 | O26: 0.43 | P26: 0.43 | Q26: 0.43 | R26: 0.43 | S26: 0.43 | T26: 0.43 | U26: 0.43 | V26: 0.43 | W26: 1.43 | X26: 2.43 | Y26: 3.43 | Z26: 4.43
A27: Full-time semester/annual/other tuition
A28: Per Semester Tuition
A29: Per Credit Tuition | B29: 954 | C29: =ROUND(C18*(1-C26),0) -> 993 | D29: 1035 | E29: =D29*(1+E13) -> 1071.225 | F29: 1108.717875 | G29: 1147.523001 | H29: 1187.686306 | I29: 1229.255326 | J29: 1272.279263 | K29: =J29*(1+K13) -> 1316.809037 | L29: 1362.897353 | M29: 1410.598761 | N29: 1459.969717 | O29: 1511.068657 | P29: 1563.95606 | Q29: 1618.694522 | R29: 1675.348831 | S29: 1733.98604 | T29: 1794.675551 | U29: 1857.489196 | V29: 1922.501317 | W29: 1989.788863 | X29: 2059.431474 | Y29: 2131.511575 | Z29: 2206.11448
A31: Undergraduate - Online | B31: 2015-2016 | C31: =CONCATENATE(LEFT(B31,4)+1,"-",RIGHT(B31,4)+1) -> 2016-2017 | D31: 2017-2018 | E31: 2018-2019 | F31: 2019-2020 | G31: 2020-2021 | H31: 2021-2022 | I31: 2022-2023 | J31: 2023-2024 | K31: =CONCATENATE(LEFT(J31,4)+1,"-",RIGHT(J31,4)+1) -> 2024-2025 | L31: 2025-2026 | M31: 2026-2027 | N31: 2027-2028 | O31: 2028-2029 | P31: 2029-2030 | Q31: 2030-2031 | R31: 2031-2032 | S31: 2032-2033 | T31: 2033-2034 | U31: 2034-2035 | V31: 2035-2036 | W31: 2036-2037 | X31: 2037-2038 | Y31: 2038-2039 | Z31: 2039-2040
A32: Online Discount | B32: 0.36 | C32: 0.36 | D32: 0.36 | E32: 0.36 | F32: 0.36 | G32: 0.36 | H32: 0.36 | I32: 0.36 | J32: 0.36 | K32: 0.36 | L32: 0.36 | M32: 0.36 | N32: 0.36 | O32: 0.36 | P32: 0.36 | Q32: 0.36 | R32: 0.36 | S32: 0.36 | T32: 0.36 | U32: 0.36 | V32: 0.36 | W32: 1.36 | X32: 2.36 | Y32: 3.36 | Z32: 4.36
A33: Full-time semester/annual/other tuition
A34: Per Semester Tuition
A35: Per Credit Tuition | B35: =ROUNDUP(B23*(1-B32),0) -> 852 | C35: 901 | D35: 936 | E35: =D35*(1+E13) -> 968.76 | F35: 1002.6666 | G35: 1037.759931 | H35: 1074.081529 | I35: 1111.674382 | J35: 1150.582985 | K35: =J35*(1+K13) -> 1190.85339 | L35: 1232.533259 | M35: 1275.671923 | N35: 1320.32044 | O35: 1366.531655 | P35: 1414.360263 | Q35: 1463.862872 | R35: 1515.098073 | S35: 1568.126506 | T35: 1623.010933 | U35: 1679.816316 | V35: 1738.609887 | W35: 1799.461233 | X35: 1862.442376 | Y35: 1927.627859 | Z35: 1995.094834
A37: Planned Aid Increase
A38: Average Discount rate/Financial Aid | B38: 2015-2016 | C38: =C15 -> 2016-2017 | D38: 2017-2018 | E38: 2018-2019 | F38: 2019-2020 | G38: 2020-2021 | H38: 2021-2022 | I38: 2022-2023 | J38: 2023-2024 | K38: 2024-2025
A39: Undergradate | B39: 0.35 | C39: 0.392 | D39: =C39*(1+ExpincDis) -> 0.39984 | E39: 0.4078368 | F39: 0.415993536 | G39: 0.4243134067 | H39: 0.4327996749 | I39: 0.4414556684 | J39: 0.4502847817 | K39: 0.4592904774
A40: Graduate | B40: 0.25 | C40: 0.25 | D40: 0.25 | E40: 0.25 | F40: 0.25 | G40: 0.25 | H40: 0.25 | I40: 0.25 | J40: 0.25 | K40: 0.25
A43: =CONCATENATE("APR Rates for Program Costing ",B7) -> APR Rates for Program Costing 2015-2016 | D43: Hedge Rate | E43: 0 | G43: HEDGE RATE | H43: =IF('Program Info'!H14="GRAD",0.23,0.19) -> 
A44: College | B44: Ugrad Fac Sal | C44: Grad Fac Sal | D44: Non-Salary | E44: Hedge | F44: Non Salary | G44: OH Rate at College Level | H44: =CONCATENATE("Plus: Hedge of ",H43) ->  | I44: Total OH | J44: AA | K44: Full Cost
A46: CAST | B46: 219.2545159 | C46: 502.9417983 | D46: 60.77771963 | E46: =D46*$E$42 -> 0 | F46: =D46+E46 -> 60.77771963 | G46: 291.8027633 | H46: =G46*$H$43 ->  | I46: =G46+H46 ->  | J46: 84.61929493 | K46: 121.446136
A47: CHST | B47: 154.1949197 | C47: 250 | D47: 47.06 | E47: =D47*$E$42 -> 0 | F47: 47.06 | G47: 273.2422383 | H47: =G47*$H$43 ->  | J47: 64.1579855 | K47: 113.8347302 | L47: Adjusted for PA and Weg Gift
A48: CIAS | B48: 248.1127892 | C48: 490.3874535 | D48: 50.66170462 | E48: =D48*$E$42 -> 0 | F48: 50.66170462 | G48: 399.4534855 | J48: 98.99015687 | K48: 121.9713362
A49: COLA | B49: 167.5610821 | C49: 547.4002656 | D49: 5.646971205 | E49: =D49*$E$42 -> 0 | F49: 5.646971205 | G49: 120.3647844 | J49: 44.63274084 | K49: 112.9288566
A50: COS | B50: 176.0149266 | C50: 499.9755674 | D50: 20.06447577 | E50: =D50*$E$42 -> 0 | F50: 20.06447577 | G50: 139.1274824 | J50: 51.6977479 | K50: 115.3913245
A51: COS-CIS | B51: 852.5308849 | C51: 1462.046138 | D51: 58.90859831 | F51: 58.90859831 | G51: 1026.416162 | J51: 283.2187536 | K51: 166.2422091
A52: GCCIS | B52: 190.4990072 | C52: 421.8846798 | D52: 51.97873542 | E52: =D52*$E$42 -> 0 | F52: 51.97873542 | G52: 256.051015 | J52: 76.16626899 | K52: 119.1109606
A53: GIS | B53: =200*1.025 -> 205 | C53: 418.1031467 | D53: =AVERAGE(D46,D48,D52,D54,D47) -> 54.30197502 | E53: 0 | F53: =AVERAGE(F46,F48,F52,F54,F47) -> 54.30197502 | G53: =AVERAGE(G46,G48,G52,G54,G47) -> 315.7659808 | H53: =G53*$H$43 ->  | I53: =G53+H53 ->  | J53: =AVERAGE(J46,J48,J52,J54,J47) -> 83.79822182 | K53: =AVERAGE(K46,K48,K52,K54,K47) -> 119.82387 | L53: Average of CHST, CIAS, GCCIS, CAST, KGCOE
A54: KGCOE | B54: 220.4322077 | C54: 573.5749014 | D54: 61.03171545 | E54: =D54*$E$42 -> 0 | F54: 61.03171545 | G54: 358.280402 | J54: 95.05740279 | K54: 122.756187
A55: SCB | B55: 205.7776349 | C55: 557.6242422 | D55: 15.10319283 | E55: =D55*$E$42 -> 0 | F55: 15.10319283 | G55: 246.1244361 | J55: 75.21671834 | K55: 117.4330859
A61: Space Cost Estimates | B61: Renovated | C61: New Base | D61: New Total
A62: Classroom | B62: 100 | C62: 120 | D62: =B62+C62 -> 220
A63: Office | B63: 90 | C63: =C62 -> 120 | D63: =B63+C63 -> 210
A64: Lab | B64: 280 | C64: =C63 -> 120 | D64: =B64+C64 -> 400
A65: Wet Lab | B65: 350 | C65: =C64 -> 120 | D65: =B65+C65 -> 470
A68: Student count | B68: Range End | C68: FTE | D68: Average Salary | E68: 45000
A69: 1 | B69: 30 | C69: 0.1 | D69: =$E$68*C69 -> 4500
A70: =B69+1 -> 31 | B70: =A70+29 -> 60 | C70: 0.2 | D70: =$E$68*C70 -> 9000
A71: =B70+1 -> 61 | B71: =A71+29 -> 90 | C71: 0.3 | D71: 13500
A72: 91 | B72: 120 | C72: 0.4 | D72: 18000
A73: 121 | B73: 150 | C73: 0.5 | D73: 22500
A74: 151 | B74: 180 | C74: 0.6 | D74: 27000
A75: 181 | B75: 210 | C75: 0.7 | D75: 31500
A76: 211 | B76: 240 | C76: 0.8 | D76: 36000
A77: 241 | B77: 270 | C77: 0.9 | D77: 40500
A78: 271 | B78: 300 | C78: 1 | D78: 45000
A81: Benefit Rates | B81: 2015-2016 | C81: =C15 -> 2016-2017 | D81: =D15 -> 2017-2018 | E81: 2018-2019 | F81: 2019-2020 | G81: 2020-2021 | H81: 2021-2022 | I81: 2022-2023 | J81: 2023-2024 | K81: 2024-2025 | L81: 2025-2026 | M81: 2026-2027 | N81: 2027-2028 | O81: 2028-2029 | P81: 2029-2030 | Q81: 2030-2031 | R81: 2031-2032 | S81: 2032-2033 | T81: 2033-2034 | U81: 2034-2035 | V81: 2035-2036 | W81: 2036-2037 | X81: 2037-2038 | Y81: 2038-2039 | Z81: 2039-2040
A82: Full Time | C82: 0.367 | D82: 0.35 | E82: =$D82 -> 0.35 | F82: =$D82 -> 0.35 | G82: 0.35 | H82: 0.35 | I82: 0.35 | J82: 0.35 | K82: 0.35 | L82: 0.35 | M82: 0.35 | N82: 0.35 | O82: 0.35 | P82: 0.35 | Q82: 0.35 | R82: 0.35 | S82: 0.35 | T82: 0.35 | U82: 0.35 | V82: 0.35 | W82: 0.35 | X82: 0.35 | Y82: 0.35 | Z82: 0.35
A83: Adjunct | C83: 0.225 | D83: 0.224 | E83: =$D83 -> 0.224 | F83: 0.224 | G83: 0.224 | H83: 0.224 | I83: 0.224 | J83: 0.224 | K83: 0.224 | L83: 0.224 | M83: 0.224 | N83: 0.224 | O83: 0.224 | P83: 0.224 | Q83: 0.224 | R83: 0.224 | S83: 0.224 | T83: 0.224 | U83: 0.224 | V83: 0.224 | W83: 0.224 | X83: 0.224 | Y83: 0.224 | Z83: 0.224
A84: Part Time | C84: 0.079 | D84: 0.08 | E84: =$D84 -> 0.08 | F84: 0.08 | G84: 0.08 | H84: 0.08 | I84: 0.08 | J84: 0.08 | K84: 0.08 | L84: 0.08 | M84: 0.08 | N84: 0.08 | O84: 0.08 | P84: 0.08 | Q84: 0.08 | R84: 0.08 | S84: 0.08 | T84: 0.08 | U84: 0.08 | V84: 0.08 | W84: 0.08 | X84: 0.08 | Y84: 0.08 | Z84: 0.08
B88: UG CH | C88: UG Instruction Cost | D88: G CH | E88: Grad Instruction Cost | F88: Total CH | G88: Other Cost
A89: ACAD
A90: CAST | B90: 24080 | C90: 5279648.743 | D90: 4297 | E90: 2161140.907 | F90: 28377 | G90: 1724689.35
A91: CHST | B91: 11902 | C91: 1835227.935 | D91: 1878 | E91: =386170.595309609+83329.4 -> 469499.9953 | F91: 13780 | G91: =323966.633469821+13780*23.55 -> 648485.6335
A92: CIAS | B92: 36718 | C92: 9110205.393 | D92: 5495 | E92: 2694679.057 | F92: 42213 | G92: 2138582.537 | H92: Adj for Weg
A93: COLA | B93: 79262 | C93: 13281226.49 | D93: 1785 | E93: 977109.4741 | F93: 81047 | G93: 457670.0752
A94: COS | B94: 75518 | C94: 13292295.23 | D94: 2736 | E94: 1367933.152 | F94: 78254 | G94: 1570125.487
A95: COS-CIS | B95: 1660 | C95: 1415201.269 | D95: 994 | E95: 1453273.861 | F95: 2654 | G95: 156343.4199
A96: GCCIS | B96: 43160 | C96: 8221937.149 | D96: 12099 | E96: 5104382.741 | F96: 55259 | G96: 2872292.941
A98: GIS | B98: 9 | C98: 2894.560565 | D98: 1128 | E98: 471620.3494 | F98: 1137 | G98: =110515.76-36.17*1137 -> 69390.47 | H98: Averaged GIS
A99: KGCOE | B99: 36013 | C99: 7938425.097 | D99: 7023 | E99: 4028216.533 | F99: 43036 | G99: 2626560.906
A101: SCB | B101: 18175 | C101: 3740008.515 | D101: 5027 | E101: 2803177.065 | F101: 23202 | G101: 350424.28
J102: =I102-C58 -> 0

Sheet Calculation Worksheet (hidden)
A1: ='Program Summary'!A1 -> 0
A2: ='Program Summary'!A2 -> 0
A3: Calculation Worksheet
A13: 1 | B13: 2 | C13: 3 | D13: 4 | E13: 5 | F13: 6 | G13: 7 | H13: 8 | I13: 9 | J13: 10 | K13: 11 | L13: 12 | M13: 13 | N13: 14
A14: MaskTable | D14: FT Yrs to Compl | E14: Total CrHr | F14: Year 1 | G14: Year 2 | H14: Year 3 | I14: Year 4 | J14: Year 5 | K14: Year 6 | M14: Avg Sect Size | N14: Avg Fac Load/Yr | O14: Avg Fac CrHr/Yr
A15: Bachelors 4 Yr | C15: UG | D15: 4 | E15: =SUM(F15:L15) -> 123 | F15: 30 | G15: 33 | H15: 30 | I15: 30 | M15: 22 | N15: 6.5 | O15: =+N15*3 -> 19.5
A16: Bachelors 5 yr w/Coop | C16: UG | D16: 5 | E16: =SUM(F16:L16) -> 123 | F16: 30 | G16: 33 | H16: 15 | I16: 15 | J16: 30 | M16: 22 | N16: 6.5 | O16: 19.5 | Q16: 35
A17: Bachelors 5 yr w/o Coop | C17: UG | D17: 5 | E17: =SUM(F17:L17) -> 150 | F17: 30 | G17: 30 | H17: 30 | I17: 30 | J17: 30 | M17: 22 | N17: 6.5 | O17: 19.5 | Q17: =(0.2*6)+(0.8*4) -> 4.4
A18: Masters - 1 Yr 30 | C18: Grad | D18: 1 | E18: =SUM(F18:L18) -> 30 | F18: 30 | M18: 12 | N18: 5 | O18: 15
A19: Masters - 1 Yr 36 | C19: Grad | D19: 1 | E19: 36 | F19: 36 | M19: 12 | N19: 5 | O19: 15
A20: Masters - 2 Yr 30 | C20: Grad | D20: 2 | E20: =SUM(F20:L20) -> 30 | F20: 18 | G20: 12 | M20: 12 | N20: 5 | O20: 15
A21: Masters - 2 yr 36 | C21: Grad | D21: 2 | E21: =SUM(F21:L21) -> 36 | F21: 18 | G21: 18 | M21: 12 | N21: 5 | O21: 15
A22: Masters - 2 yr 60 | C22: Grad | D22: 2 | E22: 60 | F22: 30 | G22: 30
A24: Retention Rates: | F24: 1 | G24: 2 | H24: 3 | I24: 4 | J24: 5 | K24: 1st Year | L24: Years 2+ | M24: Transfers 2 Year2+ | N24: Transfers 3 Year 3+
A25: Bachelors 4 year | D25: 4 | F25: 1 | G25: ='Program Info'!$E$23 -> 0.8786 | H25: =1/('Program Info'!$E$23/Com_Rate)^(1/($D25-2)) -> 0.8774173139 | I25: =1/('Program Info'!$E$23/Com_Rate)^(1/($D25-2)) -> 0.8774173139 | K25: =G25 -> 0.8786 | L25: 0.8774173139 | M25: =1/('Program Info'!$E$23/Com_Rate)^(1/($D25-3)) -> 0.7698611427 | N25: =F25*0.702 -> 0.702
A26: Bachelors 5 year | D26: 5 | F26: 1 | G26: ='Program Info'!$E$23 -> 0.8786 | H26: =1/('Program Info'!$E$23/Com_Rate)^(1/($D26-2)) -> 0.9165105461 | I26: =1/('Program Info'!$E$23/Com_Rate)^(1/($D26-2)) -> 0.9165105461 | J26: =1/('Program Info'!$E$23/Com_Rate)^(1/($D26-2)) -> 0.9165105461 | K26: 0.8786 | L26: 0.9165105461 | M26: =1/('Program Info'!$E$23/Com_Rate)^(1/($D26-3)) -> 0.8774173139 | N26: =1/('Program Info'!$E$23/Com_Rate)^(1/($D26-4)) -> 0.7698611427
A27: Masters | D27: 2 | F27: 1 | G27: ='Program Info'!$E$23 -> 0.8786 | K27: 0.8786 | L27: 0
A28: Part Time | D28: ='Program Info'!G24 ->  | F28: 1 | G28: ='Program Info'!E24 -> 0.8786 | H28: =1/('Program Info'!$E$23/Com_RatePT)^(1/($D28-2)) ->  | K28: =G28 -> 0.8786 | L28: =IF(D28=2,0%,H28) -> 
E37: =+'Program Info'!E17 -> 0 | F37: =+'Program Info'!F17 -> 0-1 | G37: =+'Program Info'!G17 ->  | H37: =+'Program Info'!H17 ->  | I37: =+'Program Info'!I17 ->  | J37: =+'Program Info'!J17 ->  | K37: =CONCATENATE(RIGHT(J37,4),"-",RIGHT(J37,4)+1) ->  | L37: =CONCATENATE(RIGHT(K37,4),"-",RIGHT(K37,4)+1) ->  | M37: =CONCATENATE(RIGHT(L37,4),"-",RIGHT(L37,4)+1) ->  | N37: =CONCATENATE(RIGHT(M37,4),"-",RIGHT(M37,4)+1) -> 
C38: Year | E38: 1 | F38: 2 | G38: 3 | H38: 4 | I38: 5 | J38: 6 | K38: 7 | L38: 8 | M38: 9 | N38: 10
C39: Term
E44: ='Program Info'!E49 -> 0 | F44: ='Program Info'!F49 -> 0 | G44: ='Program Info'!G49 -> 0 | H44: ='Program Info'!H49 -> 0 | I44: ='Program Info'!I49 -> 0
C46: Attriting from prior year (Headcount)
B47: ='Program Info'!C45 -> 1 | C47: ='Program Info'!D23 -> Full Time | F47: =SUM(F70:F79)-INDEX(Student1,F69+1,F69+1)-E80+SUMIFS(E70:E79,F70:F79,0) -> 
B48: 3 | C48: =VLOOKUP(B48,Cohort,2,FALSE) ->  | F48: =SUM(F84:F93)-INDEX(Student3,F83+1,F83+1)-E94+SUMIFS(E84:E93,F84:F93,0) -> 
B49: 4 | C49: =VLOOKUP(B49,Cohort,2,FALSE) ->  | F49: =SUM(F98:F107)-INDEX(Student4,F97+1,F97+1)-E108+SUMIFS(E98:E107,F98:F107,0) -> 
B50: ='Program Info'!C48 -> 2 | C50: ='Program Info'!D24 -> Part Time | F50: =SUM(F149:F158)-INDEX(Student2,F148+1,F148+1)-E159+SUMIFS(E149:E158,F149:F158,0) -> 
D51: Total | E51: =SUM(E47:E50) -> 0
C53: Completing this Year (Headcount)
B54: =B47 -> 1 | C54: ='Program Info'!D23 -> Full Time | E54: =SUMIFS(E70:E79,F70:F79,"=0") -> 0 | F54: =SUMIFS(F70:F79,G70:G79,"=0") -> 0 | G54: =SUMIFS(G70:G79,H70:H79,"=0") -> 0 | H54: =SUMIFS(H70:H79,I70:I79,"=0") -> 0 | I54: 0 | J54: 0 | K54: 0 | L54: 0 | M54: 0 | N54: 0
B55: 3 | C55: =VLOOKUP(B55,Cohort,2,FALSE) ->  | E55: =SUMIFS(E84:E93,F84:F93,"=0") -> 0 | F55: =SUMIFS(F84:F93,G84:G93,"=0") -> 0 | G55: 0 | H55: 0 | I55: 0 | J55: 0 | K55: 0 | L55: 0 | M55: 0 | N55: 0
B56: 4 | C56: =VLOOKUP(B56,Cohort,2,FALSE) ->  | E56: =SUMIFS(E98:E107,F98:F107,"=0") -> 0 | F56: =SUMIFS(F98:F107,G98:G107,"=0") -> 0 | G56: 0 | H56: 0 | I56: 0 | J56: 0 | K56: 0 | L56: 0 | M56: 0 | N56: 0
B57: =B50 -> 2 | C57: ='Program Info'!D24 -> Part Time | E57: =SUMIFS(E149:E158,F149:F158,"=0") -> 0 | F57: =SUMIFS(F149:F158,G149:G158,"=0") -> 0 | G57: =SUMIFS(G149:G158,H149:H158,"=0") -> 0 | H57: 0 | I57: 0 | J57: 0 | K57: 0 | L57: 0 | M57: 0 | N57: 0
D58: Total | E58: =SUM(E54:E57) -> 0 | F58: 0 | G58: 0 | H58: 0 | I58: 0 | J58: 0 | K58: 0 | L58: 0 | M58: 0 | N58: 0
C60: Total Enrollment (Headcount)
B61: =B54 -> 1 | C61: ='Program Info'!D23 -> Full Time | E61: ='Program Info'!E45 -> 0 | F61: =ROUND(E61+'Program Info'!F45+F47-E54,2) ->  | G61: =ROUND(F61+'Program Info'!G45+G47-F54,2) ->  | H61: =ROUND(G61+'Program Info'!H45+H47-G54,2) ->  | I61: =ROUND(H61+'Program Info'!I45+I47-H54,2) ->  | J61: =ROUND(I61+'Program Info'!J45+J47-I54,2) ->  | K61: =ROUND(J61+'Program Info'!K45+K47-J54,2) ->  | L61: =ROUND(K61+'Program Info'!L45+L47-K54,2) ->  | M61: =ROUND(L61+'Program Info'!N45+M47-L54,2) ->  | N61: =ROUND(M61+'Program Info'!O45+N47-M54,2) -> 
B62: 3 | C62: =VLOOKUP(B62,Cohort,2,FALSE) ->  | E62: =IF('Program Info'!$H$14="GRAD",0,'Program Info'!E46) ->  | F62: =IF('Program Info'!$H$14="GRAD",0,ROUND(E62+'Program Info'!F46+F48-E55,2)) ->  | G62: =IF('Program Info'!$H$14="GRAD",0,ROUND(F62+'Program Info'!G46+G48-F55,2)) ->  | H62: =IF('Program Info'!$H$14="GRAD",0,ROUND(G62+'Program Info'!H46+H48-G55,2)) ->  | I62: =IF('Program Info'!$H$14="GRAD",0,ROUND(H62+'Program Info'!I46+I48-H55,2)) ->  | J62: =IF('Program Info'!$H$14="GRAD",0,ROUND(I62+'Program Info'!J46+J48-I55,2)) ->  | K62: =IF('Program Info'!$H$14="GRAD",0,ROUND(J62+'Program Info'!K46+K48-J55,2)) ->  | L62: =IF('Program Info'!$H$14="GRAD",0,ROUND(K62+'Program Info'!L46+L48-K55,2)) ->  | M62: =IF('Program Info'!$H$14="GRAD",0,ROUND(L62+'Program Info'!N46+M48-L55,2)) ->  | N62: =IF('Program Info'!$H$14="GRAD",0,ROUND(M62+'Program Info'!O46+N48-M55,2)) -> 
B63: 4 | C63: =VLOOKUP(B63,Cohort,2,FALSE) ->  | E63: =IF('Program Info'!$H$14="GRAD",0,'Program Info'!E47) ->  | F63: =IF('Program Info'!$H$14="GRAD",0,ROUND(E63+'Program Info'!F47+F49-E56,2)) ->  | G63: =IF('Program Info'!$H$14="GRAD",0,ROUND(F63+'Program Info'!G47+G49-F56,2)) ->  | H63: =IF('Program Info'!$H$14="GRAD",0,ROUND(G63+'Program Info'!H47+H49-G56,2)) ->  | I63: =IF('Program Info'!$H$14="GRAD",0,ROUND(H63+'Program Info'!I47+I49-H56,2)) ->  | J63: =IF('Program Info'!$H$14="GRAD",0,ROUND(I63+'Program Info'!J47+J49-I56,2)) ->  | K63: =IF('Program Info'!$H$14="GRAD",0,ROUND(J63+'Program Info'!K47+K49-J56,2)) ->  | L63: =IF('Program Info'!$H$14="GRAD",0,ROUND(K63+'Program Info'!L47+L49-K56,2)) ->  | M63: =IF('Program Info'!$H$14="GRAD",0,ROUND(L63+'Program Info'!N47+M49-L56,2)) ->  | N63: =IF('Program Info'!$H$14="GRAD",0,ROUND(M63+'Program Info'!O47+N49-M56,2)) -> 
B64: =B57 -> 2 | C64: ='Program Info'!D24 -> Part Time | E64: ='Program Info'!E48 -> 0 | F64: =ROUND(E64+'Program Info'!F48+F50-E57,2) ->  | G64: =ROUND(F64+'Program Info'!G48+G50-F57,2) ->  | H64: =ROUND(G64+'Program Info'!H48+H50-G57,2) ->  | I64: =ROUND(H64+'Program Info'!I48+I50-H57,2) ->  | J64: =ROUND(I64+'Program Info'!J48+J50-I57,2) ->  | K64: =ROUND(J64+'Program Info'!K48+K50-J57,2) ->  | L64: =ROUND(K64+'Program Info'!L48+L50-K57,2) ->  | M64: =ROUND(L64+'Program Info'!N48+M50-L57,2) ->  | N64: =ROUND(M64+'Program Info'!O48+N50-M57,2) -> 
D65: Total | E65: =SUM(E61:E64) -> 
D66: Chk | F66: =IF(ABS(SUM('Program Info'!$E49:F49)+SUM($E51:F51)-SUM($E58:E58)-F65)<0.01,"OK","ERROR") ->  | G66: =IF(ABS(SUM('Program Info'!$E49:G49)+SUM($E51:G51)-SUM($E58:F58)-G65)<0.01,"OK","ERROR") ->  | H66: =IF(ABS(SUM('Program Info'!$E49:H49)+SUM($E51:H51)-SUM($E58:G58)-H65)<0.01,"OK","ERROR") ->  | I66: =IF(ABS(SUM('Program Info'!$E49:I49)+SUM($E51:I51)-SUM($E58:H58)-I65)<0.01,"OK","ERROR") ->  | J66: =IF(ABS(SUM('Program Info'!$E49:J49)+SUM($E51:J51)-SUM($E58:I58)-J65)<0.01,"OK","ERROR") ->  | K66: =IF(ABS(SUM('Program Info'!$E49:K49)+SUM($E51:K51)-SUM($E58:J58)-K65)<0.01,"OK","ERROR") ->  | L66: =IF(ABS(SUM('Program Info'!$E49:L49)+SUM($E51:L51)-SUM($E58:K58)-L65)<0.01,"OK","ERROR") ->  | M66: =IF(ABS(SUM('Program Info'!$E49:N49)+SUM($E51:M51)-SUM($E58:L58)-M65)<0.01,"OK","ERROR") ->  | N66: =IF(ABS(SUM('Program Info'!$E49:O49)+SUM($E51:N51)-SUM($E58:M58)-N65)<0.01,"OK","ERROR") -> 
E67: =E80+E94+E108+E159 -> 
C68: Cohort Groups | E68: =+'Program Info'!E17 -> 0 | F68: =+'Program Info'!F17 -> 0-1 | G68: =+'Program Info'!G17 ->  | H68: =+'Program Info'!H17 ->  | I68: =+'Program Info'!I17 ->  | J68: =+'Program Info'!J17 ->  | K68: =CONCATENATE(RIGHT(J68,4),"-",RIGHT(J68,4)+1) ->  | L68: =CONCATENATE(RIGHT(K68,4),"-",RIGHT(K68,4)+1) ->  | M68: =CONCATENATE(RIGHT(L68,4),"-",RIGHT(L68,4)+1) ->  | N68: =CONCATENATE(RIGHT(M68,4),"-",RIGHT(M68,4)+1) -> 
C69: Credit Hour Matrix | D69: Coh | E69: =E38 -> 1 | F69: 2 | G69: 3 | H69: 4 | I69: 5 | J69: 6 | K69: 7 | L69: 8 | M69: 9 | N69: 10 | O69: 11
B70: 1 | C70: =VLOOKUP(B70,Cohort,2,FALSE) -> Full Time | D70: 1 | E70: =ROUND(IF($D70>E$69,0,IF(E$69=$D70,OFFSET('Program Info'!$E$45,0,E$69-1,1,1),IF($D70+'Program Info'!$G$23=E$69,0,IF(AND(E$69-$D70=1,'Program Info'!$G$23=4),D70*$K$25, IF(AND(E$69-$D70>=2,'Program Info'!$G$23=4),D70*$L$25, IF(AND(E$69-$D70=1,'Program Info'!$G$23=5),D70*$K$26, IF(AND(E$69-$D70>=2,'Program Info'!$G$23=5),D70*$L$26,D70*'Program Info'!$E$23))))))),2) -> 0 | F70: =ROUND(IF($D70>F$69,0,IF(F$69=$D70,OFFSET('Program Info'!$E$45,0,F$69-1,1,1),IF($D70+'Program Info'!$G$23=F$69,0,IF(AND(F$69-$D70=1,'Program Info'!$G$23=4),E70*$K$25, IF(AND(F$69-$D70>=2,'Program Info'!$G$23=4),E70*$L$25, IF(AND(F$69-$D70=1,'Program Info'!$G$23=5),E70*$K$26, IF(AND(F$69-$D70>=2,'Program Info'!$G$23=5),E70*$L$26,E70*'Program Info'!$E$23))))))),2) ->  | G70: =ROUND(IF($D70>G$69,0,IF(G$69=$D70,OFFSET('Program Info'!$E$45,0,G$69-1,1,1),IF($D70+'Program Info'!$G$23=G$69,0,IF(AND(G$69-$D70=1,'Program Info'!$G$23=4),F70*$K$25, IF(AND(G$69-$D70>=2,'Program Info'!$G$23=4),F70*$L$25, IF(AND(G$69-$D70=1,'Program Info'!$G$23=5),F70*$K$26, IF(AND(G$69-$D70>=2,'Program Info'!$G$23=5),F70*$L$26,F70*'Program Info'!$E$23))))))),2) ->  | H70: =ROUND(IF($D70>H$69,0,IF(H$69=$D70,OFFSET('Program Info'!$E$45,0,H$69-1,1,1),IF($D70+'Program Info'!$G$23=H$69,0,IF(AND(H$69-$D70=1,'Program Info'!$G$23=4),G70*$K$25, IF(AND(H$69-$D70>=2,'Program Info'!$G$23=4),G70*$L$25, IF(AND(H$69-$D70=1,'Program Info'!$G$23=5),G70*$K$26, IF(AND(H$69-$D70>=2,'Program Info'!$G$23=5),G70*$L$26,G70*'Program Info'!$E$23))))))),2) ->  | I70: =ROUND(IF($D70>I$69,0,IF(I$69=$D70,OFFSET('Program Info'!$E$45,0,I$69-1,1,1),IF($D70+'Program Info'!$G$23=I$69,0,IF(AND(I$69-$D70=1,'Program Info'!$G$23=4),H70*$K$25, IF(AND(I$69-$D70>=2,'Program Info'!$G$23=4),H70*$L$25, IF(AND(I$69-$D70=1,'Program Info'!$G$23=5),H70*$K$26, IF(AND(I$69-$D70>=2,'Program Info'!$G$23=5),H70*$L$26,H70*'Program Info'!$E$23))))))),2) ->  | J70: =ROUND(IF($D70>J$69,0,IF(J$69=$D70,OFFSET('Program Info'!$E$45,0,J$69-1,1,1),IF($D70+'Program Info'!$G$23=J$69,0,IF(AND(J$69-$D70=1,'Program Info'!$G$23=4),I70*$K$25, IF(AND(J$69-$D70>=2,'Program Info'!$G$23=4),I70*$L$25, IF(AND(J$69-$D70=1,'Program Info'!$G$23=5),I70*$K$26, IF(AND(J$69-$D70>=2,'Program Info'!$G$23=5),I70*$L$26,I70*'Program Info'!$E$23))))))),2) ->  | K70: =ROUND(IF($D70>K$69,0,IF(K$69=$D70,OFFSET('Program Info'!$E$45,0,K$69-1,1,1),IF($D70+'Program Info'!$G$23=K$69,0,IF(AND(K$69-$D70=1,'Program Info'!$G$23=4),J70*$K$25, IF(AND(K$69-$D70>=2,'Program Info'!$G$23=4),J70*$L$25, IF(AND(K$69-$D70=1,'Program Info'!$G$23=5),J70*$K$26, IF(AND(K$69-$D70>=2,'Program Info'!$G$23=5),J70*$L$26,J70*'Program Info'!$E$23))))))),2) ->  | L70: =ROUND(IF($D70>L$69,0,IF(L$69=$D70,OFFSET('Program Info'!$E$45,0,L$69-1,1,1),IF($D70+'Program Info'!$G$23=L$69,0,IF(AND(L$69-$D70=1,'Program Info'!$G$23=4),K70*$K$25, IF(AND(L$69-$D70>=2,'Program Info'!$G$23=4),K70*$L$25, IF(AND(L$69-$D70=1,'Program Info'!$G$23=5),K70*$K$26, IF(AND(L$69-$D70>=2,'Program Info'!$G$23=5),K70*$L$26,K70*'Program Info'!$E$23))))))),2) ->  | M70: =ROUND(IF($D70>M$69,0,IF(M$69=$D70,OFFSET('Program Info'!$E$45,0,M$69-1,1,1),IF($D70+'Program Info'!$G$23=M$69,0,IF(AND(M$69-$D70=1,'Program Info'!$G$23=4),L70*$K$25, IF(AND(M$69-$D70>=2,'Program Info'!$G$23=4),L70*$L$25, IF(AND(M$69-$D70=1,'Program Info'!$G$23=5),L70*$K$26, IF(AND(M$69-$D70>=2,'Program Info'!$G$23=5),L70*$L$26,L70*'Program Info'!$E$23))))))),2) ->  | N70: =ROUND(IF($D70>N$69,0,IF(N$69=$D70,OFFSET('Program Info'!$E$45,0,N$69-1,1,1),IF($D70+'Program Info'!$G$23=N$69,0,IF(AND(N$69-$D70=1,'Program Info'!$G$23=4),M70*$K$25, IF(AND(N$69-$D70>=2,'Program Info'!$G$23=4),M70*$L$25, IF(AND(N$69-$D70=1,'Program Info'!$G$23=5),M70*$K$26, IF(AND(N$69-$D70>=2,'Program Info'!$G$23=5),M70*$L$26,M70*'Program Info'!$E$23))))))),2) ->  | O70: =ROUND(IF($D70>O$69,0,IF(O$69=$D70,OFFSET('Program Info'!$E$45,0,O$69-1,1,1),IF($D70+'Program Info'!$G$23=O$69,0,IF(AND(O$69-$D70=1,'Program Info'!$G$23=4),N70*$K$25, IF(AND(O$69-$D70>=2,'Program Info'!$G$23=4),N70*$L$25, IF(AND(O$69-$D70=1,'Program Info'!$G$23=5),N70*$K$26, IF(AND(O$69-$D70>=2,'Program Info'!$G$23=5),N70*$L$26,N70*'Program Info'!$E$23))))))),2) -> 
B71: 1 | C71: Full Time | D71: 2 | E71: =ROUND(IF($D71>E$69,0,IF(E$69=$D71,OFFSET('Program Info'!$E$45,0,E$69-1,1,1),IF($D71+'Program Info'!$G$23=E$69,0,IF(AND(E$69-$D71=1,'Program Info'!$G$23=4),D71*$K$25, IF(AND(E$69-$D71>=2,'Program Info'!$G$23=4),D71*$L$25, IF(AND(E$69-$D71=1,'Program Info'!$G$23=5),D71*$K$26, IF(AND(E$69-$D71>=2,'Program Info'!$G$23=5),D71*$L$26,D71*'Program Info'!$E$23))))))),2) -> 0 | F71: =ROUND(IF($D71>F$69,0,IF(F$69=$D71,OFFSET('Program Info'!$E$45,0,F$69-1,1,1),IF($D71+'Program Info'!$G$23=F$69,0,IF(AND(F$69-$D71=1,'Program Info'!$G$23=4),E71*$K$25, IF(AND(F$69-$D71>=2,'Program Info'!$G$23=4),E71*$L$25, IF(AND(F$69-$D71=1,'Program Info'!$G$23=5),E71*$K$26, IF(AND(F$69-$D71>=2,'Program Info'!$G$23=5),E71*$L$26,E71*'Program Info'!$E$23))))))),2) -> 0 | G71: =ROUND(IF($D71>G$69,0,IF(G$69=$D71,OFFSET('Program Info'!$E$45,0,G$69-1,1,1),IF($D71+'Program Info'!$G$23=G$69,0,IF(AND(G$69-$D71=1,'Program Info'!$G$23=4),F71*$K$25, IF(AND(G$69-$D71>=2,'Program Info'!$G$23=4),F71*$L$25, IF(AND(G$69-$D71=1,'Program Info'!$G$23=5),F71*$K$26, IF(AND(G$69-$D71>=2,'Program Info'!$G$23=5),F71*$L$26,F71*'Program Info'!$E$23))))))),2) ->  | H71: =ROUND(IF($D71>H$69,0,IF(H$69=$D71,OFFSET('Program Info'!$E$45,0,H$69-1,1,1),IF($D71+'Program Info'!$G$23=H$69,0,IF(AND(H$69-$D71=1,'Program Info'!$G$23=4),G71*$K$25, IF(AND(H$69-$D71>=2,'Program Info'!$G$23=4),G71*$L$25, IF(AND(H$69-$D71=1,'Program Info'!$G$23=5),G71*$K$26, IF(AND(H$69-$D71>=2,'Program Info'!$G$23=5),G71*$L$26,G71*'Program Info'!$E$23))))))),2) ->  | I71: =ROUND(IF($D71>I$69,0,IF(I$69=$D71,OFFSET('Program Info'!$E$45,0,I$69-1,1,1),IF($D71+'Program Info'!$G$23=I$69,0,IF(AND(I$69-$D71=1,'Program Info'!$G$23=4),H71*$K$25, IF(AND(I$69-$D71>=2,'Program Info'!$G$23=4),H71*$L$25, IF(AND(I$69-$D71=1,'Program Info'!$G$23=5),H71*$K$26, IF(AND(I$69-$D71>=2,'Program Info'!$G$23=5),H71*$L$26,H71*'Program Info'!$E$23))))))),2) ->  | J71: =ROUND(IF($D71>J$69,0,IF(J$69=$D71,OFFSET('Program Info'!$E$45,0,J$69-1,1,1),IF($D71+'Program Info'!$G$23=J$69,0,IF(AND(J$69-$D71=1,'Program Info'!$G$23=4),I71*$K$25, IF(AND(J$69-$D71>=2,'Program Info'!$G$23=4),I71*$L$25, IF(AND(J$69-$D71=1,'Program Info'!$G$23=5),I71*$K$26, IF(AND(J$69-$D71>=2,'Program Info'!$G$23=5),I71*$L$26,I71*'Program Info'!$E$23))))))),2) ->  | K71: =ROUND(IF($D71>K$69,0,IF(K$69=$D71,OFFSET('Program Info'!$E$45,0,K$69-1,1,1),IF($D71+'Program Info'!$G$23=K$69,0,IF(AND(K$69-$D71=1,'Program Info'!$G$23=4),J71*$K$25, IF(AND(K$69-$D71>=2,'Program Info'!$G$23=4),J71*$L$25, IF(AND(K$69-$D71=1,'Program Info'!$G$23=5),J71*$K$26, IF(AND(K$69-$D71>=2,'Program Info'!$G$23=5),J71*$L$26,J71*'Program Info'!$E$23))))))),2) ->  | L71: =ROUND(IF($D71>L$69,0,IF(L$69=$D71,OFFSET('Program Info'!$E$45,0,L$69-1,1,1),IF($D71+'Program Info'!$G$23=L$69,0,IF(AND(L$69-$D71=1,'Program Info'!$G$23=4),K71*$K$25, IF(AND(L$69-$D71>=2,'Program Info'!$G$23=4),K71*$L$25, IF(AND(L$69-$D71=1,'Program Info'!$G$23=5),K71*$K$26, IF(AND(L$69-$D71>=2,'Program Info'!$G$23=5),K71*$L$26,K71*'Program Info'!$E$23))))))),2) ->  | M71: =ROUND(IF($D71>M$69,0,IF(M$69=$D71,OFFSET('Program Info'!$E$45,0,M$69-1,1,1),IF($D71+'Program Info'!$G$23=M$69,0,IF(AND(M$69-$D71=1,'Program Info'!$G$23=4),L71*$K$25, IF(AND(M$69-$D71>=2,'Program Info'!$G$23=4),L71*$L$25, IF(AND(M$69-$D71=1,'Program Info'!$G$23=5),L71*$K$26, IF(AND(M$69-$D71>=2,'Program Info'!$G$23=5),L71*$L$26,L71*'Program Info'!$E$23))))))),2) ->  | N71: =ROUND(IF($D71>N$69,0,IF(N$69=$D71,OFFSET('Program Info'!$E$45,0,N$69-1,1,1),IF($D71+'Program Info'!$G$23=N$69,0,IF(AND(N$69-$D71=1,'Program Info'!$G$23=4),M71*$K$25, IF(AND(N$69-$D71>=2,'Program Info'!$G$23=4),M71*$L$25, IF(AND(N$69-$D71=1,'Program Info'!$G$23=5),M71*$K$26, IF(AND(N$69-$D71>=2,'Program Info'!$G$23=5),M71*$L$26,M71*'Program Info'!$E$23))))))),2) ->  | O71: =ROUND(IF($D71>O$69,0,IF(O$69=$D71,OFFSET('Program Info'!$E$45,0,O$69-1,1,1),IF($D71+'Program Info'!$G$23=O$69,0,IF(AND(O$69-$D71=1,'Program Info'!$G$23=4),N71*$K$25, IF(AND(O$69-$D71>=2,'Program Info'!$G$23=4),N71*$L$25, IF(AND(O$69-$D71=1,'Program Info'!$G$23=5),N71*$K$26, IF(AND(O$69-$D71>=2,'Program Info'!$G$23=5),N71*$L$26,N71*'Program Info'!$E$23))))))),2) -> 
B72: 1 | C72: Full Time | D72: 3 | E72: =ROUND(IF($D72>E$69,0,IF(E$69=$D72,OFFSET('Program Info'!$E$45,0,E$69-1,1,1),IF($D72+'Program Info'!$G$23=E$69,0,IF(AND(E$69-$D72=1,'Program Info'!$G$23=4),D72*$K$25, IF(AND(E$69-$D72>=2,'Program Info'!$G$23=4),D72*$L$25, IF(AND(E$69-$D72=1,'Program Info'!$G$23=5),D72*$K$26, IF(AND(E$69-$D72>=2,'Program Info'!$G$23=5),D72*$L$26,D72*'Program Info'!$E$23))))))),2) -> 0 | F72: =ROUND(IF($D72>F$69,0,IF(F$69=$D72,OFFSET('Program Info'!$E$45,0,F$69-1,1,1),IF($D72+'Program Info'!$G$23=F$69,0,IF(AND(F$69-$D72=1,'Program Info'!$G$23=4),E72*$K$25, IF(AND(F$69-$D72>=2,'Program Info'!$G$23=4),E72*$L$25, IF(AND(F$69-$D72=1,'Program Info'!$G$23=5),E72*$K$26, IF(AND(F$69-$D72>=2,'Program Info'!$G$23=5),E72*$L$26,E72*'Program Info'!$E$23))))))),2) -> 0 | G72: =ROUND(IF($D72>G$69,0,IF(G$69=$D72,OFFSET('Program Info'!$E$45,0,G$69-1,1,1),IF($D72+'Program Info'!$G$23=G$69,0,IF(AND(G$69-$D72=1,'Program Info'!$G$23=4),F72*$K$25, IF(AND(G$69-$D72>=2,'Program Info'!$G$23=4),F72*$L$25, IF(AND(G$69-$D72=1,'Program Info'!$G$23=5),F72*$K$26, IF(AND(G$69-$D72>=2,'Program Info'!$G$23=5),F72*$L$26,F72*'Program Info'!$E$23))))))),2) -> 0 | H72: =ROUND(IF($D72>H$69,0,IF(H$69=$D72,OFFSET('Program Info'!$E$45,0,H$69-1,1,1),IF($D72+'Program Info'!$G$23=H$69,0,IF(AND(H$69-$D72=1,'Program Info'!$G$23=4),G72*$K$25, IF(AND(H$69-$D72>=2,'Program Info'!$G$23=4),G72*$L$25, IF(AND(H$69-$D72=1,'Program Info'!$G$23=5),G72*$K$26, IF(AND(H$69-$D72>=2,'Program Info'!$G$23=5),G72*$L$26,G72*'Program Info'!$E$23))))))),2) ->  | I72: =ROUND(IF($D72>I$69,0,IF(I$69=$D72,OFFSET('Program Info'!$E$45,0,I$69-1,1,1),IF($D72+'Program Info'!$G$23=I$69,0,IF(AND(I$69-$D72=1,'Program Info'!$G$23=4),H72*$K$25, IF(AND(I$69-$D72>=2,'Program Info'!$G$23=4),H72*$L$25, IF(AND(I$69-$D72=1,'Program Info'!$G$23=5),H72*$K$26, IF(AND(I$69-$D72>=2,'Program Info'!$G$23=5),H72*$L$26,H72*'Program Info'!$E$23))))))),2) ->  | J72: =ROUND(IF($D72>J$69,0,IF(J$69=$D72,OFFSET('Program Info'!$E$45,0,J$69-1,1,1),IF($D72+'Program Info'!$G$23=J$69,0,IF(AND(J$69-$D72=1,'Program Info'!$G$23=4),I72*$K$25, IF(AND(J$69-$D72>=2,'Program Info'!$G$23=4),I72*$L$25, IF(AND(J$69-$D72=1,'Program Info'!$G$23=5),I72*$K$26, IF(AND(J$69-$D72>=2,'Program Info'!$G$23=5),I72*$L$26,I72*'Program Info'!$E$23))))))),2) ->  | K72: =ROUND(IF($D72>K$69,0,IF(K$69=$D72,OFFSET('Program Info'!$E$45,0,K$69-1,1,1),IF($D72+'Program Info'!$G$23=K$69,0,IF(AND(K$69-$D72=1,'Program Info'!$G$23=4),J72*$K$25, IF(AND(K$69-$D72>=2,'Program Info'!$G$23=4),J72*$L$25, IF(AND(K$69-$D72=1,'Program Info'!$G$23=5),J72*$K$26, IF(AND(K$69-$D72>=2,'Program Info'!$G$23=5),J72*$L$26,J72*'Program Info'!$E$23))))))),2) ->  | L72: =ROUND(IF($D72>L$69,0,IF(L$69=$D72,OFFSET('Program Info'!$E$45,0,L$69-1,1,1),IF($D72+'Program Info'!$G$23=L$69,0,IF(AND(L$69-$D72=1,'Program Info'!$G$23=4),K72*$K$25, IF(AND(L$69-$D72>=2,'Program Info'!$G$23=4),K72*$L$25, IF(AND(L$69-$D72=1,'Program Info'!$G$23=5),K72*$K$26, IF(AND(L$69-$D72>=2,'Program Info'!$G$23=5),K72*$L$26,K72*'Program Info'!$E$23))))))),2) ->  | M72: =ROUND(IF($D72>M$69,0,IF(M$69=$D72,OFFSET('Program Info'!$E$45,0,M$69-1,1,1),IF($D72+'Program Info'!$G$23=M$69,0,IF(AND(M$69-$D72=1,'Program Info'!$G$23=4),L72*$K$25, IF(AND(M$69-$D72>=2,'Program Info'!$G$23=4),L72*$L$25, IF(AND(M$69-$D72=1,'Program Info'!$G$23=5),L72*$K$26, IF(AND(M$69-$D72>=2,'Program Info'!$G$23=5),L72*$L$26,L72*'Program Info'!$E$23))))))),2) ->  | N72: =ROUND(IF($D72>N$69,0,IF(N$69=$D72,OFFSET('Program Info'!$E$45,0,N$69-1,1,1),IF($D72+'Program Info'!$G$23=N$69,0,IF(AND(N$69-$D72=1,'Program Info'!$G$23=4),M72*$K$25, IF(AND(N$69-$D72>=2,'Program Info'!$G$23=4),M72*$L$25, IF(AND(N$69-$D72=1,'Program Info'!$G$23=5),M72*$K$26, IF(AND(N$69-$D72>=2,'Program Info'!$G$23=5),M72*$L$26,M72*'Program Info'!$E$23))))))),2) ->  | O72: =ROUND(IF($D72>O$69,0,IF(O$69=$D72,OFFSET('Program Info'!$E$45,0,O$69-1,1,1),IF($D72+'Program Info'!$G$23=O$69,0,IF(AND(O$69-$D72=1,'Program Info'!$G$23=4),N72*$K$25, IF(AND(O$69-$D72>=2,'Program Info'!$G$23=4),N72*$L$25, IF(AND(O$69-$D72=1,'Program Info'!$G$23=5),N72*$K$26, IF(AND(O$69-$D72>=2,'Program Info'!$G$23=5),N72*$L$26,N72*'Program Info'!$E$23))))))),2) -> 
B73: 1 | C73: Full Time | D73: 4 | E73: =ROUND(IF($D73>E$69,0,IF(E$69=$D73,OFFSET('Program Info'!$E$45,0,E$69-1,1,1),IF($D73+'Program Info'!$G$23=E$69,0,IF(AND(E$69-$D73=1,'Program Info'!$G$23=4),D73*$K$25, IF(AND(E$69-$D73>=2,'Program Info'!$G$23=4),D73*$L$25, IF(AND(E$69-$D73=1,'Program Info'!$G$23=5),D73*$K$26, IF(AND(E$69-$D73>=2,'Program Info'!$G$23=5),D73*$L$26,D73*'Program Info'!$E$23))))))),2) -> 0 | F73: =ROUND(IF($D73>F$69,0,IF(F$69=$D73,OFFSET('Program Info'!$E$45,0,F$69-1,1,1),IF($D73+'Program Info'!$G$23=F$69,0,IF(AND(F$69-$D73=1,'Program Info'!$G$23=4),E73*$K$25, IF(AND(F$69-$D73>=2,'Program Info'!$G$23=4),E73*$L$25, IF(AND(F$69-$D73=1,'Program Info'!$G$23=5),E73*$K$26, IF(AND(F$69-$D73>=2,'Program Info'!$G$23=5),E73*$L$26,E73*'Program Info'!$E$23))))))),2) -> 0 | G73: =ROUND(IF($D73>G$69,0,IF(G$69=$D73,OFFSET('Program Info'!$E$45,0,G$69-1,1,1),IF($D73+'Program Info'!$G$23=G$69,0,IF(AND(G$69-$D73=1,'Program Info'!$G$23=4),F73*$K$25, IF(AND(G$69-$D73>=2,'Program Info'!$G$23=4),F73*$L$25, IF(AND(G$69-$D73=1,'Program Info'!$G$23=5),F73*$K$26, IF(AND(G$69-$D73>=2,'Program Info'!$G$23=5),F73*$L$26,F73*'Program Info'!$E$23))))))),2) -> 0 | H73: =ROUND(IF($D73>H$69,0,IF(H$69=$D73,OFFSET('Program Info'!$E$45,0,H$69-1,1,1),IF($D73+'Program Info'!$G$23=H$69,0,IF(AND(H$69-$D73=1,'Program Info'!$G$23=4),G73*$K$25, IF(AND(H$69-$D73>=2,'Program Info'!$G$23=4),G73*$L$25, IF(AND(H$69-$D73=1,'Program Info'!$G$23=5),G73*$K$26, IF(AND(H$69-$D73>=2,'Program Info'!$G$23=5),G73*$L$26,G73*'Program Info'!$E$23))))))),2) -> 0 | I73: =ROUND(IF($D73>I$69,0,IF(I$69=$D73,OFFSET('Program Info'!$E$45,0,I$69-1,1,1),IF($D73+'Program Info'!$G$23=I$69,0,IF(AND(I$69-$D73=1,'Program Info'!$G$23=4),H73*$K$25, IF(AND(I$69-$D73>=2,'Program Info'!$G$23=4),H73*$L$25, IF(AND(I$69-$D73=1,'Program Info'!$G$23=5),H73*$K$26, IF(AND(I$69-$D73>=2,'Program Info'!$G$23=5),H73*$L$26,H73*'Program Info'!$E$23))))))),2) ->  | J73: =ROUND(IF($D73>J$69,0,IF(J$69=$D73,OFFSET('Program Info'!$E$45,0,J$69-1,1,1),IF($D73+'Program Info'!$G$23=J$69,0,IF(AND(J$69-$D73=1,'Program Info'!$G$23=4),I73*$K$25, IF(AND(J$69-$D73>=2,'Program Info'!$G$23=4),I73*$L$25, IF(AND(J$69-$D73=1,'Program Info'!$G$23=5),I73*$K$26, IF(AND(J$69-$D73>=2,'Program Info'!$G$23=5),I73*$L$26,I73*'Program Info'!$E$23))))))),2) ->  | K73: =ROUND(IF($D73>K$69,0,IF(K$69=$D73,OFFSET('Program Info'!$E$45,0,K$69-1,1,1),IF($D73+'Program Info'!$G$23=K$69,0,IF(AND(K$69-$D73=1,'Program Info'!$G$23=4),J73*$K$25, IF(AND(K$69-$D73>=2,'Program Info'!$G$23=4),J73*$L$25, IF(AND(K$69-$D73=1,'Program Info'!$G$23=5),J73*$K$26, IF(AND(K$69-$D73>=2,'Program Info'!$G$23=5),J73*$L$26,J73*'Program Info'!$E$23))))))),2) ->  | L73: =ROUND(IF($D73>L$69,0,IF(L$69=$D73,OFFSET('Program Info'!$E$45,0,L$69-1,1,1),IF($D73+'Program Info'!$G$23=L$69,0,IF(AND(L$69-$D73=1,'Program Info'!$G$23=4),K73*$K$25, IF(AND(L$69-$D73>=2,'Program Info'!$G$23=4),K73*$L$25, IF(AND(L$69-$D73=1,'Program Info'!$G$23=5),K73*$K$26, IF(AND(L$69-$D73>=2,'Program Info'!$G$23=5),K73*$L$26,K73*'Program Info'!$E$23))))))),2) ->  | M73: =ROUND(IF($D73>M$69,0,IF(M$69=$D73,OFFSET('Program Info'!$E$45,0,M$69-1,1,1),IF($D73+'Program Info'!$G$23=M$69,0,IF(AND(M$69-$D73=1,'Program Info'!$G$23=4),L73*$K$25, IF(AND(M$69-$D73>=2,'Program Info'!$G$23=4),L73*$L$25, IF(AND(M$69-$D73=1,'Program Info'!$G$23=5),L73*$K$26, IF(AND(M$69-$D73>=2,'Program Info'!$G$23=5),L73*$L$26,L73*'Program Info'!$E$23))))))),2) ->  | N73: =ROUND(IF($D73>N$69,0,IF(N$69=$D73,OFFSET('Program Info'!$E$45,0,N$69-1,1,1),IF($D73+'Program Info'!$G$23=N$69,0,IF(AND(N$69-$D73=1,'Program Info'!$G$23=4),M73*$K$25, IF(AND(N$69-$D73>=2,'Program Info'!$G$23=4),M73*$L$25, IF(AND(N$69-$D73=1,'Program Info'!$G$23=5),M73*$K$26, IF(AND(N$69-$D73>=2,'Program Info'!$G$23=5),M73*$L$26,M73*'Program Info'!$E$23))))))),2) ->  | O73: =ROUND(IF($D73>O$69,0,IF(O$69=$D73,OFFSET('Program Info'!$E$45,0,O$69-1,1,1),IF($D73+'Program Info'!$G$23=O$69,0,IF(AND(O$69-$D73=1,'Program Info'!$G$23=4),N73*$K$25, IF(AND(O$69-$D73>=2,'Program Info'!$G$23=4),N73*$L$25, IF(AND(O$69-$D73=1,'Program Info'!$G$23=5),N73*$K$26, IF(AND(O$69-$D73>=2,'Program Info'!$G$23=5),N73*$L$26,N73*'Program Info'!$E$23))))))),2) -> 
B74: 1 | C74: Full Time | D74: 5 | E74: =ROUND(IF($D74>E$69,0,IF(E$69=$D74,OFFSET('Program Info'!$E$45,0,E$69-1,1,1),IF($D74+'Program Info'!$G$23=E$69,0,IF(AND(E$69-$D74=1,'Program Info'!$G$23=4),D74*$K$25, IF(AND(E$69-$D74>=2,'Program Info'!$G$23=4),D74*$L$25, IF(AND(E$69-$D74=1,'Program Info'!$G$23=5),D74*$K$26, IF(AND(E$69-$D74>=2,'Program Info'!$G$23=5),D74*$L$26,D74*'Program Info'!$E$23))))))),2) -> 0 | F74: =ROUND(IF($D74>F$69,0,IF(F$69=$D74,OFFSET('Program Info'!$E$45,0,F$69-1,1,1),IF($D74+'Program Info'!$G$23=F$69,0,IF(AND(F$69-$D74=1,'Program Info'!$G$23=4),E74*$K$25, IF(AND(F$69-$D74>=2,'Program Info'!$G$23=4),E74*$L$25, IF(AND(F$69-$D74=1,'Program Info'!$G$23=5),E74*$K$26, IF(AND(F$69-$D74>=2,'Program Info'!$G$23=5),E74*$L$26,E74*'Program Info'!$E$23))))))),2) -> 0 | G74: =ROUND(IF($D74>G$69,0,IF(G$69=$D74,OFFSET('Program Info'!$E$45,0,G$69-1,1,1),IF($D74+'Program Info'!$G$23=G$69,0,IF(AND(G$69-$D74=1,'Program Info'!$G$23=4),F74*$K$25, IF(AND(G$69-$D74>=2,'Program Info'!$G$23=4),F74*$L$25, IF(AND(G$69-$D74=1,'Program Info'!$G$23=5),F74*$K$26, IF(AND(G$69-$D74>=2,'Program Info'!$G$23=5),F74*$L$26,F74*'Program Info'!$E$23))))))),2) -> 0 | H74: =ROUND(IF($D74>H$69,0,IF(H$69=$D74,OFFSET('Program Info'!$E$45,0,H$69-1,1,1),IF($D74+'Program Info'!$G$23=H$69,0,IF(AND(H$69-$D74=1,'Program Info'!$G$23=4),G74*$K$25, IF(AND(H$69-$D74>=2,'Program Info'!$G$23=4),G74*$L$25, IF(AND(H$69-$D74=1,'Program Info'!$G$23=5),G74*$K$26, IF(AND(H$69-$D74>=2,'Program Info'!$G$23=5),G74*$L$26,G74*'Program Info'!$E$23))))))),2) -> 0 | I74: =ROUND(IF($D74>I$69,0,IF(I$69=$D74,OFFSET('Program Info'!$E$45,0,I$69-1,1,1),IF($D74+'Program Info'!$G$23=I$69,0,IF(AND(I$69-$D74=1,'Program Info'!$G$23=4),H74*$K$25, IF(AND(I$69-$D74>=2,'Program Info'!$G$23=4),H74*$L$25, IF(AND(I$69-$D74=1,'Program Info'!$G$23=5),H74*$K$26, IF(AND(I$69-$D74>=2,'Program Info'!$G$23=5),H74*$L$26,H74*'Program Info'!$E$23))))))),2) -> 0 | J74: =ROUND(IF($D74>J$69,0,IF(J$69=$D74,OFFSET('Program Info'!$E$45,0,J$69-1,1,1),IF($D74+'Program Info'!$G$23=J$69,0,IF(AND(J$69-$D74=1,'Program Info'!$G$23=4),I74*$K$25, IF(AND(J$69-$D74>=2,'Program Info'!$G$23=4),I74*$L$25, IF(AND(J$69-$D74=1,'Program Info'!$G$23=5),I74*$K$26, IF(AND(J$69-$D74>=2,'Program Info'!$G$23=5),I74*$L$26,I74*'Program Info'!$E$23))))))),2) ->  | K74: =ROUND(IF($D74>K$69,0,IF(K$69=$D74,OFFSET('Program Info'!$E$45,0,K$69-1,1,1),IF($D74+'Program Info'!$G$23=K$69,0,IF(AND(K$69-$D74=1,'Program Info'!$G$23=4),J74*$K$25, IF(AND(K$69-$D74>=2,'Program Info'!$G$23=4),J74*$L$25, IF(AND(K$69-$D74=1,'Program Info'!$G$23=5),J74*$K$26, IF(AND(K$69-$D74>=2,'Program Info'!$G$23=5),J74*$L$26,J74*'Program Info'!$E$23))))))),2) ->  | L74: =ROUND(IF($D74>L$69,0,IF(L$69=$D74,OFFSET('Program Info'!$E$45,0,L$69-1,1,1),IF($D74+'Program Info'!$G$23=L$69,0,IF(AND(L$69-$D74=1,'Program Info'!$G$23=4),K74*$K$25, IF(AND(L$69-$D74>=2,'Program Info'!$G$23=4),K74*$L$25, IF(AND(L$69-$D74=1,'Program Info'!$G$23=5),K74*$K$26, IF(AND(L$69-$D74>=2,'Program Info'!$G$23=5),K74*$L$26,K74*'Program Info'!$E$23))))))),2) ->  | M74: =ROUND(IF($D74>M$69,0,IF(M$69=$D74,OFFSET('Program Info'!$E$45,0,M$69-1,1,1),IF($D74+'Program Info'!$G$23=M$69,0,IF(AND(M$69-$D74=1,'Program Info'!$G$23=4),L74*$K$25, IF(AND(M$69-$D74>=2,'Program Info'!$G$23=4),L74*$L$25, IF(AND(M$69-$D74=1,'Program Info'!$G$23=5),L74*$K$26, IF(AND(M$69-$D74>=2,'Program Info'!$G$23=5),L74*$L$26,L74*'Program Info'!$E$23))))))),2) ->  | N74: =ROUND(IF($D74>N$69,0,IF(N$69=$D74,OFFSET('Program Info'!$E$45,0,N$69-1,1,1),IF($D74+'Program Info'!$G$23=N$69,0,IF(AND(N$69-$D74=1,'Program Info'!$G$23=4),M74*$K$25, IF(AND(N$69-$D74>=2,'Program Info'!$G$23=4),M74*$L$25, IF(AND(N$69-$D74=1,'Program Info'!$G$23=5),M74*$K$26, IF(AND(N$69-$D74>=2,'Program Info'!$G$23=5),M74*$L$26,M74*'Program Info'!$E$23))))))),2) ->  | O74: =ROUND(IF($D74>O$69,0,IF(O$69=$D74,OFFSET('Program Info'!$E$45,0,O$69-1,1,1),IF($D74+'Program Info'!$G$23=O$69,0,IF(AND(O$69-$D74=1,'Program Info'!$G$23=4),N74*$K$25, IF(AND(O$69-$D74>=2,'Program Info'!$G$23=4),N74*$L$25, IF(AND(O$69-$D74=1,'Program Info'!$G$23=5),N74*$K$26, IF(AND(O$69-$D74>=2,'Program Info'!$G$23=5),N74*$L$26,N74*'Program Info'!$E$23))))))),2) -> 
B75: 1 | C75: Full Time | D75: 6 | E75: =ROUND(IF($D75>E$69,0,IF(E$69=$D75,OFFSET('Program Info'!$E$45,0,E$69-1,1,1),IF($D75+'Program Info'!$G$23=E$69,0,IF(AND(E$69-$D75=1,'Program Info'!$G$23=4),D75*$K$25, IF(AND(E$69-$D75>=2,'Program Info'!$G$23=4),D75*$L$25, IF(AND(E$69-$D75=1,'Program Info'!$G$23=5),D75*$K$26, IF(AND(E$69-$D75>=2,'Program Info'!$G$23=5),D75*$L$26,D75*'Program Info'!$E$23))))))),2) -> 0 | F75: =ROUND(IF($D75>F$69,0,IF(F$69=$D75,OFFSET('Program Info'!$E$45,0,F$69-1,1,1),IF($D75+'Program Info'!$G$23=F$69,0,IF(AND(F$69-$D75=1,'Program Info'!$G$23=4),E75*$K$25, IF(AND(F$69-$D75>=2,'Program Info'!$G$23=4),E75*$L$25, IF(AND(F$69-$D75=1,'Program Info'!$G$23=5),E75*$K$26, IF(AND(F$69-$D75>=2,'Program Info'!$G$23=5),E75*$L$26,E75*'Program Info'!$E$23))))))),2) -> 0 | G75: =ROUND(IF($D75>G$69,0,IF(G$69=$D75,OFFSET('Program Info'!$E$45,0,G$69-1,1,1),IF($D75+'Program Info'!$G$23=G$69,0,IF(AND(G$69-$D75=1,'Program Info'!$G$23=4),F75*$K$25, IF(AND(G$69-$D75>=2,'Program Info'!$G$23=4),F75*$L$25, IF(AND(G$69-$D75=1,'Program Info'!$G$23=5),F75*$K$26, IF(AND(G$69-$D75>=2,'Program Info'!$G$23=5),F75*$L$26,F75*'Program Info'!$E$23))))))),2) -> 0 | H75: =ROUND(IF($D75>H$69,0,IF(H$69=$D75,OFFSET('Program Info'!$E$45,0,H$69-1,1,1),IF($D75+'Program Info'!$G$23=H$69,0,IF(AND(H$69-$D75=1,'Program Info'!$G$23=4),G75*$K$25, IF(AND(H$69-$D75>=2,'Program Info'!$G$23=4),G75*$L$25, IF(AND(H$69-$D75=1,'Program Info'!$G$23=5),G75*$K$26, IF(AND(H$69-$D75>=2,'Program Info'!$G$23=5),G75*$L$26,G75*'Program Info'!$E$23))))))),2) -> 0 | I75: =ROUND(IF($D75>I$69,0,IF(I$69=$D75,OFFSET('Program Info'!$E$45,0,I$69-1,1,1),IF($D75+'Program Info'!$G$23=I$69,0,IF(AND(I$69-$D75=1,'Program Info'!$G$23=4),H75*$K$25, IF(AND(I$69-$D75>=2,'Program Info'!$G$23=4),H75*$L$25, IF(AND(I$69-$D75=1,'Program Info'!$G$23=5),H75*$K$26, IF(AND(I$69-$D75>=2,'Program Info'!$G$23=5),H75*$L$26,H75*'Program Info'!$E$23))))))),2) -> 0 | J75: =ROUND(IF($D75>J$69,0,IF(J$69=$D75,OFFSET('Program Info'!$E$45,0,J$69-1,1,1),IF($D75+'Program Info'!$G$23=J$69,0,IF(AND(J$69-$D75=1,'Program Info'!$G$23=4),I75*$K$25, IF(AND(J$69-$D75>=2,'Program Info'!$G$23=4),I75*$L$25, IF(AND(J$69-$D75=1,'Program Info'!$G$23=5),I75*$K$26, IF(AND(J$69-$D75>=2,'Program Info'!$G$23=5),I75*$L$26,I75*'Program Info'!$E$23))))))),2) -> 0 | K75: =ROUND(IF($D75>K$69,0,IF(K$69=$D75,OFFSET('Program Info'!$E$45,0,K$69-1,1,1),IF($D75+'Program Info'!$G$23=K$69,0,IF(AND(K$69-$D75=1,'Program Info'!$G$23=4),J75*$K$25, IF(AND(K$69-$D75>=2,'Program Info'!$G$23=4),J75*$L$25, IF(AND(K$69-$D75=1,'Program Info'!$G$23=5),J75*$K$26, IF(AND(K$69-$D75>=2,'Program Info'!$G$23=5),J75*$L$26,J75*'Program Info'!$E$23))))))),2) ->  | L75: =ROUND(IF($D75>L$69,0,IF(L$69=$D75,OFFSET('Program Info'!$E$45,0,L$69-1,1,1),IF($D75+'Program Info'!$G$23=L$69,0,IF(AND(L$69-$D75=1,'Program Info'!$G$23=4),K75*$K$25, IF(AND(L$69-$D75>=2,'Program Info'!$G$23=4),K75*$L$25, IF(AND(L$69-$D75=1,'Program Info'!$G$23=5),K75*$K$26, IF(AND(L$69-$D75>=2,'Program Info'!$G$23=5),K75*$L$26,K75*'Program Info'!$E$23))))))),2) ->  | M75: =ROUND(IF($D75>M$69,0,IF(M$69=$D75,OFFSET('Program Info'!$E$45,0,M$69-1,1,1),IF($D75+'Program Info'!$G$23=M$69,0,IF(AND(M$69-$D75=1,'Program Info'!$G$23=4),L75*$K$25, IF(AND(M$69-$D75>=2,'Program Info'!$G$23=4),L75*$L$25, IF(AND(M$69-$D75=1,'Program Info'!$G$23=5),L75*$K$26, IF(AND(M$69-$D75>=2,'Program Info'!$G$23=5),L75*$L$26,L75*'Program Info'!$E$23))))))),2) ->  | N75: =ROUND(IF($D75>N$69,0,IF(N$69=$D75,OFFSET('Program Info'!$E$45,0,N$69-1,1,1),IF($D75+'Program Info'!$G$23=N$69,0,IF(AND(N$69-$D75=1,'Program Info'!$G$23=4),M75*$K$25, IF(AND(N$69-$D75>=2,'Program Info'!$G$23=4),M75*$L$25, IF(AND(N$69-$D75=1,'Program Info'!$G$23=5),M75*$K$26, IF(AND(N$69-$D75>=2,'Program Info'!$G$23=5),M75*$L$26,M75*'Program Info'!$E$23))))))),2) ->  | O75: =ROUND(IF($D75>O$69,0,IF(O$69=$D75,OFFSET('Program Info'!$E$45,0,O$69-1,1,1),IF($D75+'Program Info'!$G$23=O$69,0,IF(AND(O$69-$D75=1,'Program Info'!$G$23=4),N75*$K$25, IF(AND(O$69-$D75>=2,'Program Info'!$G$23=4),N75*$L$25, IF(AND(O$69-$D75=1,'Program Info'!$G$23=5),N75*$K$26, IF(AND(O$69-$D75>=2,'Program Info'!$G$23=5),N75*$L$26,N75*'Program Info'!$E$23))))))),2) -> 
B76: 1 | C76: Full Time | D76: 7 | E76: =ROUND(IF($D76>E$69,0,IF(E$69=$D76,OFFSET('Program Info'!$E$45,0,E$69-1,1,1),IF($D76+'Program Info'!$G$23=E$69,0,IF(AND(E$69-$D76=1,'Program Info'!$G$23=4),D76*$K$25, IF(AND(E$69-$D76>=2,'Program Info'!$G$23=4),D76*$L$25, IF(AND(E$69-$D76=1,'Program Info'!$G$23=5),D76*$K$26, IF(AND(E$69-$D76>=2,'Program Info'!$G$23=5),D76*$L$26,D76*'Program Info'!$E$23))))))),2) -> 0 | F76: =ROUND(IF($D76>F$69,0,IF(F$69=$D76,OFFSET('Program Info'!$E$45,0,F$69-1,1,1),IF($D76+'Program Info'!$G$23=F$69,0,IF(AND(F$69-$D76=1,'Program Info'!$G$23=4),E76*$K$25, IF(AND(F$69-$D76>=2,'Program Info'!$G$23=4),E76*$L$25, IF(AND(F$69-$D76=1,'Program Info'!$G$23=5),E76*$K$26, IF(AND(F$69-$D76>=2,'Program Info'!$G$23=5),E76*$L$26,E76*'Program Info'!$E$23))))))),2) -> 0 | G76: =ROUND(IF($D76>G$69,0,IF(G$69=$D76,OFFSET('Program Info'!$E$45,0,G$69-1,1,1),IF($D76+'Program Info'!$G$23=G$69,0,IF(AND(G$69-$D76=1,'Program Info'!$G$23=4),F76*$K$25, IF(AND(G$69-$D76>=2,'Program Info'!$G$23=4),F76*$L$25, IF(AND(G$69-$D76=1,'Program Info'!$G$23=5),F76*$K$26, IF(AND(G$69-$D76>=2,'Program Info'!$G$23=5),F76*$L$26,F76*'Program Info'!$E$23))))))),2) -> 0 | H76: =ROUND(IF($D76>H$69,0,IF(H$69=$D76,OFFSET('Program Info'!$E$45,0,H$69-1,1,1),IF($D76+'Program Info'!$G$23=H$69,0,IF(AND(H$69-$D76=1,'Program Info'!$G$23=4),G76*$K$25, IF(AND(H$69-$D76>=2,'Program Info'!$G$23=4),G76*$L$25, IF(AND(H$69-$D76=1,'Program Info'!$G$23=5),G76*$K$26, IF(AND(H$69-$D76>=2,'Program Info'!$G$23=5),G76*$L$26,G76*'Program Info'!$E$23))))))),2) -> 0 | I76: =ROUND(IF($D76>I$69,0,IF(I$69=$D76,OFFSET('Program Info'!$E$45,0,I$69-1,1,1),IF($D76+'Program Info'!$G$23=I$69,0,IF(AND(I$69-$D76=1,'Program Info'!$G$23=4),H76*$K$25, IF(AND(I$69-$D76>=2,'Program Info'!$G$23=4),H76*$L$25, IF(AND(I$69-$D76=1,'Program Info'!$G$23=5),H76*$K$26, IF(AND(I$69-$D76>=2,'Program Info'!$G$23=5),H76*$L$26,H76*'Program Info'!$E$23))))))),2) -> 0 | J76: =ROUND(IF($D76>J$69,0,IF(J$69=$D76,OFFSET('Program Info'!$E$45,0,J$69-1,1,1),IF($D76+'Program Info'!$G$23=J$69,0,IF(AND(J$69-$D76=1,'Program Info'!$G$23=4),I76*$K$25, IF(AND(J$69-$D76>=2,'Program Info'!$G$23=4),I76*$L$25, IF(AND(J$69-$D76=1,'Program Info'!$G$23=5),I76*$K$26, IF(AND(J$69-$D76>=2,'Program Info'!$G$23=5),I76*$L$26,I76*'Program Info'!$E$23))))))),2) -> 0 | K76: =ROUND(IF($D76>K$69,0,IF(K$69=$D76,OFFSET('Program Info'!$E$45,0,K$69-1,1,1),IF($D76+'Program Info'!$G$23=K$69,0,IF(AND(K$69-$D76=1,'Program Info'!$G$23=4),J76*$K$25, IF(AND(K$69-$D76>=2,'Program Info'!$G$23=4),J76*$L$25, IF(AND(K$69-$D76=1,'Program Info'!$G$23=5),J76*$K$26, IF(AND(K$69-$D76>=2,'Program Info'!$G$23=5),J76*$L$26,J76*'Program Info'!$E$23))))))),2) -> 0 | L76: =ROUND(IF($D76>L$69,0,IF(L$69=$D76,OFFSET('Program Info'!$E$45,0,L$69-1,1,1),IF($D76+'Program Info'!$G$23=L$69,0,IF(AND(L$69-$D76=1,'Program Info'!$G$23=4),K76*$K$25, IF(AND(L$69-$D76>=2,'Program Info'!$G$23=4),K76*$L$25, IF(AND(L$69-$D76=1,'Program Info'!$G$23=5),K76*$K$26, IF(AND(L$69-$D76>=2,'Program Info'!$G$23=5),K76*$L$26,K76*'Program Info'!$E$23))))))),2) ->  | M76: =ROUND(IF($D76>M$69,0,IF(M$69=$D76,OFFSET('Program Info'!$E$45,0,M$69-1,1,1),IF($D76+'Program Info'!$G$23=M$69,0,IF(AND(M$69-$D76=1,'Program Info'!$G$23=4),L76*$K$25, IF(AND(M$69-$D76>=2,'Program Info'!$G$23=4),L76*$L$25, IF(AND(M$69-$D76=1,'Program Info'!$G$23=5),L76*$K$26, IF(AND(M$69-$D76>=2,'Program Info'!$G$23=5),L76*$L$26,L76*'Program Info'!$E$23))))))),2) ->  | N76: =ROUND(IF($D76>N$69,0,IF(N$69=$D76,OFFSET('Program Info'!$E$45,0,N$69-1,1,1),IF($D76+'Program Info'!$G$23=N$69,0,IF(AND(N$69-$D76=1,'Program Info'!$G$23=4),M76*$K$25, IF(AND(N$69-$D76>=2,'Program Info'!$G$23=4),M76*$L$25, IF(AND(N$69-$D76=1,'Program Info'!$G$23=5),M76*$K$26, IF(AND(N$69-$D76>=2,'Program Info'!$G$23=5),M76*$L$26,M76*'Program Info'!$E$23))))))),2) ->  | O76: =ROUND(IF($D76>O$69,0,IF(O$69=$D76,OFFSET('Program Info'!$E$45,0,O$69-1,1,1),IF($D76+'Program Info'!$G$23=O$69,0,IF(AND(O$69-$D76=1,'Program Info'!$G$23=4),N76*$K$25, IF(AND(O$69-$D76>=2,'Program Info'!$G$23=4),N76*$L$25, IF(AND(O$69-$D76=1,'Program Info'!$G$23=5),N76*$K$26, IF(AND(O$69-$D76>=2,'Program Info'!$G$23=5),N76*$L$26,N76*'Program Info'!$E$23))))))),2) -> 
B77: 1 | C77: Full Time | D77: 8 | E77: =ROUND(IF($D77>E$69,0,IF(E$69=$D77,OFFSET('Program Info'!$E$45,0,E$69-1,1,1),IF($D77+'Program Info'!$G$23=E$69,0,IF(AND(E$69-$D77=1,'Program Info'!$G$23=4),D77*$K$25, IF(AND(E$69-$D77>=2,'Program Info'!$G$23=4),D77*$L$25, IF(AND(E$69-$D77=1,'Program Info'!$G$23=5),D77*$K$26, IF(AND(E$69-$D77>=2,'Program Info'!$G$23=5),D77*$L$26,D77*'Program Info'!$E$23))))))),2) -> 0 | F77: =ROUND(IF($D77>F$69,0,IF(F$69=$D77,OFFSET('Program Info'!$E$45,0,F$69-1,1,1),IF($D77+'Program Info'!$G$23=F$69,0,IF(AND(F$69-$D77=1,'Program Info'!$G$23=4),E77*$K$25, IF(AND(F$69-$D77>=2,'Program Info'!$G$23=4),E77*$L$25, IF(AND(F$69-$D77=1,'Program Info'!$G$23=5),E77*$K$26, IF(AND(F$69-$D77>=2,'Program Info'!$G$23=5),E77*$L$26,E77*'Program Info'!$E$23))))))),2) -> 0 | G77: =ROUND(IF($D77>G$69,0,IF(G$69=$D77,OFFSET('Program Info'!$E$45,0,G$69-1,1,1),IF($D77+'Program Info'!$G$23=G$69,0,IF(AND(G$69-$D77=1,'Program Info'!$G$23=4),F77*$K$25, IF(AND(G$69-$D77>=2,'Program Info'!$G$23=4),F77*$L$25, IF(AND(G$69-$D77=1,'Program Info'!$G$23=5),F77*$K$26, IF(AND(G$69-$D77>=2,'Program Info'!$G$23=5),F77*$L$26,F77*'Program Info'!$E$23))))))),2) -> 0 | H77: =ROUND(IF($D77>H$69,0,IF(H$69=$D77,OFFSET('Program Info'!$E$45,0,H$69-1,1,1),IF($D77+'Program Info'!$G$23=H$69,0,IF(AND(H$69-$D77=1,'Program Info'!$G$23=4),G77*$K$25, IF(AND(H$69-$D77>=2,'Program Info'!$G$23=4),G77*$L$25, IF(AND(H$69-$D77=1,'Program Info'!$G$23=5),G77*$K$26, IF(AND(H$69-$D77>=2,'Program Info'!$G$23=5),G77*$L$26,G77*'Program Info'!$E$23))))))),2) -> 0 | I77: =ROUND(IF($D77>I$69,0,IF(I$69=$D77,OFFSET('Program Info'!$E$45,0,I$69-1,1,1),IF($D77+'Program Info'!$G$23=I$69,0,IF(AND(I$69-$D77=1,'Program Info'!$G$23=4),H77*$K$25, IF(AND(I$69-$D77>=2,'Program Info'!$G$23=4),H77*$L$25, IF(AND(I$69-$D77=1,'Program Info'!$G$23=5),H77*$K$26, IF(AND(I$69-$D77>=2,'Program Info'!$G$23=5),H77*$L$26,H77*'Program Info'!$E$23))))))),2) -> 0 | J77: =ROUND(IF($D77>J$69,0,IF(J$69=$D77,OFFSET('Program Info'!$E$45,0,J$69-1,1,1),IF($D77+'Program Info'!$G$23=J$69,0,IF(AND(J$69-$D77=1,'Program Info'!$G$23=4),I77*$K$25, IF(AND(J$69-$D77>=2,'Program Info'!$G$23=4),I77*$L$25, IF(AND(J$69-$D77=1,'Program Info'!$G$23=5),I77*$K$26, IF(AND(J$69-$D77>=2,'Program Info'!$G$23=5),I77*$L$26,I77*'Program Info'!$E$23))))))),2) -> 0 | K77: =ROUND(IF($D77>K$69,0,IF(K$69=$D77,OFFSET('Program Info'!$E$45,0,K$69-1,1,1),IF($D77+'Program Info'!$G$23=K$69,0,IF(AND(K$69-$D77=1,'Program Info'!$G$23=4),J77*$K$25, IF(AND(K$69-$D77>=2,'Program Info'!$G$23=4),J77*$L$25, IF(AND(K$69-$D77=1,'Program Info'!$G$23=5),J77*$K$26, IF(AND(K$69-$D77>=2,'Program Info'!$G$23=5),J77*$L$26,J77*'Program Info'!$E$23))))))),2) -> 0 | L77: =ROUND(IF($D77>L$69,0,IF(L$69=$D77,OFFSET('Program Info'!$E$45,0,L$69-1,1,1),IF($D77+'Program Info'!$G$23=L$69,0,IF(AND(L$69-$D77=1,'Program Info'!$G$23=4),K77*$K$25, IF(AND(L$69-$D77>=2,'Program Info'!$G$23=4),K77*$L$25, IF(AND(L$69-$D77=1,'Program Info'!$G$23=5),K77*$K$26, IF(AND(L$69-$D77>=2,'Program Info'!$G$23=5),K77*$L$26,K77*'Program Info'!$E$23))))))),2) -> 0 | M77: =ROUND(IF($D77>M$69,0,IF(M$69=$D77,OFFSET('Program Info'!$E$45,0,M$69-1,1,1),IF($D77+'Program Info'!$G$23=M$69,0,IF(AND(M$69-$D77=1,'Program Info'!$G$23=4),L77*$K$25, IF(AND(M$69-$D77>=2,'Program Info'!$G$23=4),L77*$L$25, IF(AND(M$69-$D77=1,'Program Info'!$G$23=5),L77*$K$26, IF(AND(M$69-$D77>=2,'Program Info'!$G$23=5),L77*$L$26,L77*'Program Info'!$E$23))))))),2) ->  | N77: =ROUND(IF($D77>N$69,0,IF(N$69=$D77,OFFSET('Program Info'!$E$45,0,N$69-1,1,1),IF($D77+'Program Info'!$G$23=N$69,0,IF(AND(N$69-$D77=1,'Program Info'!$G$23=4),M77*$K$25, IF(AND(N$69-$D77>=2,'Program Info'!$G$23=4),M77*$L$25, IF(AND(N$69-$D77=1,'Program Info'!$G$23=5),M77*$K$26, IF(AND(N$69-$D77>=2,'Program Info'!$G$23=5),M77*$L$26,M77*'Program Info'!$E$23))))))),2) ->  | O77: =ROUND(IF($D77>O$69,0,IF(O$69=$D77,OFFSET('Program Info'!$E$45,0,O$69-1,1,1),IF($D77+'Program Info'!$G$23=O$69,0,IF(AND(O$69-$D77=1,'Program Info'!$G$23=4),N77*$K$25, IF(AND(O$69-$D77>=2,'Program Info'!$G$23=4),N77*$L$25, IF(AND(O$69-$D77=1,'Program Info'!$G$23=5),N77*$K$26, IF(AND(O$69-$D77>=2,'Program Info'!$G$23=5),N77*$L$26,N77*'Program Info'!$E$23))))))),2) -> 
